{"text_format":"1","workbook":"xlsx","n_sheets":13,"sheets":["البيانات","مغادر","الغرف","البحث عن مفادر","البحث عن عميل موجود","ارقام الغرف واسعارها","راتب","الحساب","الرئيسية","ورقة1","حضور وانصراف","مرحل حضور","ورقة2"],"not_rendered":{"charts":0,"images":0,"macros":1,"external_links":0,"defined_names":21,"comments":2,"pivot_tables":0},"unopened":[],"bounds":{"document_bytes":16777216,"sheet_cells":100000,"rows_first":2000,"rows_last":500,"rows_between":2000,"halvings":0,"cell_chars":16384,"cell_head_chars":4096},"cells_cut":0,"cells_raw":0,"read":"whole","date_system":"1900"}

{"sheet":"البيانات","index":0,"n_rows":1000,"n_cols":18,"rows_kept":1000,"cut":false,"hidden":false,"merged":[[1,3,1,4]]}
[]
[null,null,null,null,null,null,null,null,null,null,null,null,null,null,null,"سعر الوجبة",40]
[null,null,null,null,null,null,null,null,null,null,null,"C:\\Users\\digital\\Desktop\\Sample Pictures\\صور\\5.jpg"]
[]
["رقم العميل","اسم العميل","رقم الحجرة","تاريخ الدخول","تاريخ الخروج","رقم البطاقة او الجواز","تاريخ  وجهة الاصدار","المهنة","النوع","الجنسية  ومحل الاقامة","عدد الوجبات يوميا","الصورة","عدد الايام","سعر الغرفة","المطلوب","ملاحظات","قيمة الوجبات","اجمالى المطلوب"]
[100,"عوض",20,"2019-05-01","2019-05-03",4444,"17/03/1915","للببب","يييي","سسس",3,null,{"$f":"E6-D6","v":2},{"$f":"IFERROR(VLOOKUP(البيانات!C6,'ارقام الغرف واسعارها'!$C$6:$D$105,2,FALSE),\"\")","v":20},{"$f":"IFERROR(M6*N6,\"\")","v":40},{"$f":"IF(M6<=0,\"انتهى الميعاد اليوم\",IF(M6=0,\"  اانتهى الميعاد اليوم\",IF(M6>0,\"لم ينتهى المبعاد\",\"\")))","v":"لم ينتهى المبعاد"},{"$f":"K6*M6*$Q$2","v":240},{"$f":"O6+Q6","v":280}]
[200,"غلى",20,"2019-03-04","2019-06-04",4444,"2052-02-06",666666,777,88888,9999,"C:\\Users\\digital\\Desktop\\Sample Pictures\\صور\\5.jpg",{"$f":"E7-D7","v":92},{"$f":"IFERROR(VLOOKUP(البيانات!C7,'ارقام الغرف واسعارها'!$C$6:$D$105,2,FALSE),\"\")","v":20},{"$f":"IFERROR(M7*N7,\"\")","v":1840},{"$f":"IF(M7<=0,\"انتهى الميعاد\",IF(M7=0,\"  اانتهى الميعاد اليوم\",IF(M7>0,\"لم ينتهى المبعاد\",\"\")))","v":"لم ينتهى المبعاد"},{"$f":"K7*M7*$Q$2","v":36796320},{"$f":"O7+Q7","v":36798160}]
[300,"iiiii",20,"2019-08-03","2019-04-08",1,"1900-01-02",3,4,5,6,"C:\\Users\\digital\\Desktop\\Sample Pictures\\صور\\5.jpg",{"$f":"E8-D8","v":-117},{"$f":"IFERROR(VLOOKUP(البيانات!C8,'ارقام الغرف واسعارها'!$C$6:$D$105,2,FALSE),\"\")","v":20},-2340,"انتهى الميعاد",-28080,-30420]
[null,null,null,null,null,null,null,null,null,null,null,null,0,{"$f":"IFERROR(VLOOKUP(البيانات!C9,'ارقام الغرف واسعارها'!$C$6:$D$105,2,FALSE),\"\")","v":""},"","انتهى الميعاد",0,{"$error":"#VALUE!"}]
[null,null,null,null,null,null,null,null,null,null,null,null,0,{"$f":"IFERROR(VLOOKUP(البيانات!C10,'ارقام الغرف واسعارها'!$C$6:$D$105,2,FALSE),\"\")","v":""},"","انتهى الميعاد",0,{"$error":"#VALUE!"}]
[null,null,null,null,null,null,null,null,null,null,null,null,0,{"$f":"IFERROR(VLOOKUP(البيانات!C11,'ارقام الغرف واسعارها'!$C$6:$D$105,2,FALSE),\"\")","v":""},{"$f":"IFERROR(M11*N11,\"\")","v":""},"انتهى الميعاد",0,{"$error":"#VALUE!"}]
[null,null,null,null,null,null,null,null,null,null,null,null,0,{"$f":"IFERROR(VLOOKUP(البيانات!C12,'ارقام الغرف واسعارها'!$C$6:$D$105,2,FALSE),\"\")","v":""},"","انتهى الميعاد",0,{"$error":"#VALUE!"}]
[null,null,null,null,null,null,null,null,null,null,null,null,0,{"$f":"IFERROR(VLOOKUP(البيانات!C13,'ارقام الغرف واسعارها'!$C$6:$D$105,2,FALSE),\"\")","v":""},"","انتهى الميعاد",0,{"$error":"#VALUE!"}]
[null,null,null,null,null,null,null,null,null,null,null,null,0,{"$f":"IFERROR(VLOOKUP(البيانات!C14,'ارقام الغرف واسعارها'!$C$6:$D$105,2,FALSE),\"\")","v":""},"","انتهى الميعاد",0,{"$error":"#VALUE!"}]
[null,null,null,null,null,null,null,null,null,null,null,null,0,{"$f":"IFERROR(VLOOKUP(البيانات!C15,'ارقام الغرف واسعارها'!$C$6:$D$105,2,FALSE),\"\")","v":""},"","انتهى الميعاد",0,{"$error":"#VALUE!"}]
[null,null,null,null,null,null,null,null,null,null,null,null,0,{"$f":"IFERROR(VLOOKUP(البيانات!C16,'ارقام الغرف واسعارها'!$C$6:$D$105,2,FALSE),\"\")","v":""},"","انتهى الميعاد",0,{"$error":"#VALUE!"}]
[null,null,null,null,null,null,null,null,null,null,null,null,0,{"$f":"IFERROR(VLOOKUP(البيانات!C17,'ارقام الغرف واسعارها'!$C$6:$D$105,2,FALSE),\"\")","v":""},"","انتهى الميعاد",0,{"$error":"#VALUE!"}]
[null,null,null,null,null,null,null,null,null,null,null,null,0,{"$f":"IFERROR(VLOOKUP(البيانات!C18,'ارقام الغرف واسعارها'!$C$6:$D$105,2,FALSE),\"\")","v":""},"","انتهى الميعاد",0,{"$error":"#VALUE!"}]
[null,null,null,null,null,null,null,null,null,null,null,null,0,{"$f":"IFERROR(VLOOKUP(البيانات!C19,'ارقام الغرف واسعارها'!$C$6:$D$105,2,FALSE),\"\")","v":""},"","انتهى الميعاد",0,{"$error":"#VALUE!"}]
[null,null,null,null,null,null,null,null,null,null,null,null,0,{"$f":"IFERROR(VLOOKUP(البيانات!C20,'ارقام الغرف واسعارها'!$C$6:$D$105,2,FALSE),\"\")","v":""},"","انتهى الميعاد",0,{"$error":"#VALUE!"}]
[null,null,null,null,null,null,null,null,null,null,null,null,0,{"$f":"IFERROR(VLOOKUP(البيانات!C21,'ارقام الغرف واسعارها'!$C$6:$D$105,2,FALSE),\"\")","v":""},"","انتهى الميعاد",0,{"$error":"#VALUE!"}]
[null,null,null,null,null,null,null,null,null,null,null,null,0,{"$f":"IFERROR(VLOOKUP(البيانات!C22,'ارقام الغرف واسعارها'!$C$6:$D$105,2,FALSE),\"\")","v":""},"","انتهى الميعاد",0,{"$error":"#VALUE!"}]
[null,null,null,null,null,null,null,null,null,null,null,null,0,{"$f":"IFERROR(VLOOKUP(البيانات!C23,'ارقام الغرف واسعارها'!$C$6:$D$105,2,FALSE),\"\")","v":""},"","انتهى الميعاد",0,{"$error":"#VALUE!"}]
[null,null,null,null,null,null,null,null,null,null,null,null,0,{"$f":"IFERROR(VLOOKUP(البيانات!C24,'ارقام الغرف واسعارها'!$C$6:$D$105,2,FALSE),\"\")","v":""},"","انتهى الميعاد",0,{"$error":"#VALUE!"}]
[null,null,null,null,null,null,null,null,null,null,null,null,0,{"$f":"IFERROR(VLOOKUP(البيانات!C25,'ارقام الغرف واسعارها'!$C$6:$D$105,2,FALSE),\"\")","v":""},"","انتهى الميعاد",0,{"$error":"#VALUE!"}]
[null,null,null,null,null,null,null,null,null,null,null,null,0,{"$f":"IFERROR(VLOOKUP(البيانات!C26,'ارقام الغرف واسعارها'!$C$6:$D$105,2,FALSE),\"\")","v":""},"","انتهى الميعاد",0,{"$error":"#VALUE!"}]
[null,null,null,null,null,null,null,null,null,null,null,null,0,{"$f":"IFERROR(VLOOKUP(البيانات!C27,'ارقام الغرف واسعارها'!$C$6:$D$105,2,FALSE),\"\")","v":""},"","انتهى الميعاد",0,{"$error":"#VALUE!"}]
[null,null,null,null,null,null,null,null,null,null,null,null,0,{"$f":"IFERROR(VLOOKUP(البيانات!C28,'ارقام الغرف واسعارها'!$C$6:$D$105,2,FALSE),\"\")","v":""},"","انتهى الميعاد",0,{"$error":"#VALUE!"}]
[null,null,null,null,null,null,null,null,null,null,null,null,0,{"$f":"IFERROR(VLOOKUP(البيانات!C29,'ارقام الغرف واسعارها'!$C$6:$D$105,2,FALSE),\"\")","v":""},"","انتهى الميعاد",0,{"$error":"#VALUE!"}]
[null,null,null,null,null,null,null,null,null,null,null,null,0,{"$f":"IFERROR(VLOOKUP(البيانات!C30,'ارقام الغرف واسعارها'!$C$6:$D$105,2,FALSE),\"\")","v":""},"","انتهى الميعاد",0,{"$error":"#VALUE!"}]
[null,null,null,null,null,null,null,null,null,null,null,null,0,{"$f":"IFERROR(VLOOKUP(البيانات!C31,'ارقام الغرف واسعارها'!$C$6:$D$105,2,FALSE),\"\")","v":""},"","انتهى الميعاد",0,{"$error":"#VALUE!"}]
[null,null,null,null,null,null,null,null,null,null,null,null,0,{"$f":"IFERROR(VLOOKUP(البيانات!C32,'ارقام الغرف واسعارها'!$C$6:$D$105,2,FALSE),\"\")","v":""},"","انتهى الميعاد",0,{"$error":"#VALUE!"}]
[null,null,null,null,null,null,null,null,null,null,null,null,0,{"$f":"IFERROR(VLOOKUP(البيانات!C33,'ارقام الغرف واسعارها'!$C$6:$D$105,2,FALSE),\"\")","v":""},"","انتهى الميعاد",0,{"$error":"#VALUE!"}]
[null,null,null,null,null,null,null,null,null,null,null,null,0,{"$f":"IFERROR(VLOOKUP(البيانات!C34,'ارقام الغرف واسعارها'!$C$6:$D$105,2,FALSE),\"\")","v":""},"","انتهى الميعاد",0,{"$error":"#VALUE!"}]
[null,null,null,null,null,null,null,null,null,null,null,null,0,{"$f":"IFERROR(VLOOKUP(البيانات!C35,'ارقام الغرف واسعارها'!$C$6:$D$105,2,FALSE),\"\")","v":""},"","انتهى الميعاد",0,{"$error":"#VALUE!"}]
[null,null,null,null,null,null,null,null,null,null,null,null,0,{"$f":"IFERROR(VLOOKUP(البيانات!C36,'ارقام الغرف واسعارها'!$C$6:$D$105,2,FALSE),\"\")","v":""},"","انتهى الميعاد",0,{"$error":"#VALUE!"}]
[null,null,null,null,null,null,null,null,null,null,null,null,0,{"$f":"IFERROR(VLOOKUP(البيانات!C37,'ارقام الغرف واسعارها'!$C$6:$D$105,2,FALSE),\"\")","v":""},"","انتهى الميعاد",0,{"$error":"#VALUE!"}]
[null,null,null,null,null,null,null,null,null,null,null,null,0,{"$f":"IFERROR(VLOOKUP(البيانات!C38,'ارقام الغرف واسعارها'!$C$6:$D$105,2,FALSE),\"\")","v":""},"","انتهى الميعاد",0,{"$error":"#VALUE!"}]
[null,null,null,null,null,null,null,null,null,null,null,null,0,{"$f":"IFERROR(VLOOKUP(البيانات!C39,'ارقام الغرف واسعارها'!$C$6:$D$105,2,FALSE),\"\")","v":""},"","انتهى الميعاد",0,{"$error":"#VALUE!"}]
[null,null,null,null,null,null,null,null,null,null,null,null,0,{"$f":"IFERROR(VLOOKUP(البيانات!C40,'ارقام الغرف واسعارها'!$C$6:$D$105,2,FALSE),\"\")","v":""},"","انتهى الميعاد",0,{"$error":"#VALUE!"}]
[null,null,null,null,null,null,null,null,null,null,null,null,0,{"$f":"IFERROR(VLOOKUP(البيانات!C41,'ارقام الغرف واسعارها'!$C$6:$D$105,2,FALSE),\"\")","v":""},"","انتهى الميعاد",0,{"$error":"#VALUE!"}]
[null,null,null,null,null,null,null,null,null,null,null,null,0,{"$f":"IFERROR(VLOOKUP(البيانات!C42,'ارقام الغرف واسعارها'!$C$6:$D$105,2,FALSE),\"\")","v":""},"","انتهى الميعاد",0,{"$error":"#VALUE!"}]
[null,null,null,null,null,null,null,null,null,null,null,null,0,{"$f":"IFERROR(VLOOKUP(البيانات!C43,'ارقام الغرف واسعارها'!$C$6:$D$105,2,FALSE),\"\")","v":""},"","انتهى الميعاد",0,{"$error":"#VALUE!"}]
[null,null,null,null,null,null,null,null,null,null,null,null,0,{"$f":"IFERROR(VLOOKUP(البيانات!C44,'ارقام الغرف واسعارها'!$C$6:$D$105,2,FALSE),\"\")","v":""},"","انتهى الميعاد",0,{"$error":"#VALUE!"}]
[null,null,null,null,null,null,null,null,null,null,null,null,0,{"$f":"IFERROR(VLOOKUP(البيانات!C45,'ارقام الغرف واسعارها'!$C$6:$D$105,2,FALSE),\"\")","v":""},"","انتهى الميعاد",0,{"$error":"#VALUE!"}]
[null,null,null,null,null,null,null,null,null,null,null,null,0,{"$f":"IFERROR(VLOOKUP(البيانات!C46,'ارقام الغرف واسعارها'!$C$6:$D$105,2,FALSE),\"\")","v":""},"","انتهى الميعاد",0,{"$error":"#VALUE!"}]
[null,null,null,null,null,null,null,null,null,null,null,null,0,{"$f":"IFERROR(VLOOKUP(البيانات!C47,'ارقام الغرف واسعارها'!$C$6:$D$105,2,FALSE),\"\")","v":""},"","انتهى الميعاد",0,{"$error":"#VALUE!"}]
[null,null,null,null,null,null,null,null,null,null,null,null,0,{"$f":"IFERROR(VLOOKUP(البيانات!C48,'ارقام الغرف واسعارها'!$C$6:$D$105,2,FALSE),\"\")","v":""},"","انتهى الميعاد",0,{"$error":"#VALUE!"}]
[null,null,null,null,null,null,null,null,null,null,null,null,0,{"$f":"IFERROR(VLOOKUP(البيانات!C49,'ارقام الغرف واسعارها'!$C$6:$D$105,2,FALSE),\"\")","v":""},"","انتهى الميعاد",0,{"$error":"#VALUE!"}]
[null,null,null,null,null,null,null,null,null,null,null,null,0,{"$f":"IFERROR(VLOOKUP(البيانات!C50,'ارقام الغرف واسعارها'!$C$6:$D$105,2,FALSE),\"\")","v":""},"","انتهى الميعاد",0,{"$error":"#VALUE!"}]
[null,null,null,null,null,null,null,null,null,null,null,null,0,{"$f":"IFERROR(VLOOKUP(البيانات!C51,'ارقام الغرف واسعارها'!$C$6:$D$105,2,FALSE),\"\")","v":""},"","انتهى الميعاد",0,{"$error":"#VALUE!"}]
[null,null,null,null,null,null,null,null,null,null,null,null,0,{"$f":"IFERROR(VLOOKUP(البيانات!C52,'ارقام الغرف واسعارها'!$C$6:$D$105,2,FALSE),\"\")","v":""},"","انتهى الميعاد",0,{"$error":"#VALUE!"}]
[null,null,null,null,null,null,null,null,null,null,null,null,0,{"$f":"IFERROR(VLOOKUP(البيانات!C53,'ارقام الغرف واسعارها'!$C$6:$D$105,2,FALSE),\"\")","v":""},"","انتهى الميعاد",0,{"$error":"#VALUE!"}]
[null,null,null,null,null,null,null,null,null,null,null,null,0,{"$f":"IFERROR(VLOOKUP(البيانات!C54,'ارقام الغرف واسعارها'!$C$6:$D$105,2,FALSE),\"\")","v":""},"","انتهى الميعاد",0,{"$error":"#VALUE!"}]
[null,null,null,null,null,null,null,null,null,null,null,null,0,{"$f":"IFERROR(VLOOKUP(البيانات!C55,'ارقام الغرف واسعارها'!$C$6:$D$105,2,FALSE),\"\")","v":""},"","انتهى الميعاد",0,{"$error":"#VALUE!"}]
[null,null,null,null,null,null,null,null,null,null,null,null,0,{"$f":"IFERROR(VLOOKUP(البيانات!C56,'ارقام الغرف واسعارها'!$C$6:$D$105,2,FALSE),\"\")","v":""},"","انتهى الميعاد",0,{"$error":"#VALUE!"}]
[null,null,null,null,null,null,null,null,null,null,null,null,0,{"$f":"IFERROR(VLOOKUP(البيانات!C57,'ارقام الغرف واسعارها'!$C$6:$D$105,2,FALSE),\"\")","v":""},"","انتهى الميعاد",0,{"$error":"#VALUE!"}]
[null,null,null,null,null,null,null,null,null,null,null,null,0,{"$f":"IFERROR(VLOOKUP(البيانات!C58,'ارقام الغرف واسعارها'!$C$6:$D$105,2,FALSE),\"\")","v":""},"","انتهى الميعاد",0,{"$error":"#VALUE!"}]
[null,null,null,null,null,null,null,null,null,null,null,null,0,{"$f":"IFERROR(VLOOKUP(البيانات!C59,'ارقام الغرف واسعارها'!$C$6:$D$105,2,FALSE),\"\")","v":""},"","انتهى الميعاد",0,{"$error":"#VALUE!"}]
[null,null,null,null,null,null,null,null,null,null,null,null,0,{"$f":"IFERROR(VLOOKUP(البيانات!C60,'ارقام الغرف واسعارها'!$C$6:$D$105,2,FALSE),\"\")","v":""},"","انتهى الميعاد",0,{"$error":"#VALUE!"}]
[null,null,null,null,null,null,null,null,null,null,null,null,0,{"$f":"IFERROR(VLOOKUP(البيانات!C61,'ارقام الغرف واسعارها'!$C$6:$D$105,2,FALSE),\"\")","v":""},"","انتهى الميعاد",0,{"$error":"#VALUE!"}]
[null,null,null,null,null,null,null,null,null,null,null,null,0,{"$f":"IFERROR(VLOOKUP(البيانات!C62,'ارقام الغرف واسعارها'!$C$6:$D$105,2,FALSE),\"\")","v":""},"","انتهى الميعاد",0,{"$error":"#VALUE!"}]
[null,null,null,null,null,null,null,null,null,null,null,null,0,{"$f":"IFERROR(VLOOKUP(البيانات!C63,'ارقام الغرف واسعارها'!$C$6:$D$105,2,FALSE),\"\")","v":""},"","انتهى الميعاد",0,{"$error":"#VALUE!"}]
[null,null,null,null,null,null,null,null,null,null,null,null,0,{"$f":"IFERROR(VLOOKUP(البيانات!C64,'ارقام الغرف واسعارها'!$C$6:$D$105,2,FALSE),\"\")","v":""},"","انتهى الميعاد",0,{"$error":"#VALUE!"}]
[null,null,null,null,null,null,null,null,null,null,null,null,0,{"$f":"IFERROR(VLOOKUP(البيانات!C65,'ارقام الغرف واسعارها'!$C$6:$D$105,2,FALSE),\"\")","v":""},"","انتهى الميعاد",0,{"$error":"#VALUE!"}]
[null,null,null,null,null,null,null,null,null,null,null,null,0,{"$f":"IFERROR(VLOOKUP(البيانات!C66,'ارقام الغرف واسعارها'!$C$6:$D$105,2,FALSE),\"\")","v":""},"","انتهى الميعاد",0,{"$error":"#VALUE!"}]
[null,null,null,null,null,null,null,null,null,null,null,null,0,{"$f":"IFERROR(VLOOKUP(البيانات!C67,'ارقام الغرف واسعارها'!$C$6:$D$105,2,FALSE),\"\")","v":""},"","انتهى الميعاد",0,{"$error":"#VALUE!"}]
[null,null,null,null,null,null,null,null,null,null,null,null,0,{"$f":"IFERROR(VLOOKUP(البيانات!C68,'ارقام الغرف واسعارها'!$C$6:$D$105,2,FALSE),\"\")","v":""},"","انتهى الميعاد",0,{"$error":"#VALUE!"}]
[null,null,null,null,null,null,null,null,null,null,null,null,0,{"$f":"IFERROR(VLOOKUP(البيانات!C69,'ارقام الغرف واسعارها'!$C$6:$D$105,2,FALSE),\"\")","v":""},{"$f":"IFERROR(M69*N69,\"\")","v":""},"انتهى الميعاد",0,{"$error":"#VALUE!"}]
[null,null,null,null,null,null,null,null,null,null,null,null,{"$f":"E70-D70","v":0},{"$f":"IFERROR(VLOOKUP(البيانات!C70,'ارقام الغرف واسعارها'!$C$6:$D$105,2,FALSE),\"\")","v":""},"","انتهى الميعاد",0,{"$error":"#VALUE!"}]
[null,null,null,null,null,null,null,null,null,null,null,null,0,{"$f":"IFERROR(VLOOKUP(البيانات!C71,'ارقام الغرف واسعارها'!$C$6:$D$105,2,FALSE),\"\")","v":""},"",{"$f":"IF(M71<=0,\"انتهى الميعاد\",IF(M71=0,\"  اانتهى الميعاد اليوم\",IF(M71>0,\"لم ينتهى المبعاد\",\"\")))","v":"انتهى الميعاد"},{"$f":"K71*M71*$Q$2","v":0},{"$f":"O71+Q71","v":{"$error":"#VALUE!"}}]
[null,null,null,null,null,null,null,null,null,null,null,null,0,{"$f":"IFERROR(VLOOKUP(البيانات!C72,'ارقام الغرف واسعارها'!$C$6:$D$105,2,FALSE),\"\")","v":""},"","انتهى الميعاد",0,{"$error":"#VALUE!"}]
[null,null,null,null,null,null,null,null,null,null,null,null,0,{"$f":"IFERROR(VLOOKUP(البيانات!C73,'ارقام الغرف واسعارها'!$C$6:$D$105,2,FALSE),\"\")","v":""},"","انتهى الميعاد",0,{"$error":"#VALUE!"}]
[null,null,null,null,null,null,null,null,null,null,null,null,0,{"$f":"IFERROR(VLOOKUP(البيانات!C74,'ارقام الغرف واسعارها'!$C$6:$D$105,2,FALSE),\"\")","v":""},"","انتهى الميعاد",0,{"$error":"#VALUE!"}]
[null,null,null,null,null,null,null,null,null,null,null,null,0,{"$f":"IFERROR(VLOOKUP(البيانات!C75,'ارقام الغرف واسعارها'!$C$6:$D$105,2,FALSE),\"\")","v":""},"","انتهى الميعاد",0,{"$error":"#VALUE!"}]
[null,null,null,null,null,null,null,null,null,null,null,null,0,{"$f":"IFERROR(VLOOKUP(البيانات!C76,'ارقام الغرف واسعارها'!$C$6:$D$105,2,FALSE),\"\")","v":""},"","انتهى الميعاد",0,{"$error":"#VALUE!"}]
[null,null,null,null,null,null,null,null,null,null,null,null,0,{"$f":"IFERROR(VLOOKUP(البيانات!C77,'ارقام الغرف واسعارها'!$C$6:$D$105,2,FALSE),\"\")","v":""},"","انتهى الميعاد",0,{"$error":"#VALUE!"}]
[null,null,null,null,null,null,null,null,null,null,null,null,0,{"$f":"IFERROR(VLOOKUP(البيانات!C78,'ارقام الغرف واسعارها'!$C$6:$D$105,2,FALSE),\"\")","v":""},"","انتهى الميعاد",0,{"$error":"#VALUE!"}]
[null,null,null,null,null,null,null,null,null,null,null,null,0,{"$f":"IFERROR(VLOOKUP(البيانات!C79,'ارقام الغرف واسعارها'!$C$6:$D$105,2,FALSE),\"\")","v":""},"","انتهى الميعاد",0,{"$error":"#VALUE!"}]
[null,null,null,null,null,null,null,null,null,null,null,null,0,{"$f":"IFERROR(VLOOKUP(البيانات!C80,'ارقام الغرف واسعارها'!$C$6:$D$105,2,FALSE),\"\")","v":""},"","انتهى الميعاد",0,{"$error":"#VALUE!"}]
[null,null,null,null,null,null,null,null,null,null,null,null,0,{"$f":"IFERROR(VLOOKUP(البيانات!C81,'ارقام الغرف واسعارها'!$C$6:$D$105,2,FALSE),\"\")","v":""},"","انتهى الميعاد",0,{"$error":"#VALUE!"}]
[null,null,null,null,null,null,null,null,null,null,null,null,0,{"$f":"IFERROR(VLOOKUP(البيانات!C82,'ارقام الغرف واسعارها'!$C$6:$D$105,2,FALSE),\"\")","v":""},"","انتهى الميعاد",0,{"$error":"#VALUE!"}]
[null,null,null,null,null,null,null,null,null,null,null,null,0,{"$f":"IFERROR(VLOOKUP(البيانات!C83,'ارقام الغرف واسعارها'!$C$6:$D$105,2,FALSE),\"\")","v":""},"","انتهى الميعاد",0,{"$error":"#VALUE!"}]
[null,null,null,null,null,null,null,null,null,null,null,null,0,{"$f":"IFERROR(VLOOKUP(البيانات!C84,'ارقام الغرف واسعارها'!$C$6:$D$105,2,FALSE),\"\")","v":""},"","انتهى الميعاد",0,{"$error":"#VALUE!"}]
[null,null,null,null,null,null,null,null,null,null,null,null,0,{"$f":"IFERROR(VLOOKUP(البيانات!C85,'ارقام الغرف واسعارها'!$C$6:$D$105,2,FALSE),\"\")","v":""},"","انتهى الميعاد",0,{"$error":"#VALUE!"}]
[null,null,null,null,null,null,null,null,null,null,null,null,0,{"$f":"IFERROR(VLOOKUP(البيانات!C86,'ارقام الغرف واسعارها'!$C$6:$D$105,2,FALSE),\"\")","v":""},"","انتهى الميعاد",0,{"$error":"#VALUE!"}]
[null,null,null,null,null,null,null,null,null,null,null,null,0,{"$f":"IFERROR(VLOOKUP(البيانات!C87,'ارقام الغرف واسعارها'!$C$6:$D$105,2,FALSE),\"\")","v":""},"","انتهى الميعاد",0,{"$error":"#VALUE!"}]
[null,null,null,null,null,null,null,null,null,null,null,null,0,{"$f":"IFERROR(VLOOKUP(البيانات!C88,'ارقام الغرف واسعارها'!$C$6:$D$105,2,FALSE),\"\")","v":""},"","انتهى الميعاد",0,{"$error":"#VALUE!"}]
[null,null,null,null,null,null,null,null,null,null,null,null,0,{"$f":"IFERROR(VLOOKUP(البيانات!C89,'ارقام الغرف واسعارها'!$C$6:$D$105,2,FALSE),\"\")","v":""},"","انتهى الميعاد",0,{"$error":"#VALUE!"}]
[null,null,null,null,null,null,null,null,null,null,null,null,0,{"$f":"IFERROR(VLOOKUP(البيانات!C90,'ارقام الغرف واسعارها'!$C$6:$D$105,2,FALSE),\"\")","v":""},"","انتهى الميعاد",0,{"$error":"#VALUE!"}]
[null,null,null,null,null,null,null,null,null,null,null,null,0,{"$f":"IFERROR(VLOOKUP(البيانات!C91,'ارقام الغرف واسعارها'!$C$6:$D$105,2,FALSE),\"\")","v":""},"","انتهى الميعاد",0,{"$error":"#VALUE!"}]
[null,null,null,null,null,null,null,null,null,null,null,null,0,{"$f":"IFERROR(VLOOKUP(البيانات!C92,'ارقام الغرف واسعارها'!$C$6:$D$105,2,FALSE),\"\")","v":""},"","انتهى الميعاد",0,{"$error":"#VALUE!"}]
[null,null,null,null,null,null,null,null,null,null,null,null,0,{"$f":"IFERROR(VLOOKUP(البيانات!C93,'ارقام الغرف واسعارها'!$C$6:$D$105,2,FALSE),\"\")","v":""},"","انتهى الميعاد",0,{"$error":"#VALUE!"}]
[null,null,null,null,null,null,null,null,null,null,null,null,0,{"$f":"IFERROR(VLOOKUP(البيانات!C94,'ارقام الغرف واسعارها'!$C$6:$D$105,2,FALSE),\"\")","v":""},"","انتهى الميعاد",0,{"$error":"#VALUE!"}]
[null,null,null,null,null,null,null,null,null,null,null,null,0,{"$f":"IFERROR(VLOOKUP(البيانات!C95,'ارقام الغرف واسعارها'!$C$6:$D$105,2,FALSE),\"\")","v":""},"","انتهى الميعاد",0,{"$error":"#VALUE!"}]
[null,null,null,null,null,null,null,null,null,null,null,null,0,{"$f":"IFERROR(VLOOKUP(البيانات!C96,'ارقام الغرف واسعارها'!$C$6:$D$105,2,FALSE),\"\")","v":""},"","انتهى الميعاد",0,{"$error":"#VALUE!"}]
[null,null,null,null,null,null,null,null,null,null,null,null,0,{"$f":"IFERROR(VLOOKUP(البيانات!C97,'ارقام الغرف واسعارها'!$C$6:$D$105,2,FALSE),\"\")","v":""},"","انتهى الميعاد",0,{"$error":"#VALUE!"}]
[null,null,null,null,null,null,null,null,null,null,null,null,0,{"$f":"IFERROR(VLOOKUP(البيانات!C98,'ارقام الغرف واسعارها'!$C$6:$D$105,2,FALSE),\"\")","v":""},"","انتهى الميعاد",0,{"$error":"#VALUE!"}]
[null,null,null,null,null,null,null,null,null,null,null,null,0,{"$f":"IFERROR(VLOOKUP(البيانات!C99,'ارقام الغرف واسعارها'!$C$6:$D$105,2,FALSE),\"\")","v":""},"","انتهى الميعاد",0,{"$error":"#VALUE!"}]
[null,null,null,null,null,null,null,null,null,null,null,null,0,{"$f":"IFERROR(VLOOKUP(البيانات!C100,'ارقام الغرف واسعارها'!$C$6:$D$105,2,FALSE),\"\")","v":""},"","انتهى الميعاد",0,{"$error":"#VALUE!"}]
[null,null,null,null,null,null,null,null,null,null,null,null,0,{"$f":"IFERROR(VLOOKUP(البيانات!C101,'ارقام الغرف واسعارها'!$C$6:$D$105,2,FALSE),\"\")","v":""},"","انتهى الميعاد",0,{"$error":"#VALUE!"}]
[null,null,null,null,null,null,null,null,null,null,null,null,0,{"$f":"IFERROR(VLOOKUP(البيانات!C102,'ارقام الغرف واسعارها'!$C$6:$D$105,2,FALSE),\"\")","v":""},"","انتهى الميعاد",0,{"$error":"#VALUE!"}]
[null,null,null,null,null,null,null,null,null,null,null,null,0,{"$f":"IFERROR(VLOOKUP(البيانات!C103,'ارقام الغرف واسعارها'!$C$6:$D$105,2,FALSE),\"\")","v":""},"","انتهى الميعاد",0,{"$error":"#VALUE!"}]
[null,null,null,null,null,null,null,null,null,null,null,null,0,{"$f":"IFERROR(VLOOKUP(البيانات!C104,'ارقام الغرف واسعارها'!$C$6:$D$105,2,FALSE),\"\")","v":""},"","انتهى الميعاد",0,{"$error":"#VALUE!"}]
[null,null,null,null,null,null,null,null,null,null,null,null,0,{"$f":"IFERROR(VLOOKUP(البيانات!C105,'ارقام الغرف واسعارها'!$C$6:$D$105,2,FALSE),\"\")","v":""},"","انتهى الميعاد",0,{"$error":"#VALUE!"}]
[null,null,null,null,null,null,null,null,null,null,null,null,0,{"$f":"IFERROR(VLOOKUP(البيانات!C106,'ارقام الغرف واسعارها'!$C$6:$D$105,2,FALSE),\"\")","v":""},"","انتهى الميعاد",0,{"$error":"#VALUE!"}]
[null,null,null,null,null,null,null,null,null,null,null,null,0,{"$f":"IFERROR(VLOOKUP(البيانات!C107,'ارقام الغرف واسعارها'!$C$6:$D$105,2,FALSE),\"\")","v":""},"","انتهى الميعاد",0,{"$error":"#VALUE!"}]
[null,null,null,null,null,null,null,null,null,null,null,null,0,{"$f":"IFERROR(VLOOKUP(البيانات!C108,'ارقام الغرف واسعارها'!$C$6:$D$105,2,FALSE),\"\")","v":""},"","انتهى الميعاد",0,{"$error":"#VALUE!"}]
[null,null,null,null,null,null,null,null,null,null,null,null,0,{"$f":"IFERROR(VLOOKUP(البيانات!C109,'ارقام الغرف واسعارها'!$C$6:$D$105,2,FALSE),\"\")","v":""},"","انتهى الميعاد",0,{"$error":"#VALUE!"}]
[null,null,null,null,null,null,null,null,null,null,null,null,0,{"$f":"IFERROR(VLOOKUP(البيانات!C110,'ارقام الغرف واسعارها'!$C$6:$D$105,2,FALSE),\"\")","v":""},"","انتهى الميعاد",0,{"$error":"#VALUE!"}]
[null,null,null,null,null,null,null,null,null,null,null,null,0,{"$f":"IFERROR(VLOOKUP(البيانات!C111,'ارقام الغرف واسعارها'!$C$6:$D$105,2,FALSE),\"\")","v":""},"","انتهى الميعاد",0,{"$error":"#VALUE!"}]
[null,null,null,null,null,null,null,null,null,null,null,null,0,{"$f":"IFERROR(VLOOKUP(البيانات!C112,'ارقام الغرف واسعارها'!$C$6:$D$105,2,FALSE),\"\")","v":""},"","انتهى الميعاد",0,{"$error":"#VALUE!"}]
[null,null,null,null,null,null,null,null,null,null,null,null,0,{"$f":"IFERROR(VLOOKUP(البيانات!C113,'ارقام الغرف واسعارها'!$C$6:$D$105,2,FALSE),\"\")","v":""},"","انتهى الميعاد",0,{"$error":"#VALUE!"}]
[null,null,null,null,null,null,null,null,null,null,null,null,0,{"$f":"IFERROR(VLOOKUP(البيانات!C114,'ارقام الغرف واسعارها'!$C$6:$D$105,2,FALSE),\"\")","v":""},"","انتهى الميعاد",0,{"$error":"#VALUE!"}]
[null,null,null,null,null,null,null,null,null,null,null,null,0,{"$f":"IFERROR(VLOOKUP(البيانات!C115,'ارقام الغرف واسعارها'!$C$6:$D$105,2,FALSE),\"\")","v":""},"","انتهى الميعاد",0,{"$error":"#VALUE!"}]
[null,null,null,null,null,null,null,null,null,null,null,null,0,{"$f":"IFERROR(VLOOKUP(البيانات!C116,'ارقام الغرف واسعارها'!$C$6:$D$105,2,FALSE),\"\")","v":""},"","انتهى الميعاد",0,{"$error":"#VALUE!"}]
[null,null,null,null,null,null,null,null,null,null,null,null,0,{"$f":"IFERROR(VLOOKUP(البيانات!C117,'ارقام الغرف واسعارها'!$C$6:$D$105,2,FALSE),\"\")","v":""},"","انتهى الميعاد",0,{"$error":"#VALUE!"}]
[null,null,null,null,null,null,null,null,null,null,null,null,0,{"$f":"IFERROR(VLOOKUP(البيانات!C118,'ارقام الغرف واسعارها'!$C$6:$D$105,2,FALSE),\"\")","v":""},"","انتهى الميعاد",0,{"$error":"#VALUE!"}]
[null,null,null,null,null,null,null,null,null,null,null,null,0,{"$f":"IFERROR(VLOOKUP(البيانات!C119,'ارقام الغرف واسعارها'!$C$6:$D$105,2,FALSE),\"\")","v":""},"","انتهى الميعاد",0,{"$error":"#VALUE!"}]
[null,null,null,null,null,null,null,null,null,null,null,null,0,{"$f":"IFERROR(VLOOKUP(البيانات!C120,'ارقام الغرف واسعارها'!$C$6:$D$105,2,FALSE),\"\")","v":""},"","انتهى الميعاد",0,{"$error":"#VALUE!"}]
[null,null,null,null,null,null,null,null,null,null,null,null,0,{"$f":"IFERROR(VLOOKUP(البيانات!C121,'ارقام الغرف واسعارها'!$C$6:$D$105,2,FALSE),\"\")","v":""},"","انتهى الميعاد",0,{"$error":"#VALUE!"}]
[null,null,null,null,null,null,null,null,null,null,null,null,0,{"$f":"IFERROR(VLOOKUP(البيانات!C122,'ارقام الغرف واسعارها'!$C$6:$D$105,2,FALSE),\"\")","v":""},"","انتهى الميعاد",0,{"$error":"#VALUE!"}]
[null,null,null,null,null,null,null,null,null,null,null,null,0,{"$f":"IFERROR(VLOOKUP(البيانات!C123,'ارقام الغرف واسعارها'!$C$6:$D$105,2,FALSE),\"\")","v":""},"","انتهى الميعاد",0,{"$error":"#VALUE!"}]
[null,null,null,null,null,null,null,null,null,null,null,null,0,{"$f":"IFERROR(VLOOKUP(البيانات!C124,'ارقام الغرف واسعارها'!$C$6:$D$105,2,FALSE),\"\")","v":""},"","انتهى الميعاد",0,{"$error":"#VALUE!"}]
[null,null,null,null,null,null,null,null,null,null,null,null,0,{"$f":"IFERROR(VLOOKUP(البيانات!C125,'ارقام الغرف واسعارها'!$C$6:$D$105,2,FALSE),\"\")","v":""},"","انتهى الميعاد",0,{"$error":"#VALUE!"}]
[null,null,null,null,null,null,null,null,null,null,null,null,0,{"$f":"IFERROR(VLOOKUP(البيانات!C126,'ارقام الغرف واسعارها'!$C$6:$D$105,2,FALSE),\"\")","v":""},"","انتهى الميعاد",0,{"$error":"#VALUE!"}]
[null,null,null,null,null,null,null,null,null,null,null,null,0,{"$f":"IFERROR(VLOOKUP(البيانات!C127,'ارقام الغرف واسعارها'!$C$6:$D$105,2,FALSE),\"\")","v":""},"","انتهى الميعاد",0,{"$error":"#VALUE!"}]
[null,null,null,null,null,null,null,null,null,null,null,null,0,{"$f":"IFERROR(VLOOKUP(البيانات!C128,'ارقام الغرف واسعارها'!$C$6:$D$105,2,FALSE),\"\")","v":""},"","انتهى الميعاد",0,{"$error":"#VALUE!"}]
[null,null,null,null,null,null,null,null,null,null,null,null,0,{"$f":"IFERROR(VLOOKUP(البيانات!C129,'ارقام الغرف واسعارها'!$C$6:$D$105,2,FALSE),\"\")","v":""},"","انتهى الميعاد",0,{"$error":"#VALUE!"}]
[null,null,null,null,null,null,null,null,null,null,null,null,0,{"$f":"IFERROR(VLOOKUP(البيانات!C130,'ارقام الغرف واسعارها'!$C$6:$D$105,2,FALSE),\"\")","v":""},"","انتهى الميعاد",0,{"$error":"#VALUE!"}]
[null,null,null,null,null,null,null,null,null,null,null,null,0,{"$f":"IFERROR(VLOOKUP(البيانات!C131,'ارقام الغرف واسعارها'!$C$6:$D$105,2,FALSE),\"\")","v":""},"","انتهى الميعاد",0,{"$error":"#VALUE!"}]
[null,null,null,null,null,null,null,null,null,null,null,null,0,{"$f":"IFERROR(VLOOKUP(البيانات!C132,'ارقام الغرف واسعارها'!$C$6:$D$105,2,FALSE),\"\")","v":""},"","انتهى الميعاد",0,{"$error":"#VALUE!"}]
[null,null,null,null,null,null,null,null,null,null,null,null,0,{"$f":"IFERROR(VLOOKUP(البيانات!C133,'ارقام الغرف واسعارها'!$C$6:$D$105,2,FALSE),\"\")","v":""},{"$f":"IFERROR(M133*N133,\"\")","v":""},"انتهى الميعاد",0,{"$error":"#VALUE!"}]
[null,null,null,null,null,null,null,null,null,null,null,null,{"$f":"E134-D134","v":0},{"$f":"IFERROR(VLOOKUP(البيانات!C134,'ارقام الغرف واسعارها'!$C$6:$D$105,2,FALSE),\"\")","v":""},"","انتهى الميعاد",0,{"$error":"#VALUE!"}]
[null,null,null,null,null,null,null,null,null,null,null,null,0,{"$f":"IFERROR(VLOOKUP(البيانات!C135,'ارقام الغرف واسعارها'!$C$6:$D$105,2,FALSE),\"\")","v":""},"",{"$f":"IF(M135<=0,\"انتهى الميعاد\",IF(M135=0,\"  اانتهى الميعاد اليوم\",IF(M135>0,\"لم ينتهى المبعاد\",\"\")))","v":"انتهى الميعاد"},{"$f":"K135*M135*$Q$2","v":0},{"$f":"O135+Q135","v":{"$error":"#VALUE!"}}]
[null,null,null,null,null,null,null,null,null,null,null,null,0,{"$f":"IFERROR(VLOOKUP(البيانات!C136,'ارقام الغرف واسعارها'!$C$6:$D$105,2,FALSE),\"\")","v":""},"","انتهى الميعاد",0,{"$error":"#VALUE!"}]
[null,null,null,null,null,null,null,null,null,null,null,null,0,{"$f":"IFERROR(VLOOKUP(البيانات!C137,'ارقام الغرف واسعارها'!$C$6:$D$105,2,FALSE),\"\")","v":""},"","انتهى الميعاد",0,{"$error":"#VALUE!"}]
[null,null,null,null,null,null,null,null,null,null,null,null,0,{"$f":"IFERROR(VLOOKUP(البيانات!C138,'ارقام الغرف واسعارها'!$C$6:$D$105,2,FALSE),\"\")","v":""},"","انتهى الميعاد",0,{"$error":"#VALUE!"}]
[null,null,null,null,null,null,null,null,null,null,null,null,0,{"$f":"IFERROR(VLOOKUP(البيانات!C139,'ارقام الغرف واسعارها'!$C$6:$D$105,2,FALSE),\"\")","v":""},"","انتهى الميعاد",0,{"$error":"#VALUE!"}]
[null,null,null,null,null,null,null,null,null,null,null,null,0,{"$f":"IFERROR(VLOOKUP(البيانات!C140,'ارقام الغرف واسعارها'!$C$6:$D$105,2,FALSE),\"\")","v":""},"","انتهى الميعاد",0,{"$error":"#VALUE!"}]
[null,null,null,null,null,null,null,null,null,null,null,null,0,{"$f":"IFERROR(VLOOKUP(البيانات!C141,'ارقام الغرف واسعارها'!$C$6:$D$105,2,FALSE),\"\")","v":""},"","انتهى الميعاد",0,{"$error":"#VALUE!"}]
[null,null,null,null,null,null,null,null,null,null,null,null,0,{"$f":"IFERROR(VLOOKUP(البيانات!C142,'ارقام الغرف واسعارها'!$C$6:$D$105,2,FALSE),\"\")","v":""},"","انتهى الميعاد",0,{"$error":"#VALUE!"}]
[null,null,null,null,null,null,null,null,null,null,null,null,0,{"$f":"IFERROR(VLOOKUP(البيانات!C143,'ارقام الغرف واسعارها'!$C$6:$D$105,2,FALSE),\"\")","v":""},"","انتهى الميعاد",0,{"$error":"#VALUE!"}]
[null,null,null,null,null,null,null,null,null,null,null,null,0,{"$f":"IFERROR(VLOOKUP(البيانات!C144,'ارقام الغرف واسعارها'!$C$6:$D$105,2,FALSE),\"\")","v":""},"","انتهى الميعاد",0,{"$error":"#VALUE!"}]
[null,null,null,null,null,null,null,null,null,null,null,null,0,{"$f":"IFERROR(VLOOKUP(البيانات!C145,'ارقام الغرف واسعارها'!$C$6:$D$105,2,FALSE),\"\")","v":""},"","انتهى الميعاد",0,{"$error":"#VALUE!"}]
[null,null,null,null,null,null,null,null,null,null,null,null,0,{"$f":"IFERROR(VLOOKUP(البيانات!C146,'ارقام الغرف واسعارها'!$C$6:$D$105,2,FALSE),\"\")","v":""},"","انتهى الميعاد",0,{"$error":"#VALUE!"}]
[null,null,null,null,null,null,null,null,null,null,null,null,0,{"$f":"IFERROR(VLOOKUP(البيانات!C147,'ارقام الغرف واسعارها'!$C$6:$D$105,2,FALSE),\"\")","v":""},"","انتهى الميعاد",0,{"$error":"#VALUE!"}]
[null,null,null,null,null,null,null,null,null,null,null,null,0,{"$f":"IFERROR(VLOOKUP(البيانات!C148,'ارقام الغرف واسعارها'!$C$6:$D$105,2,FALSE),\"\")","v":""},"","انتهى الميعاد",0,{"$error":"#VALUE!"}]
[null,null,null,null,null,null,null,null,null,null,null,null,0,{"$f":"IFERROR(VLOOKUP(البيانات!C149,'ارقام الغرف واسعارها'!$C$6:$D$105,2,FALSE),\"\")","v":""},"","انتهى الميعاد",0,{"$error":"#VALUE!"}]
[null,null,null,null,null,null,null,null,null,null,null,null,0,{"$f":"IFERROR(VLOOKUP(البيانات!C150,'ارقام الغرف واسعارها'!$C$6:$D$105,2,FALSE),\"\")","v":""},"","انتهى الميعاد",0,{"$error":"#VALUE!"}]
[null,null,null,null,null,null,null,null,null,null,null,null,0,{"$f":"IFERROR(VLOOKUP(البيانات!C151,'ارقام الغرف واسعارها'!$C$6:$D$105,2,FALSE),\"\")","v":""},"","انتهى الميعاد",0,{"$error":"#VALUE!"}]
[null,null,null,null,null,null,null,null,null,null,null,null,0,{"$f":"IFERROR(VLOOKUP(البيانات!C152,'ارقام الغرف واسعارها'!$C$6:$D$105,2,FALSE),\"\")","v":""},"","انتهى الميعاد",0,{"$error":"#VALUE!"}]
[null,null,null,null,null,null,null,null,null,null,null,null,0,{"$f":"IFERROR(VLOOKUP(البيانات!C153,'ارقام الغرف واسعارها'!$C$6:$D$105,2,FALSE),\"\")","v":""},"","انتهى الميعاد",0,{"$error":"#VALUE!"}]
[null,null,null,null,null,null,null,null,null,null,null,null,0,{"$f":"IFERROR(VLOOKUP(البيانات!C154,'ارقام الغرف واسعارها'!$C$6:$D$105,2,FALSE),\"\")","v":""},"","انتهى الميعاد",0,{"$error":"#VALUE!"}]
[null,null,null,null,null,null,null,null,null,null,null,null,0,{"$f":"IFERROR(VLOOKUP(البيانات!C155,'ارقام الغرف واسعارها'!$C$6:$D$105,2,FALSE),\"\")","v":""},"","انتهى الميعاد",0,{"$error":"#VALUE!"}]
[null,null,null,null,null,null,null,null,null,null,null,null,0,{"$f":"IFERROR(VLOOKUP(البيانات!C156,'ارقام الغرف واسعارها'!$C$6:$D$105,2,FALSE),\"\")","v":""},"","انتهى الميعاد",0,{"$error":"#VALUE!"}]
[null,null,null,null,null,null,null,null,null,null,null,null,0,{"$f":"IFERROR(VLOOKUP(البيانات!C157,'ارقام الغرف واسعارها'!$C$6:$D$105,2,FALSE),\"\")","v":""},"","انتهى الميعاد",0,{"$error":"#VALUE!"}]
[null,null,null,null,null,null,null,null,null,null,null,null,0,{"$f":"IFERROR(VLOOKUP(البيانات!C158,'ارقام الغرف واسعارها'!$C$6:$D$105,2,FALSE),\"\")","v":""},"","انتهى الميعاد",0,{"$error":"#VALUE!"}]
[null,null,null,null,null,null,null,null,null,null,null,null,0,{"$f":"IFERROR(VLOOKUP(البيانات!C159,'ارقام الغرف واسعارها'!$C$6:$D$105,2,FALSE),\"\")","v":""},"","انتهى الميعاد",0,{"$error":"#VALUE!"}]
[null,null,null,null,null,null,null,null,null,null,null,null,0,{"$f":"IFERROR(VLOOKUP(البيانات!C160,'ارقام الغرف واسعارها'!$C$6:$D$105,2,FALSE),\"\")","v":""},"","انتهى الميعاد",0,{"$error":"#VALUE!"}]
[null,null,null,null,null,null,null,null,null,null,null,null,0,{"$f":"IFERROR(VLOOKUP(البيانات!C161,'ارقام الغرف واسعارها'!$C$6:$D$105,2,FALSE),\"\")","v":""},"","انتهى الميعاد",0,{"$error":"#VALUE!"}]
[null,null,null,null,null,null,null,null,null,null,null,null,0,{"$f":"IFERROR(VLOOKUP(البيانات!C162,'ارقام الغرف واسعارها'!$C$6:$D$105,2,FALSE),\"\")","v":""},"","انتهى الميعاد",0,{"$error":"#VALUE!"}]
[null,null,null,null,null,null,null,null,null,null,null,null,0,{"$f":"IFERROR(VLOOKUP(البيانات!C163,'ارقام الغرف واسعارها'!$C$6:$D$105,2,FALSE),\"\")","v":""},"","انتهى الميعاد",0,{"$error":"#VALUE!"}]
[null,null,null,null,null,null,null,null,null,null,null,null,0,{"$f":"IFERROR(VLOOKUP(البيانات!C164,'ارقام الغرف واسعارها'!$C$6:$D$105,2,FALSE),\"\")","v":""},"","انتهى الميعاد",0,{"$error":"#VALUE!"}]
[null,null,null,null,null,null,null,null,null,null,null,null,0,{"$f":"IFERROR(VLOOKUP(البيانات!C165,'ارقام الغرف واسعارها'!$C$6:$D$105,2,FALSE),\"\")","v":""},"","انتهى الميعاد",0,{"$error":"#VALUE!"}]
[null,null,null,null,null,null,null,null,null,null,null,null,0,{"$f":"IFERROR(VLOOKUP(البيانات!C166,'ارقام الغرف واسعارها'!$C$6:$D$105,2,FALSE),\"\")","v":""},"","انتهى الميعاد",0,{"$error":"#VALUE!"}]
[null,null,null,null,null,null,null,null,null,null,null,null,0,{"$f":"IFERROR(VLOOKUP(البيانات!C167,'ارقام الغرف واسعارها'!$C$6:$D$105,2,FALSE),\"\")","v":""},"","انتهى الميعاد",0,{"$error":"#VALUE!"}]
[null,null,null,null,null,null,null,null,null,null,null,null,0,{"$f":"IFERROR(VLOOKUP(البيانات!C168,'ارقام الغرف واسعارها'!$C$6:$D$105,2,FALSE),\"\")","v":""},"","انتهى الميعاد",0,{"$error":"#VALUE!"}]
[null,null,null,null,null,null,null,null,null,null,null,null,0,{"$f":"IFERROR(VLOOKUP(البيانات!C169,'ارقام الغرف واسعارها'!$C$6:$D$105,2,FALSE),\"\")","v":""},"","انتهى الميعاد",0,{"$error":"#VALUE!"}]
[null,null,null,null,null,null,null,null,null,null,null,null,0,{"$f":"IFERROR(VLOOKUP(البيانات!C170,'ارقام الغرف واسعارها'!$C$6:$D$105,2,FALSE),\"\")","v":""},"","انتهى الميعاد",0,{"$error":"#VALUE!"}]
[null,null,null,null,null,null,null,null,null,null,null,null,0,{"$f":"IFERROR(VLOOKUP(البيانات!C171,'ارقام الغرف واسعارها'!$C$6:$D$105,2,FALSE),\"\")","v":""},"","انتهى الميعاد",0,{"$error":"#VALUE!"}]
[null,null,null,null,null,null,null,null,null,null,null,null,0,{"$f":"IFERROR(VLOOKUP(البيانات!C172,'ارقام الغرف واسعارها'!$C$6:$D$105,2,FALSE),\"\")","v":""},"","انتهى الميعاد",0,{"$error":"#VALUE!"}]
[null,null,null,null,null,null,null,null,null,null,null,null,0,{"$f":"IFERROR(VLOOKUP(البيانات!C173,'ارقام الغرف واسعارها'!$C$6:$D$105,2,FALSE),\"\")","v":""},"","انتهى الميعاد",0,{"$error":"#VALUE!"}]
[null,null,null,null,null,null,null,null,null,null,null,null,0,{"$f":"IFERROR(VLOOKUP(البيانات!C174,'ارقام الغرف واسعارها'!$C$6:$D$105,2,FALSE),\"\")","v":""},"","انتهى الميعاد",0,{"$error":"#VALUE!"}]
[null,null,null,null,null,null,null,null,null,null,null,null,0,{"$f":"IFERROR(VLOOKUP(البيانات!C175,'ارقام الغرف واسعارها'!$C$6:$D$105,2,FALSE),\"\")","v":""},"","انتهى الميعاد",0,{"$error":"#VALUE!"}]
[null,null,null,null,null,null,null,null,null,null,null,null,0,{"$f":"IFERROR(VLOOKUP(البيانات!C176,'ارقام الغرف واسعارها'!$C$6:$D$105,2,FALSE),\"\")","v":""},"","انتهى الميعاد",0,{"$error":"#VALUE!"}]
[null,null,null,null,null,null,null,null,null,null,null,null,0,{"$f":"IFERROR(VLOOKUP(البيانات!C177,'ارقام الغرف واسعارها'!$C$6:$D$105,2,FALSE),\"\")","v":""},"","انتهى الميعاد",0,{"$error":"#VALUE!"}]
[null,null,null,null,null,null,null,null,null,null,null,null,0,{"$f":"IFERROR(VLOOKUP(البيانات!C178,'ارقام الغرف واسعارها'!$C$6:$D$105,2,FALSE),\"\")","v":""},"","انتهى الميعاد",0,{"$error":"#VALUE!"}]
[null,null,null,null,null,null,null,null,null,null,null,null,0,{"$f":"IFERROR(VLOOKUP(البيانات!C179,'ارقام الغرف واسعارها'!$C$6:$D$105,2,FALSE),\"\")","v":""},"","انتهى الميعاد",0,{"$error":"#VALUE!"}]
[null,null,null,null,null,null,null,null,null,null,null,null,0,{"$f":"IFERROR(VLOOKUP(البيانات!C180,'ارقام الغرف واسعارها'!$C$6:$D$105,2,FALSE),\"\")","v":""},"","انتهى الميعاد",0,{"$error":"#VALUE!"}]
[null,null,null,null,null,null,null,null,null,null,null,null,0,{"$f":"IFERROR(VLOOKUP(البيانات!C181,'ارقام الغرف واسعارها'!$C$6:$D$105,2,FALSE),\"\")","v":""},"","انتهى الميعاد",0,{"$error":"#VALUE!"}]
[null,null,null,null,null,null,null,null,null,null,null,null,0,{"$f":"IFERROR(VLOOKUP(البيانات!C182,'ارقام الغرف واسعارها'!$C$6:$D$105,2,FALSE),\"\")","v":""},"","انتهى الميعاد",0,{"$error":"#VALUE!"}]
[null,null,null,null,null,null,null,null,null,null,null,null,0,{"$f":"IFERROR(VLOOKUP(البيانات!C183,'ارقام الغرف واسعارها'!$C$6:$D$105,2,FALSE),\"\")","v":""},"","انتهى الميعاد",0,{"$error":"#VALUE!"}]
[null,null,null,null,null,null,null,null,null,null,null,null,0,{"$f":"IFERROR(VLOOKUP(البيانات!C184,'ارقام الغرف واسعارها'!$C$6:$D$105,2,FALSE),\"\")","v":""},"","انتهى الميعاد",0,{"$error":"#VALUE!"}]
[null,null,null,null,null,null,null,null,null,null,null,null,0,{"$f":"IFERROR(VLOOKUP(البيانات!C185,'ارقام الغرف واسعارها'!$C$6:$D$105,2,FALSE),\"\")","v":""},"","انتهى الميعاد",0,{"$error":"#VALUE!"}]
[null,null,null,null,null,null,null,null,null,null,null,null,0,{"$f":"IFERROR(VLOOKUP(البيانات!C186,'ارقام الغرف واسعارها'!$C$6:$D$105,2,FALSE),\"\")","v":""},"","انتهى الميعاد",0,{"$error":"#VALUE!"}]
[null,null,null,null,null,null,null,null,null,null,null,null,0,{"$f":"IFERROR(VLOOKUP(البيانات!C187,'ارقام الغرف واسعارها'!$C$6:$D$105,2,FALSE),\"\")","v":""},"","انتهى الميعاد",0,{"$error":"#VALUE!"}]
[null,null,null,null,null,null,null,null,null,null,null,null,0,{"$f":"IFERROR(VLOOKUP(البيانات!C188,'ارقام الغرف واسعارها'!$C$6:$D$105,2,FALSE),\"\")","v":""},"","انتهى الميعاد",0,{"$error":"#VALUE!"}]
[null,null,null,null,null,null,null,null,null,null,null,null,0,{"$f":"IFERROR(VLOOKUP(البيانات!C189,'ارقام الغرف واسعارها'!$C$6:$D$105,2,FALSE),\"\")","v":""},"","انتهى الميعاد",0,{"$error":"#VALUE!"}]
[null,null,null,null,null,null,null,null,null,null,null,null,0,{"$f":"IFERROR(VLOOKUP(البيانات!C190,'ارقام الغرف واسعارها'!$C$6:$D$105,2,FALSE),\"\")","v":""},"","انتهى الميعاد",0,{"$error":"#VALUE!"}]
[null,null,null,null,null,null,null,null,null,null,null,null,0,{"$f":"IFERROR(VLOOKUP(البيانات!C191,'ارقام الغرف واسعارها'!$C$6:$D$105,2,FALSE),\"\")","v":""},"","انتهى الميعاد",0,{"$error":"#VALUE!"}]
[null,null,null,null,null,null,null,null,null,null,null,null,0,{"$f":"IFERROR(VLOOKUP(البيانات!C192,'ارقام الغرف واسعارها'!$C$6:$D$105,2,FALSE),\"\")","v":""},"","انتهى الميعاد",0,{"$error":"#VALUE!"}]
[null,null,null,null,null,null,null,null,null,null,null,null,0,{"$f":"IFERROR(VLOOKUP(البيانات!C193,'ارقام الغرف واسعارها'!$C$6:$D$105,2,FALSE),\"\")","v":""},"","انتهى الميعاد",0,{"$error":"#VALUE!"}]
[null,null,null,null,null,null,null,null,null,null,null,null,0,{"$f":"IFERROR(VLOOKUP(البيانات!C194,'ارقام الغرف واسعارها'!$C$6:$D$105,2,FALSE),\"\")","v":""},"","انتهى الميعاد",0,{"$error":"#VALUE!"}]
[null,null,null,null,null,null,null,null,null,null,null,null,0,{"$f":"IFERROR(VLOOKUP(البيانات!C195,'ارقام الغرف واسعارها'!$C$6:$D$105,2,FALSE),\"\")","v":""},"","انتهى الميعاد",0,{"$error":"#VALUE!"}]
[null,null,null,null,null,null,null,null,null,null,null,null,0,{"$f":"IFERROR(VLOOKUP(البيانات!C196,'ارقام الغرف واسعارها'!$C$6:$D$105,2,FALSE),\"\")","v":""},"","انتهى الميعاد",0,{"$error":"#VALUE!"}]
[null,null,null,null,null,null,null,null,null,null,null,null,0,{"$f":"IFERROR(VLOOKUP(البيانات!C197,'ارقام الغرف واسعارها'!$C$6:$D$105,2,FALSE),\"\")","v":""},{"$f":"IFERROR(M197*N197,\"\")","v":""},"انتهى الميعاد",0,{"$error":"#VALUE!"}]
[null,null,null,null,null,null,null,null,null,null,null,null,{"$f":"E198-D198","v":0},{"$f":"IFERROR(VLOOKUP(البيانات!C198,'ارقام الغرف واسعارها'!$C$6:$D$105,2,FALSE),\"\")","v":""},"","انتهى الميعاد",0,{"$error":"#VALUE!"}]
[null,null,null,null,null,null,null,null,null,null,null,null,0,{"$f":"IFERROR(VLOOKUP(البيانات!C199,'ارقام الغرف واسعارها'!$C$6:$D$105,2,FALSE),\"\")","v":""},"",{"$f":"IF(M199<=0,\"انتهى الميعاد\",IF(M199=0,\"  اانتهى الميعاد اليوم\",IF(M199>0,\"لم ينتهى المبعاد\",\"\")))","v":"انتهى الميعاد"},{"$f":"K199*M199*$Q$2","v":0},{"$f":"O199+Q199","v":{"$error":"#VALUE!"}}]
[null,null,null,null,null,null,null,null,null,null,null,null,0,{"$f":"IFERROR(VLOOKUP(البيانات!C200,'ارقام الغرف واسعارها'!$C$6:$D$105,2,FALSE),\"\")","v":""},"","انتهى الميعاد",0,{"$error":"#VALUE!"}]
[null,null,null,null,null,null,null,null,null,null,null,null,0,{"$f":"IFERROR(VLOOKUP(البيانات!C201,'ارقام الغرف واسعارها'!$C$6:$D$105,2,FALSE),\"\")","v":""},"","انتهى الميعاد",0,{"$error":"#VALUE!"}]
[null,null,null,null,null,null,null,null,null,null,null,null,0,{"$f":"IFERROR(VLOOKUP(البيانات!C202,'ارقام الغرف واسعارها'!$C$6:$D$105,2,FALSE),\"\")","v":""},"","انتهى الميعاد",0,{"$error":"#VALUE!"}]
[null,null,null,null,null,null,null,null,null,null,null,null,0,{"$f":"IFERROR(VLOOKUP(البيانات!C203,'ارقام الغرف واسعارها'!$C$6:$D$105,2,FALSE),\"\")","v":""},"","انتهى الميعاد",0,{"$error":"#VALUE!"}]
[null,null,null,null,null,null,null,null,null,null,null,null,0,{"$f":"IFERROR(VLOOKUP(البيانات!C204,'ارقام الغرف واسعارها'!$C$6:$D$105,2,FALSE),\"\")","v":""},"","انتهى الميعاد",0,{"$error":"#VALUE!"}]
[null,null,null,null,null,null,null,null,null,null,null,null,0,{"$f":"IFERROR(VLOOKUP(البيانات!C205,'ارقام الغرف واسعارها'!$C$6:$D$105,2,FALSE),\"\")","v":""},"","انتهى الميعاد",0,{"$error":"#VALUE!"}]
[null,null,null,null,null,null,null,null,null,null,null,null,0,{"$f":"IFERROR(VLOOKUP(البيانات!C206,'ارقام الغرف واسعارها'!$C$6:$D$105,2,FALSE),\"\")","v":""},"","انتهى الميعاد",0,{"$error":"#VALUE!"}]
[null,null,null,null,null,null,null,null,null,null,null,null,0,{"$f":"IFERROR(VLOOKUP(البيانات!C207,'ارقام الغرف واسعارها'!$C$6:$D$105,2,FALSE),\"\")","v":""},"","انتهى الميعاد",0,{"$error":"#VALUE!"}]
[null,null,null,null,null,null,null,null,null,null,null,null,0,{"$f":"IFERROR(VLOOKUP(البيانات!C208,'ارقام الغرف واسعارها'!$C$6:$D$105,2,FALSE),\"\")","v":""},"","انتهى الميعاد",0,{"$error":"#VALUE!"}]
[null,null,null,null,null,null,null,null,null,null,null,null,0,{"$f":"IFERROR(VLOOKUP(البيانات!C209,'ارقام الغرف واسعارها'!$C$6:$D$105,2,FALSE),\"\")","v":""},"","انتهى الميعاد",0,{"$error":"#VALUE!"}]
[null,null,null,null,null,null,null,null,null,null,null,null,0,{"$f":"IFERROR(VLOOKUP(البيانات!C210,'ارقام الغرف واسعارها'!$C$6:$D$105,2,FALSE),\"\")","v":""},"","انتهى الميعاد",0,{"$error":"#VALUE!"}]
[null,null,null,null,null,null,null,null,null,null,null,null,0,{"$f":"IFERROR(VLOOKUP(البيانات!C211,'ارقام الغرف واسعارها'!$C$6:$D$105,2,FALSE),\"\")","v":""},"","انتهى الميعاد",0,{"$error":"#VALUE!"}]
[null,null,null,null,null,null,null,null,null,null,null,null,0,{"$f":"IFERROR(VLOOKUP(البيانات!C212,'ارقام الغرف واسعارها'!$C$6:$D$105,2,FALSE),\"\")","v":""},"","انتهى الميعاد",0,{"$error":"#VALUE!"}]
[null,null,null,null,null,null,null,null,null,null,null,null,0,{"$f":"IFERROR(VLOOKUP(البيانات!C213,'ارقام الغرف واسعارها'!$C$6:$D$105,2,FALSE),\"\")","v":""},"","انتهى الميعاد",0,{"$error":"#VALUE!"}]
[null,null,null,null,null,null,null,null,null,null,null,null,0,{"$f":"IFERROR(VLOOKUP(البيانات!C214,'ارقام الغرف واسعارها'!$C$6:$D$105,2,FALSE),\"\")","v":""},"","انتهى الميعاد",0,{"$error":"#VALUE!"}]
[null,null,null,null,null,null,null,null,null,null,null,null,0,{"$f":"IFERROR(VLOOKUP(البيانات!C215,'ارقام الغرف واسعارها'!$C$6:$D$105,2,FALSE),\"\")","v":""},"","انتهى الميعاد",0,{"$error":"#VALUE!"}]
[null,null,null,null,null,null,null,null,null,null,null,null,0,{"$f":"IFERROR(VLOOKUP(البيانات!C216,'ارقام الغرف واسعارها'!$C$6:$D$105,2,FALSE),\"\")","v":""},"","انتهى الميعاد",0,{"$error":"#VALUE!"}]
[null,null,null,null,null,null,null,null,null,null,null,null,0,{"$f":"IFERROR(VLOOKUP(البيانات!C217,'ارقام الغرف واسعارها'!$C$6:$D$105,2,FALSE),\"\")","v":""},"","انتهى الميعاد",0,{"$error":"#VALUE!"}]
[null,null,null,null,null,null,null,null,null,null,null,null,0,{"$f":"IFERROR(VLOOKUP(البيانات!C218,'ارقام الغرف واسعارها'!$C$6:$D$105,2,FALSE),\"\")","v":""},"","انتهى الميعاد",0,{"$error":"#VALUE!"}]
[null,null,null,null,null,null,null,null,null,null,null,null,0,{"$f":"IFERROR(VLOOKUP(البيانات!C219,'ارقام الغرف واسعارها'!$C$6:$D$105,2,FALSE),\"\")","v":""},"","انتهى الميعاد",0,{"$error":"#VALUE!"}]
[null,null,null,null,null,null,null,null,null,null,null,null,0,{"$f":"IFERROR(VLOOKUP(البيانات!C220,'ارقام الغرف واسعارها'!$C$6:$D$105,2,FALSE),\"\")","v":""},"","انتهى الميعاد",0,{"$error":"#VALUE!"}]
[null,null,null,null,null,null,null,null,null,null,null,null,0,{"$f":"IFERROR(VLOOKUP(البيانات!C221,'ارقام الغرف واسعارها'!$C$6:$D$105,2,FALSE),\"\")","v":""},"","انتهى الميعاد",0,{"$error":"#VALUE!"}]
[null,null,null,null,null,null,null,null,null,null,null,null,0,{"$f":"IFERROR(VLOOKUP(البيانات!C222,'ارقام الغرف واسعارها'!$C$6:$D$105,2,FALSE),\"\")","v":""},"","انتهى الميعاد",0,{"$error":"#VALUE!"}]
[null,null,null,null,null,null,null,null,null,null,null,null,0,{"$f":"IFERROR(VLOOKUP(البيانات!C223,'ارقام الغرف واسعارها'!$C$6:$D$105,2,FALSE),\"\")","v":""},"","انتهى الميعاد",0,{"$error":"#VALUE!"}]
[null,null,null,null,null,null,null,null,null,null,null,null,0,{"$f":"IFERROR(VLOOKUP(البيانات!C224,'ارقام الغرف واسعارها'!$C$6:$D$105,2,FALSE),\"\")","v":""},"","انتهى الميعاد",0,{"$error":"#VALUE!"}]
[null,null,null,null,null,null,null,null,null,null,null,null,0,{"$f":"IFERROR(VLOOKUP(البيانات!C225,'ارقام الغرف واسعارها'!$C$6:$D$105,2,FALSE),\"\")","v":""},"","انتهى الميعاد",0,{"$error":"#VALUE!"}]
[null,null,null,null,null,null,null,null,null,null,null,null,0,{"$f":"IFERROR(VLOOKUP(البيانات!C226,'ارقام الغرف واسعارها'!$C$6:$D$105,2,FALSE),\"\")","v":""},"","انتهى الميعاد",0,{"$error":"#VALUE!"}]
[null,null,null,null,null,null,null,null,null,null,null,null,0,{"$f":"IFERROR(VLOOKUP(البيانات!C227,'ارقام الغرف واسعارها'!$C$6:$D$105,2,FALSE),\"\")","v":""},"","انتهى الميعاد",0,{"$error":"#VALUE!"}]
[null,null,null,null,null,null,null,null,null,null,null,null,0,{"$f":"IFERROR(VLOOKUP(البيانات!C228,'ارقام الغرف واسعارها'!$C$6:$D$105,2,FALSE),\"\")","v":""},"","انتهى الميعاد",0,{"$error":"#VALUE!"}]
[null,null,null,null,null,null,null,null,null,null,null,null,0,{"$f":"IFERROR(VLOOKUP(البيانات!C229,'ارقام الغرف واسعارها'!$C$6:$D$105,2,FALSE),\"\")","v":""},"","انتهى الميعاد",0,{"$error":"#VALUE!"}]
[null,null,null,null,null,null,null,null,null,null,null,null,0,{"$f":"IFERROR(VLOOKUP(البيانات!C230,'ارقام الغرف واسعارها'!$C$6:$D$105,2,FALSE),\"\")","v":""},"","انتهى الميعاد",0,{"$error":"#VALUE!"}]
[null,null,null,null,null,null,null,null,null,null,null,null,0,{"$f":"IFERROR(VLOOKUP(البيانات!C231,'ارقام الغرف واسعارها'!$C$6:$D$105,2,FALSE),\"\")","v":""},"","انتهى الميعاد",0,{"$error":"#VALUE!"}]
[null,null,null,null,null,null,null,null,null,null,null,null,0,{"$f":"IFERROR(VLOOKUP(البيانات!C232,'ارقام الغرف واسعارها'!$C$6:$D$105,2,FALSE),\"\")","v":""},"","انتهى الميعاد",0,{"$error":"#VALUE!"}]
[null,null,null,null,null,null,null,null,null,null,null,null,0,{"$f":"IFERROR(VLOOKUP(البيانات!C233,'ارقام الغرف واسعارها'!$C$6:$D$105,2,FALSE),\"\")","v":""},"","انتهى الميعاد",0,{"$error":"#VALUE!"}]
[null,null,null,null,null,null,null,null,null,null,null,null,0,{"$f":"IFERROR(VLOOKUP(البيانات!C234,'ارقام الغرف واسعارها'!$C$6:$D$105,2,FALSE),\"\")","v":""},"","انتهى الميعاد",0,{"$error":"#VALUE!"}]
[null,null,null,null,null,null,null,null,null,null,null,null,0,{"$f":"IFERROR(VLOOKUP(البيانات!C235,'ارقام الغرف واسعارها'!$C$6:$D$105,2,FALSE),\"\")","v":""},"","انتهى الميعاد",0,{"$error":"#VALUE!"}]
[null,null,null,null,null,null,null,null,null,null,null,null,0,{"$f":"IFERROR(VLOOKUP(البيانات!C236,'ارقام الغرف واسعارها'!$C$6:$D$105,2,FALSE),\"\")","v":""},"","انتهى الميعاد",0,{"$error":"#VALUE!"}]
[null,null,null,null,null,null,null,null,null,null,null,null,0,{"$f":"IFERROR(VLOOKUP(البيانات!C237,'ارقام الغرف واسعارها'!$C$6:$D$105,2,FALSE),\"\")","v":""},"","انتهى الميعاد",0,{"$error":"#VALUE!"}]
[null,null,null,null,null,null,null,null,null,null,null,null,0,{"$f":"IFERROR(VLOOKUP(البيانات!C238,'ارقام الغرف واسعارها'!$C$6:$D$105,2,FALSE),\"\")","v":""},"","انتهى الميعاد",0,{"$error":"#VALUE!"}]
[null,null,null,null,null,null,null,null,null,null,null,null,0,{"$f":"IFERROR(VLOOKUP(البيانات!C239,'ارقام الغرف واسعارها'!$C$6:$D$105,2,FALSE),\"\")","v":""},"","انتهى الميعاد",0,{"$error":"#VALUE!"}]
[null,null,null,null,null,null,null,null,null,null,null,null,0,{"$f":"IFERROR(VLOOKUP(البيانات!C240,'ارقام الغرف واسعارها'!$C$6:$D$105,2,FALSE),\"\")","v":""},"","انتهى الميعاد",0,{"$error":"#VALUE!"}]
[null,null,null,null,null,null,null,null,null,null,null,null,0,{"$f":"IFERROR(VLOOKUP(البيانات!C241,'ارقام الغرف واسعارها'!$C$6:$D$105,2,FALSE),\"\")","v":""},"","انتهى الميعاد",0,{"$error":"#VALUE!"}]
[null,null,null,null,null,null,null,null,null,null,null,null,0,{"$f":"IFERROR(VLOOKUP(البيانات!C242,'ارقام الغرف واسعارها'!$C$6:$D$105,2,FALSE),\"\")","v":""},"","انتهى الميعاد",0,{"$error":"#VALUE!"}]
[null,null,null,null,null,null,null,null,null,null,null,null,0,{"$f":"IFERROR(VLOOKUP(البيانات!C243,'ارقام الغرف واسعارها'!$C$6:$D$105,2,FALSE),\"\")","v":""},"","انتهى الميعاد",0,{"$error":"#VALUE!"}]
[null,null,null,null,null,null,null,null,null,null,null,null,0,{"$f":"IFERROR(VLOOKUP(البيانات!C244,'ارقام الغرف واسعارها'!$C$6:$D$105,2,FALSE),\"\")","v":""},"","انتهى الميعاد",0,{"$error":"#VALUE!"}]
[null,null,null,null,null,null,null,null,null,null,null,null,0,{"$f":"IFERROR(VLOOKUP(البيانات!C245,'ارقام الغرف واسعارها'!$C$6:$D$105,2,FALSE),\"\")","v":""},"","انتهى الميعاد",0,{"$error":"#VALUE!"}]
[null,null,null,null,null,null,null,null,null,null,null,null,0,{"$f":"IFERROR(VLOOKUP(البيانات!C246,'ارقام الغرف واسعارها'!$C$6:$D$105,2,FALSE),\"\")","v":""},"","انتهى الميعاد",0,{"$error":"#VALUE!"}]
[null,null,null,null,null,null,null,null,null,null,null,null,0,{"$f":"IFERROR(VLOOKUP(البيانات!C247,'ارقام الغرف واسعارها'!$C$6:$D$105,2,FALSE),\"\")","v":""},"","انتهى الميعاد",0,{"$error":"#VALUE!"}]
[null,null,null,null,null,null,null,null,null,null,null,null,0,{"$f":"IFERROR(VLOOKUP(البيانات!C248,'ارقام الغرف واسعارها'!$C$6:$D$105,2,FALSE),\"\")","v":""},"","انتهى الميعاد",0,{"$error":"#VALUE!"}]
[null,null,null,null,null,null,null,null,null,null,null,null,0,{"$f":"IFERROR(VLOOKUP(البيانات!C249,'ارقام الغرف واسعارها'!$C$6:$D$105,2,FALSE),\"\")","v":""},"","انتهى الميعاد",0,{"$error":"#VALUE!"}]
[null,null,null,null,null,null,null,null,null,null,null,null,0,{"$f":"IFERROR(VLOOKUP(البيانات!C250,'ارقام الغرف واسعارها'!$C$6:$D$105,2,FALSE),\"\")","v":""},"","انتهى الميعاد",0,{"$error":"#VALUE!"}]
[null,null,null,null,null,null,null,null,null,null,null,null,0,{"$f":"IFERROR(VLOOKUP(البيانات!C251,'ارقام الغرف واسعارها'!$C$6:$D$105,2,FALSE),\"\")","v":""},"","انتهى الميعاد",0,{"$error":"#VALUE!"}]
[null,null,null,null,null,null,null,null,null,null,null,null,0,{"$f":"IFERROR(VLOOKUP(البيانات!C252,'ارقام الغرف واسعارها'!$C$6:$D$105,2,FALSE),\"\")","v":""},"","انتهى الميعاد",0,{"$error":"#VALUE!"}]
[null,null,null,null,null,null,null,null,null,null,null,null,0,{"$f":"IFERROR(VLOOKUP(البيانات!C253,'ارقام الغرف واسعارها'!$C$6:$D$105,2,FALSE),\"\")","v":""},"","انتهى الميعاد",0,{"$error":"#VALUE!"}]
[null,null,null,null,null,null,null,null,null,null,null,null,0,{"$f":"IFERROR(VLOOKUP(البيانات!C254,'ارقام الغرف واسعارها'!$C$6:$D$105,2,FALSE),\"\")","v":""},"","انتهى الميعاد",0,{"$error":"#VALUE!"}]
[null,null,null,null,null,null,null,null,null,null,null,null,0,{"$f":"IFERROR(VLOOKUP(البيانات!C255,'ارقام الغرف واسعارها'!$C$6:$D$105,2,FALSE),\"\")","v":""},"","انتهى الميعاد",0,{"$error":"#VALUE!"}]
[null,null,null,null,null,null,null,null,null,null,null,null,0,{"$f":"IFERROR(VLOOKUP(البيانات!C256,'ارقام الغرف واسعارها'!$C$6:$D$105,2,FALSE),\"\")","v":""},"","انتهى الميعاد",0,{"$error":"#VALUE!"}]
[null,null,null,null,null,null,null,null,null,null,null,null,0,{"$f":"IFERROR(VLOOKUP(البيانات!C257,'ارقام الغرف واسعارها'!$C$6:$D$105,2,FALSE),\"\")","v":""},"","انتهى الميعاد",0,{"$error":"#VALUE!"}]
[null,null,null,null,null,null,null,null,null,null,null,null,0,{"$f":"IFERROR(VLOOKUP(البيانات!C258,'ارقام الغرف واسعارها'!$C$6:$D$105,2,FALSE),\"\")","v":""},"","انتهى الميعاد",0,{"$error":"#VALUE!"}]
[null,null,null,null,null,null,null,null,null,null,null,null,0,{"$f":"IFERROR(VLOOKUP(البيانات!C259,'ارقام الغرف واسعارها'!$C$6:$D$105,2,FALSE),\"\")","v":""},"","انتهى الميعاد",0,{"$error":"#VALUE!"}]
[null,null,null,null,null,null,null,null,null,null,null,null,0,{"$f":"IFERROR(VLOOKUP(البيانات!C260,'ارقام الغرف واسعارها'!$C$6:$D$105,2,FALSE),\"\")","v":""},"","انتهى الميعاد",0,{"$error":"#VALUE!"}]
[null,null,null,null,null,null,null,null,null,null,null,null,0,{"$f":"IFERROR(VLOOKUP(البيانات!C261,'ارقام الغرف واسعارها'!$C$6:$D$105,2,FALSE),\"\")","v":""},{"$f":"IFERROR(M261*N261,\"\")","v":""},"انتهى الميعاد",0,{"$error":"#VALUE!"}]
[null,null,null,null,null,null,null,null,null,null,null,null,{"$f":"E262-D262","v":0},{"$f":"IFERROR(VLOOKUP(البيانات!C262,'ارقام الغرف واسعارها'!$C$6:$D$105,2,FALSE),\"\")","v":""},"","انتهى الميعاد",0,{"$error":"#VALUE!"}]
[null,null,null,null,null,null,null,null,null,null,null,null,0,{"$f":"IFERROR(VLOOKUP(البيانات!C263,'ارقام الغرف واسعارها'!$C$6:$D$105,2,FALSE),\"\")","v":""},"",{"$f":"IF(M263<=0,\"انتهى الميعاد\",IF(M263=0,\"  اانتهى الميعاد اليوم\",IF(M263>0,\"لم ينتهى المبعاد\",\"\")))","v":"انتهى الميعاد"},{"$f":"K263*M263*$Q$2","v":0},{"$f":"O263+Q263","v":{"$error":"#VALUE!"}}]
[null,null,null,null,null,null,null,null,null,null,null,null,0,{"$f":"IFERROR(VLOOKUP(البيانات!C264,'ارقام الغرف واسعارها'!$C$6:$D$105,2,FALSE),\"\")","v":""},"","انتهى الميعاد",0,{"$error":"#VALUE!"}]
[null,null,null,null,null,null,null,null,null,null,null,null,0,{"$f":"IFERROR(VLOOKUP(البيانات!C265,'ارقام الغرف واسعارها'!$C$6:$D$105,2,FALSE),\"\")","v":""},"","انتهى الميعاد",0,{"$error":"#VALUE!"}]
[null,null,null,null,null,null,null,null,null,null,null,null,0,{"$f":"IFERROR(VLOOKUP(البيانات!C266,'ارقام الغرف واسعارها'!$C$6:$D$105,2,FALSE),\"\")","v":""},"","انتهى الميعاد",0,{"$error":"#VALUE!"}]
[null,null,null,null,null,null,null,null,null,null,null,null,0,{"$f":"IFERROR(VLOOKUP(البيانات!C267,'ارقام الغرف واسعارها'!$C$6:$D$105,2,FALSE),\"\")","v":""},"","انتهى الميعاد",0,{"$error":"#VALUE!"}]
[null,null,null,null,null,null,null,null,null,null,null,null,0,{"$f":"IFERROR(VLOOKUP(البيانات!C268,'ارقام الغرف واسعارها'!$C$6:$D$105,2,FALSE),\"\")","v":""},"","انتهى الميعاد",0,{"$error":"#VALUE!"}]
[null,null,null,null,null,null,null,null,null,null,null,null,0,{"$f":"IFERROR(VLOOKUP(البيانات!C269,'ارقام الغرف واسعارها'!$C$6:$D$105,2,FALSE),\"\")","v":""},"","انتهى الميعاد",0,{"$error":"#VALUE!"}]
[null,null,null,null,null,null,null,null,null,null,null,null,0,{"$f":"IFERROR(VLOOKUP(البيانات!C270,'ارقام الغرف واسعارها'!$C$6:$D$105,2,FALSE),\"\")","v":""},"","انتهى الميعاد",0,{"$error":"#VALUE!"}]
[null,null,null,null,null,null,null,null,null,null,null,null,0,{"$f":"IFERROR(VLOOKUP(البيانات!C271,'ارقام الغرف واسعارها'!$C$6:$D$105,2,FALSE),\"\")","v":""},"","انتهى الميعاد",0,{"$error":"#VALUE!"}]
[null,null,null,null,null,null,null,null,null,null,null,null,0,{"$f":"IFERROR(VLOOKUP(البيانات!C272,'ارقام الغرف واسعارها'!$C$6:$D$105,2,FALSE),\"\")","v":""},"","انتهى الميعاد",0,{"$error":"#VALUE!"}]
[null,null,null,null,null,null,null,null,null,null,null,null,0,{"$f":"IFERROR(VLOOKUP(البيانات!C273,'ارقام الغرف واسعارها'!$C$6:$D$105,2,FALSE),\"\")","v":""},"","انتهى الميعاد",0,{"$error":"#VALUE!"}]
[null,null,null,null,null,null,null,null,null,null,null,null,0,{"$f":"IFERROR(VLOOKUP(البيانات!C274,'ارقام الغرف واسعارها'!$C$6:$D$105,2,FALSE),\"\")","v":""},"","انتهى الميعاد",0,{"$error":"#VALUE!"}]
[null,null,null,null,null,null,null,null,null,null,null,null,0,{"$f":"IFERROR(VLOOKUP(البيانات!C275,'ارقام الغرف واسعارها'!$C$6:$D$105,2,FALSE),\"\")","v":""},"","انتهى الميعاد",0,{"$error":"#VALUE!"}]
[null,null,null,null,null,null,null,null,null,null,null,null,0,{"$f":"IFERROR(VLOOKUP(البيانات!C276,'ارقام الغرف واسعارها'!$C$6:$D$105,2,FALSE),\"\")","v":""},"","انتهى الميعاد",0,{"$error":"#VALUE!"}]
[null,null,null,null,null,null,null,null,null,null,null,null,0,{"$f":"IFERROR(VLOOKUP(البيانات!C277,'ارقام الغرف واسعارها'!$C$6:$D$105,2,FALSE),\"\")","v":""},"","انتهى الميعاد",0,{"$error":"#VALUE!"}]
[null,null,null,null,null,null,null,null,null,null,null,null,0,{"$f":"IFERROR(VLOOKUP(البيانات!C278,'ارقام الغرف واسعارها'!$C$6:$D$105,2,FALSE),\"\")","v":""},"","انتهى الميعاد",0,{"$error":"#VALUE!"}]
[null,null,null,null,null,null,null,null,null,null,null,null,0,{"$f":"IFERROR(VLOOKUP(البيانات!C279,'ارقام الغرف واسعارها'!$C$6:$D$105,2,FALSE),\"\")","v":""},"","انتهى الميعاد",0,{"$error":"#VALUE!"}]
[null,null,null,null,null,null,null,null,null,null,null,null,0,{"$f":"IFERROR(VLOOKUP(البيانات!C280,'ارقام الغرف واسعارها'!$C$6:$D$105,2,FALSE),\"\")","v":""},"","انتهى الميعاد",0,{"$error":"#VALUE!"}]
[null,null,null,null,null,null,null,null,null,null,null,null,0,{"$f":"IFERROR(VLOOKUP(البيانات!C281,'ارقام الغرف واسعارها'!$C$6:$D$105,2,FALSE),\"\")","v":""},"","انتهى الميعاد",0,{"$error":"#VALUE!"}]
[null,null,null,null,null,null,null,null,null,null,null,null,0,{"$f":"IFERROR(VLOOKUP(البيانات!C282,'ارقام الغرف واسعارها'!$C$6:$D$105,2,FALSE),\"\")","v":""},"","انتهى الميعاد",0,{"$error":"#VALUE!"}]
[null,null,null,null,null,null,null,null,null,null,null,null,0,{"$f":"IFERROR(VLOOKUP(البيانات!C283,'ارقام الغرف واسعارها'!$C$6:$D$105,2,FALSE),\"\")","v":""},"","انتهى الميعاد",0,{"$error":"#VALUE!"}]
[null,null,null,null,null,null,null,null,null,null,null,null,0,{"$f":"IFERROR(VLOOKUP(البيانات!C284,'ارقام الغرف واسعارها'!$C$6:$D$105,2,FALSE),\"\")","v":""},"","انتهى الميعاد",0,{"$error":"#VALUE!"}]
[null,null,null,null,null,null,null,null,null,null,null,null,0,{"$f":"IFERROR(VLOOKUP(البيانات!C285,'ارقام الغرف واسعارها'!$C$6:$D$105,2,FALSE),\"\")","v":""},"","انتهى الميعاد",0,{"$error":"#VALUE!"}]
[null,null,null,null,null,null,null,null,null,null,null,null,0,{"$f":"IFERROR(VLOOKUP(البيانات!C286,'ارقام الغرف واسعارها'!$C$6:$D$105,2,FALSE),\"\")","v":""},"","انتهى الميعاد",0,{"$error":"#VALUE!"}]
[null,null,null,null,null,null,null,null,null,null,null,null,0,{"$f":"IFERROR(VLOOKUP(البيانات!C287,'ارقام الغرف واسعارها'!$C$6:$D$105,2,FALSE),\"\")","v":""},"","انتهى الميعاد",0,{"$error":"#VALUE!"}]
[null,null,null,null,null,null,null,null,null,null,null,null,0,{"$f":"IFERROR(VLOOKUP(البيانات!C288,'ارقام الغرف واسعارها'!$C$6:$D$105,2,FALSE),\"\")","v":""},"","انتهى الميعاد",0,{"$error":"#VALUE!"}]
[null,null,null,null,null,null,null,null,null,null,null,null,0,{"$f":"IFERROR(VLOOKUP(البيانات!C289,'ارقام الغرف واسعارها'!$C$6:$D$105,2,FALSE),\"\")","v":""},"","انتهى الميعاد",0,{"$error":"#VALUE!"}]
[null,null,null,null,null,null,null,null,null,null,null,null,0,{"$f":"IFERROR(VLOOKUP(البيانات!C290,'ارقام الغرف واسعارها'!$C$6:$D$105,2,FALSE),\"\")","v":""},"","انتهى الميعاد",0,{"$error":"#VALUE!"}]
[null,null,null,null,null,null,null,null,null,null,null,null,0,{"$f":"IFERROR(VLOOKUP(البيانات!C291,'ارقام الغرف واسعارها'!$C$6:$D$105,2,FALSE),\"\")","v":""},"","انتهى الميعاد",0,{"$error":"#VALUE!"}]
[null,null,null,null,null,null,null,null,null,null,null,null,0,{"$f":"IFERROR(VLOOKUP(البيانات!C292,'ارقام الغرف واسعارها'!$C$6:$D$105,2,FALSE),\"\")","v":""},"","انتهى الميعاد",0,{"$error":"#VALUE!"}]
[null,null,null,null,null,null,null,null,null,null,null,null,0,{"$f":"IFERROR(VLOOKUP(البيانات!C293,'ارقام الغرف واسعارها'!$C$6:$D$105,2,FALSE),\"\")","v":""},"","انتهى الميعاد",0,{"$error":"#VALUE!"}]
[null,null,null,null,null,null,null,null,null,null,null,null,0,{"$f":"IFERROR(VLOOKUP(البيانات!C294,'ارقام الغرف واسعارها'!$C$6:$D$105,2,FALSE),\"\")","v":""},"","انتهى الميعاد",0,{"$error":"#VALUE!"}]
[null,null,null,null,null,null,null,null,null,null,null,null,0,{"$f":"IFERROR(VLOOKUP(البيانات!C295,'ارقام الغرف واسعارها'!$C$6:$D$105,2,FALSE),\"\")","v":""},"","انتهى الميعاد",0,{"$error":"#VALUE!"}]
[null,null,null,null,null,null,null,null,null,null,null,null,0,{"$f":"IFERROR(VLOOKUP(البيانات!C296,'ارقام الغرف واسعارها'!$C$6:$D$105,2,FALSE),\"\")","v":""},"","انتهى الميعاد",0,{"$error":"#VALUE!"}]
[null,null,null,null,null,null,null,null,null,null,null,null,0,{"$f":"IFERROR(VLOOKUP(البيانات!C297,'ارقام الغرف واسعارها'!$C$6:$D$105,2,FALSE),\"\")","v":""},"","انتهى الميعاد",0,{"$error":"#VALUE!"}]
[null,null,null,null,null,null,null,null,null,null,null,null,0,{"$f":"IFERROR(VLOOKUP(البيانات!C298,'ارقام الغرف واسعارها'!$C$6:$D$105,2,FALSE),\"\")","v":""},"","انتهى الميعاد",0,{"$error":"#VALUE!"}]
[null,null,null,null,null,null,null,null,null,null,null,null,0,{"$f":"IFERROR(VLOOKUP(البيانات!C299,'ارقام الغرف واسعارها'!$C$6:$D$105,2,FALSE),\"\")","v":""},"","انتهى الميعاد",0,{"$error":"#VALUE!"}]
[null,null,null,null,null,null,null,null,null,null,null,null,0,{"$f":"IFERROR(VLOOKUP(البيانات!C300,'ارقام الغرف واسعارها'!$C$6:$D$105,2,FALSE),\"\")","v":""},"","انتهى الميعاد",0,{"$error":"#VALUE!"}]
[null,null,null,null,null,null,null,null,null,null,null,null,0,{"$f":"IFERROR(VLOOKUP(البيانات!C301,'ارقام الغرف واسعارها'!$C$6:$D$105,2,FALSE),\"\")","v":""},"","انتهى الميعاد",0,{"$error":"#VALUE!"}]
[null,null,null,null,null,null,null,null,null,null,null,null,0,{"$f":"IFERROR(VLOOKUP(البيانات!C302,'ارقام الغرف واسعارها'!$C$6:$D$105,2,FALSE),\"\")","v":""},"","انتهى الميعاد",0,{"$error":"#VALUE!"}]
[null,null,null,null,null,null,null,null,null,null,null,null,0,{"$f":"IFERROR(VLOOKUP(البيانات!C303,'ارقام الغرف واسعارها'!$C$6:$D$105,2,FALSE),\"\")","v":""},"","انتهى الميعاد",0,{"$error":"#VALUE!"}]
[null,null,null,null,null,null,null,null,null,null,null,null,0,{"$f":"IFERROR(VLOOKUP(البيانات!C304,'ارقام الغرف واسعارها'!$C$6:$D$105,2,FALSE),\"\")","v":""},"","انتهى الميعاد",0,{"$error":"#VALUE!"}]
[null,null,null,null,null,null,null,null,null,null,null,null,0,{"$f":"IFERROR(VLOOKUP(البيانات!C305,'ارقام الغرف واسعارها'!$C$6:$D$105,2,FALSE),\"\")","v":""},"","انتهى الميعاد",0,{"$error":"#VALUE!"}]
[null,null,null,null,null,null,null,null,null,null,null,null,0,{"$f":"IFERROR(VLOOKUP(البيانات!C306,'ارقام الغرف واسعارها'!$C$6:$D$105,2,FALSE),\"\")","v":""},"","انتهى الميعاد",0,{"$error":"#VALUE!"}]
[null,null,null,null,null,null,null,null,null,null,null,null,0,{"$f":"IFERROR(VLOOKUP(البيانات!C307,'ارقام الغرف واسعارها'!$C$6:$D$105,2,FALSE),\"\")","v":""},"","انتهى الميعاد",0,{"$error":"#VALUE!"}]
[null,null,null,null,null,null,null,null,null,null,null,null,0,{"$f":"IFERROR(VLOOKUP(البيانات!C308,'ارقام الغرف واسعارها'!$C$6:$D$105,2,FALSE),\"\")","v":""},"","انتهى الميعاد",0,{"$error":"#VALUE!"}]
[null,null,null,null,null,null,null,null,null,null,null,null,0,{"$f":"IFERROR(VLOOKUP(البيانات!C309,'ارقام الغرف واسعارها'!$C$6:$D$105,2,FALSE),\"\")","v":""},"","انتهى الميعاد",0,{"$error":"#VALUE!"}]
[null,null,null,null,null,null,null,null,null,null,null,null,0,{"$f":"IFERROR(VLOOKUP(البيانات!C310,'ارقام الغرف واسعارها'!$C$6:$D$105,2,FALSE),\"\")","v":""},"","انتهى الميعاد",0,{"$error":"#VALUE!"}]
[null,null,null,null,null,null,null,null,null,null,null,null,0,{"$f":"IFERROR(VLOOKUP(البيانات!C311,'ارقام الغرف واسعارها'!$C$6:$D$105,2,FALSE),\"\")","v":""},"","انتهى الميعاد",0,{"$error":"#VALUE!"}]
[null,null,null,null,null,null,null,null,null,null,null,null,0,{"$f":"IFERROR(VLOOKUP(البيانات!C312,'ارقام الغرف واسعارها'!$C$6:$D$105,2,FALSE),\"\")","v":""},"","انتهى الميعاد",0,{"$error":"#VALUE!"}]
[null,null,null,null,null,null,null,null,null,null,null,null,0,{"$f":"IFERROR(VLOOKUP(البيانات!C313,'ارقام الغرف واسعارها'!$C$6:$D$105,2,FALSE),\"\")","v":""},"","انتهى الميعاد",0,{"$error":"#VALUE!"}]
[null,null,null,null,null,null,null,null,null,null,null,null,0,{"$f":"IFERROR(VLOOKUP(البيانات!C314,'ارقام الغرف واسعارها'!$C$6:$D$105,2,FALSE),\"\")","v":""},"","انتهى الميعاد",0,{"$error":"#VALUE!"}]
[null,null,null,null,null,null,null,null,null,null,null,null,0,{"$f":"IFERROR(VLOOKUP(البيانات!C315,'ارقام الغرف واسعارها'!$C$6:$D$105,2,FALSE),\"\")","v":""},"","انتهى الميعاد",0,{"$error":"#VALUE!"}]
[null,null,null,null,null,null,null,null,null,null,null,null,0,{"$f":"IFERROR(VLOOKUP(البيانات!C316,'ارقام الغرف واسعارها'!$C$6:$D$105,2,FALSE),\"\")","v":""},"","انتهى الميعاد",0,{"$error":"#VALUE!"}]
[null,null,null,null,null,null,null,null,null,null,null,null,0,{"$f":"IFERROR(VLOOKUP(البيانات!C317,'ارقام الغرف واسعارها'!$C$6:$D$105,2,FALSE),\"\")","v":""},"","انتهى الميعاد",0,{"$error":"#VALUE!"}]
[null,null,null,null,null,null,null,null,null,null,null,null,0,{"$f":"IFERROR(VLOOKUP(البيانات!C318,'ارقام الغرف واسعارها'!$C$6:$D$105,2,FALSE),\"\")","v":""},"","انتهى الميعاد",0,{"$error":"#VALUE!"}]
[null,null,null,null,null,null,null,null,null,null,null,null,0,{"$f":"IFERROR(VLOOKUP(البيانات!C319,'ارقام الغرف واسعارها'!$C$6:$D$105,2,FALSE),\"\")","v":""},"","انتهى الميعاد",0,{"$error":"#VALUE!"}]
[null,null,null,null,null,null,null,null,null,null,null,null,0,{"$f":"IFERROR(VLOOKUP(البيانات!C320,'ارقام الغرف واسعارها'!$C$6:$D$105,2,FALSE),\"\")","v":""},"","انتهى الميعاد",0,{"$error":"#VALUE!"}]
[null,null,null,null,null,null,null,null,null,null,null,null,0,{"$f":"IFERROR(VLOOKUP(البيانات!C321,'ارقام الغرف واسعارها'!$C$6:$D$105,2,FALSE),\"\")","v":""},"","انتهى الميعاد",0,{"$error":"#VALUE!"}]
[null,null,null,null,null,null,null,null,null,null,null,null,0,{"$f":"IFERROR(VLOOKUP(البيانات!C322,'ارقام الغرف واسعارها'!$C$6:$D$105,2,FALSE),\"\")","v":""},"","انتهى الميعاد",0,{"$error":"#VALUE!"}]
[null,null,null,null,null,null,null,null,null,null,null,null,0,{"$f":"IFERROR(VLOOKUP(البيانات!C323,'ارقام الغرف واسعارها'!$C$6:$D$105,2,FALSE),\"\")","v":""},"","انتهى الميعاد",0,{"$error":"#VALUE!"}]
[null,null,null,null,null,null,null,null,null,null,null,null,0,{"$f":"IFERROR(VLOOKUP(البيانات!C324,'ارقام الغرف واسعارها'!$C$6:$D$105,2,FALSE),\"\")","v":""},"","انتهى الميعاد",0,{"$error":"#VALUE!"}]
[null,null,null,null,null,null,null,null,null,null,null,null,0,{"$f":"IFERROR(VLOOKUP(البيانات!C325,'ارقام الغرف واسعارها'!$C$6:$D$105,2,FALSE),\"\")","v":""},{"$f":"IFERROR(M325*N325,\"\")","v":""},"انتهى الميعاد",0,{"$error":"#VALUE!"}]
[null,null,null,null,null,null,null,null,null,null,null,null,{"$f":"E326-D326","v":0},{"$f":"IFERROR(VLOOKUP(البيانات!C326,'ارقام الغرف واسعارها'!$C$6:$D$105,2,FALSE),\"\")","v":""},"","انتهى الميعاد",0,{"$error":"#VALUE!"}]
[null,null,null,null,null,null,null,null,null,null,null,null,0,{"$f":"IFERROR(VLOOKUP(البيانات!C327,'ارقام الغرف واسعارها'!$C$6:$D$105,2,FALSE),\"\")","v":""},"",{"$f":"IF(M327<=0,\"انتهى الميعاد\",IF(M327=0,\"  اانتهى الميعاد اليوم\",IF(M327>0,\"لم ينتهى المبعاد\",\"\")))","v":"انتهى الميعاد"},{"$f":"K327*M327*$Q$2","v":0},{"$f":"O327+Q327","v":{"$error":"#VALUE!"}}]
[null,null,null,null,null,null,null,null,null,null,null,null,0,{"$f":"IFERROR(VLOOKUP(البيانات!C328,'ارقام الغرف واسعارها'!$C$6:$D$105,2,FALSE),\"\")","v":""},"","انتهى الميعاد",0,{"$error":"#VALUE!"}]
[null,null,null,null,null,null,null,null,null,null,null,null,0,{"$f":"IFERROR(VLOOKUP(البيانات!C329,'ارقام الغرف واسعارها'!$C$6:$D$105,2,FALSE),\"\")","v":""},"","انتهى الميعاد",0,{"$error":"#VALUE!"}]
[null,null,null,null,null,null,null,null,null,null,null,null,0,{"$f":"IFERROR(VLOOKUP(البيانات!C330,'ارقام الغرف واسعارها'!$C$6:$D$105,2,FALSE),\"\")","v":""},"","انتهى الميعاد",0,{"$error":"#VALUE!"}]
[null,null,null,null,null,null,null,null,null,null,null,null,0,{"$f":"IFERROR(VLOOKUP(البيانات!C331,'ارقام الغرف واسعارها'!$C$6:$D$105,2,FALSE),\"\")","v":""},"","انتهى الميعاد",0,{"$error":"#VALUE!"}]
[null,null,null,null,null,null,null,null,null,null,null,null,0,{"$f":"IFERROR(VLOOKUP(البيانات!C332,'ارقام الغرف واسعارها'!$C$6:$D$105,2,FALSE),\"\")","v":""},"","انتهى الميعاد",0,{"$error":"#VALUE!"}]
[null,null,null,null,null,null,null,null,null,null,null,null,0,{"$f":"IFERROR(VLOOKUP(البيانات!C333,'ارقام الغرف واسعارها'!$C$6:$D$105,2,FALSE),\"\")","v":""},"","انتهى الميعاد",0,{"$error":"#VALUE!"}]
[null,null,null,null,null,null,null,null,null,null,null,null,0,{"$f":"IFERROR(VLOOKUP(البيانات!C334,'ارقام الغرف واسعارها'!$C$6:$D$105,2,FALSE),\"\")","v":""},"","انتهى الميعاد",0,{"$error":"#VALUE!"}]
[null,null,null,null,null,null,null,null,null,null,null,null,0,{"$f":"IFERROR(VLOOKUP(البيانات!C335,'ارقام الغرف واسعارها'!$C$6:$D$105,2,FALSE),\"\")","v":""},"","انتهى الميعاد",0,{"$error":"#VALUE!"}]
[null,null,null,null,null,null,null,null,null,null,null,null,0,{"$f":"IFERROR(VLOOKUP(البيانات!C336,'ارقام الغرف واسعارها'!$C$6:$D$105,2,FALSE),\"\")","v":""},"","انتهى الميعاد",0,{"$error":"#VALUE!"}]
[null,null,null,null,null,null,null,null,null,null,null,null,0,{"$f":"IFERROR(VLOOKUP(البيانات!C337,'ارقام الغرف واسعارها'!$C$6:$D$105,2,FALSE),\"\")","v":""},"","انتهى الميعاد",0,{"$error":"#VALUE!"}]
[null,null,null,null,null,null,null,null,null,null,null,null,0,{"$f":"IFERROR(VLOOKUP(البيانات!C338,'ارقام الغرف واسعارها'!$C$6:$D$105,2,FALSE),\"\")","v":""},"","انتهى الميعاد",0,{"$error":"#VALUE!"}]
[null,null,null,null,null,null,null,null,null,null,null,null,0,{"$f":"IFERROR(VLOOKUP(البيانات!C339,'ارقام الغرف واسعارها'!$C$6:$D$105,2,FALSE),\"\")","v":""},"","انتهى الميعاد",0,{"$error":"#VALUE!"}]
[null,null,null,null,null,null,null,null,null,null,null,null,0,{"$f":"IFERROR(VLOOKUP(البيانات!C340,'ارقام الغرف واسعارها'!$C$6:$D$105,2,FALSE),\"\")","v":""},"","انتهى الميعاد",0,{"$error":"#VALUE!"}]
[null,null,null,null,null,null,null,null,null,null,null,null,0,{"$f":"IFERROR(VLOOKUP(البيانات!C341,'ارقام الغرف واسعارها'!$C$6:$D$105,2,FALSE),\"\")","v":""},"","انتهى الميعاد",0,{"$error":"#VALUE!"}]
[null,null,null,null,null,null,null,null,null,null,null,null,0,{"$f":"IFERROR(VLOOKUP(البيانات!C342,'ارقام الغرف واسعارها'!$C$6:$D$105,2,FALSE),\"\")","v":""},"","انتهى الميعاد",0,{"$error":"#VALUE!"}]
[null,null,null,null,null,null,null,null,null,null,null,null,0,{"$f":"IFERROR(VLOOKUP(البيانات!C343,'ارقام الغرف واسعارها'!$C$6:$D$105,2,FALSE),\"\")","v":""},"","انتهى الميعاد",0,{"$error":"#VALUE!"}]
[null,null,null,null,null,null,null,null,null,null,null,null,0,{"$f":"IFERROR(VLOOKUP(البيانات!C344,'ارقام الغرف واسعارها'!$C$6:$D$105,2,FALSE),\"\")","v":""},"","انتهى الميعاد",0,{"$error":"#VALUE!"}]
[null,null,null,null,null,null,null,null,null,null,null,null,0,{"$f":"IFERROR(VLOOKUP(البيانات!C345,'ارقام الغرف واسعارها'!$C$6:$D$105,2,FALSE),\"\")","v":""},"","انتهى الميعاد",0,{"$error":"#VALUE!"}]
[null,null,null,null,null,null,null,null,null,null,null,null,0,{"$f":"IFERROR(VLOOKUP(البيانات!C346,'ارقام الغرف واسعارها'!$C$6:$D$105,2,FALSE),\"\")","v":""},"","انتهى الميعاد",0,{"$error":"#VALUE!"}]
[null,null,null,null,null,null,null,null,null,null,null,null,0,{"$f":"IFERROR(VLOOKUP(البيانات!C347,'ارقام الغرف واسعارها'!$C$6:$D$105,2,FALSE),\"\")","v":""},"","انتهى الميعاد",0,{"$error":"#VALUE!"}]
[null,null,null,null,null,null,null,null,null,null,null,null,0,{"$f":"IFERROR(VLOOKUP(البيانات!C348,'ارقام الغرف واسعارها'!$C$6:$D$105,2,FALSE),\"\")","v":""},"","انتهى الميعاد",0,{"$error":"#VALUE!"}]
[null,null,null,null,null,null,null,null,null,null,null,null,0,{"$f":"IFERROR(VLOOKUP(البيانات!C349,'ارقام الغرف واسعارها'!$C$6:$D$105,2,FALSE),\"\")","v":""},"","انتهى الميعاد",0,{"$error":"#VALUE!"}]
[null,null,null,null,null,null,null,null,null,null,null,null,0,{"$f":"IFERROR(VLOOKUP(البيانات!C350,'ارقام الغرف واسعارها'!$C$6:$D$105,2,FALSE),\"\")","v":""},"","انتهى الميعاد",0,{"$error":"#VALUE!"}]
[null,null,null,null,null,null,null,null,null,null,null,null,0,{"$f":"IFERROR(VLOOKUP(البيانات!C351,'ارقام الغرف واسعارها'!$C$6:$D$105,2,FALSE),\"\")","v":""},"","انتهى الميعاد",0,{"$error":"#VALUE!"}]
[null,null,null,null,null,null,null,null,null,null,null,null,0,{"$f":"IFERROR(VLOOKUP(البيانات!C352,'ارقام الغرف واسعارها'!$C$6:$D$105,2,FALSE),\"\")","v":""},"","انتهى الميعاد",0,{"$error":"#VALUE!"}]
[null,null,null,null,null,null,null,null,null,null,null,null,0,{"$f":"IFERROR(VLOOKUP(البيانات!C353,'ارقام الغرف واسعارها'!$C$6:$D$105,2,FALSE),\"\")","v":""},"","انتهى الميعاد",0,{"$error":"#VALUE!"}]
[null,null,null,null,null,null,null,null,null,null,null,null,0,{"$f":"IFERROR(VLOOKUP(البيانات!C354,'ارقام الغرف واسعارها'!$C$6:$D$105,2,FALSE),\"\")","v":""},"","انتهى الميعاد",0,{"$error":"#VALUE!"}]
[null,null,null,null,null,null,null,null,null,null,null,null,0,{"$f":"IFERROR(VLOOKUP(البيانات!C355,'ارقام الغرف واسعارها'!$C$6:$D$105,2,FALSE),\"\")","v":""},"","انتهى الميعاد",0,{"$error":"#VALUE!"}]
[null,null,null,null,null,null,null,null,null,null,null,null,0,{"$f":"IFERROR(VLOOKUP(البيانات!C356,'ارقام الغرف واسعارها'!$C$6:$D$105,2,FALSE),\"\")","v":""},"","انتهى الميعاد",0,{"$error":"#VALUE!"}]
[null,null,null,null,null,null,null,null,null,null,null,null,0,{"$f":"IFERROR(VLOOKUP(البيانات!C357,'ارقام الغرف واسعارها'!$C$6:$D$105,2,FALSE),\"\")","v":""},"","انتهى الميعاد",0,{"$error":"#VALUE!"}]
[null,null,null,null,null,null,null,null,null,null,null,null,0,{"$f":"IFERROR(VLOOKUP(البيانات!C358,'ارقام الغرف واسعارها'!$C$6:$D$105,2,FALSE),\"\")","v":""},"","انتهى الميعاد",0,{"$error":"#VALUE!"}]
[null,null,null,null,null,null,null,null,null,null,null,null,0,{"$f":"IFERROR(VLOOKUP(البيانات!C359,'ارقام الغرف واسعارها'!$C$6:$D$105,2,FALSE),\"\")","v":""},"","انتهى الميعاد",0,{"$error":"#VALUE!"}]
[null,null,null,null,null,null,null,null,null,null,null,null,0,{"$f":"IFERROR(VLOOKUP(البيانات!C360,'ارقام الغرف واسعارها'!$C$6:$D$105,2,FALSE),\"\")","v":""},"","انتهى الميعاد",0,{"$error":"#VALUE!"}]
[null,null,null,null,null,null,null,null,null,null,null,null,0,{"$f":"IFERROR(VLOOKUP(البيانات!C361,'ارقام الغرف واسعارها'!$C$6:$D$105,2,FALSE),\"\")","v":""},"","انتهى الميعاد",0,{"$error":"#VALUE!"}]
[null,null,null,null,null,null,null,null,null,null,null,null,0,{"$f":"IFERROR(VLOOKUP(البيانات!C362,'ارقام الغرف واسعارها'!$C$6:$D$105,2,FALSE),\"\")","v":""},"","انتهى الميعاد",0,{"$error":"#VALUE!"}]
[null,null,null,null,null,null,null,null,null,null,null,null,0,{"$f":"IFERROR(VLOOKUP(البيانات!C363,'ارقام الغرف واسعارها'!$C$6:$D$105,2,FALSE),\"\")","v":""},"","انتهى الميعاد",0,{"$error":"#VALUE!"}]
[null,null,null,null,null,null,null,null,null,null,null,null,0,{"$f":"IFERROR(VLOOKUP(البيانات!C364,'ارقام الغرف واسعارها'!$C$6:$D$105,2,FALSE),\"\")","v":""},"","انتهى الميعاد",0,{"$error":"#VALUE!"}]
[null,null,null,null,null,null,null,null,null,null,null,null,0,{"$f":"IFERROR(VLOOKUP(البيانات!C365,'ارقام الغرف واسعارها'!$C$6:$D$105,2,FALSE),\"\")","v":""},"","انتهى الميعاد",0,{"$error":"#VALUE!"}]
[null,null,null,null,null,null,null,null,null,null,null,null,0,{"$f":"IFERROR(VLOOKUP(البيانات!C366,'ارقام الغرف واسعارها'!$C$6:$D$105,2,FALSE),\"\")","v":""},"","انتهى الميعاد",0,{"$error":"#VALUE!"}]
[null,null,null,null,null,null,null,null,null,null,null,null,0,{"$f":"IFERROR(VLOOKUP(البيانات!C367,'ارقام الغرف واسعارها'!$C$6:$D$105,2,FALSE),\"\")","v":""},"","انتهى الميعاد",0,{"$error":"#VALUE!"}]
[null,null,null,null,null,null,null,null,null,null,null,null,0,{"$f":"IFERROR(VLOOKUP(البيانات!C368,'ارقام الغرف واسعارها'!$C$6:$D$105,2,FALSE),\"\")","v":""},"","انتهى الميعاد",0,{"$error":"#VALUE!"}]
[null,null,null,null,null,null,null,null,null,null,null,null,0,{"$f":"IFERROR(VLOOKUP(البيانات!C369,'ارقام الغرف واسعارها'!$C$6:$D$105,2,FALSE),\"\")","v":""},"","انتهى الميعاد",0,{"$error":"#VALUE!"}]
[null,null,null,null,null,null,null,null,null,null,null,null,0,{"$f":"IFERROR(VLOOKUP(البيانات!C370,'ارقام الغرف واسعارها'!$C$6:$D$105,2,FALSE),\"\")","v":""},"","انتهى الميعاد",0,{"$error":"#VALUE!"}]
[null,null,null,null,null,null,null,null,null,null,null,null,0,{"$f":"IFERROR(VLOOKUP(البيانات!C371,'ارقام الغرف واسعارها'!$C$6:$D$105,2,FALSE),\"\")","v":""},"","انتهى الميعاد",0,{"$error":"#VALUE!"}]
[null,null,null,null,null,null,null,null,null,null,null,null,0,{"$f":"IFERROR(VLOOKUP(البيانات!C372,'ارقام الغرف واسعارها'!$C$6:$D$105,2,FALSE),\"\")","v":""},"","انتهى الميعاد",0,{"$error":"#VALUE!"}]
[null,null,null,null,null,null,null,null,null,null,null,null,0,{"$f":"IFERROR(VLOOKUP(البيانات!C373,'ارقام الغرف واسعارها'!$C$6:$D$105,2,FALSE),\"\")","v":""},"","انتهى الميعاد",0,{"$error":"#VALUE!"}]
[null,null,null,null,null,null,null,null,null,null,null,null,0,{"$f":"IFERROR(VLOOKUP(البيانات!C374,'ارقام الغرف واسعارها'!$C$6:$D$105,2,FALSE),\"\")","v":""},"","انتهى الميعاد",0,{"$error":"#VALUE!"}]
[null,null,null,null,null,null,null,null,null,null,null,null,0,{"$f":"IFERROR(VLOOKUP(البيانات!C375,'ارقام الغرف واسعارها'!$C$6:$D$105,2,FALSE),\"\")","v":""},"","انتهى الميعاد",0,{"$error":"#VALUE!"}]
[null,null,null,null,null,null,null,null,null,null,null,null,0,{"$f":"IFERROR(VLOOKUP(البيانات!C376,'ارقام الغرف واسعارها'!$C$6:$D$105,2,FALSE),\"\")","v":""},"","انتهى الميعاد",0,{"$error":"#VALUE!"}]
[null,null,null,null,null,null,null,null,null,null,null,null,0,{"$f":"IFERROR(VLOOKUP(البيانات!C377,'ارقام الغرف واسعارها'!$C$6:$D$105,2,FALSE),\"\")","v":""},"","انتهى الميعاد",0,{"$error":"#VALUE!"}]
[null,null,null,null,null,null,null,null,null,null,null,null,0,{"$f":"IFERROR(VLOOKUP(البيانات!C378,'ارقام الغرف واسعارها'!$C$6:$D$105,2,FALSE),\"\")","v":""},"","انتهى الميعاد",0,{"$error":"#VALUE!"}]
[null,null,null,null,null,null,null,null,null,null,null,null,0,{"$f":"IFERROR(VLOOKUP(البيانات!C379,'ارقام الغرف واسعارها'!$C$6:$D$105,2,FALSE),\"\")","v":""},"","انتهى الميعاد",0,{"$error":"#VALUE!"}]
[null,null,null,null,null,null,null,null,null,null,null,null,0,{"$f":"IFERROR(VLOOKUP(البيانات!C380,'ارقام الغرف واسعارها'!$C$6:$D$105,2,FALSE),\"\")","v":""},"","انتهى الميعاد",0,{"$error":"#VALUE!"}]
[null,null,null,null,null,null,null,null,null,null,null,null,0,{"$f":"IFERROR(VLOOKUP(البيانات!C381,'ارقام الغرف واسعارها'!$C$6:$D$105,2,FALSE),\"\")","v":""},"","انتهى الميعاد",0,{"$error":"#VALUE!"}]
[null,null,null,null,null,null,null,null,null,null,null,null,0,{"$f":"IFERROR(VLOOKUP(البيانات!C382,'ارقام الغرف واسعارها'!$C$6:$D$105,2,FALSE),\"\")","v":""},"","انتهى الميعاد",0,{"$error":"#VALUE!"}]
[null,null,null,null,null,null,null,null,null,null,null,null,0,{"$f":"IFERROR(VLOOKUP(البيانات!C383,'ارقام الغرف واسعارها'!$C$6:$D$105,2,FALSE),\"\")","v":""},"","انتهى الميعاد",0,{"$error":"#VALUE!"}]
[null,null,null,null,null,null,null,null,null,null,null,null,0,{"$f":"IFERROR(VLOOKUP(البيانات!C384,'ارقام الغرف واسعارها'!$C$6:$D$105,2,FALSE),\"\")","v":""},"","انتهى الميعاد",0,{"$error":"#VALUE!"}]
[null,null,null,null,null,null,null,null,null,null,null,null,0,{"$f":"IFERROR(VLOOKUP(البيانات!C385,'ارقام الغرف واسعارها'!$C$6:$D$105,2,FALSE),\"\")","v":""},"","انتهى الميعاد",0,{"$error":"#VALUE!"}]
[null,null,null,null,null,null,null,null,null,null,null,null,0,{"$f":"IFERROR(VLOOKUP(البيانات!C386,'ارقام الغرف واسعارها'!$C$6:$D$105,2,FALSE),\"\")","v":""},"","انتهى الميعاد",0,{"$error":"#VALUE!"}]
[null,null,null,null,null,null,null,null,null,null,null,null,0,{"$f":"IFERROR(VLOOKUP(البيانات!C387,'ارقام الغرف واسعارها'!$C$6:$D$105,2,FALSE),\"\")","v":""},"","انتهى الميعاد",0,{"$error":"#VALUE!"}]
[null,null,null,null,null,null,null,null,null,null,null,null,0,{"$f":"IFERROR(VLOOKUP(البيانات!C388,'ارقام الغرف واسعارها'!$C$6:$D$105,2,FALSE),\"\")","v":""},"","انتهى الميعاد",0,{"$error":"#VALUE!"}]
[null,null,null,null,null,null,null,null,null,null,null,null,0,{"$f":"IFERROR(VLOOKUP(البيانات!C389,'ارقام الغرف واسعارها'!$C$6:$D$105,2,FALSE),\"\")","v":""},{"$f":"IFERROR(M389*N389,\"\")","v":""},"انتهى الميعاد",0,{"$error":"#VALUE!"}]
[null,null,null,null,null,null,null,null,null,null,null,null,{"$f":"E390-D390","v":0},{"$f":"IFERROR(VLOOKUP(البيانات!C390,'ارقام الغرف واسعارها'!$C$6:$D$105,2,FALSE),\"\")","v":""},"","انتهى الميعاد",0,{"$error":"#VALUE!"}]
[null,null,null,null,null,null,null,null,null,null,null,null,0,{"$f":"IFERROR(VLOOKUP(البيانات!C391,'ارقام الغرف واسعارها'!$C$6:$D$105,2,FALSE),\"\")","v":""},"",{"$f":"IF(M391<=0,\"انتهى الميعاد\",IF(M391=0,\"  اانتهى الميعاد اليوم\",IF(M391>0,\"لم ينتهى المبعاد\",\"\")))","v":"انتهى الميعاد"},{"$f":"K391*M391*$Q$2","v":0},{"$f":"O391+Q391","v":{"$error":"#VALUE!"}}]
[null,null,null,null,null,null,null,null,null,null,null,null,0,{"$f":"IFERROR(VLOOKUP(البيانات!C392,'ارقام الغرف واسعارها'!$C$6:$D$105,2,FALSE),\"\")","v":""},"","انتهى الميعاد",0,{"$error":"#VALUE!"}]
[null,null,null,null,null,null,null,null,null,null,null,null,0,{"$f":"IFERROR(VLOOKUP(البيانات!C393,'ارقام الغرف واسعارها'!$C$6:$D$105,2,FALSE),\"\")","v":""},"","انتهى الميعاد",0,{"$error":"#VALUE!"}]
[null,null,null,null,null,null,null,null,null,null,null,null,0,{"$f":"IFERROR(VLOOKUP(البيانات!C394,'ارقام الغرف واسعارها'!$C$6:$D$105,2,FALSE),\"\")","v":""},"","انتهى الميعاد",0,{"$error":"#VALUE!"}]
[null,null,null,null,null,null,null,null,null,null,null,null,0,{"$f":"IFERROR(VLOOKUP(البيانات!C395,'ارقام الغرف واسعارها'!$C$6:$D$105,2,FALSE),\"\")","v":""},"","انتهى الميعاد",0,{"$error":"#VALUE!"}]
[null,null,null,null,null,null,null,null,null,null,null,null,0,{"$f":"IFERROR(VLOOKUP(البيانات!C396,'ارقام الغرف واسعارها'!$C$6:$D$105,2,FALSE),\"\")","v":""},"","انتهى الميعاد",0,{"$error":"#VALUE!"}]
[null,null,null,null,null,null,null,null,null,null,null,null,0,{"$f":"IFERROR(VLOOKUP(البيانات!C397,'ارقام الغرف واسعارها'!$C$6:$D$105,2,FALSE),\"\")","v":""},"","انتهى الميعاد",0,{"$error":"#VALUE!"}]
[null,null,null,null,null,null,null,null,null,null,null,null,0,{"$f":"IFERROR(VLOOKUP(البيانات!C398,'ارقام الغرف واسعارها'!$C$6:$D$105,2,FALSE),\"\")","v":""},"","انتهى الميعاد",0,{"$error":"#VALUE!"}]
[null,null,null,null,null,null,null,null,null,null,null,null,0,{"$f":"IFERROR(VLOOKUP(البيانات!C399,'ارقام الغرف واسعارها'!$C$6:$D$105,2,FALSE),\"\")","v":""},"","انتهى الميعاد",0,{"$error":"#VALUE!"}]
[null,null,null,null,null,null,null,null,null,null,null,null,0,{"$f":"IFERROR(VLOOKUP(البيانات!C400,'ارقام الغرف واسعارها'!$C$6:$D$105,2,FALSE),\"\")","v":""},"","انتهى الميعاد",0,{"$error":"#VALUE!"}]
[null,null,null,null,null,null,null,null,null,null,null,null,0,{"$f":"IFERROR(VLOOKUP(البيانات!C401,'ارقام الغرف واسعارها'!$C$6:$D$105,2,FALSE),\"\")","v":""},"","انتهى الميعاد",0,{"$error":"#VALUE!"}]
[null,null,null,null,null,null,null,null,null,null,null,null,0,{"$f":"IFERROR(VLOOKUP(البيانات!C402,'ارقام الغرف واسعارها'!$C$6:$D$105,2,FALSE),\"\")","v":""},"","انتهى الميعاد",0,{"$error":"#VALUE!"}]
[null,null,null,null,null,null,null,null,null,null,null,null,0,{"$f":"IFERROR(VLOOKUP(البيانات!C403,'ارقام الغرف واسعارها'!$C$6:$D$105,2,FALSE),\"\")","v":""},"","انتهى الميعاد",0,{"$error":"#VALUE!"}]
[null,null,null,null,null,null,null,null,null,null,null,null,0,{"$f":"IFERROR(VLOOKUP(البيانات!C404,'ارقام الغرف واسعارها'!$C$6:$D$105,2,FALSE),\"\")","v":""},"","انتهى الميعاد",0,{"$error":"#VALUE!"}]
[null,null,null,null,null,null,null,null,null,null,null,null,0,{"$f":"IFERROR(VLOOKUP(البيانات!C405,'ارقام الغرف واسعارها'!$C$6:$D$105,2,FALSE),\"\")","v":""},"","انتهى الميعاد",0,{"$error":"#VALUE!"}]
[null,null,null,null,null,null,null,null,null,null,null,null,0,{"$f":"IFERROR(VLOOKUP(البيانات!C406,'ارقام الغرف واسعارها'!$C$6:$D$105,2,FALSE),\"\")","v":""},"","انتهى الميعاد",0,{"$error":"#VALUE!"}]
[null,null,null,null,null,null,null,null,null,null,null,null,0,{"$f":"IFERROR(VLOOKUP(البيانات!C407,'ارقام الغرف واسعارها'!$C$6:$D$105,2,FALSE),\"\")","v":""},"","انتهى الميعاد",0,{"$error":"#VALUE!"}]
[null,null,null,null,null,null,null,null,null,null,null,null,0,{"$f":"IFERROR(VLOOKUP(البيانات!C408,'ارقام الغرف واسعارها'!$C$6:$D$105,2,FALSE),\"\")","v":""},"","انتهى الميعاد",0,{"$error":"#VALUE!"}]
[null,null,null,null,null,null,null,null,null,null,null,null,0,{"$f":"IFERROR(VLOOKUP(البيانات!C409,'ارقام الغرف واسعارها'!$C$6:$D$105,2,FALSE),\"\")","v":""},"","انتهى الميعاد",0,{"$error":"#VALUE!"}]
[null,null,null,null,null,null,null,null,null,null,null,null,0,{"$f":"IFERROR(VLOOKUP(البيانات!C410,'ارقام الغرف واسعارها'!$C$6:$D$105,2,FALSE),\"\")","v":""},"","انتهى الميعاد",0,{"$error":"#VALUE!"}]
[null,null,null,null,null,null,null,null,null,null,null,null,0,{"$f":"IFERROR(VLOOKUP(البيانات!C411,'ارقام الغرف واسعارها'!$C$6:$D$105,2,FALSE),\"\")","v":""},"","انتهى الميعاد",0,{"$error":"#VALUE!"}]
[null,null,null,null,null,null,null,null,null,null,null,null,0,{"$f":"IFERROR(VLOOKUP(البيانات!C412,'ارقام الغرف واسعارها'!$C$6:$D$105,2,FALSE),\"\")","v":""},"","انتهى الميعاد",0,{"$error":"#VALUE!"}]
[null,null,null,null,null,null,null,null,null,null,null,null,0,{"$f":"IFERROR(VLOOKUP(البيانات!C413,'ارقام الغرف واسعارها'!$C$6:$D$105,2,FALSE),\"\")","v":""},"","انتهى الميعاد",0,{"$error":"#VALUE!"}]
[null,null,null,null,null,null,null,null,null,null,null,null,0,{"$f":"IFERROR(VLOOKUP(البيانات!C414,'ارقام الغرف واسعارها'!$C$6:$D$105,2,FALSE),\"\")","v":""},"","انتهى الميعاد",0,{"$error":"#VALUE!"}]
[null,null,null,null,null,null,null,null,null,null,null,null,0,{"$f":"IFERROR(VLOOKUP(البيانات!C415,'ارقام الغرف واسعارها'!$C$6:$D$105,2,FALSE),\"\")","v":""},"","انتهى الميعاد",0,{"$error":"#VALUE!"}]
[null,null,null,null,null,null,null,null,null,null,null,null,0,{"$f":"IFERROR(VLOOKUP(البيانات!C416,'ارقام الغرف واسعارها'!$C$6:$D$105,2,FALSE),\"\")","v":""},"","انتهى الميعاد",0,{"$error":"#VALUE!"}]
[null,null,null,null,null,null,null,null,null,null,null,null,0,{"$f":"IFERROR(VLOOKUP(البيانات!C417,'ارقام الغرف واسعارها'!$C$6:$D$105,2,FALSE),\"\")","v":""},"","انتهى الميعاد",0,{"$error":"#VALUE!"}]
[null,null,null,null,null,null,null,null,null,null,null,null,0,{"$f":"IFERROR(VLOOKUP(البيانات!C418,'ارقام الغرف واسعارها'!$C$6:$D$105,2,FALSE),\"\")","v":""},"","انتهى الميعاد",0,{"$error":"#VALUE!"}]
[null,null,null,null,null,null,null,null,null,null,null,null,0,{"$f":"IFERROR(VLOOKUP(البيانات!C419,'ارقام الغرف واسعارها'!$C$6:$D$105,2,FALSE),\"\")","v":""},"","انتهى الميعاد",0,{"$error":"#VALUE!"}]
[null,null,null,null,null,null,null,null,null,null,null,null,0,{"$f":"IFERROR(VLOOKUP(البيانات!C420,'ارقام الغرف واسعارها'!$C$6:$D$105,2,FALSE),\"\")","v":""},"","انتهى الميعاد",0,{"$error":"#VALUE!"}]
[null,null,null,null,null,null,null,null,null,null,null,null,0,{"$f":"IFERROR(VLOOKUP(البيانات!C421,'ارقام الغرف واسعارها'!$C$6:$D$105,2,FALSE),\"\")","v":""},"","انتهى الميعاد",0,{"$error":"#VALUE!"}]
[null,null,null,null,null,null,null,null,null,null,null,null,0,{"$f":"IFERROR(VLOOKUP(البيانات!C422,'ارقام الغرف واسعارها'!$C$6:$D$105,2,FALSE),\"\")","v":""},"","انتهى الميعاد",0,{"$error":"#VALUE!"}]
[null,null,null,null,null,null,null,null,null,null,null,null,0,{"$f":"IFERROR(VLOOKUP(البيانات!C423,'ارقام الغرف واسعارها'!$C$6:$D$105,2,FALSE),\"\")","v":""},"","انتهى الميعاد",0,{"$error":"#VALUE!"}]
[null,null,null,null,null,null,null,null,null,null,null,null,0,{"$f":"IFERROR(VLOOKUP(البيانات!C424,'ارقام الغرف واسعارها'!$C$6:$D$105,2,FALSE),\"\")","v":""},"","انتهى الميعاد",0,{"$error":"#VALUE!"}]
[null,null,null,null,null,null,null,null,null,null,null,null,0,{"$f":"IFERROR(VLOOKUP(البيانات!C425,'ارقام الغرف واسعارها'!$C$6:$D$105,2,FALSE),\"\")","v":""},"","انتهى الميعاد",0,{"$error":"#VALUE!"}]
[null,null,null,null,null,null,null,null,null,null,null,null,0,{"$f":"IFERROR(VLOOKUP(البيانات!C426,'ارقام الغرف واسعارها'!$C$6:$D$105,2,FALSE),\"\")","v":""},"","انتهى الميعاد",0,{"$error":"#VALUE!"}]
[null,null,null,null,null,null,null,null,null,null,null,null,0,{"$f":"IFERROR(VLOOKUP(البيانات!C427,'ارقام الغرف واسعارها'!$C$6:$D$105,2,FALSE),\"\")","v":""},"","انتهى الميعاد",0,{"$error":"#VALUE!"}]
[null,null,null,null,null,null,null,null,null,null,null,null,0,{"$f":"IFERROR(VLOOKUP(البيانات!C428,'ارقام الغرف واسعارها'!$C$6:$D$105,2,FALSE),\"\")","v":""},"","انتهى الميعاد",0,{"$error":"#VALUE!"}]
[null,null,null,null,null,null,null,null,null,null,null,null,0,{"$f":"IFERROR(VLOOKUP(البيانات!C429,'ارقام الغرف واسعارها'!$C$6:$D$105,2,FALSE),\"\")","v":""},"","انتهى الميعاد",0,{"$error":"#VALUE!"}]
[null,null,null,null,null,null,null,null,null,null,null,null,0,{"$f":"IFERROR(VLOOKUP(البيانات!C430,'ارقام الغرف واسعارها'!$C$6:$D$105,2,FALSE),\"\")","v":""},"","انتهى الميعاد",0,{"$error":"#VALUE!"}]
[null,null,null,null,null,null,null,null,null,null,null,null,0,{"$f":"IFERROR(VLOOKUP(البيانات!C431,'ارقام الغرف واسعارها'!$C$6:$D$105,2,FALSE),\"\")","v":""},"","انتهى الميعاد",0,{"$error":"#VALUE!"}]
[null,null,null,null,null,null,null,null,null,null,null,null,0,{"$f":"IFERROR(VLOOKUP(البيانات!C432,'ارقام الغرف واسعارها'!$C$6:$D$105,2,FALSE),\"\")","v":""},"","انتهى الميعاد",0,{"$error":"#VALUE!"}]
[null,null,null,null,null,null,null,null,null,null,null,null,0,{"$f":"IFERROR(VLOOKUP(البيانات!C433,'ارقام الغرف واسعارها'!$C$6:$D$105,2,FALSE),\"\")","v":""},"","انتهى الميعاد",0,{"$error":"#VALUE!"}]
[null,null,null,null,null,null,null,null,null,null,null,null,0,{"$f":"IFERROR(VLOOKUP(البيانات!C434,'ارقام الغرف واسعارها'!$C$6:$D$105,2,FALSE),\"\")","v":""},"","انتهى الميعاد",0,{"$error":"#VALUE!"}]
[null,null,null,null,null,null,null,null,null,null,null,null,0,{"$f":"IFERROR(VLOOKUP(البيانات!C435,'ارقام الغرف واسعارها'!$C$6:$D$105,2,FALSE),\"\")","v":""},"","انتهى الميعاد",0,{"$error":"#VALUE!"}]
[null,null,null,null,null,null,null,null,null,null,null,null,0,{"$f":"IFERROR(VLOOKUP(البيانات!C436,'ارقام الغرف واسعارها'!$C$6:$D$105,2,FALSE),\"\")","v":""},"","انتهى الميعاد",0,{"$error":"#VALUE!"}]
[null,null,null,null,null,null,null,null,null,null,null,null,0,{"$f":"IFERROR(VLOOKUP(البيانات!C437,'ارقام الغرف واسعارها'!$C$6:$D$105,2,FALSE),\"\")","v":""},"","انتهى الميعاد",0,{"$error":"#VALUE!"}]
[null,null,null,null,null,null,null,null,null,null,null,null,0,{"$f":"IFERROR(VLOOKUP(البيانات!C438,'ارقام الغرف واسعارها'!$C$6:$D$105,2,FALSE),\"\")","v":""},"","انتهى الميعاد",0,{"$error":"#VALUE!"}]
[null,null,null,null,null,null,null,null,null,null,null,null,0,{"$f":"IFERROR(VLOOKUP(البيانات!C439,'ارقام الغرف واسعارها'!$C$6:$D$105,2,FALSE),\"\")","v":""},"","انتهى الميعاد",0,{"$error":"#VALUE!"}]
[null,null,null,null,null,null,null,null,null,null,null,null,0,{"$f":"IFERROR(VLOOKUP(البيانات!C440,'ارقام الغرف واسعارها'!$C$6:$D$105,2,FALSE),\"\")","v":""},"","انتهى الميعاد",0,{"$error":"#VALUE!"}]
[null,null,null,null,null,null,null,null,null,null,null,null,0,{"$f":"IFERROR(VLOOKUP(البيانات!C441,'ارقام الغرف واسعارها'!$C$6:$D$105,2,FALSE),\"\")","v":""},"","انتهى الميعاد",0,{"$error":"#VALUE!"}]
[null,null,null,null,null,null,null,null,null,null,null,null,0,{"$f":"IFERROR(VLOOKUP(البيانات!C442,'ارقام الغرف واسعارها'!$C$6:$D$105,2,FALSE),\"\")","v":""},"","انتهى الميعاد",0,{"$error":"#VALUE!"}]
[null,null,null,null,null,null,null,null,null,null,null,null,0,{"$f":"IFERROR(VLOOKUP(البيانات!C443,'ارقام الغرف واسعارها'!$C$6:$D$105,2,FALSE),\"\")","v":""},"","انتهى الميعاد",0,{"$error":"#VALUE!"}]
[null,null,null,null,null,null,null,null,null,null,null,null,0,{"$f":"IFERROR(VLOOKUP(البيانات!C444,'ارقام الغرف واسعارها'!$C$6:$D$105,2,FALSE),\"\")","v":""},"","انتهى الميعاد",0,{"$error":"#VALUE!"}]
[null,null,null,null,null,null,null,null,null,null,null,null,0,{"$f":"IFERROR(VLOOKUP(البيانات!C445,'ارقام الغرف واسعارها'!$C$6:$D$105,2,FALSE),\"\")","v":""},"","انتهى الميعاد",0,{"$error":"#VALUE!"}]
[null,null,null,null,null,null,null,null,null,null,null,null,0,{"$f":"IFERROR(VLOOKUP(البيانات!C446,'ارقام الغرف واسعارها'!$C$6:$D$105,2,FALSE),\"\")","v":""},"","انتهى الميعاد",0,{"$error":"#VALUE!"}]
[null,null,null,null,null,null,null,null,null,null,null,null,0,{"$f":"IFERROR(VLOOKUP(البيانات!C447,'ارقام الغرف واسعارها'!$C$6:$D$105,2,FALSE),\"\")","v":""},"","انتهى الميعاد",0,{"$error":"#VALUE!"}]
[null,null,null,null,null,null,null,null,null,null,null,null,0,{"$f":"IFERROR(VLOOKUP(البيانات!C448,'ارقام الغرف واسعارها'!$C$6:$D$105,2,FALSE),\"\")","v":""},"","انتهى الميعاد",0,{"$error":"#VALUE!"}]
[null,null,null,null,null,null,null,null,null,null,null,null,0,{"$f":"IFERROR(VLOOKUP(البيانات!C449,'ارقام الغرف واسعارها'!$C$6:$D$105,2,FALSE),\"\")","v":""},"","انتهى الميعاد",0,{"$error":"#VALUE!"}]
[null,null,null,null,null,null,null,null,null,null,null,null,0,{"$f":"IFERROR(VLOOKUP(البيانات!C450,'ارقام الغرف واسعارها'!$C$6:$D$105,2,FALSE),\"\")","v":""},"","انتهى الميعاد",0,{"$error":"#VALUE!"}]
[null,null,null,null,null,null,null,null,null,null,null,null,0,{"$f":"IFERROR(VLOOKUP(البيانات!C451,'ارقام الغرف واسعارها'!$C$6:$D$105,2,FALSE),\"\")","v":""},"","انتهى الميعاد",0,{"$error":"#VALUE!"}]
[null,null,null,null,null,null,null,null,null,null,null,null,0,{"$f":"IFERROR(VLOOKUP(البيانات!C452,'ارقام الغرف واسعارها'!$C$6:$D$105,2,FALSE),\"\")","v":""},"","انتهى الميعاد",0,{"$error":"#VALUE!"}]
[null,null,null,null,null,null,null,null,null,null,null,null,0,{"$f":"IFERROR(VLOOKUP(البيانات!C453,'ارقام الغرف واسعارها'!$C$6:$D$105,2,FALSE),\"\")","v":""},{"$f":"IFERROR(M453*N453,\"\")","v":""},"انتهى الميعاد",0,{"$error":"#VALUE!"}]
[null,null,null,null,null,null,null,null,null,null,null,null,{"$f":"E454-D454","v":0},{"$f":"IFERROR(VLOOKUP(البيانات!C454,'ارقام الغرف واسعارها'!$C$6:$D$105,2,FALSE),\"\")","v":""},"","انتهى الميعاد",0,{"$error":"#VALUE!"}]
[null,null,null,null,null,null,null,null,null,null,null,null,0,{"$f":"IFERROR(VLOOKUP(البيانات!C455,'ارقام الغرف واسعارها'!$C$6:$D$105,2,FALSE),\"\")","v":""},"",{"$f":"IF(M455<=0,\"انتهى الميعاد\",IF(M455=0,\"  اانتهى الميعاد اليوم\",IF(M455>0,\"لم ينتهى المبعاد\",\"\")))","v":"انتهى الميعاد"},{"$f":"K455*M455*$Q$2","v":0},{"$f":"O455+Q455","v":{"$error":"#VALUE!"}}]
[null,null,null,null,null,null,null,null,null,null,null,null,0,{"$f":"IFERROR(VLOOKUP(البيانات!C456,'ارقام الغرف واسعارها'!$C$6:$D$105,2,FALSE),\"\")","v":""},"","انتهى الميعاد",0,{"$error":"#VALUE!"}]
[null,null,null,null,null,null,null,null,null,null,null,null,0,{"$f":"IFERROR(VLOOKUP(البيانات!C457,'ارقام الغرف واسعارها'!$C$6:$D$105,2,FALSE),\"\")","v":""},"","انتهى الميعاد",0,{"$error":"#VALUE!"}]
[null,null,null,null,null,null,null,null,null,null,null,null,0,{"$f":"IFERROR(VLOOKUP(البيانات!C458,'ارقام الغرف واسعارها'!$C$6:$D$105,2,FALSE),\"\")","v":""},"","انتهى الميعاد",0,{"$error":"#VALUE!"}]
[null,null,null,null,null,null,null,null,null,null,null,null,0,{"$f":"IFERROR(VLOOKUP(البيانات!C459,'ارقام الغرف واسعارها'!$C$6:$D$105,2,FALSE),\"\")","v":""},"","انتهى الميعاد",0,{"$error":"#VALUE!"}]
[null,null,null,null,null,null,null,null,null,null,null,null,0,{"$f":"IFERROR(VLOOKUP(البيانات!C460,'ارقام الغرف واسعارها'!$C$6:$D$105,2,FALSE),\"\")","v":""},"","انتهى الميعاد",0,{"$error":"#VALUE!"}]
[null,null,null,null,null,null,null,null,null,null,null,null,0,{"$f":"IFERROR(VLOOKUP(البيانات!C461,'ارقام الغرف واسعارها'!$C$6:$D$105,2,FALSE),\"\")","v":""},"","انتهى الميعاد",0,{"$error":"#VALUE!"}]
[null,null,null,null,null,null,null,null,null,null,null,null,0,{"$f":"IFERROR(VLOOKUP(البيانات!C462,'ارقام الغرف واسعارها'!$C$6:$D$105,2,FALSE),\"\")","v":""},"","انتهى الميعاد",0,{"$error":"#VALUE!"}]
[null,null,null,null,null,null,null,null,null,null,null,null,0,{"$f":"IFERROR(VLOOKUP(البيانات!C463,'ارقام الغرف واسعارها'!$C$6:$D$105,2,FALSE),\"\")","v":""},"","انتهى الميعاد",0,{"$error":"#VALUE!"}]
[null,null,null,null,null,null,null,null,null,null,null,null,0,{"$f":"IFERROR(VLOOKUP(البيانات!C464,'ارقام الغرف واسعارها'!$C$6:$D$105,2,FALSE),\"\")","v":""},"","انتهى الميعاد",0,{"$error":"#VALUE!"}]
[null,null,null,null,null,null,null,null,null,null,null,null,0,{"$f":"IFERROR(VLOOKUP(البيانات!C465,'ارقام الغرف واسعارها'!$C$6:$D$105,2,FALSE),\"\")","v":""},"","انتهى الميعاد",0,{"$error":"#VALUE!"}]
[null,null,null,null,null,null,null,null,null,null,null,null,0,{"$f":"IFERROR(VLOOKUP(البيانات!C466,'ارقام الغرف واسعارها'!$C$6:$D$105,2,FALSE),\"\")","v":""},"","انتهى الميعاد",0,{"$error":"#VALUE!"}]
[null,null,null,null,null,null,null,null,null,null,null,null,0,{"$f":"IFERROR(VLOOKUP(البيانات!C467,'ارقام الغرف واسعارها'!$C$6:$D$105,2,FALSE),\"\")","v":""},"","انتهى الميعاد",0,{"$error":"#VALUE!"}]
[null,null,null,null,null,null,null,null,null,null,null,null,0,{"$f":"IFERROR(VLOOKUP(البيانات!C468,'ارقام الغرف واسعارها'!$C$6:$D$105,2,FALSE),\"\")","v":""},"","انتهى الميعاد",0,{"$error":"#VALUE!"}]
[null,null,null,null,null,null,null,null,null,null,null,null,0,{"$f":"IFERROR(VLOOKUP(البيانات!C469,'ارقام الغرف واسعارها'!$C$6:$D$105,2,FALSE),\"\")","v":""},"","انتهى الميعاد",0,{"$error":"#VALUE!"}]
[null,null,null,null,null,null,null,null,null,null,null,null,0,{"$f":"IFERROR(VLOOKUP(البيانات!C470,'ارقام الغرف واسعارها'!$C$6:$D$105,2,FALSE),\"\")","v":""},"","انتهى الميعاد",0,{"$error":"#VALUE!"}]
[null,null,null,null,null,null,null,null,null,null,null,null,0,{"$f":"IFERROR(VLOOKUP(البيانات!C471,'ارقام الغرف واسعارها'!$C$6:$D$105,2,FALSE),\"\")","v":""},"","انتهى الميعاد",0,{"$error":"#VALUE!"}]
[null,null,null,null,null,null,null,null,null,null,null,null,0,{"$f":"IFERROR(VLOOKUP(البيانات!C472,'ارقام الغرف واسعارها'!$C$6:$D$105,2,FALSE),\"\")","v":""},"","انتهى الميعاد",0,{"$error":"#VALUE!"}]
[null,null,null,null,null,null,null,null,null,null,null,null,0,{"$f":"IFERROR(VLOOKUP(البيانات!C473,'ارقام الغرف واسعارها'!$C$6:$D$105,2,FALSE),\"\")","v":""},"","انتهى الميعاد",0,{"$error":"#VALUE!"}]
[null,null,null,null,null,null,null,null,null,null,null,null,0,{"$f":"IFERROR(VLOOKUP(البيانات!C474,'ارقام الغرف واسعارها'!$C$6:$D$105,2,FALSE),\"\")","v":""},"","انتهى الميعاد",0,{"$error":"#VALUE!"}]
[null,null,null,null,null,null,null,null,null,null,null,null,0,{"$f":"IFERROR(VLOOKUP(البيانات!C475,'ارقام الغرف واسعارها'!$C$6:$D$105,2,FALSE),\"\")","v":""},"","انتهى الميعاد",0,{"$error":"#VALUE!"}]
[null,null,null,null,null,null,null,null,null,null,null,null,0,{"$f":"IFERROR(VLOOKUP(البيانات!C476,'ارقام الغرف واسعارها'!$C$6:$D$105,2,FALSE),\"\")","v":""},"","انتهى الميعاد",0,{"$error":"#VALUE!"}]
[null,null,null,null,null,null,null,null,null,null,null,null,0,{"$f":"IFERROR(VLOOKUP(البيانات!C477,'ارقام الغرف واسعارها'!$C$6:$D$105,2,FALSE),\"\")","v":""},"","انتهى الميعاد",0,{"$error":"#VALUE!"}]
[null,null,null,null,null,null,null,null,null,null,null,null,0,{"$f":"IFERROR(VLOOKUP(البيانات!C478,'ارقام الغرف واسعارها'!$C$6:$D$105,2,FALSE),\"\")","v":""},"","انتهى الميعاد",0,{"$error":"#VALUE!"}]
[null,null,null,null,null,null,null,null,null,null,null,null,0,{"$f":"IFERROR(VLOOKUP(البيانات!C479,'ارقام الغرف واسعارها'!$C$6:$D$105,2,FALSE),\"\")","v":""},"","انتهى الميعاد",0,{"$error":"#VALUE!"}]
[null,null,null,null,null,null,null,null,null,null,null,null,0,{"$f":"IFERROR(VLOOKUP(البيانات!C480,'ارقام الغرف واسعارها'!$C$6:$D$105,2,FALSE),\"\")","v":""},"","انتهى الميعاد",0,{"$error":"#VALUE!"}]
[null,null,null,null,null,null,null,null,null,null,null,null,0,{"$f":"IFERROR(VLOOKUP(البيانات!C481,'ارقام الغرف واسعارها'!$C$6:$D$105,2,FALSE),\"\")","v":""},"","انتهى الميعاد",0,{"$error":"#VALUE!"}]
[null,null,null,null,null,null,null,null,null,null,null,null,0,{"$f":"IFERROR(VLOOKUP(البيانات!C482,'ارقام الغرف واسعارها'!$C$6:$D$105,2,FALSE),\"\")","v":""},"","انتهى الميعاد",0,{"$error":"#VALUE!"}]
[null,null,null,null,null,null,null,null,null,null,null,null,0,{"$f":"IFERROR(VLOOKUP(البيانات!C483,'ارقام الغرف واسعارها'!$C$6:$D$105,2,FALSE),\"\")","v":""},"","انتهى الميعاد",0,{"$error":"#VALUE!"}]
[null,null,null,null,null,null,null,null,null,null,null,null,0,{"$f":"IFERROR(VLOOKUP(البيانات!C484,'ارقام الغرف واسعارها'!$C$6:$D$105,2,FALSE),\"\")","v":""},"","انتهى الميعاد",0,{"$error":"#VALUE!"}]
[null,null,null,null,null,null,null,null,null,null,null,null,0,{"$f":"IFERROR(VLOOKUP(البيانات!C485,'ارقام الغرف واسعارها'!$C$6:$D$105,2,FALSE),\"\")","v":""},"","انتهى الميعاد",0,{"$error":"#VALUE!"}]
[null,null,null,null,null,null,null,null,null,null,null,null,0,{"$f":"IFERROR(VLOOKUP(البيانات!C486,'ارقام الغرف واسعارها'!$C$6:$D$105,2,FALSE),\"\")","v":""},"","انتهى الميعاد",0,{"$error":"#VALUE!"}]
[null,null,null,null,null,null,null,null,null,null,null,null,0,{"$f":"IFERROR(VLOOKUP(البيانات!C487,'ارقام الغرف واسعارها'!$C$6:$D$105,2,FALSE),\"\")","v":""},"","انتهى الميعاد",0,{"$error":"#VALUE!"}]
[null,null,null,null,null,null,null,null,null,null,null,null,0,{"$f":"IFERROR(VLOOKUP(البيانات!C488,'ارقام الغرف واسعارها'!$C$6:$D$105,2,FALSE),\"\")","v":""},"","انتهى الميعاد",0,{"$error":"#VALUE!"}]
[null,null,null,null,null,null,null,null,null,null,null,null,0,{"$f":"IFERROR(VLOOKUP(البيانات!C489,'ارقام الغرف واسعارها'!$C$6:$D$105,2,FALSE),\"\")","v":""},"","انتهى الميعاد",0,{"$error":"#VALUE!"}]
[null,null,null,null,null,null,null,null,null,null,null,null,0,{"$f":"IFERROR(VLOOKUP(البيانات!C490,'ارقام الغرف واسعارها'!$C$6:$D$105,2,FALSE),\"\")","v":""},"","انتهى الميعاد",0,{"$error":"#VALUE!"}]
[null,null,null,null,null,null,null,null,null,null,null,null,0,{"$f":"IFERROR(VLOOKUP(البيانات!C491,'ارقام الغرف واسعارها'!$C$6:$D$105,2,FALSE),\"\")","v":""},"","انتهى الميعاد",0,{"$error":"#VALUE!"}]
[null,null,null,null,null,null,null,null,null,null,null,null,0,{"$f":"IFERROR(VLOOKUP(البيانات!C492,'ارقام الغرف واسعارها'!$C$6:$D$105,2,FALSE),\"\")","v":""},"","انتهى الميعاد",0,{"$error":"#VALUE!"}]
[null,null,null,null,null,null,null,null,null,null,null,null,0,{"$f":"IFERROR(VLOOKUP(البيانات!C493,'ارقام الغرف واسعارها'!$C$6:$D$105,2,FALSE),\"\")","v":""},"","انتهى الميعاد",0,{"$error":"#VALUE!"}]
[null,null,null,null,null,null,null,null,null,null,null,null,0,{"$f":"IFERROR(VLOOKUP(البيانات!C494,'ارقام الغرف واسعارها'!$C$6:$D$105,2,FALSE),\"\")","v":""},"","انتهى الميعاد",0,{"$error":"#VALUE!"}]
[null,null,null,null,null,null,null,null,null,null,null,null,0,{"$f":"IFERROR(VLOOKUP(البيانات!C495,'ارقام الغرف واسعارها'!$C$6:$D$105,2,FALSE),\"\")","v":""},"","انتهى الميعاد",0,{"$error":"#VALUE!"}]
[null,null,null,null,null,null,null,null,null,null,null,null,0,{"$f":"IFERROR(VLOOKUP(البيانات!C496,'ارقام الغرف واسعارها'!$C$6:$D$105,2,FALSE),\"\")","v":""},"","انتهى الميعاد",0,{"$error":"#VALUE!"}]
[null,null,null,null,null,null,null,null,null,null,null,null,0,{"$f":"IFERROR(VLOOKUP(البيانات!C497,'ارقام الغرف واسعارها'!$C$6:$D$105,2,FALSE),\"\")","v":""},"","انتهى الميعاد",0,{"$error":"#VALUE!"}]
[null,null,null,null,null,null,null,null,null,null,null,null,0,{"$f":"IFERROR(VLOOKUP(البيانات!C498,'ارقام الغرف واسعارها'!$C$6:$D$105,2,FALSE),\"\")","v":""},"","انتهى الميعاد",0,{"$error":"#VALUE!"}]
[null,null,null,null,null,null,null,null,null,null,null,null,0,{"$f":"IFERROR(VLOOKUP(البيانات!C499,'ارقام الغرف واسعارها'!$C$6:$D$105,2,FALSE),\"\")","v":""},"","انتهى الميعاد",0,{"$error":"#VALUE!"}]
[null,null,null,null,null,null,null,null,null,null,null,null,0,{"$f":"IFERROR(VLOOKUP(البيانات!C500,'ارقام الغرف واسعارها'!$C$6:$D$105,2,FALSE),\"\")","v":""},"","انتهى الميعاد",0,{"$error":"#VALUE!"}]
[null,null,null,null,null,null,null,null,null,null,null,null,0,{"$f":"IFERROR(VLOOKUP(البيانات!C501,'ارقام الغرف واسعارها'!$C$6:$D$105,2,FALSE),\"\")","v":""},"","انتهى الميعاد",0,{"$error":"#VALUE!"}]
[null,null,null,null,null,null,null,null,null,null,null,null,0,{"$f":"IFERROR(VLOOKUP(البيانات!C502,'ارقام الغرف واسعارها'!$C$6:$D$105,2,FALSE),\"\")","v":""},"","انتهى الميعاد",0,{"$error":"#VALUE!"}]
[null,null,null,null,null,null,null,null,null,null,null,null,0,{"$f":"IFERROR(VLOOKUP(البيانات!C503,'ارقام الغرف واسعارها'!$C$6:$D$105,2,FALSE),\"\")","v":""},"","انتهى الميعاد",0,{"$error":"#VALUE!"}]
[null,null,null,null,null,null,null,null,null,null,null,null,0,{"$f":"IFERROR(VLOOKUP(البيانات!C504,'ارقام الغرف واسعارها'!$C$6:$D$105,2,FALSE),\"\")","v":""},"","انتهى الميعاد",0,{"$error":"#VALUE!"}]
[null,null,null,null,null,null,null,null,null,null,null,null,0,{"$f":"IFERROR(VLOOKUP(البيانات!C505,'ارقام الغرف واسعارها'!$C$6:$D$105,2,FALSE),\"\")","v":""},"","انتهى الميعاد",0,{"$error":"#VALUE!"}]
[null,null,null,null,null,null,null,null,null,null,null,null,0,{"$f":"IFERROR(VLOOKUP(البيانات!C506,'ارقام الغرف واسعارها'!$C$6:$D$105,2,FALSE),\"\")","v":""},"","انتهى الميعاد",0,{"$error":"#VALUE!"}]
[null,null,null,null,null,null,null,null,null,null,null,null,0,{"$f":"IFERROR(VLOOKUP(البيانات!C507,'ارقام الغرف واسعارها'!$C$6:$D$105,2,FALSE),\"\")","v":""},"","انتهى الميعاد",0,{"$error":"#VALUE!"}]
[null,null,null,null,null,null,null,null,null,null,null,null,0,{"$f":"IFERROR(VLOOKUP(البيانات!C508,'ارقام الغرف واسعارها'!$C$6:$D$105,2,FALSE),\"\")","v":""},"","انتهى الميعاد",0,{"$error":"#VALUE!"}]
[null,null,null,null,null,null,null,null,null,null,null,null,0,{"$f":"IFERROR(VLOOKUP(البيانات!C509,'ارقام الغرف واسعارها'!$C$6:$D$105,2,FALSE),\"\")","v":""},"","انتهى الميعاد",0,{"$error":"#VALUE!"}]
[null,null,null,null,null,null,null,null,null,null,null,null,0,{"$f":"IFERROR(VLOOKUP(البيانات!C510,'ارقام الغرف واسعارها'!$C$6:$D$105,2,FALSE),\"\")","v":""},"","انتهى الميعاد",0,{"$error":"#VALUE!"}]
[null,null,null,null,null,null,null,null,null,null,null,null,0,{"$f":"IFERROR(VLOOKUP(البيانات!C511,'ارقام الغرف واسعارها'!$C$6:$D$105,2,FALSE),\"\")","v":""},"","انتهى الميعاد",0,{"$error":"#VALUE!"}]
[null,null,null,null,null,null,null,null,null,null,null,null,0,{"$f":"IFERROR(VLOOKUP(البيانات!C512,'ارقام الغرف واسعارها'!$C$6:$D$105,2,FALSE),\"\")","v":""},"","انتهى الميعاد",0,{"$error":"#VALUE!"}]
[null,null,null,null,null,null,null,null,null,null,null,null,0,{"$f":"IFERROR(VLOOKUP(البيانات!C513,'ارقام الغرف واسعارها'!$C$6:$D$105,2,FALSE),\"\")","v":""},"","انتهى الميعاد",0,{"$error":"#VALUE!"}]
[null,null,null,null,null,null,null,null,null,null,null,null,0,{"$f":"IFERROR(VLOOKUP(البيانات!C514,'ارقام الغرف واسعارها'!$C$6:$D$105,2,FALSE),\"\")","v":""},"","انتهى الميعاد",0,{"$error":"#VALUE!"}]
[null,null,null,null,null,null,null,null,null,null,null,null,0,{"$f":"IFERROR(VLOOKUP(البيانات!C515,'ارقام الغرف واسعارها'!$C$6:$D$105,2,FALSE),\"\")","v":""},"","انتهى الميعاد",0,{"$error":"#VALUE!"}]
[null,null,null,null,null,null,null,null,null,null,null,null,0,{"$f":"IFERROR(VLOOKUP(البيانات!C516,'ارقام الغرف واسعارها'!$C$6:$D$105,2,FALSE),\"\")","v":""},"","انتهى الميعاد",0,{"$error":"#VALUE!"}]
[null,null,null,null,null,null,null,null,null,null,null,null,0,{"$f":"IFERROR(VLOOKUP(البيانات!C517,'ارقام الغرف واسعارها'!$C$6:$D$105,2,FALSE),\"\")","v":""},{"$f":"IFERROR(M517*N517,\"\")","v":""},"انتهى الميعاد",0,{"$error":"#VALUE!"}]
[null,null,null,null,null,null,null,null,null,null,null,null,{"$f":"E518-D518","v":0},{"$f":"IFERROR(VLOOKUP(البيانات!C518,'ارقام الغرف واسعارها'!$C$6:$D$105,2,FALSE),\"\")","v":""},"","انتهى الميعاد",0,{"$error":"#VALUE!"}]
[null,null,null,null,null,null,null,null,null,null,null,null,0,{"$f":"IFERROR(VLOOKUP(البيانات!C519,'ارقام الغرف واسعارها'!$C$6:$D$105,2,FALSE),\"\")","v":""},"",{"$f":"IF(M519<=0,\"انتهى الميعاد\",IF(M519=0,\"  اانتهى الميعاد اليوم\",IF(M519>0,\"لم ينتهى المبعاد\",\"\")))","v":"انتهى الميعاد"},{"$f":"K519*M519*$Q$2","v":0},{"$f":"O519+Q519","v":{"$error":"#VALUE!"}}]
[null,null,null,null,null,null,null,null,null,null,null,null,0,{"$f":"IFERROR(VLOOKUP(البيانات!C520,'ارقام الغرف واسعارها'!$C$6:$D$105,2,FALSE),\"\")","v":""},"","انتهى الميعاد",0,{"$error":"#VALUE!"}]
[null,null,null,null,null,null,null,null,null,null,null,null,0,{"$f":"IFERROR(VLOOKUP(البيانات!C521,'ارقام الغرف واسعارها'!$C$6:$D$105,2,FALSE),\"\")","v":""},"","انتهى الميعاد",0,{"$error":"#VALUE!"}]
[null,null,null,null,null,null,null,null,null,null,null,null,0,{"$f":"IFERROR(VLOOKUP(البيانات!C522,'ارقام الغرف واسعارها'!$C$6:$D$105,2,FALSE),\"\")","v":""},"","انتهى الميعاد",0,{"$error":"#VALUE!"}]
[null,null,null,null,null,null,null,null,null,null,null,null,0,{"$f":"IFERROR(VLOOKUP(البيانات!C523,'ارقام الغرف واسعارها'!$C$6:$D$105,2,FALSE),\"\")","v":""},"","انتهى الميعاد",0,{"$error":"#VALUE!"}]
[null,null,null,null,null,null,null,null,null,null,null,null,0,{"$f":"IFERROR(VLOOKUP(البيانات!C524,'ارقام الغرف واسعارها'!$C$6:$D$105,2,FALSE),\"\")","v":""},"","انتهى الميعاد",0,{"$error":"#VALUE!"}]
[null,null,null,null,null,null,null,null,null,null,null,null,0,{"$f":"IFERROR(VLOOKUP(البيانات!C525,'ارقام الغرف واسعارها'!$C$6:$D$105,2,FALSE),\"\")","v":""},"","انتهى الميعاد",0,{"$error":"#VALUE!"}]
[null,null,null,null,null,null,null,null,null,null,null,null,0,{"$f":"IFERROR(VLOOKUP(البيانات!C526,'ارقام الغرف واسعارها'!$C$6:$D$105,2,FALSE),\"\")","v":""},"","انتهى الميعاد",0,{"$error":"#VALUE!"}]
[null,null,null,null,null,null,null,null,null,null,null,null,0,{"$f":"IFERROR(VLOOKUP(البيانات!C527,'ارقام الغرف واسعارها'!$C$6:$D$105,2,FALSE),\"\")","v":""},"","انتهى الميعاد",0,{"$error":"#VALUE!"}]
[null,null,null,null,null,null,null,null,null,null,null,null,0,{"$f":"IFERROR(VLOOKUP(البيانات!C528,'ارقام الغرف واسعارها'!$C$6:$D$105,2,FALSE),\"\")","v":""},"","انتهى الميعاد",0,{"$error":"#VALUE!"}]
[null,null,null,null,null,null,null,null,null,null,null,null,0,{"$f":"IFERROR(VLOOKUP(البيانات!C529,'ارقام الغرف واسعارها'!$C$6:$D$105,2,FALSE),\"\")","v":""},"","انتهى الميعاد",0,{"$error":"#VALUE!"}]
[null,null,null,null,null,null,null,null,null,null,null,null,0,{"$f":"IFERROR(VLOOKUP(البيانات!C530,'ارقام الغرف واسعارها'!$C$6:$D$105,2,FALSE),\"\")","v":""},"","انتهى الميعاد",0,{"$error":"#VALUE!"}]
[null,null,null,null,null,null,null,null,null,null,null,null,0,{"$f":"IFERROR(VLOOKUP(البيانات!C531,'ارقام الغرف واسعارها'!$C$6:$D$105,2,FALSE),\"\")","v":""},"","انتهى الميعاد",0,{"$error":"#VALUE!"}]
[null,null,null,null,null,null,null,null,null,null,null,null,0,{"$f":"IFERROR(VLOOKUP(البيانات!C532,'ارقام الغرف واسعارها'!$C$6:$D$105,2,FALSE),\"\")","v":""},"","انتهى الميعاد",0,{"$error":"#VALUE!"}]
[null,null,null,null,null,null,null,null,null,null,null,null,0,{"$f":"IFERROR(VLOOKUP(البيانات!C533,'ارقام الغرف واسعارها'!$C$6:$D$105,2,FALSE),\"\")","v":""},"","انتهى الميعاد",0,{"$error":"#VALUE!"}]
[null,null,null,null,null,null,null,null,null,null,null,null,0,{"$f":"IFERROR(VLOOKUP(البيانات!C534,'ارقام الغرف واسعارها'!$C$6:$D$105,2,FALSE),\"\")","v":""},"","انتهى الميعاد",0,{"$error":"#VALUE!"}]
[null,null,null,null,null,null,null,null,null,null,null,null,0,{"$f":"IFERROR(VLOOKUP(البيانات!C535,'ارقام الغرف واسعارها'!$C$6:$D$105,2,FALSE),\"\")","v":""},"","انتهى الميعاد",0,{"$error":"#VALUE!"}]
[null,null,null,null,null,null,null,null,null,null,null,null,0,{"$f":"IFERROR(VLOOKUP(البيانات!C536,'ارقام الغرف واسعارها'!$C$6:$D$105,2,FALSE),\"\")","v":""},"","انتهى الميعاد",0,{"$error":"#VALUE!"}]
[null,null,null,null,null,null,null,null,null,null,null,null,0,{"$f":"IFERROR(VLOOKUP(البيانات!C537,'ارقام الغرف واسعارها'!$C$6:$D$105,2,FALSE),\"\")","v":""},"","انتهى الميعاد",0,{"$error":"#VALUE!"}]
[null,null,null,null,null,null,null,null,null,null,null,null,0,{"$f":"IFERROR(VLOOKUP(البيانات!C538,'ارقام الغرف واسعارها'!$C$6:$D$105,2,FALSE),\"\")","v":""},"","انتهى الميعاد",0,{"$error":"#VALUE!"}]
[null,null,null,null,null,null,null,null,null,null,null,null,0,{"$f":"IFERROR(VLOOKUP(البيانات!C539,'ارقام الغرف واسعارها'!$C$6:$D$105,2,FALSE),\"\")","v":""},"","انتهى الميعاد",0,{"$error":"#VALUE!"}]
[null,null,null,null,null,null,null,null,null,null,null,null,0,{"$f":"IFERROR(VLOOKUP(البيانات!C540,'ارقام الغرف واسعارها'!$C$6:$D$105,2,FALSE),\"\")","v":""},"","انتهى الميعاد",0,{"$error":"#VALUE!"}]
[null,null,null,null,null,null,null,null,null,null,null,null,0,{"$f":"IFERROR(VLOOKUP(البيانات!C541,'ارقام الغرف واسعارها'!$C$6:$D$105,2,FALSE),\"\")","v":""},"","انتهى الميعاد",0,{"$error":"#VALUE!"}]
[null,null,null,null,null,null,null,null,null,null,null,null,0,{"$f":"IFERROR(VLOOKUP(البيانات!C542,'ارقام الغرف واسعارها'!$C$6:$D$105,2,FALSE),\"\")","v":""},"","انتهى الميعاد",0,{"$error":"#VALUE!"}]
[null,null,null,null,null,null,null,null,null,null,null,null,0,{"$f":"IFERROR(VLOOKUP(البيانات!C543,'ارقام الغرف واسعارها'!$C$6:$D$105,2,FALSE),\"\")","v":""},"","انتهى الميعاد",0,{"$error":"#VALUE!"}]
[null,null,null,null,null,null,null,null,null,null,null,null,0,{"$f":"IFERROR(VLOOKUP(البيانات!C544,'ارقام الغرف واسعارها'!$C$6:$D$105,2,FALSE),\"\")","v":""},"","انتهى الميعاد",0,{"$error":"#VALUE!"}]
[null,null,null,null,null,null,null,null,null,null,null,null,0,{"$f":"IFERROR(VLOOKUP(البيانات!C545,'ارقام الغرف واسعارها'!$C$6:$D$105,2,FALSE),\"\")","v":""},"","انتهى الميعاد",0,{"$error":"#VALUE!"}]
[null,null,null,null,null,null,null,null,null,null,null,null,0,{"$f":"IFERROR(VLOOKUP(البيانات!C546,'ارقام الغرف واسعارها'!$C$6:$D$105,2,FALSE),\"\")","v":""},"","انتهى الميعاد",0,{"$error":"#VALUE!"}]
[null,null,null,null,null,null,null,null,null,null,null,null,0,{"$f":"IFERROR(VLOOKUP(البيانات!C547,'ارقام الغرف واسعارها'!$C$6:$D$105,2,FALSE),\"\")","v":""},"","انتهى الميعاد",0,{"$error":"#VALUE!"}]
[null,null,null,null,null,null,null,null,null,null,null,null,0,{"$f":"IFERROR(VLOOKUP(البيانات!C548,'ارقام الغرف واسعارها'!$C$6:$D$105,2,FALSE),\"\")","v":""},"","انتهى الميعاد",0,{"$error":"#VALUE!"}]
[null,null,null,null,null,null,null,null,null,null,null,null,0,{"$f":"IFERROR(VLOOKUP(البيانات!C549,'ارقام الغرف واسعارها'!$C$6:$D$105,2,FALSE),\"\")","v":""},"","انتهى الميعاد",0,{"$error":"#VALUE!"}]
[null,null,null,null,null,null,null,null,null,null,null,null,0,{"$f":"IFERROR(VLOOKUP(البيانات!C550,'ارقام الغرف واسعارها'!$C$6:$D$105,2,FALSE),\"\")","v":""},"","انتهى الميعاد",0,{"$error":"#VALUE!"}]
[null,null,null,null,null,null,null,null,null,null,null,null,0,{"$f":"IFERROR(VLOOKUP(البيانات!C551,'ارقام الغرف واسعارها'!$C$6:$D$105,2,FALSE),\"\")","v":""},"","انتهى الميعاد",0,{"$error":"#VALUE!"}]
[null,null,null,null,null,null,null,null,null,null,null,null,0,{"$f":"IFERROR(VLOOKUP(البيانات!C552,'ارقام الغرف واسعارها'!$C$6:$D$105,2,FALSE),\"\")","v":""},"","انتهى الميعاد",0,{"$error":"#VALUE!"}]
[null,null,null,null,null,null,null,null,null,null,null,null,0,{"$f":"IFERROR(VLOOKUP(البيانات!C553,'ارقام الغرف واسعارها'!$C$6:$D$105,2,FALSE),\"\")","v":""},"","انتهى الميعاد",0,{"$error":"#VALUE!"}]
[null,null,null,null,null,null,null,null,null,null,null,null,0,{"$f":"IFERROR(VLOOKUP(البيانات!C554,'ارقام الغرف واسعارها'!$C$6:$D$105,2,FALSE),\"\")","v":""},"","انتهى الميعاد",0,{"$error":"#VALUE!"}]
[null,null,null,null,null,null,null,null,null,null,null,null,0,{"$f":"IFERROR(VLOOKUP(البيانات!C555,'ارقام الغرف واسعارها'!$C$6:$D$105,2,FALSE),\"\")","v":""},"","انتهى الميعاد",0,{"$error":"#VALUE!"}]
[null,null,null,null,null,null,null,null,null,null,null,null,0,{"$f":"IFERROR(VLOOKUP(البيانات!C556,'ارقام الغرف واسعارها'!$C$6:$D$105,2,FALSE),\"\")","v":""},"","انتهى الميعاد",0,{"$error":"#VALUE!"}]
[null,null,null,null,null,null,null,null,null,null,null,null,0,{"$f":"IFERROR(VLOOKUP(البيانات!C557,'ارقام الغرف واسعارها'!$C$6:$D$105,2,FALSE),\"\")","v":""},"","انتهى الميعاد",0,{"$error":"#VALUE!"}]
[null,null,null,null,null,null,null,null,null,null,null,null,0,{"$f":"IFERROR(VLOOKUP(البيانات!C558,'ارقام الغرف واسعارها'!$C$6:$D$105,2,FALSE),\"\")","v":""},"","انتهى الميعاد",0,{"$error":"#VALUE!"}]
[null,null,null,null,null,null,null,null,null,null,null,null,0,{"$f":"IFERROR(VLOOKUP(البيانات!C559,'ارقام الغرف واسعارها'!$C$6:$D$105,2,FALSE),\"\")","v":""},"","انتهى الميعاد",0,{"$error":"#VALUE!"}]
[null,null,null,null,null,null,null,null,null,null,null,null,0,{"$f":"IFERROR(VLOOKUP(البيانات!C560,'ارقام الغرف واسعارها'!$C$6:$D$105,2,FALSE),\"\")","v":""},"","انتهى الميعاد",0,{"$error":"#VALUE!"}]
[null,null,null,null,null,null,null,null,null,null,null,null,0,{"$f":"IFERROR(VLOOKUP(البيانات!C561,'ارقام الغرف واسعارها'!$C$6:$D$105,2,FALSE),\"\")","v":""},"","انتهى الميعاد",0,{"$error":"#VALUE!"}]
[null,null,null,null,null,null,null,null,null,null,null,null,0,{"$f":"IFERROR(VLOOKUP(البيانات!C562,'ارقام الغرف واسعارها'!$C$6:$D$105,2,FALSE),\"\")","v":""},"","انتهى الميعاد",0,{"$error":"#VALUE!"}]
[null,null,null,null,null,null,null,null,null,null,null,null,0,{"$f":"IFERROR(VLOOKUP(البيانات!C563,'ارقام الغرف واسعارها'!$C$6:$D$105,2,FALSE),\"\")","v":""},"","انتهى الميعاد",0,{"$error":"#VALUE!"}]
[null,null,null,null,null,null,null,null,null,null,null,null,0,{"$f":"IFERROR(VLOOKUP(البيانات!C564,'ارقام الغرف واسعارها'!$C$6:$D$105,2,FALSE),\"\")","v":""},"","انتهى الميعاد",0,{"$error":"#VALUE!"}]
[null,null,null,null,null,null,null,null,null,null,null,null,0,{"$f":"IFERROR(VLOOKUP(البيانات!C565,'ارقام الغرف واسعارها'!$C$6:$D$105,2,FALSE),\"\")","v":""},"","انتهى الميعاد",0,{"$error":"#VALUE!"}]
[null,null,null,null,null,null,null,null,null,null,null,null,0,{"$f":"IFERROR(VLOOKUP(البيانات!C566,'ارقام الغرف واسعارها'!$C$6:$D$105,2,FALSE),\"\")","v":""},"","انتهى الميعاد",0,{"$error":"#VALUE!"}]
[null,null,null,null,null,null,null,null,null,null,null,null,0,{"$f":"IFERROR(VLOOKUP(البيانات!C567,'ارقام الغرف واسعارها'!$C$6:$D$105,2,FALSE),\"\")","v":""},"","انتهى الميعاد",0,{"$error":"#VALUE!"}]
[null,null,null,null,null,null,null,null,null,null,null,null,0,{"$f":"IFERROR(VLOOKUP(البيانات!C568,'ارقام الغرف واسعارها'!$C$6:$D$105,2,FALSE),\"\")","v":""},"","انتهى الميعاد",0,{"$error":"#VALUE!"}]
[null,null,null,null,null,null,null,null,null,null,null,null,0,{"$f":"IFERROR(VLOOKUP(البيانات!C569,'ارقام الغرف واسعارها'!$C$6:$D$105,2,FALSE),\"\")","v":""},"","انتهى الميعاد",0,{"$error":"#VALUE!"}]
[null,null,null,null,null,null,null,null,null,null,null,null,0,{"$f":"IFERROR(VLOOKUP(البيانات!C570,'ارقام الغرف واسعارها'!$C$6:$D$105,2,FALSE),\"\")","v":""},"","انتهى الميعاد",0,{"$error":"#VALUE!"}]
[null,null,null,null,null,null,null,null,null,null,null,null,0,{"$f":"IFERROR(VLOOKUP(البيانات!C571,'ارقام الغرف واسعارها'!$C$6:$D$105,2,FALSE),\"\")","v":""},"","انتهى الميعاد",0,{"$error":"#VALUE!"}]
[null,null,null,null,null,null,null,null,null,null,null,null,0,{"$f":"IFERROR(VLOOKUP(البيانات!C572,'ارقام الغرف واسعارها'!$C$6:$D$105,2,FALSE),\"\")","v":""},"","انتهى الميعاد",0,{"$error":"#VALUE!"}]
[null,null,null,null,null,null,null,null,null,null,null,null,0,{"$f":"IFERROR(VLOOKUP(البيانات!C573,'ارقام الغرف واسعارها'!$C$6:$D$105,2,FALSE),\"\")","v":""},"","انتهى الميعاد",0,{"$error":"#VALUE!"}]
[null,null,null,null,null,null,null,null,null,null,null,null,0,{"$f":"IFERROR(VLOOKUP(البيانات!C574,'ارقام الغرف واسعارها'!$C$6:$D$105,2,FALSE),\"\")","v":""},"","انتهى الميعاد",0,{"$error":"#VALUE!"}]
[null,null,null,null,null,null,null,null,null,null,null,null,0,{"$f":"IFERROR(VLOOKUP(البيانات!C575,'ارقام الغرف واسعارها'!$C$6:$D$105,2,FALSE),\"\")","v":""},"","انتهى الميعاد",0,{"$error":"#VALUE!"}]
[null,null,null,null,null,null,null,null,null,null,null,null,0,{"$f":"IFERROR(VLOOKUP(البيانات!C576,'ارقام الغرف واسعارها'!$C$6:$D$105,2,FALSE),\"\")","v":""},"","انتهى الميعاد",0,{"$error":"#VALUE!"}]
[null,null,null,null,null,null,null,null,null,null,null,null,0,{"$f":"IFERROR(VLOOKUP(البيانات!C577,'ارقام الغرف واسعارها'!$C$6:$D$105,2,FALSE),\"\")","v":""},"","انتهى الميعاد",0,{"$error":"#VALUE!"}]
[null,null,null,null,null,null,null,null,null,null,null,null,0,{"$f":"IFERROR(VLOOKUP(البيانات!C578,'ارقام الغرف واسعارها'!$C$6:$D$105,2,FALSE),\"\")","v":""},"","انتهى الميعاد",0,{"$error":"#VALUE!"}]
[null,null,null,null,null,null,null,null,null,null,null,null,0,{"$f":"IFERROR(VLOOKUP(البيانات!C579,'ارقام الغرف واسعارها'!$C$6:$D$105,2,FALSE),\"\")","v":""},"","انتهى الميعاد",0,{"$error":"#VALUE!"}]
[null,null,null,null,null,null,null,null,null,null,null,null,0,{"$f":"IFERROR(VLOOKUP(البيانات!C580,'ارقام الغرف واسعارها'!$C$6:$D$105,2,FALSE),\"\")","v":""},"","انتهى الميعاد",0,{"$error":"#VALUE!"}]
[null,null,null,null,null,null,null,null,null,null,null,null,0,{"$f":"IFERROR(VLOOKUP(البيانات!C581,'ارقام الغرف واسعارها'!$C$6:$D$105,2,FALSE),\"\")","v":""},{"$f":"IFERROR(M581*N581,\"\")","v":""},"انتهى الميعاد",0,{"$error":"#VALUE!"}]
[null,null,null,null,null,null,null,null,null,null,null,null,{"$f":"E582-D582","v":0},{"$f":"IFERROR(VLOOKUP(البيانات!C582,'ارقام الغرف واسعارها'!$C$6:$D$105,2,FALSE),\"\")","v":""},"","انتهى الميعاد",0,{"$error":"#VALUE!"}]
[null,null,null,null,null,null,null,null,null,null,null,null,0,{"$f":"IFERROR(VLOOKUP(البيانات!C583,'ارقام الغرف واسعارها'!$C$6:$D$105,2,FALSE),\"\")","v":""},"",{"$f":"IF(M583<=0,\"انتهى الميعاد\",IF(M583=0,\"  اانتهى الميعاد اليوم\",IF(M583>0,\"لم ينتهى المبعاد\",\"\")))","v":"انتهى الميعاد"},{"$f":"K583*M583*$Q$2","v":0},{"$f":"O583+Q583","v":{"$error":"#VALUE!"}}]
[null,null,null,null,null,null,null,null,null,null,null,null,0,{"$f":"IFERROR(VLOOKUP(البيانات!C584,'ارقام الغرف واسعارها'!$C$6:$D$105,2,FALSE),\"\")","v":""},"","انتهى الميعاد",0,{"$error":"#VALUE!"}]
[null,null,null,null,null,null,null,null,null,null,null,null,0,{"$f":"IFERROR(VLOOKUP(البيانات!C585,'ارقام الغرف واسعارها'!$C$6:$D$105,2,FALSE),\"\")","v":""},"","انتهى الميعاد",0,{"$error":"#VALUE!"}]
[null,null,null,null,null,null,null,null,null,null,null,null,0,{"$f":"IFERROR(VLOOKUP(البيانات!C586,'ارقام الغرف واسعارها'!$C$6:$D$105,2,FALSE),\"\")","v":""},"","انتهى الميعاد",0,{"$error":"#VALUE!"}]
[null,null,null,null,null,null,null,null,null,null,null,null,0,{"$f":"IFERROR(VLOOKUP(البيانات!C587,'ارقام الغرف واسعارها'!$C$6:$D$105,2,FALSE),\"\")","v":""},"","انتهى الميعاد",0,{"$error":"#VALUE!"}]
[null,null,null,null,null,null,null,null,null,null,null,null,0,{"$f":"IFERROR(VLOOKUP(البيانات!C588,'ارقام الغرف واسعارها'!$C$6:$D$105,2,FALSE),\"\")","v":""},"","انتهى الميعاد",0,{"$error":"#VALUE!"}]
[null,null,null,null,null,null,null,null,null,null,null,null,0,{"$f":"IFERROR(VLOOKUP(البيانات!C589,'ارقام الغرف واسعارها'!$C$6:$D$105,2,FALSE),\"\")","v":""},"","انتهى الميعاد",0,{"$error":"#VALUE!"}]
[null,null,null,null,null,null,null,null,null,null,null,null,0,{"$f":"IFERROR(VLOOKUP(البيانات!C590,'ارقام الغرف واسعارها'!$C$6:$D$105,2,FALSE),\"\")","v":""},"","انتهى الميعاد",0,{"$error":"#VALUE!"}]
[null,null,null,null,null,null,null,null,null,null,null,null,0,{"$f":"IFERROR(VLOOKUP(البيانات!C591,'ارقام الغرف واسعارها'!$C$6:$D$105,2,FALSE),\"\")","v":""},"","انتهى الميعاد",0,{"$error":"#VALUE!"}]
[null,null,null,null,null,null,null,null,null,null,null,null,0,{"$f":"IFERROR(VLOOKUP(البيانات!C592,'ارقام الغرف واسعارها'!$C$6:$D$105,2,FALSE),\"\")","v":""},"","انتهى الميعاد",0,{"$error":"#VALUE!"}]
[null,null,null,null,null,null,null,null,null,null,null,null,0,{"$f":"IFERROR(VLOOKUP(البيانات!C593,'ارقام الغرف واسعارها'!$C$6:$D$105,2,FALSE),\"\")","v":""},"","انتهى الميعاد",0,{"$error":"#VALUE!"}]
[null,null,null,null,null,null,null,null,null,null,null,null,0,{"$f":"IFERROR(VLOOKUP(البيانات!C594,'ارقام الغرف واسعارها'!$C$6:$D$105,2,FALSE),\"\")","v":""},"","انتهى الميعاد",0,{"$error":"#VALUE!"}]
[null,null,null,null,null,null,null,null,null,null,null,null,0,{"$f":"IFERROR(VLOOKUP(البيانات!C595,'ارقام الغرف واسعارها'!$C$6:$D$105,2,FALSE),\"\")","v":""},"","انتهى الميعاد",0,{"$error":"#VALUE!"}]
[null,null,null,null,null,null,null,null,null,null,null,null,0,{"$f":"IFERROR(VLOOKUP(البيانات!C596,'ارقام الغرف واسعارها'!$C$6:$D$105,2,FALSE),\"\")","v":""},"","انتهى الميعاد",0,{"$error":"#VALUE!"}]
[null,null,null,null,null,null,null,null,null,null,null,null,0,{"$f":"IFERROR(VLOOKUP(البيانات!C597,'ارقام الغرف واسعارها'!$C$6:$D$105,2,FALSE),\"\")","v":""},"","انتهى الميعاد",0,{"$error":"#VALUE!"}]
[null,null,null,null,null,null,null,null,null,null,null,null,0,{"$f":"IFERROR(VLOOKUP(البيانات!C598,'ارقام الغرف واسعارها'!$C$6:$D$105,2,FALSE),\"\")","v":""},"","انتهى الميعاد",0,{"$error":"#VALUE!"}]
[null,null,null,null,null,null,null,null,null,null,null,null,0,{"$f":"IFERROR(VLOOKUP(البيانات!C599,'ارقام الغرف واسعارها'!$C$6:$D$105,2,FALSE),\"\")","v":""},"","انتهى الميعاد",0,{"$error":"#VALUE!"}]
[null,null,null,null,null,null,null,null,null,null,null,null,0,{"$f":"IFERROR(VLOOKUP(البيانات!C600,'ارقام الغرف واسعارها'!$C$6:$D$105,2,FALSE),\"\")","v":""},"","انتهى الميعاد",0,{"$error":"#VALUE!"}]
[null,null,null,null,null,null,null,null,null,null,null,null,0,{"$f":"IFERROR(VLOOKUP(البيانات!C601,'ارقام الغرف واسعارها'!$C$6:$D$105,2,FALSE),\"\")","v":""},"","انتهى الميعاد",0,{"$error":"#VALUE!"}]
[null,null,null,null,null,null,null,null,null,null,null,null,0,{"$f":"IFERROR(VLOOKUP(البيانات!C602,'ارقام الغرف واسعارها'!$C$6:$D$105,2,FALSE),\"\")","v":""},"","انتهى الميعاد",0,{"$error":"#VALUE!"}]
[null,null,null,null,null,null,null,null,null,null,null,null,0,{"$f":"IFERROR(VLOOKUP(البيانات!C603,'ارقام الغرف واسعارها'!$C$6:$D$105,2,FALSE),\"\")","v":""},"","انتهى الميعاد",0,{"$error":"#VALUE!"}]
[null,null,null,null,null,null,null,null,null,null,null,null,0,{"$f":"IFERROR(VLOOKUP(البيانات!C604,'ارقام الغرف واسعارها'!$C$6:$D$105,2,FALSE),\"\")","v":""},"","انتهى الميعاد",0,{"$error":"#VALUE!"}]
[null,null,null,null,null,null,null,null,null,null,null,null,0,{"$f":"IFERROR(VLOOKUP(البيانات!C605,'ارقام الغرف واسعارها'!$C$6:$D$105,2,FALSE),\"\")","v":""},"","انتهى الميعاد",0,{"$error":"#VALUE!"}]
[null,null,null,null,null,null,null,null,null,null,null,null,0,{"$f":"IFERROR(VLOOKUP(البيانات!C606,'ارقام الغرف واسعارها'!$C$6:$D$105,2,FALSE),\"\")","v":""},"","انتهى الميعاد",0,{"$error":"#VALUE!"}]
[null,null,null,null,null,null,null,null,null,null,null,null,0,{"$f":"IFERROR(VLOOKUP(البيانات!C607,'ارقام الغرف واسعارها'!$C$6:$D$105,2,FALSE),\"\")","v":""},"","انتهى الميعاد",0,{"$error":"#VALUE!"}]
[null,null,null,null,null,null,null,null,null,null,null,null,0,{"$f":"IFERROR(VLOOKUP(البيانات!C608,'ارقام الغرف واسعارها'!$C$6:$D$105,2,FALSE),\"\")","v":""},"","انتهى الميعاد",0,{"$error":"#VALUE!"}]
[null,null,null,null,null,null,null,null,null,null,null,null,0,{"$f":"IFERROR(VLOOKUP(البيانات!C609,'ارقام الغرف واسعارها'!$C$6:$D$105,2,FALSE),\"\")","v":""},"","انتهى الميعاد",0,{"$error":"#VALUE!"}]
[null,null,null,null,null,null,null,null,null,null,null,null,0,{"$f":"IFERROR(VLOOKUP(البيانات!C610,'ارقام الغرف واسعارها'!$C$6:$D$105,2,FALSE),\"\")","v":""},"","انتهى الميعاد",0,{"$error":"#VALUE!"}]
[null,null,null,null,null,null,null,null,null,null,null,null,0,{"$f":"IFERROR(VLOOKUP(البيانات!C611,'ارقام الغرف واسعارها'!$C$6:$D$105,2,FALSE),\"\")","v":""},"","انتهى الميعاد",0,{"$error":"#VALUE!"}]
[null,null,null,null,null,null,null,null,null,null,null,null,0,{"$f":"IFERROR(VLOOKUP(البيانات!C612,'ارقام الغرف واسعارها'!$C$6:$D$105,2,FALSE),\"\")","v":""},"","انتهى الميعاد",0,{"$error":"#VALUE!"}]
[null,null,null,null,null,null,null,null,null,null,null,null,0,{"$f":"IFERROR(VLOOKUP(البيانات!C613,'ارقام الغرف واسعارها'!$C$6:$D$105,2,FALSE),\"\")","v":""},"","انتهى الميعاد",0,{"$error":"#VALUE!"}]
[null,null,null,null,null,null,null,null,null,null,null,null,0,{"$f":"IFERROR(VLOOKUP(البيانات!C614,'ارقام الغرف واسعارها'!$C$6:$D$105,2,FALSE),\"\")","v":""},"","انتهى الميعاد",0,{"$error":"#VALUE!"}]
[null,null,null,null,null,null,null,null,null,null,null,null,0,{"$f":"IFERROR(VLOOKUP(البيانات!C615,'ارقام الغرف واسعارها'!$C$6:$D$105,2,FALSE),\"\")","v":""},"","انتهى الميعاد",0,{"$error":"#VALUE!"}]
[null,null,null,null,null,null,null,null,null,null,null,null,0,{"$f":"IFERROR(VLOOKUP(البيانات!C616,'ارقام الغرف واسعارها'!$C$6:$D$105,2,FALSE),\"\")","v":""},"","انتهى الميعاد",0,{"$error":"#VALUE!"}]
[null,null,null,null,null,null,null,null,null,null,null,null,0,{"$f":"IFERROR(VLOOKUP(البيانات!C617,'ارقام الغرف واسعارها'!$C$6:$D$105,2,FALSE),\"\")","v":""},"","انتهى الميعاد",0,{"$error":"#VALUE!"}]
[null,null,null,null,null,null,null,null,null,null,null,null,0,{"$f":"IFERROR(VLOOKUP(البيانات!C618,'ارقام الغرف واسعارها'!$C$6:$D$105,2,FALSE),\"\")","v":""},"","انتهى الميعاد",0,{"$error":"#VALUE!"}]
[null,null,null,null,null,null,null,null,null,null,null,null,0,{"$f":"IFERROR(VLOOKUP(البيانات!C619,'ارقام الغرف واسعارها'!$C$6:$D$105,2,FALSE),\"\")","v":""},"","انتهى الميعاد",0,{"$error":"#VALUE!"}]
[null,null,null,null,null,null,null,null,null,null,null,null,0,{"$f":"IFERROR(VLOOKUP(البيانات!C620,'ارقام الغرف واسعارها'!$C$6:$D$105,2,FALSE),\"\")","v":""},"","انتهى الميعاد",0,{"$error":"#VALUE!"}]
[null,null,null,null,null,null,null,null,null,null,null,null,0,{"$f":"IFERROR(VLOOKUP(البيانات!C621,'ارقام الغرف واسعارها'!$C$6:$D$105,2,FALSE),\"\")","v":""},"","انتهى الميعاد",0,{"$error":"#VALUE!"}]
[null,null,null,null,null,null,null,null,null,null,null,null,0,{"$f":"IFERROR(VLOOKUP(البيانات!C622,'ارقام الغرف واسعارها'!$C$6:$D$105,2,FALSE),\"\")","v":""},"","انتهى الميعاد",0,{"$error":"#VALUE!"}]
[null,null,null,null,null,null,null,null,null,null,null,null,0,{"$f":"IFERROR(VLOOKUP(البيانات!C623,'ارقام الغرف واسعارها'!$C$6:$D$105,2,FALSE),\"\")","v":""},"","انتهى الميعاد",0,{"$error":"#VALUE!"}]
[null,null,null,null,null,null,null,null,null,null,null,null,0,{"$f":"IFERROR(VLOOKUP(البيانات!C624,'ارقام الغرف واسعارها'!$C$6:$D$105,2,FALSE),\"\")","v":""},"","انتهى الميعاد",0,{"$error":"#VALUE!"}]
[null,null,null,null,null,null,null,null,null,null,null,null,0,{"$f":"IFERROR(VLOOKUP(البيانات!C625,'ارقام الغرف واسعارها'!$C$6:$D$105,2,FALSE),\"\")","v":""},"","انتهى الميعاد",0,{"$error":"#VALUE!"}]
[null,null,null,null,null,null,null,null,null,null,null,null,0,{"$f":"IFERROR(VLOOKUP(البيانات!C626,'ارقام الغرف واسعارها'!$C$6:$D$105,2,FALSE),\"\")","v":""},"","انتهى الميعاد",0,{"$error":"#VALUE!"}]
[null,null,null,null,null,null,null,null,null,null,null,null,0,{"$f":"IFERROR(VLOOKUP(البيانات!C627,'ارقام الغرف واسعارها'!$C$6:$D$105,2,FALSE),\"\")","v":""},"","انتهى الميعاد",0,{"$error":"#VALUE!"}]
[null,null,null,null,null,null,null,null,null,null,null,null,0,{"$f":"IFERROR(VLOOKUP(البيانات!C628,'ارقام الغرف واسعارها'!$C$6:$D$105,2,FALSE),\"\")","v":""},"","انتهى الميعاد",0,{"$error":"#VALUE!"}]
[null,null,null,null,null,null,null,null,null,null,null,null,0,{"$f":"IFERROR(VLOOKUP(البيانات!C629,'ارقام الغرف واسعارها'!$C$6:$D$105,2,FALSE),\"\")","v":""},"","انتهى الميعاد",0,{"$error":"#VALUE!"}]
[null,null,null,null,null,null,null,null,null,null,null,null,0,{"$f":"IFERROR(VLOOKUP(البيانات!C630,'ارقام الغرف واسعارها'!$C$6:$D$105,2,FALSE),\"\")","v":""},"","انتهى الميعاد",0,{"$error":"#VALUE!"}]
[null,null,null,null,null,null,null,null,null,null,null,null,0,{"$f":"IFERROR(VLOOKUP(البيانات!C631,'ارقام الغرف واسعارها'!$C$6:$D$105,2,FALSE),\"\")","v":""},"","انتهى الميعاد",0,{"$error":"#VALUE!"}]
[null,null,null,null,null,null,null,null,null,null,null,null,0,{"$f":"IFERROR(VLOOKUP(البيانات!C632,'ارقام الغرف واسعارها'!$C$6:$D$105,2,FALSE),\"\")","v":""},"","انتهى الميعاد",0,{"$error":"#VALUE!"}]
[null,null,null,null,null,null,null,null,null,null,null,null,0,{"$f":"IFERROR(VLOOKUP(البيانات!C633,'ارقام الغرف واسعارها'!$C$6:$D$105,2,FALSE),\"\")","v":""},"","انتهى الميعاد",0,{"$error":"#VALUE!"}]
[null,null,null,null,null,null,null,null,null,null,null,null,0,{"$f":"IFERROR(VLOOKUP(البيانات!C634,'ارقام الغرف واسعارها'!$C$6:$D$105,2,FALSE),\"\")","v":""},"","انتهى الميعاد",0,{"$error":"#VALUE!"}]
[null,null,null,null,null,null,null,null,null,null,null,null,0,{"$f":"IFERROR(VLOOKUP(البيانات!C635,'ارقام الغرف واسعارها'!$C$6:$D$105,2,FALSE),\"\")","v":""},"","انتهى الميعاد",0,{"$error":"#VALUE!"}]
[null,null,null,null,null,null,null,null,null,null,null,null,0,{"$f":"IFERROR(VLOOKUP(البيانات!C636,'ارقام الغرف واسعارها'!$C$6:$D$105,2,FALSE),\"\")","v":""},"","انتهى الميعاد",0,{"$error":"#VALUE!"}]
[null,null,null,null,null,null,null,null,null,null,null,null,0,{"$f":"IFERROR(VLOOKUP(البيانات!C637,'ارقام الغرف واسعارها'!$C$6:$D$105,2,FALSE),\"\")","v":""},"","انتهى الميعاد",0,{"$error":"#VALUE!"}]
[null,null,null,null,null,null,null,null,null,null,null,null,0,{"$f":"IFERROR(VLOOKUP(البيانات!C638,'ارقام الغرف واسعارها'!$C$6:$D$105,2,FALSE),\"\")","v":""},"","انتهى الميعاد",0,{"$error":"#VALUE!"}]
[null,null,null,null,null,null,null,null,null,null,null,null,0,{"$f":"IFERROR(VLOOKUP(البيانات!C639,'ارقام الغرف واسعارها'!$C$6:$D$105,2,FALSE),\"\")","v":""},"","انتهى الميعاد",0,{"$error":"#VALUE!"}]
[null,null,null,null,null,null,null,null,null,null,null,null,0,{"$f":"IFERROR(VLOOKUP(البيانات!C640,'ارقام الغرف واسعارها'!$C$6:$D$105,2,FALSE),\"\")","v":""},"","انتهى الميعاد",0,{"$error":"#VALUE!"}]
[null,null,null,null,null,null,null,null,null,null,null,null,0,{"$f":"IFERROR(VLOOKUP(البيانات!C641,'ارقام الغرف واسعارها'!$C$6:$D$105,2,FALSE),\"\")","v":""},"","انتهى الميعاد",0,{"$error":"#VALUE!"}]
[null,null,null,null,null,null,null,null,null,null,null,null,0,{"$f":"IFERROR(VLOOKUP(البيانات!C642,'ارقام الغرف واسعارها'!$C$6:$D$105,2,FALSE),\"\")","v":""},"","انتهى الميعاد",0,{"$error":"#VALUE!"}]
[null,null,null,null,null,null,null,null,null,null,null,null,0,{"$f":"IFERROR(VLOOKUP(البيانات!C643,'ارقام الغرف واسعارها'!$C$6:$D$105,2,FALSE),\"\")","v":""},"","انتهى الميعاد",0,{"$error":"#VALUE!"}]
[null,null,null,null,null,null,null,null,null,null,null,null,0,{"$f":"IFERROR(VLOOKUP(البيانات!C644,'ارقام الغرف واسعارها'!$C$6:$D$105,2,FALSE),\"\")","v":""},"","انتهى الميعاد",0,{"$error":"#VALUE!"}]
[null,null,null,null,null,null,null,null,null,null,null,null,0,{"$f":"IFERROR(VLOOKUP(البيانات!C645,'ارقام الغرف واسعارها'!$C$6:$D$105,2,FALSE),\"\")","v":""},{"$f":"IFERROR(M645*N645,\"\")","v":""},"انتهى الميعاد",0,{"$error":"#VALUE!"}]
[null,null,null,null,null,null,null,null,null,null,null,null,{"$f":"E646-D646","v":0},{"$f":"IFERROR(VLOOKUP(البيانات!C646,'ارقام الغرف واسعارها'!$C$6:$D$105,2,FALSE),\"\")","v":""},"","انتهى الميعاد",0,{"$error":"#VALUE!"}]
[null,null,null,null,null,null,null,null,null,null,null,null,0,{"$f":"IFERROR(VLOOKUP(البيانات!C647,'ارقام الغرف واسعارها'!$C$6:$D$105,2,FALSE),\"\")","v":""},"",{"$f":"IF(M647<=0,\"انتهى الميعاد\",IF(M647=0,\"  اانتهى الميعاد اليوم\",IF(M647>0,\"لم ينتهى المبعاد\",\"\")))","v":"انتهى الميعاد"},{"$f":"K647*M647*$Q$2","v":0},{"$f":"O647+Q647","v":{"$error":"#VALUE!"}}]
[null,null,null,null,null,null,null,null,null,null,null,null,0,{"$f":"IFERROR(VLOOKUP(البيانات!C648,'ارقام الغرف واسعارها'!$C$6:$D$105,2,FALSE),\"\")","v":""},"","انتهى الميعاد",0,{"$error":"#VALUE!"}]
[null,null,null,null,null,null,null,null,null,null,null,null,0,{"$f":"IFERROR(VLOOKUP(البيانات!C649,'ارقام الغرف واسعارها'!$C$6:$D$105,2,FALSE),\"\")","v":""},"","انتهى الميعاد",0,{"$error":"#VALUE!"}]
[null,null,null,null,null,null,null,null,null,null,null,null,0,{"$f":"IFERROR(VLOOKUP(البيانات!C650,'ارقام الغرف واسعارها'!$C$6:$D$105,2,FALSE),\"\")","v":""},"","انتهى الميعاد",0,{"$error":"#VALUE!"}]
[null,null,null,null,null,null,null,null,null,null,null,null,0,{"$f":"IFERROR(VLOOKUP(البيانات!C651,'ارقام الغرف واسعارها'!$C$6:$D$105,2,FALSE),\"\")","v":""},"","انتهى الميعاد",0,{"$error":"#VALUE!"}]
[null,null,null,null,null,null,null,null,null,null,null,null,0,{"$f":"IFERROR(VLOOKUP(البيانات!C652,'ارقام الغرف واسعارها'!$C$6:$D$105,2,FALSE),\"\")","v":""},"","انتهى الميعاد",0,{"$error":"#VALUE!"}]
[null,null,null,null,null,null,null,null,null,null,null,null,0,{"$f":"IFERROR(VLOOKUP(البيانات!C653,'ارقام الغرف واسعارها'!$C$6:$D$105,2,FALSE),\"\")","v":""},"","انتهى الميعاد",0,{"$error":"#VALUE!"}]
[null,null,null,null,null,null,null,null,null,null,null,null,0,{"$f":"IFERROR(VLOOKUP(البيانات!C654,'ارقام الغرف واسعارها'!$C$6:$D$105,2,FALSE),\"\")","v":""},"","انتهى الميعاد",0,{"$error":"#VALUE!"}]
[null,null,null,null,null,null,null,null,null,null,null,null,0,{"$f":"IFERROR(VLOOKUP(البيانات!C655,'ارقام الغرف واسعارها'!$C$6:$D$105,2,FALSE),\"\")","v":""},"","انتهى الميعاد",0,{"$error":"#VALUE!"}]
[null,null,null,null,null,null,null,null,null,null,null,null,0,{"$f":"IFERROR(VLOOKUP(البيانات!C656,'ارقام الغرف واسعارها'!$C$6:$D$105,2,FALSE),\"\")","v":""},"","انتهى الميعاد",0,{"$error":"#VALUE!"}]
[null,null,null,null,null,null,null,null,null,null,null,null,0,{"$f":"IFERROR(VLOOKUP(البيانات!C657,'ارقام الغرف واسعارها'!$C$6:$D$105,2,FALSE),\"\")","v":""},"","انتهى الميعاد",0,{"$error":"#VALUE!"}]
[null,null,null,null,null,null,null,null,null,null,null,null,0,{"$f":"IFERROR(VLOOKUP(البيانات!C658,'ارقام الغرف واسعارها'!$C$6:$D$105,2,FALSE),\"\")","v":""},"","انتهى الميعاد",0,{"$error":"#VALUE!"}]
[null,null,null,null,null,null,null,null,null,null,null,null,0,{"$f":"IFERROR(VLOOKUP(البيانات!C659,'ارقام الغرف واسعارها'!$C$6:$D$105,2,FALSE),\"\")","v":""},"","انتهى الميعاد",0,{"$error":"#VALUE!"}]
[null,null,null,null,null,null,null,null,null,null,null,null,0,{"$f":"IFERROR(VLOOKUP(البيانات!C660,'ارقام الغرف واسعارها'!$C$6:$D$105,2,FALSE),\"\")","v":""},"","انتهى الميعاد",0,{"$error":"#VALUE!"}]
[null,null,null,null,null,null,null,null,null,null,null,null,0,{"$f":"IFERROR(VLOOKUP(البيانات!C661,'ارقام الغرف واسعارها'!$C$6:$D$105,2,FALSE),\"\")","v":""},"","انتهى الميعاد",0,{"$error":"#VALUE!"}]
[null,null,null,null,null,null,null,null,null,null,null,null,0,{"$f":"IFERROR(VLOOKUP(البيانات!C662,'ارقام الغرف واسعارها'!$C$6:$D$105,2,FALSE),\"\")","v":""},"","انتهى الميعاد",0,{"$error":"#VALUE!"}]
[null,null,null,null,null,null,null,null,null,null,null,null,0,{"$f":"IFERROR(VLOOKUP(البيانات!C663,'ارقام الغرف واسعارها'!$C$6:$D$105,2,FALSE),\"\")","v":""},"","انتهى الميعاد",0,{"$error":"#VALUE!"}]
[null,null,null,null,null,null,null,null,null,null,null,null,0,{"$f":"IFERROR(VLOOKUP(البيانات!C664,'ارقام الغرف واسعارها'!$C$6:$D$105,2,FALSE),\"\")","v":""},"","انتهى الميعاد",0,{"$error":"#VALUE!"}]
[null,null,null,null,null,null,null,null,null,null,null,null,0,{"$f":"IFERROR(VLOOKUP(البيانات!C665,'ارقام الغرف واسعارها'!$C$6:$D$105,2,FALSE),\"\")","v":""},"","انتهى الميعاد",0,{"$error":"#VALUE!"}]
[null,null,null,null,null,null,null,null,null,null,null,null,0,{"$f":"IFERROR(VLOOKUP(البيانات!C666,'ارقام الغرف واسعارها'!$C$6:$D$105,2,FALSE),\"\")","v":""},"","انتهى الميعاد",0,{"$error":"#VALUE!"}]
[null,null,null,null,null,null,null,null,null,null,null,null,0,{"$f":"IFERROR(VLOOKUP(البيانات!C667,'ارقام الغرف واسعارها'!$C$6:$D$105,2,FALSE),\"\")","v":""},"","انتهى الميعاد",0,{"$error":"#VALUE!"}]
[null,null,null,null,null,null,null,null,null,null,null,null,0,{"$f":"IFERROR(VLOOKUP(البيانات!C668,'ارقام الغرف واسعارها'!$C$6:$D$105,2,FALSE),\"\")","v":""},"","انتهى الميعاد",0,{"$error":"#VALUE!"}]
[null,null,null,null,null,null,null,null,null,null,null,null,0,{"$f":"IFERROR(VLOOKUP(البيانات!C669,'ارقام الغرف واسعارها'!$C$6:$D$105,2,FALSE),\"\")","v":""},"","انتهى الميعاد",0,{"$error":"#VALUE!"}]
[null,null,null,null,null,null,null,null,null,null,null,null,0,{"$f":"IFERROR(VLOOKUP(البيانات!C670,'ارقام الغرف واسعارها'!$C$6:$D$105,2,FALSE),\"\")","v":""},"","انتهى الميعاد",0,{"$error":"#VALUE!"}]
[null,null,null,null,null,null,null,null,null,null,null,null,0,{"$f":"IFERROR(VLOOKUP(البيانات!C671,'ارقام الغرف واسعارها'!$C$6:$D$105,2,FALSE),\"\")","v":""},"","انتهى الميعاد",0,{"$error":"#VALUE!"}]
[null,null,null,null,null,null,null,null,null,null,null,null,0,{"$f":"IFERROR(VLOOKUP(البيانات!C672,'ارقام الغرف واسعارها'!$C$6:$D$105,2,FALSE),\"\")","v":""},"","انتهى الميعاد",0,{"$error":"#VALUE!"}]
[null,null,null,null,null,null,null,null,null,null,null,null,0,{"$f":"IFERROR(VLOOKUP(البيانات!C673,'ارقام الغرف واسعارها'!$C$6:$D$105,2,FALSE),\"\")","v":""},"","انتهى الميعاد",0,{"$error":"#VALUE!"}]
[null,null,null,null,null,null,null,null,null,null,null,null,0,{"$f":"IFERROR(VLOOKUP(البيانات!C674,'ارقام الغرف واسعارها'!$C$6:$D$105,2,FALSE),\"\")","v":""},"","انتهى الميعاد",0,{"$error":"#VALUE!"}]
[null,null,null,null,null,null,null,null,null,null,null,null,0,{"$f":"IFERROR(VLOOKUP(البيانات!C675,'ارقام الغرف واسعارها'!$C$6:$D$105,2,FALSE),\"\")","v":""},"","انتهى الميعاد",0,{"$error":"#VALUE!"}]
[null,null,null,null,null,null,null,null,null,null,null,null,0,{"$f":"IFERROR(VLOOKUP(البيانات!C676,'ارقام الغرف واسعارها'!$C$6:$D$105,2,FALSE),\"\")","v":""},"","انتهى الميعاد",0,{"$error":"#VALUE!"}]
[null,null,null,null,null,null,null,null,null,null,null,null,0,{"$f":"IFERROR(VLOOKUP(البيانات!C677,'ارقام الغرف واسعارها'!$C$6:$D$105,2,FALSE),\"\")","v":""},"","انتهى الميعاد",0,{"$error":"#VALUE!"}]
[null,null,null,null,null,null,null,null,null,null,null,null,0,{"$f":"IFERROR(VLOOKUP(البيانات!C678,'ارقام الغرف واسعارها'!$C$6:$D$105,2,FALSE),\"\")","v":""},"","انتهى الميعاد",0,{"$error":"#VALUE!"}]
[null,null,null,null,null,null,null,null,null,null,null,null,0,{"$f":"IFERROR(VLOOKUP(البيانات!C679,'ارقام الغرف واسعارها'!$C$6:$D$105,2,FALSE),\"\")","v":""},"","انتهى الميعاد",0,{"$error":"#VALUE!"}]
[null,null,null,null,null,null,null,null,null,null,null,null,0,{"$f":"IFERROR(VLOOKUP(البيانات!C680,'ارقام الغرف واسعارها'!$C$6:$D$105,2,FALSE),\"\")","v":""},"","انتهى الميعاد",0,{"$error":"#VALUE!"}]
[null,null,null,null,null,null,null,null,null,null,null,null,0,{"$f":"IFERROR(VLOOKUP(البيانات!C681,'ارقام الغرف واسعارها'!$C$6:$D$105,2,FALSE),\"\")","v":""},"","انتهى الميعاد",0,{"$error":"#VALUE!"}]
[null,null,null,null,null,null,null,null,null,null,null,null,0,{"$f":"IFERROR(VLOOKUP(البيانات!C682,'ارقام الغرف واسعارها'!$C$6:$D$105,2,FALSE),\"\")","v":""},"","انتهى الميعاد",0,{"$error":"#VALUE!"}]
[null,null,null,null,null,null,null,null,null,null,null,null,0,{"$f":"IFERROR(VLOOKUP(البيانات!C683,'ارقام الغرف واسعارها'!$C$6:$D$105,2,FALSE),\"\")","v":""},"","انتهى الميعاد",0,{"$error":"#VALUE!"}]
[null,null,null,null,null,null,null,null,null,null,null,null,0,{"$f":"IFERROR(VLOOKUP(البيانات!C684,'ارقام الغرف واسعارها'!$C$6:$D$105,2,FALSE),\"\")","v":""},"","انتهى الميعاد",0,{"$error":"#VALUE!"}]
[null,null,null,null,null,null,null,null,null,null,null,null,0,{"$f":"IFERROR(VLOOKUP(البيانات!C685,'ارقام الغرف واسعارها'!$C$6:$D$105,2,FALSE),\"\")","v":""},"","انتهى الميعاد",0,{"$error":"#VALUE!"}]
[null,null,null,null,null,null,null,null,null,null,null,null,0,{"$f":"IFERROR(VLOOKUP(البيانات!C686,'ارقام الغرف واسعارها'!$C$6:$D$105,2,FALSE),\"\")","v":""},"","انتهى الميعاد",0,{"$error":"#VALUE!"}]
[null,null,null,null,null,null,null,null,null,null,null,null,0,{"$f":"IFERROR(VLOOKUP(البيانات!C687,'ارقام الغرف واسعارها'!$C$6:$D$105,2,FALSE),\"\")","v":""},"","انتهى الميعاد",0,{"$error":"#VALUE!"}]
[null,null,null,null,null,null,null,null,null,null,null,null,0,{"$f":"IFERROR(VLOOKUP(البيانات!C688,'ارقام الغرف واسعارها'!$C$6:$D$105,2,FALSE),\"\")","v":""},"","انتهى الميعاد",0,{"$error":"#VALUE!"}]
[null,null,null,null,null,null,null,null,null,null,null,null,0,{"$f":"IFERROR(VLOOKUP(البيانات!C689,'ارقام الغرف واسعارها'!$C$6:$D$105,2,FALSE),\"\")","v":""},"","انتهى الميعاد",0,{"$error":"#VALUE!"}]
[null,null,null,null,null,null,null,null,null,null,null,null,0,{"$f":"IFERROR(VLOOKUP(البيانات!C690,'ارقام الغرف واسعارها'!$C$6:$D$105,2,FALSE),\"\")","v":""},"","انتهى الميعاد",0,{"$error":"#VALUE!"}]
[null,null,null,null,null,null,null,null,null,null,null,null,0,{"$f":"IFERROR(VLOOKUP(البيانات!C691,'ارقام الغرف واسعارها'!$C$6:$D$105,2,FALSE),\"\")","v":""},"","انتهى الميعاد",0,{"$error":"#VALUE!"}]
[null,null,null,null,null,null,null,null,null,null,null,null,0,{"$f":"IFERROR(VLOOKUP(البيانات!C692,'ارقام الغرف واسعارها'!$C$6:$D$105,2,FALSE),\"\")","v":""},"","انتهى الميعاد",0,{"$error":"#VALUE!"}]
[null,null,null,null,null,null,null,null,null,null,null,null,0,{"$f":"IFERROR(VLOOKUP(البيانات!C693,'ارقام الغرف واسعارها'!$C$6:$D$105,2,FALSE),\"\")","v":""},"","انتهى الميعاد",0,{"$error":"#VALUE!"}]
[null,null,null,null,null,null,null,null,null,null,null,null,0,{"$f":"IFERROR(VLOOKUP(البيانات!C694,'ارقام الغرف واسعارها'!$C$6:$D$105,2,FALSE),\"\")","v":""},"","انتهى الميعاد",0,{"$error":"#VALUE!"}]
[null,null,null,null,null,null,null,null,null,null,null,null,0,{"$f":"IFERROR(VLOOKUP(البيانات!C695,'ارقام الغرف واسعارها'!$C$6:$D$105,2,FALSE),\"\")","v":""},"","انتهى الميعاد",0,{"$error":"#VALUE!"}]
[null,null,null,null,null,null,null,null,null,null,null,null,0,{"$f":"IFERROR(VLOOKUP(البيانات!C696,'ارقام الغرف واسعارها'!$C$6:$D$105,2,FALSE),\"\")","v":""},"","انتهى الميعاد",0,{"$error":"#VALUE!"}]
[null,null,null,null,null,null,null,null,null,null,null,null,0,{"$f":"IFERROR(VLOOKUP(البيانات!C697,'ارقام الغرف واسعارها'!$C$6:$D$105,2,FALSE),\"\")","v":""},"","انتهى الميعاد",0,{"$error":"#VALUE!"}]
[null,null,null,null,null,null,null,null,null,null,null,null,0,{"$f":"IFERROR(VLOOKUP(البيانات!C698,'ارقام الغرف واسعارها'!$C$6:$D$105,2,FALSE),\"\")","v":""},"","انتهى الميعاد",0,{"$error":"#VALUE!"}]
[null,null,null,null,null,null,null,null,null,null,null,null,0,{"$f":"IFERROR(VLOOKUP(البيانات!C699,'ارقام الغرف واسعارها'!$C$6:$D$105,2,FALSE),\"\")","v":""},"","انتهى الميعاد",0,{"$error":"#VALUE!"}]
[null,null,null,null,null,null,null,null,null,null,null,null,0,{"$f":"IFERROR(VLOOKUP(البيانات!C700,'ارقام الغرف واسعارها'!$C$6:$D$105,2,FALSE),\"\")","v":""},"","انتهى الميعاد",0,{"$error":"#VALUE!"}]
[null,null,null,null,null,null,null,null,null,null,null,null,0,{"$f":"IFERROR(VLOOKUP(البيانات!C701,'ارقام الغرف واسعارها'!$C$6:$D$105,2,FALSE),\"\")","v":""},"","انتهى الميعاد",0,{"$error":"#VALUE!"}]
[null,null,null,null,null,null,null,null,null,null,null,null,0,{"$f":"IFERROR(VLOOKUP(البيانات!C702,'ارقام الغرف واسعارها'!$C$6:$D$105,2,FALSE),\"\")","v":""},"","انتهى الميعاد",0,{"$error":"#VALUE!"}]
[null,null,null,null,null,null,null,null,null,null,null,null,0,{"$f":"IFERROR(VLOOKUP(البيانات!C703,'ارقام الغرف واسعارها'!$C$6:$D$105,2,FALSE),\"\")","v":""},"","انتهى الميعاد",0,{"$error":"#VALUE!"}]
[null,null,null,null,null,null,null,null,null,null,null,null,0,{"$f":"IFERROR(VLOOKUP(البيانات!C704,'ارقام الغرف واسعارها'!$C$6:$D$105,2,FALSE),\"\")","v":""},"","انتهى الميعاد",0,{"$error":"#VALUE!"}]
[null,null,null,null,null,null,null,null,null,null,null,null,0,{"$f":"IFERROR(VLOOKUP(البيانات!C705,'ارقام الغرف واسعارها'!$C$6:$D$105,2,FALSE),\"\")","v":""},"","انتهى الميعاد",0,{"$error":"#VALUE!"}]
[null,null,null,null,null,null,null,null,null,null,null,null,0,{"$f":"IFERROR(VLOOKUP(البيانات!C706,'ارقام الغرف واسعارها'!$C$6:$D$105,2,FALSE),\"\")","v":""},"","انتهى الميعاد",0,{"$error":"#VALUE!"}]
[null,null,null,null,null,null,null,null,null,null,null,null,0,{"$f":"IFERROR(VLOOKUP(البيانات!C707,'ارقام الغرف واسعارها'!$C$6:$D$105,2,FALSE),\"\")","v":""},"","انتهى الميعاد",0,{"$error":"#VALUE!"}]
[null,null,null,null,null,null,null,null,null,null,null,null,0,{"$f":"IFERROR(VLOOKUP(البيانات!C708,'ارقام الغرف واسعارها'!$C$6:$D$105,2,FALSE),\"\")","v":""},"","انتهى الميعاد",0,{"$error":"#VALUE!"}]
[null,null,null,null,null,null,null,null,null,null,null,null,0,{"$f":"IFERROR(VLOOKUP(البيانات!C709,'ارقام الغرف واسعارها'!$C$6:$D$105,2,FALSE),\"\")","v":""},{"$f":"IFERROR(M709*N709,\"\")","v":""},"انتهى الميعاد",0,{"$error":"#VALUE!"}]
[null,null,null,null,null,null,null,null,null,null,null,null,{"$f":"E710-D710","v":0},{"$f":"IFERROR(VLOOKUP(البيانات!C710,'ارقام الغرف واسعارها'!$C$6:$D$105,2,FALSE),\"\")","v":""},"","انتهى الميعاد",0,{"$error":"#VALUE!"}]
[null,null,null,null,null,null,null,null,null,null,null,null,0,{"$f":"IFERROR(VLOOKUP(البيانات!C711,'ارقام الغرف واسعارها'!$C$6:$D$105,2,FALSE),\"\")","v":""},"",{"$f":"IF(M711<=0,\"انتهى الميعاد\",IF(M711=0,\"  اانتهى الميعاد اليوم\",IF(M711>0,\"لم ينتهى المبعاد\",\"\")))","v":"انتهى الميعاد"},{"$f":"K711*M711*$Q$2","v":0},{"$f":"O711+Q711","v":{"$error":"#VALUE!"}}]
[null,null,null,null,null,null,null,null,null,null,null,null,0,{"$f":"IFERROR(VLOOKUP(البيانات!C712,'ارقام الغرف واسعارها'!$C$6:$D$105,2,FALSE),\"\")","v":""},"","انتهى الميعاد",0,{"$error":"#VALUE!"}]
[null,null,null,null,null,null,null,null,null,null,null,null,0,{"$f":"IFERROR(VLOOKUP(البيانات!C713,'ارقام الغرف واسعارها'!$C$6:$D$105,2,FALSE),\"\")","v":""},"","انتهى الميعاد",0,{"$error":"#VALUE!"}]
[null,null,null,null,null,null,null,null,null,null,null,null,0,{"$f":"IFERROR(VLOOKUP(البيانات!C714,'ارقام الغرف واسعارها'!$C$6:$D$105,2,FALSE),\"\")","v":""},"","انتهى الميعاد",0,{"$error":"#VALUE!"}]
[null,null,null,null,null,null,null,null,null,null,null,null,0,{"$f":"IFERROR(VLOOKUP(البيانات!C715,'ارقام الغرف واسعارها'!$C$6:$D$105,2,FALSE),\"\")","v":""},"","انتهى الميعاد",0,{"$error":"#VALUE!"}]
[null,null,null,null,null,null,null,null,null,null,null,null,0,{"$f":"IFERROR(VLOOKUP(البيانات!C716,'ارقام الغرف واسعارها'!$C$6:$D$105,2,FALSE),\"\")","v":""},"","انتهى الميعاد",0,{"$error":"#VALUE!"}]
[null,null,null,null,null,null,null,null,null,null,null,null,0,{"$f":"IFERROR(VLOOKUP(البيانات!C717,'ارقام الغرف واسعارها'!$C$6:$D$105,2,FALSE),\"\")","v":""},"","انتهى الميعاد",0,{"$error":"#VALUE!"}]
[null,null,null,null,null,null,null,null,null,null,null,null,0,{"$f":"IFERROR(VLOOKUP(البيانات!C718,'ارقام الغرف واسعارها'!$C$6:$D$105,2,FALSE),\"\")","v":""},"","انتهى الميعاد",0,{"$error":"#VALUE!"}]
[null,null,null,null,null,null,null,null,null,null,null,null,0,{"$f":"IFERROR(VLOOKUP(البيانات!C719,'ارقام الغرف واسعارها'!$C$6:$D$105,2,FALSE),\"\")","v":""},"","انتهى الميعاد",0,{"$error":"#VALUE!"}]
[null,null,null,null,null,null,null,null,null,null,null,null,0,{"$f":"IFERROR(VLOOKUP(البيانات!C720,'ارقام الغرف واسعارها'!$C$6:$D$105,2,FALSE),\"\")","v":""},"","انتهى الميعاد",0,{"$error":"#VALUE!"}]
[null,null,null,null,null,null,null,null,null,null,null,null,0,{"$f":"IFERROR(VLOOKUP(البيانات!C721,'ارقام الغرف واسعارها'!$C$6:$D$105,2,FALSE),\"\")","v":""},"","انتهى الميعاد",0,{"$error":"#VALUE!"}]
[null,null,null,null,null,null,null,null,null,null,null,null,0,{"$f":"IFERROR(VLOOKUP(البيانات!C722,'ارقام الغرف واسعارها'!$C$6:$D$105,2,FALSE),\"\")","v":""},"","انتهى الميعاد",0,{"$error":"#VALUE!"}]
[null,null,null,null,null,null,null,null,null,null,null,null,0,{"$f":"IFERROR(VLOOKUP(البيانات!C723,'ارقام الغرف واسعارها'!$C$6:$D$105,2,FALSE),\"\")","v":""},"","انتهى الميعاد",0,{"$error":"#VALUE!"}]
[null,null,null,null,null,null,null,null,null,null,null,null,0,{"$f":"IFERROR(VLOOKUP(البيانات!C724,'ارقام الغرف واسعارها'!$C$6:$D$105,2,FALSE),\"\")","v":""},"","انتهى الميعاد",0,{"$error":"#VALUE!"}]
[null,null,null,null,null,null,null,null,null,null,null,null,0,{"$f":"IFERROR(VLOOKUP(البيانات!C725,'ارقام الغرف واسعارها'!$C$6:$D$105,2,FALSE),\"\")","v":""},"","انتهى الميعاد",0,{"$error":"#VALUE!"}]
[null,null,null,null,null,null,null,null,null,null,null,null,0,{"$f":"IFERROR(VLOOKUP(البيانات!C726,'ارقام الغرف واسعارها'!$C$6:$D$105,2,FALSE),\"\")","v":""},"","انتهى الميعاد",0,{"$error":"#VALUE!"}]
[null,null,null,null,null,null,null,null,null,null,null,null,0,{"$f":"IFERROR(VLOOKUP(البيانات!C727,'ارقام الغرف واسعارها'!$C$6:$D$105,2,FALSE),\"\")","v":""},"","انتهى الميعاد",0,{"$error":"#VALUE!"}]
[null,null,null,null,null,null,null,null,null,null,null,null,0,{"$f":"IFERROR(VLOOKUP(البيانات!C728,'ارقام الغرف واسعارها'!$C$6:$D$105,2,FALSE),\"\")","v":""},"","انتهى الميعاد",0,{"$error":"#VALUE!"}]
[null,null,null,null,null,null,null,null,null,null,null,null,0,{"$f":"IFERROR(VLOOKUP(البيانات!C729,'ارقام الغرف واسعارها'!$C$6:$D$105,2,FALSE),\"\")","v":""},"","انتهى الميعاد",0,{"$error":"#VALUE!"}]
[null,null,null,null,null,null,null,null,null,null,null,null,0,{"$f":"IFERROR(VLOOKUP(البيانات!C730,'ارقام الغرف واسعارها'!$C$6:$D$105,2,FALSE),\"\")","v":""},"","انتهى الميعاد",0,{"$error":"#VALUE!"}]
[null,null,null,null,null,null,null,null,null,null,null,null,0,{"$f":"IFERROR(VLOOKUP(البيانات!C731,'ارقام الغرف واسعارها'!$C$6:$D$105,2,FALSE),\"\")","v":""},"","انتهى الميعاد",0,{"$error":"#VALUE!"}]
[null,null,null,null,null,null,null,null,null,null,null,null,0,{"$f":"IFERROR(VLOOKUP(البيانات!C732,'ارقام الغرف واسعارها'!$C$6:$D$105,2,FALSE),\"\")","v":""},"","انتهى الميعاد",0,{"$error":"#VALUE!"}]
[null,null,null,null,null,null,null,null,null,null,null,null,0,{"$f":"IFERROR(VLOOKUP(البيانات!C733,'ارقام الغرف واسعارها'!$C$6:$D$105,2,FALSE),\"\")","v":""},"","انتهى الميعاد",0,{"$error":"#VALUE!"}]
[null,null,null,null,null,null,null,null,null,null,null,null,0,{"$f":"IFERROR(VLOOKUP(البيانات!C734,'ارقام الغرف واسعارها'!$C$6:$D$105,2,FALSE),\"\")","v":""},"","انتهى الميعاد",0,{"$error":"#VALUE!"}]
[null,null,null,null,null,null,null,null,null,null,null,null,0,{"$f":"IFERROR(VLOOKUP(البيانات!C735,'ارقام الغرف واسعارها'!$C$6:$D$105,2,FALSE),\"\")","v":""},"","انتهى الميعاد",0,{"$error":"#VALUE!"}]
[null,null,null,null,null,null,null,null,null,null,null,null,0,{"$f":"IFERROR(VLOOKUP(البيانات!C736,'ارقام الغرف واسعارها'!$C$6:$D$105,2,FALSE),\"\")","v":""},"","انتهى الميعاد",0,{"$error":"#VALUE!"}]
[null,null,null,null,null,null,null,null,null,null,null,null,0,{"$f":"IFERROR(VLOOKUP(البيانات!C737,'ارقام الغرف واسعارها'!$C$6:$D$105,2,FALSE),\"\")","v":""},"","انتهى الميعاد",0,{"$error":"#VALUE!"}]
[null,null,null,null,null,null,null,null,null,null,null,null,0,{"$f":"IFERROR(VLOOKUP(البيانات!C738,'ارقام الغرف واسعارها'!$C$6:$D$105,2,FALSE),\"\")","v":""},"","انتهى الميعاد",0,{"$error":"#VALUE!"}]
[null,null,null,null,null,null,null,null,null,null,null,null,0,{"$f":"IFERROR(VLOOKUP(البيانات!C739,'ارقام الغرف واسعارها'!$C$6:$D$105,2,FALSE),\"\")","v":""},"","انتهى الميعاد",0,{"$error":"#VALUE!"}]
[null,null,null,null,null,null,null,null,null,null,null,null,0,{"$f":"IFERROR(VLOOKUP(البيانات!C740,'ارقام الغرف واسعارها'!$C$6:$D$105,2,FALSE),\"\")","v":""},"","انتهى الميعاد",0,{"$error":"#VALUE!"}]
[null,null,null,null,null,null,null,null,null,null,null,null,0,{"$f":"IFERROR(VLOOKUP(البيانات!C741,'ارقام الغرف واسعارها'!$C$6:$D$105,2,FALSE),\"\")","v":""},"","انتهى الميعاد",0,{"$error":"#VALUE!"}]
[null,null,null,null,null,null,null,null,null,null,null,null,0,{"$f":"IFERROR(VLOOKUP(البيانات!C742,'ارقام الغرف واسعارها'!$C$6:$D$105,2,FALSE),\"\")","v":""},"","انتهى الميعاد",0,{"$error":"#VALUE!"}]
[null,null,null,null,null,null,null,null,null,null,null,null,0,{"$f":"IFERROR(VLOOKUP(البيانات!C743,'ارقام الغرف واسعارها'!$C$6:$D$105,2,FALSE),\"\")","v":""},"","انتهى الميعاد",0,{"$error":"#VALUE!"}]
[null,null,null,null,null,null,null,null,null,null,null,null,0,{"$f":"IFERROR(VLOOKUP(البيانات!C744,'ارقام الغرف واسعارها'!$C$6:$D$105,2,FALSE),\"\")","v":""},"","انتهى الميعاد",0,{"$error":"#VALUE!"}]
[null,null,null,null,null,null,null,null,null,null,null,null,0,{"$f":"IFERROR(VLOOKUP(البيانات!C745,'ارقام الغرف واسعارها'!$C$6:$D$105,2,FALSE),\"\")","v":""},"","انتهى الميعاد",0,{"$error":"#VALUE!"}]
[null,null,null,null,null,null,null,null,null,null,null,null,0,{"$f":"IFERROR(VLOOKUP(البيانات!C746,'ارقام الغرف واسعارها'!$C$6:$D$105,2,FALSE),\"\")","v":""},"","انتهى الميعاد",0,{"$error":"#VALUE!"}]
[null,null,null,null,null,null,null,null,null,null,null,null,0,{"$f":"IFERROR(VLOOKUP(البيانات!C747,'ارقام الغرف واسعارها'!$C$6:$D$105,2,FALSE),\"\")","v":""},"","انتهى الميعاد",0,{"$error":"#VALUE!"}]
[null,null,null,null,null,null,null,null,null,null,null,null,0,{"$f":"IFERROR(VLOOKUP(البيانات!C748,'ارقام الغرف واسعارها'!$C$6:$D$105,2,FALSE),\"\")","v":""},"","انتهى الميعاد",0,{"$error":"#VALUE!"}]
[null,null,null,null,null,null,null,null,null,null,null,null,0,{"$f":"IFERROR(VLOOKUP(البيانات!C749,'ارقام الغرف واسعارها'!$C$6:$D$105,2,FALSE),\"\")","v":""},"","انتهى الميعاد",0,{"$error":"#VALUE!"}]
[null,null,null,null,null,null,null,null,null,null,null,null,0,{"$f":"IFERROR(VLOOKUP(البيانات!C750,'ارقام الغرف واسعارها'!$C$6:$D$105,2,FALSE),\"\")","v":""},"","انتهى الميعاد",0,{"$error":"#VALUE!"}]
[null,null,null,null,null,null,null,null,null,null,null,null,0,{"$f":"IFERROR(VLOOKUP(البيانات!C751,'ارقام الغرف واسعارها'!$C$6:$D$105,2,FALSE),\"\")","v":""},"","انتهى الميعاد",0,{"$error":"#VALUE!"}]
[null,null,null,null,null,null,null,null,null,null,null,null,0,{"$f":"IFERROR(VLOOKUP(البيانات!C752,'ارقام الغرف واسعارها'!$C$6:$D$105,2,FALSE),\"\")","v":""},"","انتهى الميعاد",0,{"$error":"#VALUE!"}]
[null,null,null,null,null,null,null,null,null,null,null,null,0,{"$f":"IFERROR(VLOOKUP(البيانات!C753,'ارقام الغرف واسعارها'!$C$6:$D$105,2,FALSE),\"\")","v":""},"","انتهى الميعاد",0,{"$error":"#VALUE!"}]
[null,null,null,null,null,null,null,null,null,null,null,null,0,{"$f":"IFERROR(VLOOKUP(البيانات!C754,'ارقام الغرف واسعارها'!$C$6:$D$105,2,FALSE),\"\")","v":""},"","انتهى الميعاد",0,{"$error":"#VALUE!"}]
[null,null,null,null,null,null,null,null,null,null,null,null,0,{"$f":"IFERROR(VLOOKUP(البيانات!C755,'ارقام الغرف واسعارها'!$C$6:$D$105,2,FALSE),\"\")","v":""},"","انتهى الميعاد",0,{"$error":"#VALUE!"}]
[null,null,null,null,null,null,null,null,null,null,null,null,0,{"$f":"IFERROR(VLOOKUP(البيانات!C756,'ارقام الغرف واسعارها'!$C$6:$D$105,2,FALSE),\"\")","v":""},"","انتهى الميعاد",0,{"$error":"#VALUE!"}]
[null,null,null,null,null,null,null,null,null,null,null,null,0,{"$f":"IFERROR(VLOOKUP(البيانات!C757,'ارقام الغرف واسعارها'!$C$6:$D$105,2,FALSE),\"\")","v":""},"","انتهى الميعاد",0,{"$error":"#VALUE!"}]
[null,null,null,null,null,null,null,null,null,null,null,null,0,{"$f":"IFERROR(VLOOKUP(البيانات!C758,'ارقام الغرف واسعارها'!$C$6:$D$105,2,FALSE),\"\")","v":""},"","انتهى الميعاد",0,{"$error":"#VALUE!"}]
[null,null,null,null,null,null,null,null,null,null,null,null,0,{"$f":"IFERROR(VLOOKUP(البيانات!C759,'ارقام الغرف واسعارها'!$C$6:$D$105,2,FALSE),\"\")","v":""},"","انتهى الميعاد",0,{"$error":"#VALUE!"}]
[null,null,null,null,null,null,null,null,null,null,null,null,0,{"$f":"IFERROR(VLOOKUP(البيانات!C760,'ارقام الغرف واسعارها'!$C$6:$D$105,2,FALSE),\"\")","v":""},"","انتهى الميعاد",0,{"$error":"#VALUE!"}]
[null,null,null,null,null,null,null,null,null,null,null,null,0,{"$f":"IFERROR(VLOOKUP(البيانات!C761,'ارقام الغرف واسعارها'!$C$6:$D$105,2,FALSE),\"\")","v":""},"","انتهى الميعاد",0,{"$error":"#VALUE!"}]
[null,null,null,null,null,null,null,null,null,null,null,null,0,{"$f":"IFERROR(VLOOKUP(البيانات!C762,'ارقام الغرف واسعارها'!$C$6:$D$105,2,FALSE),\"\")","v":""},"","انتهى الميعاد",0,{"$error":"#VALUE!"}]
[null,null,null,null,null,null,null,null,null,null,null,null,0,{"$f":"IFERROR(VLOOKUP(البيانات!C763,'ارقام الغرف واسعارها'!$C$6:$D$105,2,FALSE),\"\")","v":""},"","انتهى الميعاد",0,{"$error":"#VALUE!"}]
[null,null,null,null,null,null,null,null,null,null,null,null,0,{"$f":"IFERROR(VLOOKUP(البيانات!C764,'ارقام الغرف واسعارها'!$C$6:$D$105,2,FALSE),\"\")","v":""},"","انتهى الميعاد",0,{"$error":"#VALUE!"}]
[null,null,null,null,null,null,null,null,null,null,null,null,0,{"$f":"IFERROR(VLOOKUP(البيانات!C765,'ارقام الغرف واسعارها'!$C$6:$D$105,2,FALSE),\"\")","v":""},"","انتهى الميعاد",0,{"$error":"#VALUE!"}]
[null,null,null,null,null,null,null,null,null,null,null,null,0,{"$f":"IFERROR(VLOOKUP(البيانات!C766,'ارقام الغرف واسعارها'!$C$6:$D$105,2,FALSE),\"\")","v":""},"","انتهى الميعاد",0,{"$error":"#VALUE!"}]
[null,null,null,null,null,null,null,null,null,null,null,null,0,{"$f":"IFERROR(VLOOKUP(البيانات!C767,'ارقام الغرف واسعارها'!$C$6:$D$105,2,FALSE),\"\")","v":""},"","انتهى الميعاد",0,{"$error":"#VALUE!"}]
[null,null,null,null,null,null,null,null,null,null,null,null,0,{"$f":"IFERROR(VLOOKUP(البيانات!C768,'ارقام الغرف واسعارها'!$C$6:$D$105,2,FALSE),\"\")","v":""},"","انتهى الميعاد",0,{"$error":"#VALUE!"}]
[null,null,null,null,null,null,null,null,null,null,null,null,0,{"$f":"IFERROR(VLOOKUP(البيانات!C769,'ارقام الغرف واسعارها'!$C$6:$D$105,2,FALSE),\"\")","v":""},"","انتهى الميعاد",0,{"$error":"#VALUE!"}]
[null,null,null,null,null,null,null,null,null,null,null,null,0,{"$f":"IFERROR(VLOOKUP(البيانات!C770,'ارقام الغرف واسعارها'!$C$6:$D$105,2,FALSE),\"\")","v":""},"","انتهى الميعاد",0,{"$error":"#VALUE!"}]
[null,null,null,null,null,null,null,null,null,null,null,null,0,{"$f":"IFERROR(VLOOKUP(البيانات!C771,'ارقام الغرف واسعارها'!$C$6:$D$105,2,FALSE),\"\")","v":""},"","انتهى الميعاد",0,{"$error":"#VALUE!"}]
[null,null,null,null,null,null,null,null,null,null,null,null,0,{"$f":"IFERROR(VLOOKUP(البيانات!C772,'ارقام الغرف واسعارها'!$C$6:$D$105,2,FALSE),\"\")","v":""},"","انتهى الميعاد",0,{"$error":"#VALUE!"}]
[null,null,null,null,null,null,null,null,null,null,null,null,0,{"$f":"IFERROR(VLOOKUP(البيانات!C773,'ارقام الغرف واسعارها'!$C$6:$D$105,2,FALSE),\"\")","v":""},{"$f":"IFERROR(M773*N773,\"\")","v":""},"انتهى الميعاد",0,{"$error":"#VALUE!"}]
[null,null,null,null,null,null,null,null,null,null,null,null,{"$f":"E774-D774","v":0},{"$f":"IFERROR(VLOOKUP(البيانات!C774,'ارقام الغرف واسعارها'!$C$6:$D$105,2,FALSE),\"\")","v":""},"","انتهى الميعاد",0,{"$error":"#VALUE!"}]
[null,null,null,null,null,null,null,null,null,null,null,null,0,{"$f":"IFERROR(VLOOKUP(البيانات!C775,'ارقام الغرف واسعارها'!$C$6:$D$105,2,FALSE),\"\")","v":""},"",{"$f":"IF(M775<=0,\"انتهى الميعاد\",IF(M775=0,\"  اانتهى الميعاد اليوم\",IF(M775>0,\"لم ينتهى المبعاد\",\"\")))","v":"انتهى الميعاد"},{"$f":"K775*M775*$Q$2","v":0},{"$f":"O775+Q775","v":{"$error":"#VALUE!"}}]
[null,null,null,null,null,null,null,null,null,null,null,null,0,{"$f":"IFERROR(VLOOKUP(البيانات!C776,'ارقام الغرف واسعارها'!$C$6:$D$105,2,FALSE),\"\")","v":""},"","انتهى الميعاد",0,{"$error":"#VALUE!"}]
[null,null,null,null,null,null,null,null,null,null,null,null,0,{"$f":"IFERROR(VLOOKUP(البيانات!C777,'ارقام الغرف واسعارها'!$C$6:$D$105,2,FALSE),\"\")","v":""},"","انتهى الميعاد",0,{"$error":"#VALUE!"}]
[null,null,null,null,null,null,null,null,null,null,null,null,0,{"$f":"IFERROR(VLOOKUP(البيانات!C778,'ارقام الغرف واسعارها'!$C$6:$D$105,2,FALSE),\"\")","v":""},"","انتهى الميعاد",0,{"$error":"#VALUE!"}]
[null,null,null,null,null,null,null,null,null,null,null,null,0,{"$f":"IFERROR(VLOOKUP(البيانات!C779,'ارقام الغرف واسعارها'!$C$6:$D$105,2,FALSE),\"\")","v":""},"","انتهى الميعاد",0,{"$error":"#VALUE!"}]
[null,null,null,null,null,null,null,null,null,null,null,null,0,{"$f":"IFERROR(VLOOKUP(البيانات!C780,'ارقام الغرف واسعارها'!$C$6:$D$105,2,FALSE),\"\")","v":""},"","انتهى الميعاد",0,{"$error":"#VALUE!"}]
[null,null,null,null,null,null,null,null,null,null,null,null,0,{"$f":"IFERROR(VLOOKUP(البيانات!C781,'ارقام الغرف واسعارها'!$C$6:$D$105,2,FALSE),\"\")","v":""},"","انتهى الميعاد",0,{"$error":"#VALUE!"}]
[null,null,null,null,null,null,null,null,null,null,null,null,0,{"$f":"IFERROR(VLOOKUP(البيانات!C782,'ارقام الغرف واسعارها'!$C$6:$D$105,2,FALSE),\"\")","v":""},"","انتهى الميعاد",0,{"$error":"#VALUE!"}]
[null,null,null,null,null,null,null,null,null,null,null,null,0,{"$f":"IFERROR(VLOOKUP(البيانات!C783,'ارقام الغرف واسعارها'!$C$6:$D$105,2,FALSE),\"\")","v":""},"","انتهى الميعاد",0,{"$error":"#VALUE!"}]
[null,null,null,null,null,null,null,null,null,null,null,null,0,{"$f":"IFERROR(VLOOKUP(البيانات!C784,'ارقام الغرف واسعارها'!$C$6:$D$105,2,FALSE),\"\")","v":""},"","انتهى الميعاد",0,{"$error":"#VALUE!"}]
[null,null,null,null,null,null,null,null,null,null,null,null,0,{"$f":"IFERROR(VLOOKUP(البيانات!C785,'ارقام الغرف واسعارها'!$C$6:$D$105,2,FALSE),\"\")","v":""},"","انتهى الميعاد",0,{"$error":"#VALUE!"}]
[null,null,null,null,null,null,null,null,null,null,null,null,0,{"$f":"IFERROR(VLOOKUP(البيانات!C786,'ارقام الغرف واسعارها'!$C$6:$D$105,2,FALSE),\"\")","v":""},"","انتهى الميعاد",0,{"$error":"#VALUE!"}]
[null,null,null,null,null,null,null,null,null,null,null,null,0,{"$f":"IFERROR(VLOOKUP(البيانات!C787,'ارقام الغرف واسعارها'!$C$6:$D$105,2,FALSE),\"\")","v":""},"","انتهى الميعاد",0,{"$error":"#VALUE!"}]
[null,null,null,null,null,null,null,null,null,null,null,null,0,{"$f":"IFERROR(VLOOKUP(البيانات!C788,'ارقام الغرف واسعارها'!$C$6:$D$105,2,FALSE),\"\")","v":""},"","انتهى الميعاد",0,{"$error":"#VALUE!"}]
[null,null,null,null,null,null,null,null,null,null,null,null,0,{"$f":"IFERROR(VLOOKUP(البيانات!C789,'ارقام الغرف واسعارها'!$C$6:$D$105,2,FALSE),\"\")","v":""},"","انتهى الميعاد",0,{"$error":"#VALUE!"}]
[null,null,null,null,null,null,null,null,null,null,null,null,0,{"$f":"IFERROR(VLOOKUP(البيانات!C790,'ارقام الغرف واسعارها'!$C$6:$D$105,2,FALSE),\"\")","v":""},"","انتهى الميعاد",0,{"$error":"#VALUE!"}]
[null,null,null,null,null,null,null,null,null,null,null,null,0,{"$f":"IFERROR(VLOOKUP(البيانات!C791,'ارقام الغرف واسعارها'!$C$6:$D$105,2,FALSE),\"\")","v":""},"","انتهى الميعاد",0,{"$error":"#VALUE!"}]
[null,null,null,null,null,null,null,null,null,null,null,null,0,{"$f":"IFERROR(VLOOKUP(البيانات!C792,'ارقام الغرف واسعارها'!$C$6:$D$105,2,FALSE),\"\")","v":""},"","انتهى الميعاد",0,{"$error":"#VALUE!"}]
[null,null,null,null,null,null,null,null,null,null,null,null,0,{"$f":"IFERROR(VLOOKUP(البيانات!C793,'ارقام الغرف واسعارها'!$C$6:$D$105,2,FALSE),\"\")","v":""},"","انتهى الميعاد",0,{"$error":"#VALUE!"}]
[null,null,null,null,null,null,null,null,null,null,null,null,0,{"$f":"IFERROR(VLOOKUP(البيانات!C794,'ارقام الغرف واسعارها'!$C$6:$D$105,2,FALSE),\"\")","v":""},"","انتهى الميعاد",0,{"$error":"#VALUE!"}]
[null,null,null,null,null,null,null,null,null,null,null,null,0,{"$f":"IFERROR(VLOOKUP(البيانات!C795,'ارقام الغرف واسعارها'!$C$6:$D$105,2,FALSE),\"\")","v":""},"","انتهى الميعاد",0,{"$error":"#VALUE!"}]
[null,null,null,null,null,null,null,null,null,null,null,null,0,{"$f":"IFERROR(VLOOKUP(البيانات!C796,'ارقام الغرف واسعارها'!$C$6:$D$105,2,FALSE),\"\")","v":""},"","انتهى الميعاد",0,{"$error":"#VALUE!"}]
[null,null,null,null,null,null,null,null,null,null,null,null,0,{"$f":"IFERROR(VLOOKUP(البيانات!C797,'ارقام الغرف واسعارها'!$C$6:$D$105,2,FALSE),\"\")","v":""},"","انتهى الميعاد",0,{"$error":"#VALUE!"}]
[null,null,null,null,null,null,null,null,null,null,null,null,0,{"$f":"IFERROR(VLOOKUP(البيانات!C798,'ارقام الغرف واسعارها'!$C$6:$D$105,2,FALSE),\"\")","v":""},"","انتهى الميعاد",0,{"$error":"#VALUE!"}]
[null,null,null,null,null,null,null,null,null,null,null,null,0,{"$f":"IFERROR(VLOOKUP(البيانات!C799,'ارقام الغرف واسعارها'!$C$6:$D$105,2,FALSE),\"\")","v":""},"","انتهى الميعاد",0,{"$error":"#VALUE!"}]
[null,null,null,null,null,null,null,null,null,null,null,null,0,{"$f":"IFERROR(VLOOKUP(البيانات!C800,'ارقام الغرف واسعارها'!$C$6:$D$105,2,FALSE),\"\")","v":""},"","انتهى الميعاد",0,{"$error":"#VALUE!"}]
[null,null,null,null,null,null,null,null,null,null,null,null,0,{"$f":"IFERROR(VLOOKUP(البيانات!C801,'ارقام الغرف واسعارها'!$C$6:$D$105,2,FALSE),\"\")","v":""},"","انتهى الميعاد",0,{"$error":"#VALUE!"}]
[null,null,null,null,null,null,null,null,null,null,null,null,0,{"$f":"IFERROR(VLOOKUP(البيانات!C802,'ارقام الغرف واسعارها'!$C$6:$D$105,2,FALSE),\"\")","v":""},"","انتهى الميعاد",0,{"$error":"#VALUE!"}]
[null,null,null,null,null,null,null,null,null,null,null,null,0,{"$f":"IFERROR(VLOOKUP(البيانات!C803,'ارقام الغرف واسعارها'!$C$6:$D$105,2,FALSE),\"\")","v":""},"","انتهى الميعاد",0,{"$error":"#VALUE!"}]
[null,null,null,null,null,null,null,null,null,null,null,null,0,{"$f":"IFERROR(VLOOKUP(البيانات!C804,'ارقام الغرف واسعارها'!$C$6:$D$105,2,FALSE),\"\")","v":""},"","انتهى الميعاد",0,{"$error":"#VALUE!"}]
[null,null,null,null,null,null,null,null,null,null,null,null,0,{"$f":"IFERROR(VLOOKUP(البيانات!C805,'ارقام الغرف واسعارها'!$C$6:$D$105,2,FALSE),\"\")","v":""},"","انتهى الميعاد",0,{"$error":"#VALUE!"}]
[null,null,null,null,null,null,null,null,null,null,null,null,0,{"$f":"IFERROR(VLOOKUP(البيانات!C806,'ارقام الغرف واسعارها'!$C$6:$D$105,2,FALSE),\"\")","v":""},"","انتهى الميعاد",0,{"$error":"#VALUE!"}]
[null,null,null,null,null,null,null,null,null,null,null,null,0,{"$f":"IFERROR(VLOOKUP(البيانات!C807,'ارقام الغرف واسعارها'!$C$6:$D$105,2,FALSE),\"\")","v":""},"","انتهى الميعاد",0,{"$error":"#VALUE!"}]
[null,null,null,null,null,null,null,null,null,null,null,null,0,{"$f":"IFERROR(VLOOKUP(البيانات!C808,'ارقام الغرف واسعارها'!$C$6:$D$105,2,FALSE),\"\")","v":""},"","انتهى الميعاد",0,{"$error":"#VALUE!"}]
[null,null,null,null,null,null,null,null,null,null,null,null,0,{"$f":"IFERROR(VLOOKUP(البيانات!C809,'ارقام الغرف واسعارها'!$C$6:$D$105,2,FALSE),\"\")","v":""},"","انتهى الميعاد",0,{"$error":"#VALUE!"}]
[null,null,null,null,null,null,null,null,null,null,null,null,0,{"$f":"IFERROR(VLOOKUP(البيانات!C810,'ارقام الغرف واسعارها'!$C$6:$D$105,2,FALSE),\"\")","v":""},"","انتهى الميعاد",0,{"$error":"#VALUE!"}]
[null,null,null,null,null,null,null,null,null,null,null,null,0,{"$f":"IFERROR(VLOOKUP(البيانات!C811,'ارقام الغرف واسعارها'!$C$6:$D$105,2,FALSE),\"\")","v":""},"","انتهى الميعاد",0,{"$error":"#VALUE!"}]
[null,null,null,null,null,null,null,null,null,null,null,null,0,{"$f":"IFERROR(VLOOKUP(البيانات!C812,'ارقام الغرف واسعارها'!$C$6:$D$105,2,FALSE),\"\")","v":""},"","انتهى الميعاد",0,{"$error":"#VALUE!"}]
[null,null,null,null,null,null,null,null,null,null,null,null,0,{"$f":"IFERROR(VLOOKUP(البيانات!C813,'ارقام الغرف واسعارها'!$C$6:$D$105,2,FALSE),\"\")","v":""},"","انتهى الميعاد",0,{"$error":"#VALUE!"}]
[null,null,null,null,null,null,null,null,null,null,null,null,0,{"$f":"IFERROR(VLOOKUP(البيانات!C814,'ارقام الغرف واسعارها'!$C$6:$D$105,2,FALSE),\"\")","v":""},"","انتهى الميعاد",0,{"$error":"#VALUE!"}]
[null,null,null,null,null,null,null,null,null,null,null,null,0,{"$f":"IFERROR(VLOOKUP(البيانات!C815,'ارقام الغرف واسعارها'!$C$6:$D$105,2,FALSE),\"\")","v":""},"","انتهى الميعاد",0,{"$error":"#VALUE!"}]
[null,null,null,null,null,null,null,null,null,null,null,null,0,{"$f":"IFERROR(VLOOKUP(البيانات!C816,'ارقام الغرف واسعارها'!$C$6:$D$105,2,FALSE),\"\")","v":""},"","انتهى الميعاد",0,{"$error":"#VALUE!"}]
[null,null,null,null,null,null,null,null,null,null,null,null,0,{"$f":"IFERROR(VLOOKUP(البيانات!C817,'ارقام الغرف واسعارها'!$C$6:$D$105,2,FALSE),\"\")","v":""},"","انتهى الميعاد",0,{"$error":"#VALUE!"}]
[null,null,null,null,null,null,null,null,null,null,null,null,0,{"$f":"IFERROR(VLOOKUP(البيانات!C818,'ارقام الغرف واسعارها'!$C$6:$D$105,2,FALSE),\"\")","v":""},"","انتهى الميعاد",0,{"$error":"#VALUE!"}]
[null,null,null,null,null,null,null,null,null,null,null,null,0,{"$f":"IFERROR(VLOOKUP(البيانات!C819,'ارقام الغرف واسعارها'!$C$6:$D$105,2,FALSE),\"\")","v":""},"","انتهى الميعاد",0,{"$error":"#VALUE!"}]
[null,null,null,null,null,null,null,null,null,null,null,null,0,{"$f":"IFERROR(VLOOKUP(البيانات!C820,'ارقام الغرف واسعارها'!$C$6:$D$105,2,FALSE),\"\")","v":""},"","انتهى الميعاد",0,{"$error":"#VALUE!"}]
[null,null,null,null,null,null,null,null,null,null,null,null,0,{"$f":"IFERROR(VLOOKUP(البيانات!C821,'ارقام الغرف واسعارها'!$C$6:$D$105,2,FALSE),\"\")","v":""},"","انتهى الميعاد",0,{"$error":"#VALUE!"}]
[null,null,null,null,null,null,null,null,null,null,null,null,0,{"$f":"IFERROR(VLOOKUP(البيانات!C822,'ارقام الغرف واسعارها'!$C$6:$D$105,2,FALSE),\"\")","v":""},"","انتهى الميعاد",0,{"$error":"#VALUE!"}]
[null,null,null,null,null,null,null,null,null,null,null,null,0,{"$f":"IFERROR(VLOOKUP(البيانات!C823,'ارقام الغرف واسعارها'!$C$6:$D$105,2,FALSE),\"\")","v":""},"","انتهى الميعاد",0,{"$error":"#VALUE!"}]
[null,null,null,null,null,null,null,null,null,null,null,null,0,{"$f":"IFERROR(VLOOKUP(البيانات!C824,'ارقام الغرف واسعارها'!$C$6:$D$105,2,FALSE),\"\")","v":""},"","انتهى الميعاد",0,{"$error":"#VALUE!"}]
[null,null,null,null,null,null,null,null,null,null,null,null,0,{"$f":"IFERROR(VLOOKUP(البيانات!C825,'ارقام الغرف واسعارها'!$C$6:$D$105,2,FALSE),\"\")","v":""},"","انتهى الميعاد",0,{"$error":"#VALUE!"}]
[null,null,null,null,null,null,null,null,null,null,null,null,0,{"$f":"IFERROR(VLOOKUP(البيانات!C826,'ارقام الغرف واسعارها'!$C$6:$D$105,2,FALSE),\"\")","v":""},"","انتهى الميعاد",0,{"$error":"#VALUE!"}]
[null,null,null,null,null,null,null,null,null,null,null,null,0,{"$f":"IFERROR(VLOOKUP(البيانات!C827,'ارقام الغرف واسعارها'!$C$6:$D$105,2,FALSE),\"\")","v":""},"","انتهى الميعاد",0,{"$error":"#VALUE!"}]
[null,null,null,null,null,null,null,null,null,null,null,null,0,{"$f":"IFERROR(VLOOKUP(البيانات!C828,'ارقام الغرف واسعارها'!$C$6:$D$105,2,FALSE),\"\")","v":""},"","انتهى الميعاد",0,{"$error":"#VALUE!"}]
[null,null,null,null,null,null,null,null,null,null,null,null,0,{"$f":"IFERROR(VLOOKUP(البيانات!C829,'ارقام الغرف واسعارها'!$C$6:$D$105,2,FALSE),\"\")","v":""},"","انتهى الميعاد",0,{"$error":"#VALUE!"}]
[null,null,null,null,null,null,null,null,null,null,null,null,0,{"$f":"IFERROR(VLOOKUP(البيانات!C830,'ارقام الغرف واسعارها'!$C$6:$D$105,2,FALSE),\"\")","v":""},"","انتهى الميعاد",0,{"$error":"#VALUE!"}]
[null,null,null,null,null,null,null,null,null,null,null,null,0,{"$f":"IFERROR(VLOOKUP(البيانات!C831,'ارقام الغرف واسعارها'!$C$6:$D$105,2,FALSE),\"\")","v":""},"","انتهى الميعاد",0,{"$error":"#VALUE!"}]
[null,null,null,null,null,null,null,null,null,null,null,null,0,{"$f":"IFERROR(VLOOKUP(البيانات!C832,'ارقام الغرف واسعارها'!$C$6:$D$105,2,FALSE),\"\")","v":""},"","انتهى الميعاد",0,{"$error":"#VALUE!"}]
[null,null,null,null,null,null,null,null,null,null,null,null,0,{"$f":"IFERROR(VLOOKUP(البيانات!C833,'ارقام الغرف واسعارها'!$C$6:$D$105,2,FALSE),\"\")","v":""},"","انتهى الميعاد",0,{"$error":"#VALUE!"}]
[null,null,null,null,null,null,null,null,null,null,null,null,0,{"$f":"IFERROR(VLOOKUP(البيانات!C834,'ارقام الغرف واسعارها'!$C$6:$D$105,2,FALSE),\"\")","v":""},"","انتهى الميعاد",0,{"$error":"#VALUE!"}]
[null,null,null,null,null,null,null,null,null,null,null,null,0,{"$f":"IFERROR(VLOOKUP(البيانات!C835,'ارقام الغرف واسعارها'!$C$6:$D$105,2,FALSE),\"\")","v":""},"","انتهى الميعاد",0,{"$error":"#VALUE!"}]
[null,null,null,null,null,null,null,null,null,null,null,null,0,{"$f":"IFERROR(VLOOKUP(البيانات!C836,'ارقام الغرف واسعارها'!$C$6:$D$105,2,FALSE),\"\")","v":""},"","انتهى الميعاد",0,{"$error":"#VALUE!"}]
[null,null,null,null,null,null,null,null,null,null,null,null,0,{"$f":"IFERROR(VLOOKUP(البيانات!C837,'ارقام الغرف واسعارها'!$C$6:$D$105,2,FALSE),\"\")","v":""},{"$f":"IFERROR(M837*N837,\"\")","v":""},"انتهى الميعاد",0,{"$error":"#VALUE!"}]
[null,null,null,null,null,null,null,null,null,null,null,null,{"$f":"E838-D838","v":0},{"$f":"IFERROR(VLOOKUP(البيانات!C838,'ارقام الغرف واسعارها'!$C$6:$D$105,2,FALSE),\"\")","v":""},"","انتهى الميعاد",0,{"$error":"#VALUE!"}]
[null,null,null,null,null,null,null,null,null,null,null,null,0,{"$f":"IFERROR(VLOOKUP(البيانات!C839,'ارقام الغرف واسعارها'!$C$6:$D$105,2,FALSE),\"\")","v":""},"",{"$f":"IF(M839<=0,\"انتهى الميعاد\",IF(M839=0,\"  اانتهى الميعاد اليوم\",IF(M839>0,\"لم ينتهى المبعاد\",\"\")))","v":"انتهى الميعاد"},{"$f":"K839*M839*$Q$2","v":0},{"$f":"O839+Q839","v":{"$error":"#VALUE!"}}]
[null,null,null,null,null,null,null,null,null,null,null,null,0,{"$f":"IFERROR(VLOOKUP(البيانات!C840,'ارقام الغرف واسعارها'!$C$6:$D$105,2,FALSE),\"\")","v":""},"","انتهى الميعاد",0,{"$error":"#VALUE!"}]
[null,null,null,null,null,null,null,null,null,null,null,null,0,{"$f":"IFERROR(VLOOKUP(البيانات!C841,'ارقام الغرف واسعارها'!$C$6:$D$105,2,FALSE),\"\")","v":""},"","انتهى الميعاد",0,{"$error":"#VALUE!"}]
[null,null,null,null,null,null,null,null,null,null,null,null,0,{"$f":"IFERROR(VLOOKUP(البيانات!C842,'ارقام الغرف واسعارها'!$C$6:$D$105,2,FALSE),\"\")","v":""},"","انتهى الميعاد",0,{"$error":"#VALUE!"}]
[null,null,null,null,null,null,null,null,null,null,null,null,0,{"$f":"IFERROR(VLOOKUP(البيانات!C843,'ارقام الغرف واسعارها'!$C$6:$D$105,2,FALSE),\"\")","v":""},"","انتهى الميعاد",0,{"$error":"#VALUE!"}]
[null,null,null,null,null,null,null,null,null,null,null,null,0,{"$f":"IFERROR(VLOOKUP(البيانات!C844,'ارقام الغرف واسعارها'!$C$6:$D$105,2,FALSE),\"\")","v":""},"","انتهى الميعاد",0,{"$error":"#VALUE!"}]
[null,null,null,null,null,null,null,null,null,null,null,null,0,{"$f":"IFERROR(VLOOKUP(البيانات!C845,'ارقام الغرف واسعارها'!$C$6:$D$105,2,FALSE),\"\")","v":""},"","انتهى الميعاد",0,{"$error":"#VALUE!"}]
[null,null,null,null,null,null,null,null,null,null,null,null,0,{"$f":"IFERROR(VLOOKUP(البيانات!C846,'ارقام الغرف واسعارها'!$C$6:$D$105,2,FALSE),\"\")","v":""},"","انتهى الميعاد",0,{"$error":"#VALUE!"}]
[null,null,null,null,null,null,null,null,null,null,null,null,0,{"$f":"IFERROR(VLOOKUP(البيانات!C847,'ارقام الغرف واسعارها'!$C$6:$D$105,2,FALSE),\"\")","v":""},"","انتهى الميعاد",0,{"$error":"#VALUE!"}]
[null,null,null,null,null,null,null,null,null,null,null,null,0,{"$f":"IFERROR(VLOOKUP(البيانات!C848,'ارقام الغرف واسعارها'!$C$6:$D$105,2,FALSE),\"\")","v":""},"","انتهى الميعاد",0,{"$error":"#VALUE!"}]
[null,null,null,null,null,null,null,null,null,null,null,null,0,{"$f":"IFERROR(VLOOKUP(البيانات!C849,'ارقام الغرف واسعارها'!$C$6:$D$105,2,FALSE),\"\")","v":""},"","انتهى الميعاد",0,{"$error":"#VALUE!"}]
[null,null,null,null,null,null,null,null,null,null,null,null,0,{"$f":"IFERROR(VLOOKUP(البيانات!C850,'ارقام الغرف واسعارها'!$C$6:$D$105,2,FALSE),\"\")","v":""},"","انتهى الميعاد",0,{"$error":"#VALUE!"}]
[null,null,null,null,null,null,null,null,null,null,null,null,0,{"$f":"IFERROR(VLOOKUP(البيانات!C851,'ارقام الغرف واسعارها'!$C$6:$D$105,2,FALSE),\"\")","v":""},"","انتهى الميعاد",0,{"$error":"#VALUE!"}]
[null,null,null,null,null,null,null,null,null,null,null,null,0,{"$f":"IFERROR(VLOOKUP(البيانات!C852,'ارقام الغرف واسعارها'!$C$6:$D$105,2,FALSE),\"\")","v":""},"","انتهى الميعاد",0,{"$error":"#VALUE!"}]
[null,null,null,null,null,null,null,null,null,null,null,null,0,{"$f":"IFERROR(VLOOKUP(البيانات!C853,'ارقام الغرف واسعارها'!$C$6:$D$105,2,FALSE),\"\")","v":""},"","انتهى الميعاد",0,{"$error":"#VALUE!"}]
[null,null,null,null,null,null,null,null,null,null,null,null,0,{"$f":"IFERROR(VLOOKUP(البيانات!C854,'ارقام الغرف واسعارها'!$C$6:$D$105,2,FALSE),\"\")","v":""},"","انتهى الميعاد",0,{"$error":"#VALUE!"}]
[null,null,null,null,null,null,null,null,null,null,null,null,0,{"$f":"IFERROR(VLOOKUP(البيانات!C855,'ارقام الغرف واسعارها'!$C$6:$D$105,2,FALSE),\"\")","v":""},"","انتهى الميعاد",0,{"$error":"#VALUE!"}]
[null,null,null,null,null,null,null,null,null,null,null,null,0,{"$f":"IFERROR(VLOOKUP(البيانات!C856,'ارقام الغرف واسعارها'!$C$6:$D$105,2,FALSE),\"\")","v":""},"","انتهى الميعاد",0,{"$error":"#VALUE!"}]
[null,null,null,null,null,null,null,null,null,null,null,null,0,{"$f":"IFERROR(VLOOKUP(البيانات!C857,'ارقام الغرف واسعارها'!$C$6:$D$105,2,FALSE),\"\")","v":""},"","انتهى الميعاد",0,{"$error":"#VALUE!"}]
[null,null,null,null,null,null,null,null,null,null,null,null,0,{"$f":"IFERROR(VLOOKUP(البيانات!C858,'ارقام الغرف واسعارها'!$C$6:$D$105,2,FALSE),\"\")","v":""},"","انتهى الميعاد",0,{"$error":"#VALUE!"}]
[null,null,null,null,null,null,null,null,null,null,null,null,0,{"$f":"IFERROR(VLOOKUP(البيانات!C859,'ارقام الغرف واسعارها'!$C$6:$D$105,2,FALSE),\"\")","v":""},"","انتهى الميعاد",0,{"$error":"#VALUE!"}]
[null,null,null,null,null,null,null,null,null,null,null,null,0,{"$f":"IFERROR(VLOOKUP(البيانات!C860,'ارقام الغرف واسعارها'!$C$6:$D$105,2,FALSE),\"\")","v":""},"","انتهى الميعاد",0,{"$error":"#VALUE!"}]
[null,null,null,null,null,null,null,null,null,null,null,null,0,{"$f":"IFERROR(VLOOKUP(البيانات!C861,'ارقام الغرف واسعارها'!$C$6:$D$105,2,FALSE),\"\")","v":""},"","انتهى الميعاد",0,{"$error":"#VALUE!"}]
[null,null,null,null,null,null,null,null,null,null,null,null,0,{"$f":"IFERROR(VLOOKUP(البيانات!C862,'ارقام الغرف واسعارها'!$C$6:$D$105,2,FALSE),\"\")","v":""},"","انتهى الميعاد",0,{"$error":"#VALUE!"}]
[null,null,null,null,null,null,null,null,null,null,null,null,0,{"$f":"IFERROR(VLOOKUP(البيانات!C863,'ارقام الغرف واسعارها'!$C$6:$D$105,2,FALSE),\"\")","v":""},"","انتهى الميعاد",0,{"$error":"#VALUE!"}]
[null,null,null,null,null,null,null,null,null,null,null,null,0,{"$f":"IFERROR(VLOOKUP(البيانات!C864,'ارقام الغرف واسعارها'!$C$6:$D$105,2,FALSE),\"\")","v":""},"","انتهى الميعاد",0,{"$error":"#VALUE!"}]
[null,null,null,null,null,null,null,null,null,null,null,null,0,{"$f":"IFERROR(VLOOKUP(البيانات!C865,'ارقام الغرف واسعارها'!$C$6:$D$105,2,FALSE),\"\")","v":""},"","انتهى الميعاد",0,{"$error":"#VALUE!"}]
[null,null,null,null,null,null,null,null,null,null,null,null,0,{"$f":"IFERROR(VLOOKUP(البيانات!C866,'ارقام الغرف واسعارها'!$C$6:$D$105,2,FALSE),\"\")","v":""},"","انتهى الميعاد",0,{"$error":"#VALUE!"}]
[null,null,null,null,null,null,null,null,null,null,null,null,0,{"$f":"IFERROR(VLOOKUP(البيانات!C867,'ارقام الغرف واسعارها'!$C$6:$D$105,2,FALSE),\"\")","v":""},"","انتهى الميعاد",0,{"$error":"#VALUE!"}]
[null,null,null,null,null,null,null,null,null,null,null,null,0,{"$f":"IFERROR(VLOOKUP(البيانات!C868,'ارقام الغرف واسعارها'!$C$6:$D$105,2,FALSE),\"\")","v":""},"","انتهى الميعاد",0,{"$error":"#VALUE!"}]
[null,null,null,null,null,null,null,null,null,null,null,null,0,{"$f":"IFERROR(VLOOKUP(البيانات!C869,'ارقام الغرف واسعارها'!$C$6:$D$105,2,FALSE),\"\")","v":""},"","انتهى الميعاد",0,{"$error":"#VALUE!"}]
[null,null,null,null,null,null,null,null,null,null,null,null,0,{"$f":"IFERROR(VLOOKUP(البيانات!C870,'ارقام الغرف واسعارها'!$C$6:$D$105,2,FALSE),\"\")","v":""},"","انتهى الميعاد",0,{"$error":"#VALUE!"}]
[null,null,null,null,null,null,null,null,null,null,null,null,0,{"$f":"IFERROR(VLOOKUP(البيانات!C871,'ارقام الغرف واسعارها'!$C$6:$D$105,2,FALSE),\"\")","v":""},"","انتهى الميعاد",0,{"$error":"#VALUE!"}]
[null,null,null,null,null,null,null,null,null,null,null,null,0,{"$f":"IFERROR(VLOOKUP(البيانات!C872,'ارقام الغرف واسعارها'!$C$6:$D$105,2,FALSE),\"\")","v":""},"","انتهى الميعاد",0,{"$error":"#VALUE!"}]
[null,null,null,null,null,null,null,null,null,null,null,null,0,{"$f":"IFERROR(VLOOKUP(البيانات!C873,'ارقام الغرف واسعارها'!$C$6:$D$105,2,FALSE),\"\")","v":""},"","انتهى الميعاد",0,{"$error":"#VALUE!"}]
[null,null,null,null,null,null,null,null,null,null,null,null,0,{"$f":"IFERROR(VLOOKUP(البيانات!C874,'ارقام الغرف واسعارها'!$C$6:$D$105,2,FALSE),\"\")","v":""},"","انتهى الميعاد",0,{"$error":"#VALUE!"}]
[null,null,null,null,null,null,null,null,null,null,null,null,0,{"$f":"IFERROR(VLOOKUP(البيانات!C875,'ارقام الغرف واسعارها'!$C$6:$D$105,2,FALSE),\"\")","v":""},"","انتهى الميعاد",0,{"$error":"#VALUE!"}]
[null,null,null,null,null,null,null,null,null,null,null,null,0,{"$f":"IFERROR(VLOOKUP(البيانات!C876,'ارقام الغرف واسعارها'!$C$6:$D$105,2,FALSE),\"\")","v":""},"","انتهى الميعاد",0,{"$error":"#VALUE!"}]
[null,null,null,null,null,null,null,null,null,null,null,null,0,{"$f":"IFERROR(VLOOKUP(البيانات!C877,'ارقام الغرف واسعارها'!$C$6:$D$105,2,FALSE),\"\")","v":""},"","انتهى الميعاد",0,{"$error":"#VALUE!"}]
[null,null,null,null,null,null,null,null,null,null,null,null,0,{"$f":"IFERROR(VLOOKUP(البيانات!C878,'ارقام الغرف واسعارها'!$C$6:$D$105,2,FALSE),\"\")","v":""},"","انتهى الميعاد",0,{"$error":"#VALUE!"}]
[null,null,null,null,null,null,null,null,null,null,null,null,0,{"$f":"IFERROR(VLOOKUP(البيانات!C879,'ارقام الغرف واسعارها'!$C$6:$D$105,2,FALSE),\"\")","v":""},"","انتهى الميعاد",0,{"$error":"#VALUE!"}]
[null,null,null,null,null,null,null,null,null,null,null,null,0,{"$f":"IFERROR(VLOOKUP(البيانات!C880,'ارقام الغرف واسعارها'!$C$6:$D$105,2,FALSE),\"\")","v":""},"","انتهى الميعاد",0,{"$error":"#VALUE!"}]
[null,null,null,null,null,null,null,null,null,null,null,null,0,{"$f":"IFERROR(VLOOKUP(البيانات!C881,'ارقام الغرف واسعارها'!$C$6:$D$105,2,FALSE),\"\")","v":""},"","انتهى الميعاد",0,{"$error":"#VALUE!"}]
[null,null,null,null,null,null,null,null,null,null,null,null,0,{"$f":"IFERROR(VLOOKUP(البيانات!C882,'ارقام الغرف واسعارها'!$C$6:$D$105,2,FALSE),\"\")","v":""},"","انتهى الميعاد",0,{"$error":"#VALUE!"}]
[null,null,null,null,null,null,null,null,null,null,null,null,0,{"$f":"IFERROR(VLOOKUP(البيانات!C883,'ارقام الغرف واسعارها'!$C$6:$D$105,2,FALSE),\"\")","v":""},"","انتهى الميعاد",0,{"$error":"#VALUE!"}]
[null,null,null,null,null,null,null,null,null,null,null,null,0,{"$f":"IFERROR(VLOOKUP(البيانات!C884,'ارقام الغرف واسعارها'!$C$6:$D$105,2,FALSE),\"\")","v":""},"","انتهى الميعاد",0,{"$error":"#VALUE!"}]
[null,null,null,null,null,null,null,null,null,null,null,null,0,{"$f":"IFERROR(VLOOKUP(البيانات!C885,'ارقام الغرف واسعارها'!$C$6:$D$105,2,FALSE),\"\")","v":""},"","انتهى الميعاد",0,{"$error":"#VALUE!"}]
[null,null,null,null,null,null,null,null,null,null,null,null,0,{"$f":"IFERROR(VLOOKUP(البيانات!C886,'ارقام الغرف واسعارها'!$C$6:$D$105,2,FALSE),\"\")","v":""},"","انتهى الميعاد",0,{"$error":"#VALUE!"}]
[null,null,null,null,null,null,null,null,null,null,null,null,0,{"$f":"IFERROR(VLOOKUP(البيانات!C887,'ارقام الغرف واسعارها'!$C$6:$D$105,2,FALSE),\"\")","v":""},"","انتهى الميعاد",0,{"$error":"#VALUE!"}]
[null,null,null,null,null,null,null,null,null,null,null,null,0,{"$f":"IFERROR(VLOOKUP(البيانات!C888,'ارقام الغرف واسعارها'!$C$6:$D$105,2,FALSE),\"\")","v":""},"","انتهى الميعاد",0,{"$error":"#VALUE!"}]
[null,null,null,null,null,null,null,null,null,null,null,null,0,{"$f":"IFERROR(VLOOKUP(البيانات!C889,'ارقام الغرف واسعارها'!$C$6:$D$105,2,FALSE),\"\")","v":""},"","انتهى الميعاد",0,{"$error":"#VALUE!"}]
[null,null,null,null,null,null,null,null,null,null,null,null,0,{"$f":"IFERROR(VLOOKUP(البيانات!C890,'ارقام الغرف واسعارها'!$C$6:$D$105,2,FALSE),\"\")","v":""},"","انتهى الميعاد",0,{"$error":"#VALUE!"}]
[null,null,null,null,null,null,null,null,null,null,null,null,0,{"$f":"IFERROR(VLOOKUP(البيانات!C891,'ارقام الغرف واسعارها'!$C$6:$D$105,2,FALSE),\"\")","v":""},"","انتهى الميعاد",0,{"$error":"#VALUE!"}]
[null,null,null,null,null,null,null,null,null,null,null,null,0,{"$f":"IFERROR(VLOOKUP(البيانات!C892,'ارقام الغرف واسعارها'!$C$6:$D$105,2,FALSE),\"\")","v":""},"","انتهى الميعاد",0,{"$error":"#VALUE!"}]
[null,null,null,null,null,null,null,null,null,null,null,null,0,{"$f":"IFERROR(VLOOKUP(البيانات!C893,'ارقام الغرف واسعارها'!$C$6:$D$105,2,FALSE),\"\")","v":""},"","انتهى الميعاد",0,{"$error":"#VALUE!"}]
[null,null,null,null,null,null,null,null,null,null,null,null,0,{"$f":"IFERROR(VLOOKUP(البيانات!C894,'ارقام الغرف واسعارها'!$C$6:$D$105,2,FALSE),\"\")","v":""},"","انتهى الميعاد",0,{"$error":"#VALUE!"}]
[null,null,null,null,null,null,null,null,null,null,null,null,0,{"$f":"IFERROR(VLOOKUP(البيانات!C895,'ارقام الغرف واسعارها'!$C$6:$D$105,2,FALSE),\"\")","v":""},"","انتهى الميعاد",0,{"$error":"#VALUE!"}]
[null,null,null,null,null,null,null,null,null,null,null,null,0,{"$f":"IFERROR(VLOOKUP(البيانات!C896,'ارقام الغرف واسعارها'!$C$6:$D$105,2,FALSE),\"\")","v":""},"","انتهى الميعاد",0,{"$error":"#VALUE!"}]
[null,null,null,null,null,null,null,null,null,null,null,null,0,{"$f":"IFERROR(VLOOKUP(البيانات!C897,'ارقام الغرف واسعارها'!$C$6:$D$105,2,FALSE),\"\")","v":""},"","انتهى الميعاد",0,{"$error":"#VALUE!"}]
[null,null,null,null,null,null,null,null,null,null,null,null,0,{"$f":"IFERROR(VLOOKUP(البيانات!C898,'ارقام الغرف واسعارها'!$C$6:$D$105,2,FALSE),\"\")","v":""},"","انتهى الميعاد",0,{"$error":"#VALUE!"}]
[null,null,null,null,null,null,null,null,null,null,null,null,0,{"$f":"IFERROR(VLOOKUP(البيانات!C899,'ارقام الغرف واسعارها'!$C$6:$D$105,2,FALSE),\"\")","v":""},"","انتهى الميعاد",0,{"$error":"#VALUE!"}]
[null,null,null,null,null,null,null,null,null,null,null,null,0,{"$f":"IFERROR(VLOOKUP(البيانات!C900,'ارقام الغرف واسعارها'!$C$6:$D$105,2,FALSE),\"\")","v":""},"","انتهى الميعاد",0,{"$error":"#VALUE!"}]
[null,null,null,null,null,null,null,null,null,null,null,null,0,{"$f":"IFERROR(VLOOKUP(البيانات!C901,'ارقام الغرف واسعارها'!$C$6:$D$105,2,FALSE),\"\")","v":""},{"$f":"IFERROR(M901*N901,\"\")","v":""},"انتهى الميعاد",0,{"$error":"#VALUE!"}]
[null,null,null,null,null,null,null,null,null,null,null,null,{"$f":"E902-D902","v":0},{"$f":"IFERROR(VLOOKUP(البيانات!C902,'ارقام الغرف واسعارها'!$C$6:$D$105,2,FALSE),\"\")","v":""},"","انتهى الميعاد",0,{"$error":"#VALUE!"}]
[null,null,null,null,null,null,null,null,null,null,null,null,0,{"$f":"IFERROR(VLOOKUP(البيانات!C903,'ارقام الغرف واسعارها'!$C$6:$D$105,2,FALSE),\"\")","v":""},"",{"$f":"IF(M903<=0,\"انتهى الميعاد\",IF(M903=0,\"  اانتهى الميعاد اليوم\",IF(M903>0,\"لم ينتهى المبعاد\",\"\")))","v":"انتهى الميعاد"},{"$f":"K903*M903*$Q$2","v":0},{"$f":"O903+Q903","v":{"$error":"#VALUE!"}}]
[null,null,null,null,null,null,null,null,null,null,null,null,0,{"$f":"IFERROR(VLOOKUP(البيانات!C904,'ارقام الغرف واسعارها'!$C$6:$D$105,2,FALSE),\"\")","v":""},"","انتهى الميعاد",0,{"$error":"#VALUE!"}]
[null,null,null,null,null,null,null,null,null,null,null,null,0,{"$f":"IFERROR(VLOOKUP(البيانات!C905,'ارقام الغرف واسعارها'!$C$6:$D$105,2,FALSE),\"\")","v":""},"","انتهى الميعاد",0,{"$error":"#VALUE!"}]
[null,null,null,null,null,null,null,null,null,null,null,null,0,{"$f":"IFERROR(VLOOKUP(البيانات!C906,'ارقام الغرف واسعارها'!$C$6:$D$105,2,FALSE),\"\")","v":""},"","انتهى الميعاد",0,{"$error":"#VALUE!"}]
[null,null,null,null,null,null,null,null,null,null,null,null,0,{"$f":"IFERROR(VLOOKUP(البيانات!C907,'ارقام الغرف واسعارها'!$C$6:$D$105,2,FALSE),\"\")","v":""},"","انتهى الميعاد",0,{"$error":"#VALUE!"}]
[null,null,null,null,null,null,null,null,null,null,null,null,0,{"$f":"IFERROR(VLOOKUP(البيانات!C908,'ارقام الغرف واسعارها'!$C$6:$D$105,2,FALSE),\"\")","v":""},"","انتهى الميعاد",0,{"$error":"#VALUE!"}]
[null,null,null,null,null,null,null,null,null,null,null,null,0,{"$f":"IFERROR(VLOOKUP(البيانات!C909,'ارقام الغرف واسعارها'!$C$6:$D$105,2,FALSE),\"\")","v":""},"","انتهى الميعاد",0,{"$error":"#VALUE!"}]
[null,null,null,null,null,null,null,null,null,null,null,null,0,{"$f":"IFERROR(VLOOKUP(البيانات!C910,'ارقام الغرف واسعارها'!$C$6:$D$105,2,FALSE),\"\")","v":""},"","انتهى الميعاد",0,{"$error":"#VALUE!"}]
[null,null,null,null,null,null,null,null,null,null,null,null,0,{"$f":"IFERROR(VLOOKUP(البيانات!C911,'ارقام الغرف واسعارها'!$C$6:$D$105,2,FALSE),\"\")","v":""},"","انتهى الميعاد",0,{"$error":"#VALUE!"}]
[null,null,null,null,null,null,null,null,null,null,null,null,0,{"$f":"IFERROR(VLOOKUP(البيانات!C912,'ارقام الغرف واسعارها'!$C$6:$D$105,2,FALSE),\"\")","v":""},"","انتهى الميعاد",0,{"$error":"#VALUE!"}]
[null,null,null,null,null,null,null,null,null,null,null,null,0,{"$f":"IFERROR(VLOOKUP(البيانات!C913,'ارقام الغرف واسعارها'!$C$6:$D$105,2,FALSE),\"\")","v":""},"","انتهى الميعاد",0,{"$error":"#VALUE!"}]
[null,null,null,null,null,null,null,null,null,null,null,null,0,{"$f":"IFERROR(VLOOKUP(البيانات!C914,'ارقام الغرف واسعارها'!$C$6:$D$105,2,FALSE),\"\")","v":""},"","انتهى الميعاد",0,{"$error":"#VALUE!"}]
[null,null,null,null,null,null,null,null,null,null,null,null,0,{"$f":"IFERROR(VLOOKUP(البيانات!C915,'ارقام الغرف واسعارها'!$C$6:$D$105,2,FALSE),\"\")","v":""},"","انتهى الميعاد",0,{"$error":"#VALUE!"}]
[null,null,null,null,null,null,null,null,null,null,null,null,0,{"$f":"IFERROR(VLOOKUP(البيانات!C916,'ارقام الغرف واسعارها'!$C$6:$D$105,2,FALSE),\"\")","v":""},"","انتهى الميعاد",0,{"$error":"#VALUE!"}]
[null,null,null,null,null,null,null,null,null,null,null,null,0,{"$f":"IFERROR(VLOOKUP(البيانات!C917,'ارقام الغرف واسعارها'!$C$6:$D$105,2,FALSE),\"\")","v":""},"","انتهى الميعاد",0,{"$error":"#VALUE!"}]
[null,null,null,null,null,null,null,null,null,null,null,null,0,{"$f":"IFERROR(VLOOKUP(البيانات!C918,'ارقام الغرف واسعارها'!$C$6:$D$105,2,FALSE),\"\")","v":""},"","انتهى الميعاد",0,{"$error":"#VALUE!"}]
[null,null,null,null,null,null,null,null,null,null,null,null,0,{"$f":"IFERROR(VLOOKUP(البيانات!C919,'ارقام الغرف واسعارها'!$C$6:$D$105,2,FALSE),\"\")","v":""},"","انتهى الميعاد",0,{"$error":"#VALUE!"}]
[null,null,null,null,null,null,null,null,null,null,null,null,0,{"$f":"IFERROR(VLOOKUP(البيانات!C920,'ارقام الغرف واسعارها'!$C$6:$D$105,2,FALSE),\"\")","v":""},"","انتهى الميعاد",0,{"$error":"#VALUE!"}]
[null,null,null,null,null,null,null,null,null,null,null,null,0,{"$f":"IFERROR(VLOOKUP(البيانات!C921,'ارقام الغرف واسعارها'!$C$6:$D$105,2,FALSE),\"\")","v":""},"","انتهى الميعاد",0,{"$error":"#VALUE!"}]
[null,null,null,null,null,null,null,null,null,null,null,null,0,{"$f":"IFERROR(VLOOKUP(البيانات!C922,'ارقام الغرف واسعارها'!$C$6:$D$105,2,FALSE),\"\")","v":""},"","انتهى الميعاد",0,{"$error":"#VALUE!"}]
[null,null,null,null,null,null,null,null,null,null,null,null,0,{"$f":"IFERROR(VLOOKUP(البيانات!C923,'ارقام الغرف واسعارها'!$C$6:$D$105,2,FALSE),\"\")","v":""},"","انتهى الميعاد",0,{"$error":"#VALUE!"}]
[null,null,null,null,null,null,null,null,null,null,null,null,0,{"$f":"IFERROR(VLOOKUP(البيانات!C924,'ارقام الغرف واسعارها'!$C$6:$D$105,2,FALSE),\"\")","v":""},"","انتهى الميعاد",0,{"$error":"#VALUE!"}]
[null,null,null,null,null,null,null,null,null,null,null,null,0,{"$f":"IFERROR(VLOOKUP(البيانات!C925,'ارقام الغرف واسعارها'!$C$6:$D$105,2,FALSE),\"\")","v":""},"","انتهى الميعاد",0,{"$error":"#VALUE!"}]
[null,null,null,null,null,null,null,null,null,null,null,null,0,{"$f":"IFERROR(VLOOKUP(البيانات!C926,'ارقام الغرف واسعارها'!$C$6:$D$105,2,FALSE),\"\")","v":""},"","انتهى الميعاد",0,{"$error":"#VALUE!"}]
[null,null,null,null,null,null,null,null,null,null,null,null,0,{"$f":"IFERROR(VLOOKUP(البيانات!C927,'ارقام الغرف واسعارها'!$C$6:$D$105,2,FALSE),\"\")","v":""},"","انتهى الميعاد",0,{"$error":"#VALUE!"}]
[null,null,null,null,null,null,null,null,null,null,null,null,0,{"$f":"IFERROR(VLOOKUP(البيانات!C928,'ارقام الغرف واسعارها'!$C$6:$D$105,2,FALSE),\"\")","v":""},"","انتهى الميعاد",0,{"$error":"#VALUE!"}]
[null,null,null,null,null,null,null,null,null,null,null,null,0,{"$f":"IFERROR(VLOOKUP(البيانات!C929,'ارقام الغرف واسعارها'!$C$6:$D$105,2,FALSE),\"\")","v":""},"","انتهى الميعاد",0,{"$error":"#VALUE!"}]
[null,null,null,null,null,null,null,null,null,null,null,null,0,{"$f":"IFERROR(VLOOKUP(البيانات!C930,'ارقام الغرف واسعارها'!$C$6:$D$105,2,FALSE),\"\")","v":""},"","انتهى الميعاد",0,{"$error":"#VALUE!"}]
[null,null,null,null,null,null,null,null,null,null,null,null,0,{"$f":"IFERROR(VLOOKUP(البيانات!C931,'ارقام الغرف واسعارها'!$C$6:$D$105,2,FALSE),\"\")","v":""},"","انتهى الميعاد",0,{"$error":"#VALUE!"}]
[null,null,null,null,null,null,null,null,null,null,null,null,0,{"$f":"IFERROR(VLOOKUP(البيانات!C932,'ارقام الغرف واسعارها'!$C$6:$D$105,2,FALSE),\"\")","v":""},"","انتهى الميعاد",0,{"$error":"#VALUE!"}]
[null,null,null,null,null,null,null,null,null,null,null,null,0,{"$f":"IFERROR(VLOOKUP(البيانات!C933,'ارقام الغرف واسعارها'!$C$6:$D$105,2,FALSE),\"\")","v":""},"","انتهى الميعاد",0,{"$error":"#VALUE!"}]
[null,null,null,null,null,null,null,null,null,null,null,null,0,{"$f":"IFERROR(VLOOKUP(البيانات!C934,'ارقام الغرف واسعارها'!$C$6:$D$105,2,FALSE),\"\")","v":""},"","انتهى الميعاد",0,{"$error":"#VALUE!"}]
[null,null,null,null,null,null,null,null,null,null,null,null,0,{"$f":"IFERROR(VLOOKUP(البيانات!C935,'ارقام الغرف واسعارها'!$C$6:$D$105,2,FALSE),\"\")","v":""},"","انتهى الميعاد",0,{"$error":"#VALUE!"}]
[null,null,null,null,null,null,null,null,null,null,null,null,0,{"$f":"IFERROR(VLOOKUP(البيانات!C936,'ارقام الغرف واسعارها'!$C$6:$D$105,2,FALSE),\"\")","v":""},"","انتهى الميعاد",0,{"$error":"#VALUE!"}]
[null,null,null,null,null,null,null,null,null,null,null,null,0,{"$f":"IFERROR(VLOOKUP(البيانات!C937,'ارقام الغرف واسعارها'!$C$6:$D$105,2,FALSE),\"\")","v":""},"","انتهى الميعاد",0,{"$error":"#VALUE!"}]
[null,null,null,null,null,null,null,null,null,null,null,null,0,{"$f":"IFERROR(VLOOKUP(البيانات!C938,'ارقام الغرف واسعارها'!$C$6:$D$105,2,FALSE),\"\")","v":""},"","انتهى الميعاد",0,{"$error":"#VALUE!"}]
[null,null,null,null,null,null,null,null,null,null,null,null,0,{"$f":"IFERROR(VLOOKUP(البيانات!C939,'ارقام الغرف واسعارها'!$C$6:$D$105,2,FALSE),\"\")","v":""},"","انتهى الميعاد",0,{"$error":"#VALUE!"}]
[null,null,null,null,null,null,null,null,null,null,null,null,0,{"$f":"IFERROR(VLOOKUP(البيانات!C940,'ارقام الغرف واسعارها'!$C$6:$D$105,2,FALSE),\"\")","v":""},"","انتهى الميعاد",0,{"$error":"#VALUE!"}]
[null,null,null,null,null,null,null,null,null,null,null,null,0,{"$f":"IFERROR(VLOOKUP(البيانات!C941,'ارقام الغرف واسعارها'!$C$6:$D$105,2,FALSE),\"\")","v":""},"","انتهى الميعاد",0,{"$error":"#VALUE!"}]
[null,null,null,null,null,null,null,null,null,null,null,null,0,{"$f":"IFERROR(VLOOKUP(البيانات!C942,'ارقام الغرف واسعارها'!$C$6:$D$105,2,FALSE),\"\")","v":""},"","انتهى الميعاد",0,{"$error":"#VALUE!"}]
[null,null,null,null,null,null,null,null,null,null,null,null,0,{"$f":"IFERROR(VLOOKUP(البيانات!C943,'ارقام الغرف واسعارها'!$C$6:$D$105,2,FALSE),\"\")","v":""},"","انتهى الميعاد",0,{"$error":"#VALUE!"}]
[null,null,null,null,null,null,null,null,null,null,null,null,0,{"$f":"IFERROR(VLOOKUP(البيانات!C944,'ارقام الغرف واسعارها'!$C$6:$D$105,2,FALSE),\"\")","v":""},"","انتهى الميعاد",0,{"$error":"#VALUE!"}]
[null,null,null,null,null,null,null,null,null,null,null,null,0,{"$f":"IFERROR(VLOOKUP(البيانات!C945,'ارقام الغرف واسعارها'!$C$6:$D$105,2,FALSE),\"\")","v":""},"","انتهى الميعاد",0,{"$error":"#VALUE!"}]
[null,null,null,null,null,null,null,null,null,null,null,null,0,{"$f":"IFERROR(VLOOKUP(البيانات!C946,'ارقام الغرف واسعارها'!$C$6:$D$105,2,FALSE),\"\")","v":""},"","انتهى الميعاد",0,{"$error":"#VALUE!"}]
[null,null,null,null,null,null,null,null,null,null,null,null,0,{"$f":"IFERROR(VLOOKUP(البيانات!C947,'ارقام الغرف واسعارها'!$C$6:$D$105,2,FALSE),\"\")","v":""},"","انتهى الميعاد",0,{"$error":"#VALUE!"}]
[null,null,null,null,null,null,null,null,null,null,null,null,0,{"$f":"IFERROR(VLOOKUP(البيانات!C948,'ارقام الغرف واسعارها'!$C$6:$D$105,2,FALSE),\"\")","v":""},"","انتهى الميعاد",0,{"$error":"#VALUE!"}]
[null,null,null,null,null,null,null,null,null,null,null,null,0,{"$f":"IFERROR(VLOOKUP(البيانات!C949,'ارقام الغرف واسعارها'!$C$6:$D$105,2,FALSE),\"\")","v":""},"","انتهى الميعاد",0,{"$error":"#VALUE!"}]
[null,null,null,null,null,null,null,null,null,null,null,null,0,{"$f":"IFERROR(VLOOKUP(البيانات!C950,'ارقام الغرف واسعارها'!$C$6:$D$105,2,FALSE),\"\")","v":""},"","انتهى الميعاد",0,{"$error":"#VALUE!"}]
[null,null,null,null,null,null,null,null,null,null,null,null,0,{"$f":"IFERROR(VLOOKUP(البيانات!C951,'ارقام الغرف واسعارها'!$C$6:$D$105,2,FALSE),\"\")","v":""},"","انتهى الميعاد",0,{"$error":"#VALUE!"}]
[null,null,null,null,null,null,null,null,null,null,null,null,0,{"$f":"IFERROR(VLOOKUP(البيانات!C952,'ارقام الغرف واسعارها'!$C$6:$D$105,2,FALSE),\"\")","v":""},"","انتهى الميعاد",0,{"$error":"#VALUE!"}]
[null,null,null,null,null,null,null,null,null,null,null,null,0,{"$f":"IFERROR(VLOOKUP(البيانات!C953,'ارقام الغرف واسعارها'!$C$6:$D$105,2,FALSE),\"\")","v":""},"","انتهى الميعاد",0,{"$error":"#VALUE!"}]
[null,null,null,null,null,null,null,null,null,null,null,null,0,{"$f":"IFERROR(VLOOKUP(البيانات!C954,'ارقام الغرف واسعارها'!$C$6:$D$105,2,FALSE),\"\")","v":""},"","انتهى الميعاد",0,{"$error":"#VALUE!"}]
[null,null,null,null,null,null,null,null,null,null,null,null,0,{"$f":"IFERROR(VLOOKUP(البيانات!C955,'ارقام الغرف واسعارها'!$C$6:$D$105,2,FALSE),\"\")","v":""},"","انتهى الميعاد",0,{"$error":"#VALUE!"}]
[null,null,null,null,null,null,null,null,null,null,null,null,0,{"$f":"IFERROR(VLOOKUP(البيانات!C956,'ارقام الغرف واسعارها'!$C$6:$D$105,2,FALSE),\"\")","v":""},"","انتهى الميعاد",0,{"$error":"#VALUE!"}]
[null,null,null,null,null,null,null,null,null,null,null,null,0,{"$f":"IFERROR(VLOOKUP(البيانات!C957,'ارقام الغرف واسعارها'!$C$6:$D$105,2,FALSE),\"\")","v":""},"","انتهى الميعاد",0,{"$error":"#VALUE!"}]
[null,null,null,null,null,null,null,null,null,null,null,null,0,{"$f":"IFERROR(VLOOKUP(البيانات!C958,'ارقام الغرف واسعارها'!$C$6:$D$105,2,FALSE),\"\")","v":""},"","انتهى الميعاد",0,{"$error":"#VALUE!"}]
[null,null,null,null,null,null,null,null,null,null,null,null,0,{"$f":"IFERROR(VLOOKUP(البيانات!C959,'ارقام الغرف واسعارها'!$C$6:$D$105,2,FALSE),\"\")","v":""},"","انتهى الميعاد",0,{"$error":"#VALUE!"}]
[null,null,null,null,null,null,null,null,null,null,null,null,0,{"$f":"IFERROR(VLOOKUP(البيانات!C960,'ارقام الغرف واسعارها'!$C$6:$D$105,2,FALSE),\"\")","v":""},"","انتهى الميعاد",0,{"$error":"#VALUE!"}]
[null,null,null,null,null,null,null,null,null,null,null,null,0,{"$f":"IFERROR(VLOOKUP(البيانات!C961,'ارقام الغرف واسعارها'!$C$6:$D$105,2,FALSE),\"\")","v":""},"","انتهى الميعاد",0,{"$error":"#VALUE!"}]
[null,null,null,null,null,null,null,null,null,null,null,null,0,{"$f":"IFERROR(VLOOKUP(البيانات!C962,'ارقام الغرف واسعارها'!$C$6:$D$105,2,FALSE),\"\")","v":""},"","انتهى الميعاد",0,{"$error":"#VALUE!"}]
[null,null,null,null,null,null,null,null,null,null,null,null,0,{"$f":"IFERROR(VLOOKUP(البيانات!C963,'ارقام الغرف واسعارها'!$C$6:$D$105,2,FALSE),\"\")","v":""},"","انتهى الميعاد",0,{"$error":"#VALUE!"}]
[null,null,null,null,null,null,null,null,null,null,null,null,0,{"$f":"IFERROR(VLOOKUP(البيانات!C964,'ارقام الغرف واسعارها'!$C$6:$D$105,2,FALSE),\"\")","v":""},"","انتهى الميعاد",0,{"$error":"#VALUE!"}]
[null,null,null,null,null,null,null,null,null,null,null,null,0,{"$f":"IFERROR(VLOOKUP(البيانات!C965,'ارقام الغرف واسعارها'!$C$6:$D$105,2,FALSE),\"\")","v":""},{"$f":"IFERROR(M965*N965,\"\")","v":""},"انتهى الميعاد",0,{"$error":"#VALUE!"}]
[null,null,null,null,null,null,null,null,null,null,null,null,{"$f":"E966-D966","v":0},{"$f":"IFERROR(VLOOKUP(البيانات!C966,'ارقام الغرف واسعارها'!$C$6:$D$105,2,FALSE),\"\")","v":""},"","انتهى الميعاد",0,{"$error":"#VALUE!"}]
[null,null,null,null,null,null,null,null,null,null,null,null,0,{"$f":"IFERROR(VLOOKUP(البيانات!C967,'ارقام الغرف واسعارها'!$C$6:$D$105,2,FALSE),\"\")","v":""},"",{"$f":"IF(M967<=0,\"انتهى الميعاد\",IF(M967=0,\"  اانتهى الميعاد اليوم\",IF(M967>0,\"لم ينتهى المبعاد\",\"\")))","v":"انتهى الميعاد"},{"$f":"K967*M967*$Q$2","v":0},{"$f":"O967+Q967","v":{"$error":"#VALUE!"}}]
[null,null,null,null,null,null,null,null,null,null,null,null,0,{"$f":"IFERROR(VLOOKUP(البيانات!C968,'ارقام الغرف واسعارها'!$C$6:$D$105,2,FALSE),\"\")","v":""},"","انتهى الميعاد",0,{"$error":"#VALUE!"}]
[null,null,null,null,null,null,null,null,null,null,null,null,0,{"$f":"IFERROR(VLOOKUP(البيانات!C969,'ارقام الغرف واسعارها'!$C$6:$D$105,2,FALSE),\"\")","v":""},"","انتهى الميعاد",0,{"$error":"#VALUE!"}]
[null,null,null,null,null,null,null,null,null,null,null,null,0,{"$f":"IFERROR(VLOOKUP(البيانات!C970,'ارقام الغرف واسعارها'!$C$6:$D$105,2,FALSE),\"\")","v":""},"","انتهى الميعاد",0,{"$error":"#VALUE!"}]
[null,null,null,null,null,null,null,null,null,null,null,null,0,{"$f":"IFERROR(VLOOKUP(البيانات!C971,'ارقام الغرف واسعارها'!$C$6:$D$105,2,FALSE),\"\")","v":""},"","انتهى الميعاد",0,{"$error":"#VALUE!"}]
[null,null,null,null,null,null,null,null,null,null,null,null,0,{"$f":"IFERROR(VLOOKUP(البيانات!C972,'ارقام الغرف واسعارها'!$C$6:$D$105,2,FALSE),\"\")","v":""},"","انتهى الميعاد",0,{"$error":"#VALUE!"}]
[null,null,null,null,null,null,null,null,null,null,null,null,0,{"$f":"IFERROR(VLOOKUP(البيانات!C973,'ارقام الغرف واسعارها'!$C$6:$D$105,2,FALSE),\"\")","v":""},"","انتهى الميعاد",0,{"$error":"#VALUE!"}]
[null,null,null,null,null,null,null,null,null,null,null,null,0,{"$f":"IFERROR(VLOOKUP(البيانات!C974,'ارقام الغرف واسعارها'!$C$6:$D$105,2,FALSE),\"\")","v":""},"","انتهى الميعاد",0,{"$error":"#VALUE!"}]
[null,null,null,null,null,null,null,null,null,null,null,null,0,{"$f":"IFERROR(VLOOKUP(البيانات!C975,'ارقام الغرف واسعارها'!$C$6:$D$105,2,FALSE),\"\")","v":""},"","انتهى الميعاد",0,{"$error":"#VALUE!"}]
[null,null,null,null,null,null,null,null,null,null,null,null,0,{"$f":"IFERROR(VLOOKUP(البيانات!C976,'ارقام الغرف واسعارها'!$C$6:$D$105,2,FALSE),\"\")","v":""},"","انتهى الميعاد",0,{"$error":"#VALUE!"}]
[null,null,null,null,null,null,null,null,null,null,null,null,0,{"$f":"IFERROR(VLOOKUP(البيانات!C977,'ارقام الغرف واسعارها'!$C$6:$D$105,2,FALSE),\"\")","v":""},"","انتهى الميعاد",0,{"$error":"#VALUE!"}]
[null,null,null,null,null,null,null,null,null,null,null,null,0,{"$f":"IFERROR(VLOOKUP(البيانات!C978,'ارقام الغرف واسعارها'!$C$6:$D$105,2,FALSE),\"\")","v":""},"","انتهى الميعاد",0,{"$error":"#VALUE!"}]
[null,null,null,null,null,null,null,null,null,null,null,null,0,{"$f":"IFERROR(VLOOKUP(البيانات!C979,'ارقام الغرف واسعارها'!$C$6:$D$105,2,FALSE),\"\")","v":""},"","انتهى الميعاد",0,{"$error":"#VALUE!"}]
[null,null,null,null,null,null,null,null,null,null,null,null,0,{"$f":"IFERROR(VLOOKUP(البيانات!C980,'ارقام الغرف واسعارها'!$C$6:$D$105,2,FALSE),\"\")","v":""},"","انتهى الميعاد",0,{"$error":"#VALUE!"}]
[null,null,null,null,null,null,null,null,null,null,null,null,0,{"$f":"IFERROR(VLOOKUP(البيانات!C981,'ارقام الغرف واسعارها'!$C$6:$D$105,2,FALSE),\"\")","v":""},"","انتهى الميعاد",0,{"$error":"#VALUE!"}]
[null,null,null,null,null,null,null,null,null,null,null,null,0,{"$f":"IFERROR(VLOOKUP(البيانات!C982,'ارقام الغرف واسعارها'!$C$6:$D$105,2,FALSE),\"\")","v":""},"","انتهى الميعاد",0,{"$error":"#VALUE!"}]
[null,null,null,null,null,null,null,null,null,null,null,null,0,{"$f":"IFERROR(VLOOKUP(البيانات!C983,'ارقام الغرف واسعارها'!$C$6:$D$105,2,FALSE),\"\")","v":""},"","انتهى الميعاد",0,{"$error":"#VALUE!"}]
[null,null,null,null,null,null,null,null,null,null,null,null,0,{"$f":"IFERROR(VLOOKUP(البيانات!C984,'ارقام الغرف واسعارها'!$C$6:$D$105,2,FALSE),\"\")","v":""},"","انتهى الميعاد",0,{"$error":"#VALUE!"}]
[null,null,null,null,null,null,null,null,null,null,null,null,0,{"$f":"IFERROR(VLOOKUP(البيانات!C985,'ارقام الغرف واسعارها'!$C$6:$D$105,2,FALSE),\"\")","v":""},"","انتهى الميعاد",0,{"$error":"#VALUE!"}]
[null,null,null,null,null,null,null,null,null,null,null,null,0,{"$f":"IFERROR(VLOOKUP(البيانات!C986,'ارقام الغرف واسعارها'!$C$6:$D$105,2,FALSE),\"\")","v":""},"","انتهى الميعاد",0,{"$error":"#VALUE!"}]
[null,null,null,null,null,null,null,null,null,null,null,null,0,{"$f":"IFERROR(VLOOKUP(البيانات!C987,'ارقام الغرف واسعارها'!$C$6:$D$105,2,FALSE),\"\")","v":""},"","انتهى الميعاد",0,{"$error":"#VALUE!"}]
[null,null,null,null,null,null,null,null,null,null,null,null,0,{"$f":"IFERROR(VLOOKUP(البيانات!C988,'ارقام الغرف واسعارها'!$C$6:$D$105,2,FALSE),\"\")","v":""},"","انتهى الميعاد",0,{"$error":"#VALUE!"}]
[null,null,null,null,null,null,null,null,null,null,null,null,0,{"$f":"IFERROR(VLOOKUP(البيانات!C989,'ارقام الغرف واسعارها'!$C$6:$D$105,2,FALSE),\"\")","v":""},"","انتهى الميعاد",0,{"$error":"#VALUE!"}]
[null,null,null,null,null,null,null,null,null,null,null,null,0,{"$f":"IFERROR(VLOOKUP(البيانات!C990,'ارقام الغرف واسعارها'!$C$6:$D$105,2,FALSE),\"\")","v":""},"","انتهى الميعاد",0,{"$error":"#VALUE!"}]
[null,null,null,null,null,null,null,null,null,null,null,null,0,{"$f":"IFERROR(VLOOKUP(البيانات!C991,'ارقام الغرف واسعارها'!$C$6:$D$105,2,FALSE),\"\")","v":""},"","انتهى الميعاد",0,{"$error":"#VALUE!"}]
[null,null,null,null,null,null,null,null,null,null,null,null,0,{"$f":"IFERROR(VLOOKUP(البيانات!C992,'ارقام الغرف واسعارها'!$C$6:$D$105,2,FALSE),\"\")","v":""},"","انتهى الميعاد",0,{"$error":"#VALUE!"}]
[null,null,null,null,null,null,null,null,null,null,null,null,0,{"$f":"IFERROR(VLOOKUP(البيانات!C993,'ارقام الغرف واسعارها'!$C$6:$D$105,2,FALSE),\"\")","v":""},"","انتهى الميعاد",0,{"$error":"#VALUE!"}]
[null,null,null,null,null,null,null,null,null,null,null,null,0,{"$f":"IFERROR(VLOOKUP(البيانات!C994,'ارقام الغرف واسعارها'!$C$6:$D$105,2,FALSE),\"\")","v":""},"","انتهى الميعاد",0,{"$error":"#VALUE!"}]
[null,null,null,null,null,null,null,null,null,null,null,null,0,{"$f":"IFERROR(VLOOKUP(البيانات!C995,'ارقام الغرف واسعارها'!$C$6:$D$105,2,FALSE),\"\")","v":""},"","انتهى الميعاد",0,{"$error":"#VALUE!"}]
[null,null,null,null,null,null,null,null,null,null,null,null,0,{"$f":"IFERROR(VLOOKUP(البيانات!C996,'ارقام الغرف واسعارها'!$C$6:$D$105,2,FALSE),\"\")","v":""},"","انتهى الميعاد",0,{"$error":"#VALUE!"}]
[null,null,null,null,null,null,null,null,null,null,null,null,0,{"$f":"IFERROR(VLOOKUP(البيانات!C997,'ارقام الغرف واسعارها'!$C$6:$D$105,2,FALSE),\"\")","v":""},"","انتهى الميعاد",0,{"$error":"#VALUE!"}]
[null,null,null,null,null,null,null,null,null,null,null,null,0,{"$f":"IFERROR(VLOOKUP(البيانات!C998,'ارقام الغرف واسعارها'!$C$6:$D$105,2,FALSE),\"\")","v":""},"","انتهى الميعاد",0,{"$error":"#VALUE!"}]
[null,null,null,null,null,null,null,null,null,null,null,null,0,{"$f":"IFERROR(VLOOKUP(البيانات!C999,'ارقام الغرف واسعارها'!$C$6:$D$105,2,FALSE),\"\")","v":""},"","انتهى الميعاد",0,{"$error":"#VALUE!"}]
[null,null,null,null,null,null,null,null,null,null,null,null,0,{"$f":"IFERROR(VLOOKUP(البيانات!C1000,'ارقام الغرف واسعارها'!$C$6:$D$105,2,FALSE),\"\")","v":""},"","انتهى الميعاد",0,{"$error":"#VALUE!"}]

{"sheet":"مغادر","index":1,"n_rows":498443,"n_cols":12,"rows_kept":4500,"cut":true,"hidden":false,"merged":[[1,4,1,5]],"bounds":{"rows_first":2000,"rows_last":500,"rows_between":2000,"halvings":0}}
[]
[null,null,null,null,"بيانات المغادرين"]
[null,null,null,null,"حتى تاريخ",{"$f":"TODAY()","v":"2019-10-11"}]
[]
["رقم العميل","اسم العميل","رقم الحجرة","تاريخ الدخول","تاريخ الخروج","رقم البطاقة او الجواز","تاريخ  وجهة الاصدار","المهنة","النوع","الجنسية","محل الاقامة","عدد الايام"]
[null,null,null,null,null,null,null,null,null,null,null,{"$f":"E6-D6","v":0}]
[null,null,null,null,null,null,null,null,null,null,null,{"$f":"E7-D7","v":0}]
[null,null,null,null,null,null,null,null,null,null,null,0]
[null,null,null,null,null,null,null,null,null,null,null,0]
[null,null,null,null,null,null,null,null,null,null,null,0]
[null,null,null,null,null,null,null,null,null,null,null,0]
[null,null,null,null,null,null,null,null,null,null,null,0]
[null,null,null,null,null,null,null,null,null,null,null,0]
[null,null,null,null,null,null,null,null,null,null,null,0]
[null,null,null,null,null,null,null,null,null,null,null,0]
[null,null,null,null,null,null,null,null,null,null,null,0]
[null,null,null,null,null,null,null,null,null,null,null,0]
[null,null,null,null,null,null,null,null,null,null,null,0]
[null,null,null,null,null,null,null,null,null,null,null,0]
[null,null,null,null,null,null,null,null,null,null,null,0]
[null,null,null,null,null,null,null,null,null,null,null,0]
[null,null,null,null,null,null,null,null,null,null,null,0]
[null,null,null,null,null,null,null,null,null,null,null,0]
[null,null,null,null,null,null,null,null,null,null,null,0]
[null,null,null,null,null,null,null,null,null,null,null,0]
[null,null,null,null,null,null,null,null,null,null,null,0]
[null,null,null,null,null,null,null,null,null,null,null,0]
[null,null,null,null,null,null,null,null,null,null,null,0]
[null,null,null,null,null,null,null,null,null,null,null,0]
[null,null,null,null,null,null,null,null,null,null,null,0]
[null,null,null,null,null,null,null,null,null,null,null,0]
[null,null,null,null,null,null,null,null,null,null,null,0]
[null,null,null,null,null,null,null,null,null,null,null,0]
[null,null,null,null,null,null,null,null,null,null,null,0]
[null,null,null,null,null,null,null,null,null,null,null,0]
[null,null,null,null,null,null,null,null,null,null,null,0]
[null,null,null,null,null,null,null,null,null,null,null,0]
[null,null,null,null,null,null,null,null,null,null,null,0]
[null,null,null,null,null,null,null,null,null,null,null,0]
[null,null,null,null,null,null,null,null,null,null,null,0]
[null,null,null,null,null,null,null,null,null,null,null,0]
[null,null,null,null,null,null,null,null,null,null,null,0]
[null,null,null,null,null,null,null,null,null,null,null,0]
[null,null,null,null,null,null,null,null,null,null,null,0]
[null,null,null,null,null,null,null,null,null,null,null,0]
[null,null,null,null,null,null,null,null,null,null,null,0]
[null,null,null,null,null,null,null,null,null,null,null,0]
[null,null,null,null,null,null,null,null,null,null,null,0]
[null,null,null,null,null,null,null,null,null,null,null,0]
[null,null,null,null,null,null,null,null,null,null,null,0]
[null,null,null,null,null,null,null,null,null,null,null,0]
[null,null,null,null,null,null,null,null,null,null,null,0]
[null,null,null,null,null,null,null,null,null,null,null,0]
[null,null,null,null,null,null,null,null,null,null,null,0]
[null,null,null,null,null,null,null,null,null,null,null,0]
[null,null,null,null,null,null,null,null,null,null,null,0]
[null,null,null,null,null,null,null,null,null,null,null,0]
[null,null,null,null,null,null,null,null,null,null,null,0]
[null,null,null,null,null,null,null,null,null,null,null,0]
[null,null,null,null,null,null,null,null,null,null,null,0]
[null,null,null,null,null,null,null,null,null,null,null,0]
[null,null,null,null,null,null,null,null,null,null,null,0]
[null,null,null,null,null,null,null,null,null,null,null,0]
[null,null,null,null,null,null,null,null,null,null,null,0]
[null,null,null,null,null,null,null,null,null,null,null,0]
[null,null,null,null,null,null,null,null,null,null,null,0]
[null,null,null,null,null,null,null,null,null,null,null,0]
[null,null,null,null,null,null,null,null,null,null,null,0]
[null,null,null,null,null,null,null,null,null,null,null,0]
[null,null,null,null,null,null,null,null,null,null,null,0]
[null,null,null,null,null,null,null,null,null,null,null,{"$f":"E71-D71","v":0}]
[null,null,null,null,null,null,null,null,null,null,null,0]
[null,null,null,null,null,null,null,null,null,null,null,0]
[null,null,null,null,null,null,null,null,null,null,null,0]
[null,null,null,null,null,null,null,null,null,null,null,0]
[null,null,null,null,null,null,null,null,null,null,null,0]
[null,null,null,null,null,null,null,null,null,null,null,0]
[null,null,null,null,null,null,null,null,null,null,null,0]
[null,null,null,null,null,null,null,null,null,null,null,0]
[null,null,null,null,null,null,null,null,null,null,null,0]
[null,null,null,null,null,null,null,null,null,null,null,0]
[null,null,null,null,null,null,null,null,null,null,null,0]
[null,null,null,null,null,null,null,null,null,null,null,0]
[null,null,null,null,null,null,null,null,null,null,null,0]
[null,null,null,null,null,null,null,null,null,null,null,0]
[null,null,null,null,null,null,null,null,null,null,null,0]
[null,null,null,null,null,null,null,null,null,null,null,0]
[null,null,null,null,null,null,null,null,null,null,null,0]
[null,null,null,null,null,null,null,null,null,null,null,0]
[null,null,null,null,null,null,null,null,null,null,null,0]
[null,null,null,null,null,null,null,null,null,null,null,0]
[null,null,null,null,null,null,null,null,null,null,null,0]
[null,null,null,null,null,null,null,null,null,null,null,0]
[null,null,null,null,null,null,null,null,null,null,null,0]
[null,null,null,null,null,null,null,null,null,null,null,0]
[null,null,null,null,null,null,null,null,null,null,null,0]
[null,null,null,null,null,null,null,null,null,null,null,0]
[null,null,null,null,null,null,null,null,null,null,null,0]
[null,null,null,null,null,null,null,null,null,null,null,0]
[null,null,null,null,null,null,null,null,null,null,null,0]
[null,null,null,null,null,null,null,null,null,null,null,0]
[null,null,null,null,null,null,null,null,null,null,null,0]
[null,null,null,null,null,null,null,null,null,null,null,0]
[null,null,null,null,null,null,null,null,null,null,null,0]
[null,null,null,null,null,null,null,null,null,null,null,0]
[null,null,null,null,null,null,null,null,null,null,null,0]
[null,null,null,null,null,null,null,null,null,null,null,0]
[null,null,null,null,null,null,null,null,null,null,null,0]
[null,null,null,null,null,null,null,null,null,null,null,0]
[null,null,null,null,null,null,null,null,null,null,null,0]
[null,null,null,null,null,null,null,null,null,null,null,0]
[null,null,null,null,null,null,null,null,null,null,null,0]
[null,null,null,null,null,null,null,null,null,null,null,0]
[null,null,null,null,null,null,null,null,null,null,null,0]
[null,null,null,null,null,null,null,null,null,null,null,0]
[null,null,null,null,null,null,null,null,null,null,null,0]
[null,null,null,null,null,null,null,null,null,null,null,0]
[null,null,null,null,null,null,null,null,null,null,null,0]
[null,null,null,null,null,null,null,null,null,null,null,0]
[null,null,null,null,null,null,null,null,null,null,null,0]
[null,null,null,null,null,null,null,null,null,null,null,0]
[null,null,null,null,null,null,null,null,null,null,null,0]
[null,null,null,null,null,null,null,null,null,null,null,0]
[null,null,null,null,null,null,null,null,null,null,null,0]
[null,null,null,null,null,null,null,null,null,null,null,0]
[null,null,null,null,null,null,null,null,null,null,null,0]
[null,null,null,null,null,null,null,null,null,null,null,0]
[null,null,null,null,null,null,null,null,null,null,null,0]
[null,null,null,null,null,null,null,null,null,null,null,0]
[null,null,null,null,null,null,null,null,null,null,null,0]
[null,null,null,null,null,null,null,null,null,null,null,0]
[null,null,null,null,null,null,null,null,null,null,null,0]
[null,null,null,null,null,null,null,null,null,null,null,0]
[null,null,null,null,null,null,null,null,null,null,null,0]
[null,null,null,null,null,null,null,null,null,null,null,{"$f":"E135-D135","v":0}]
[null,null,null,null,null,null,null,null,null,null,null,0]
[null,null,null,null,null,null,null,null,null,null,null,0]
[null,null,null,null,null,null,null,null,null,null,null,0]
[null,null,null,null,null,null,null,null,null,null,null,0]
[null,null,null,null,null,null,null,null,null,null,null,0]
[null,null,null,null,null,null,null,null,null,null,null,0]
[null,null,null,null,null,null,null,null,null,null,null,0]
[null,null,null,null,null,null,null,null,null,null,null,0]
[null,null,null,null,null,null,null,null,null,null,null,0]
[null,null,null,null,null,null,null,null,null,null,null,0]
[null,null,null,null,null,null,null,null,null,null,null,0]
[null,null,null,null,null,null,null,null,null,null,null,0]
[null,null,null,null,null,null,null,null,null,null,null,0]
[null,null,null,null,null,null,null,null,null,null,null,0]
[null,null,null,null,null,null,null,null,null,null,null,0]
[null,null,null,null,null,null,null,null,null,null,null,0]
[null,null,null,null,null,null,null,null,null,null,null,0]
[null,null,null,null,null,null,null,null,null,null,null,0]
[null,null,null,null,null,null,null,null,null,null,null,0]
[null,null,null,null,null,null,null,null,null,null,null,0]
[null,null,null,null,null,null,null,null,null,null,null,0]
[null,null,null,null,null,null,null,null,null,null,null,0]
[null,null,null,null,null,null,null,null,null,null,null,0]
[null,null,null,null,null,null,null,null,null,null,null,0]
[null,null,null,null,null,null,null,null,null,null,null,0]
[null,null,null,null,null,null,null,null,null,null,null,0]
[null,null,null,null,null,null,null,null,null,null,null,0]
[null,null,null,null,null,null,null,null,null,null,null,0]
[null,null,null,null,null,null,null,null,null,null,null,0]
[null,null,null,null,null,null,null,null,null,null,null,0]
[null,null,null,null,null,null,null,null,null,null,null,0]
[null,null,null,null,null,null,null,null,null,null,null,0]
[null,null,null,null,null,null,null,null,null,null,null,0]
[null,null,null,null,null,null,null,null,null,null,null,0]
[null,null,null,null,null,null,null,null,null,null,null,0]
[null,null,null,null,null,null,null,null,null,null,null,0]
[null,null,null,null,null,null,null,null,null,null,null,0]
[null,null,null,null,null,null,null,null,null,null,null,0]
[null,null,null,null,null,null,null,null,null,null,null,0]
[null,null,null,null,null,null,null,null,null,null,null,0]
[null,null,null,null,null,null,null,null,null,null,null,0]
[null,null,null,null,null,null,null,null,null,null,null,0]
[null,null,null,null,null,null,null,null,null,null,null,0]
[null,null,null,null,null,null,null,null,null,null,null,0]
[null,null,null,null,null,null,null,null,null,null,null,0]
[null,null,null,null,null,null,null,null,null,null,null,0]
[null,null,null,null,null,null,null,null,null,null,null,0]
[null,null,null,null,null,null,null,null,null,null,null,0]
[null,null,null,null,null,null,null,null,null,null,null,0]
[null,null,null,null,null,null,null,null,null,null,null,0]
[null,null,null,null,null,null,null,null,null,null,null,0]
[null,null,null,null,null,null,null,null,null,null,null,0]
[null,null,null,null,null,null,null,null,null,null,null,0]
[null,null,null,null,null,null,null,null,null,null,null,0]
[null,null,null,null,null,null,null,null,null,null,null,0]
[null,null,null,null,null,null,null,null,null,null,null,0]
[null,null,null,null,null,null,null,null,null,null,null,0]
[null,null,null,null,null,null,null,null,null,null,null,0]
[null,null,null,null,null,null,null,null,null,null,null,0]
[null,null,null,null,null,null,null,null,null,null,null,0]
[null,null,null,null,null,null,null,null,null,null,null,0]
[null,null,null,null,null,null,null,null,null,null,null,0]
[null,null,null,null,null,null,null,null,null,null,null,0]
[null,null,null,null,null,null,null,null,null,null,null,{"$f":"E199-D199","v":0}]
[null,null,null,null,null,null,null,null,null,null,null,0]
[null,null,null,null,null,null,null,null,null,null,null,0]
[null,null,null,null,null,null,null,null,null,null,null,0]
[null,null,null,null,null,null,null,null,null,null,null,0]
[null,null,null,null,null,null,null,null,null,null,null,0]
[null,null,null,null,null,null,null,null,null,null,null,0]
[null,null,null,null,null,null,null,null,null,null,null,0]
[null,null,null,null,null,null,null,null,null,null,null,0]
[null,null,null,null,null,null,null,null,null,null,null,0]
[null,null,null,null,null,null,null,null,null,null,null,0]
[null,null,null,null,null,null,null,null,null,null,null,0]
[null,null,null,null,null,null,null,null,null,null,null,0]
[null,null,null,null,null,null,null,null,null,null,null,0]
[null,null,null,null,null,null,null,null,null,null,null,0]
[null,null,null,null,null,null,null,null,null,null,null,0]
[null,null,null,null,null,null,null,null,null,null,null,0]
[null,null,null,null,null,null,null,null,null,null,null,0]
[null,null,null,null,null,null,null,null,null,null,null,0]
[null,null,null,null,null,null,null,null,null,null,null,0]
[null,null,null,null,null,null,null,null,null,null,null,0]
[null,null,null,null,null,null,null,null,null,null,null,0]
[null,null,null,null,null,null,null,null,null,null,null,0]
[null,null,null,null,null,null,null,null,null,null,null,0]
[null,null,null,null,null,null,null,null,null,null,null,0]
[null,null,null,null,null,null,null,null,null,null,null,0]
[null,null,null,null,null,null,null,null,null,null,null,0]
[null,null,null,null,null,null,null,null,null,null,null,0]
[null,null,null,null,null,null,null,null,null,null,null,0]
[null,null,null,null,null,null,null,null,null,null,null,0]
[null,null,null,null,null,null,null,null,null,null,null,0]
[null,null,null,null,null,null,null,null,null,null,null,0]
[null,null,null,null,null,null,null,null,null,null,null,0]
[null,null,null,null,null,null,null,null,null,null,null,0]
[null,null,null,null,null,null,null,null,null,null,null,0]
[null,null,null,null,null,null,null,null,null,null,null,0]
[null,null,null,null,null,null,null,null,null,null,null,0]
[null,null,null,null,null,null,null,null,null,null,null,0]
[null,null,null,null,null,null,null,null,null,null,null,0]
[null,null,null,null,null,null,null,null,null,null,null,0]
[null,null,null,null,null,null,null,null,null,null,null,0]
[null,null,null,null,null,null,null,null,null,null,null,0]
[null,null,null,null,null,null,null,null,null,null,null,0]
[null,null,null,null,null,null,null,null,null,null,null,0]
[null,null,null,null,null,null,null,null,null,null,null,0]
[null,null,null,null,null,null,null,null,null,null,null,0]
[null,null,null,null,null,null,null,null,null,null,null,0]
[null,null,null,null,null,null,null,null,null,null,null,0]
[null,null,null,null,null,null,null,null,null,null,null,0]
[null,null,null,null,null,null,null,null,null,null,null,0]
[null,null,null,null,null,null,null,null,null,null,null,0]
[null,null,null,null,null,null,null,null,null,null,null,0]
[null,null,null,null,null,null,null,null,null,null,null,0]
[null,null,null,null,null,null,null,null,null,null,null,0]
[null,null,null,null,null,null,null,null,null,null,null,0]
[null,null,null,null,null,null,null,null,null,null,null,0]
[null,null,null,null,null,null,null,null,null,null,null,0]
[null,null,null,null,null,null,null,null,null,null,null,0]
[null,null,null,null,null,null,null,null,null,null,null,0]
[null,null,null,null,null,null,null,null,null,null,null,0]
[null,null,null,null,null,null,null,null,null,null,null,0]
[null,null,null,null,null,null,null,null,null,null,null,0]
[null,null,null,null,null,null,null,null,null,null,null,0]
[null,null,null,null,null,null,null,null,null,null,null,0]
[null,null,null,null,null,null,null,null,null,null,null,{"$f":"E263-D263","v":0}]
[null,null,null,null,null,null,null,null,null,null,null,0]
[null,null,null,null,null,null,null,null,null,null,null,0]
[null,null,null,null,null,null,null,null,null,null,null,0]
[null,null,null,null,null,null,null,null,null,null,null,0]
[null,null,null,null,null,null,null,null,null,null,null,0]
[null,null,null,null,null,null,null,null,null,null,null,0]
[null,null,null,null,null,null,null,null,null,null,null,0]
[null,null,null,null,null,null,null,null,null,null,null,0]
[null,null,null,null,null,null,null,null,null,null,null,0]
[null,null,null,null,null,null,null,null,null,null,null,0]
[null,null,null,null,null,null,null,null,null,null,null,0]
[null,null,null,null,null,null,null,null,null,null,null,0]
[null,null,null,null,null,null,null,null,null,null,null,0]
[null,null,null,null,null,null,null,null,null,null,null,0]
[null,null,null,null,null,null,null,null,null,null,null,0]
[null,null,null,null,null,null,null,null,null,null,null,0]
[null,null,null,null,null,null,null,null,null,null,null,0]
[null,null,null,null,null,null,null,null,null,null,null,0]
[null,null,null,null,null,null,null,null,null,null,null,0]
[null,null,null,null,null,null,null,null,null,null,null,0]
[null,null,null,null,null,null,null,null,null,null,null,0]
[null,null,null,null,null,null,null,null,null,null,null,0]
[null,null,null,null,null,null,null,null,null,null,null,0]
[null,null,null,null,null,null,null,null,null,null,null,0]
[null,null,null,null,null,null,null,null,null,null,null,0]
[null,null,null,null,null,null,null,null,null,null,null,0]
[null,null,null,null,null,null,null,null,null,null,null,0]
[null,null,null,null,null,null,null,null,null,null,null,0]
[null,null,null,null,null,null,null,null,null,null,null,0]
[null,null,null,null,null,null,null,null,null,null,null,0]
[null,null,null,null,null,null,null,null,null,null,null,0]
[null,null,null,null,null,null,null,null,null,null,null,0]
[null,null,null,null,null,null,null,null,null,null,null,0]
[null,null,null,null,null,null,null,null,null,null,null,0]
[null,null,null,null,null,null,null,null,null,null,null,0]
[null,null,null,null,null,null,null,null,null,null,null,0]
[null,null,null,null,null,null,null,null,null,null,null,0]
[null,null,null,null,null,null,null,null,null,null,null,0]
[null,null,null,null,null,null,null,null,null,null,null,0]
[null,null,null,null,null,null,null,null,null,null,null,0]
[null,null,null,null,null,null,null,null,null,null,null,0]
[null,null,null,null,null,null,null,null,null,null,null,0]
[null,null,null,null,null,null,null,null,null,null,null,0]
[null,null,null,null,null,null,null,null,null,null,null,0]
[null,null,null,null,null,null,null,null,null,null,null,0]
[null,null,null,null,null,null,null,null,null,null,null,0]
[null,null,null,null,null,null,null,null,null,null,null,0]
[null,null,null,null,null,null,null,null,null,null,null,0]
[null,null,null,null,null,null,null,null,null,null,null,0]
[null,null,null,null,null,null,null,null,null,null,null,0]
[null,null,null,null,null,null,null,null,null,null,null,0]
[null,null,null,null,null,null,null,null,null,null,null,0]
[null,null,null,null,null,null,null,null,null,null,null,0]
[null,null,null,null,null,null,null,null,null,null,null,0]
[null,null,null,null,null,null,null,null,null,null,null,0]
[null,null,null,null,null,null,null,null,null,null,null,0]
[null,null,null,null,null,null,null,null,null,null,null,0]
[null,null,null,null,null,null,null,null,null,null,null,0]
[null,null,null,null,null,null,null,null,null,null,null,0]
[null,null,null,null,null,null,null,null,null,null,null,0]
[null,null,null,null,null,null,null,null,null,null,null,0]
[null,null,null,null,null,null,null,null,null,null,null,0]
[null,null,null,null,null,null,null,null,null,null,null,0]
[null,null,null,null,null,null,null,null,null,null,null,{"$f":"E327-D327","v":0}]
[null,null,null,null,null,null,null,null,null,null,null,0]
[null,null,null,null,null,null,null,null,null,null,null,0]
[null,null,null,null,null,null,null,null,null,null,null,0]
[null,null,null,null,null,null,null,null,null,null,null,0]
[null,null,null,null,null,null,null,null,null,null,null,0]
[null,null,null,null,null,null,null,null,null,null,null,0]
[null,null,null,null,null,null,null,null,null,null,null,0]
[null,null,null,null,null,null,null,null,null,null,null,0]
[null,null,null,null,null,null,null,null,null,null,null,0]
[null,null,null,null,null,null,null,null,null,null,null,0]
[null,null,null,null,null,null,null,null,null,null,null,0]
[null,null,null,null,null,null,null,null,null,null,null,0]
[null,null,null,null,null,null,null,null,null,null,null,0]
[null,null,null,null,null,null,null,null,null,null,null,0]
[null,null,null,null,null,null,null,null,null,null,null,0]
[null,null,null,null,null,null,null,null,null,null,null,0]
[null,null,null,null,null,null,null,null,null,null,null,0]
[null,null,null,null,null,null,null,null,null,null,null,0]
[null,null,null,null,null,null,null,null,null,null,null,0]
[null,null,null,null,null,null,null,null,null,null,null,0]
[null,null,null,null,null,null,null,null,null,null,null,0]
[null,null,null,null,null,null,null,null,null,null,null,0]
[null,null,null,null,null,null,null,null,null,null,null,0]
[null,null,null,null,null,null,null,null,null,null,null,0]
[null,null,null,null,null,null,null,null,null,null,null,0]
[null,null,null,null,null,null,null,null,null,null,null,0]
[null,null,null,null,null,null,null,null,null,null,null,0]
[null,null,null,null,null,null,null,null,null,null,null,0]
[null,null,null,null,null,null,null,null,null,null,null,0]
[null,null,null,null,null,null,null,null,null,null,null,0]
[null,null,null,null,null,null,null,null,null,null,null,0]
[null,null,null,null,null,null,null,null,null,null,null,0]
[null,null,null,null,null,null,null,null,null,null,null,0]
[null,null,null,null,null,null,null,null,null,null,null,0]
[null,null,null,null,null,null,null,null,null,null,null,0]
[null,null,null,null,null,null,null,null,null,null,null,0]
[null,null,null,null,null,null,null,null,null,null,null,0]
[null,null,null,null,null,null,null,null,null,null,null,0]
[null,null,null,null,null,null,null,null,null,null,null,0]
[null,null,null,null,null,null,null,null,null,null,null,0]
[null,null,null,null,null,null,null,null,null,null,null,0]
[null,null,null,null,null,null,null,null,null,null,null,0]
[null,null,null,null,null,null,null,null,null,null,null,0]
[null,null,null,null,null,null,null,null,null,null,null,0]
[null,null,null,null,null,null,null,null,null,null,null,0]
[null,null,null,null,null,null,null,null,null,null,null,0]
[null,null,null,null,null,null,null,null,null,null,null,0]
[null,null,null,null,null,null,null,null,null,null,null,0]
[null,null,null,null,null,null,null,null,null,null,null,0]
[null,null,null,null,null,null,null,null,null,null,null,0]
[null,null,null,null,null,null,null,null,null,null,null,0]
[null,null,null,null,null,null,null,null,null,null,null,0]
[null,null,null,null,null,null,null,null,null,null,null,0]
[null,null,null,null,null,null,null,null,null,null,null,0]
[null,null,null,null,null,null,null,null,null,null,null,0]
[null,null,null,null,null,null,null,null,null,null,null,0]
[null,null,null,null,null,null,null,null,null,null,null,0]
[null,null,null,null,null,null,null,null,null,null,null,0]
[null,null,null,null,null,null,null,null,null,null,null,0]
[null,null,null,null,null,null,null,null,null,null,null,0]
[null,null,null,null,null,null,null,null,null,null,null,0]
[null,null,null,null,null,null,null,null,null,null,null,0]
[null,null,null,null,null,null,null,null,null,null,null,0]
[null,null,null,null,null,null,null,null,null,null,null,{"$f":"E391-D391","v":0}]
[null,null,null,null,null,null,null,null,null,null,null,0]
[null,null,null,null,null,null,null,null,null,null,null,0]
[null,null,null,null,null,null,null,null,null,null,null,0]
[null,null,null,null,null,null,null,null,null,null,null,0]
[null,null,null,null,null,null,null,null,null,null,null,0]
[null,null,null,null,null,null,null,null,null,null,null,0]
[null,null,null,null,null,null,null,null,null,null,null,0]
[null,null,null,null,null,null,null,null,null,null,null,0]
[null,null,null,null,null,null,null,null,null,null,null,0]
[null,null,null,null,null,null,null,null,null,null,null,0]
[null,null,null,null,null,null,null,null,null,null,null,0]
[null,null,null,null,null,null,null,null,null,null,null,0]
[null,null,null,null,null,null,null,null,null,null,null,0]
[null,null,null,null,null,null,null,null,null,null,null,0]
[null,null,null,null,null,null,null,null,null,null,null,0]
[null,null,null,null,null,null,null,null,null,null,null,0]
[null,null,null,null,null,null,null,null,null,null,null,0]
[null,null,null,null,null,null,null,null,null,null,null,0]
[null,null,null,null,null,null,null,null,null,null,null,0]
[null,null,null,null,null,null,null,null,null,null,null,0]
[null,null,null,null,null,null,null,null,null,null,null,0]
[null,null,null,null,null,null,null,null,null,null,null,0]
[null,null,null,null,null,null,null,null,null,null,null,0]
[null,null,null,null,null,null,null,null,null,null,null,0]
[null,null,null,null,null,null,null,null,null,null,null,0]
[null,null,null,null,null,null,null,null,null,null,null,0]
[null,null,null,null,null,null,null,null,null,null,null,0]
[null,null,null,null,null,null,null,null,null,null,null,0]
[null,null,null,null,null,null,null,null,null,null,null,0]
[null,null,null,null,null,null,null,null,null,null,null,0]
[null,null,null,null,null,null,null,null,null,null,null,0]
[null,null,null,null,null,null,null,null,null,null,null,0]
[null,null,null,null,null,null,null,null,null,null,null,0]
[null,null,null,null,null,null,null,null,null,null,null,0]
[null,null,null,null,null,null,null,null,null,null,null,0]
[null,null,null,null,null,null,null,null,null,null,null,0]
[null,null,null,null,null,null,null,null,null,null,null,0]
[null,null,null,null,null,null,null,null,null,null,null,0]
[null,null,null,null,null,null,null,null,null,null,null,0]
[null,null,null,null,null,null,null,null,null,null,null,0]
[null,null,null,null,null,null,null,null,null,null,null,0]
[null,null,null,null,null,null,null,null,null,null,null,0]
[null,null,null,null,null,null,null,null,null,null,null,0]
[null,null,null,null,null,null,null,null,null,null,null,0]
[null,null,null,null,null,null,null,null,null,null,null,0]
[null,null,null,null,null,null,null,null,null,null,null,0]
[null,null,null,null,null,null,null,null,null,null,null,0]
[null,null,null,null,null,null,null,null,null,null,null,0]
[null,null,null,null,null,null,null,null,null,null,null,0]
[null,null,null,null,null,null,null,null,null,null,null,0]
[null,null,null,null,null,null,null,null,null,null,null,0]
[null,null,null,null,null,null,null,null,null,null,null,0]
[null,null,null,null,null,null,null,null,null,null,null,0]
[null,null,null,null,null,null,null,null,null,null,null,0]
[null,null,null,null,null,null,null,null,null,null,null,0]
[null,null,null,null,null,null,null,null,null,null,null,0]
[null,null,null,null,null,null,null,null,null,null,null,0]
[null,null,null,null,null,null,null,null,null,null,null,0]
[null,null,null,null,null,null,null,null,null,null,null,0]
[null,null,null,null,null,null,null,null,null,null,null,0]
[null,null,null,null,null,null,null,null,null,null,null,0]
[null,null,null,null,null,null,null,null,null,null,null,0]
[null,null,null,null,null,null,null,null,null,null,null,0]
[null,null,null,null,null,null,null,null,null,null,null,{"$f":"E455-D455","v":0}]
[null,null,null,null,null,null,null,null,null,null,null,0]
[null,null,null,null,null,null,null,null,null,null,null,0]
[null,null,null,null,null,null,null,null,null,null,null,0]
[null,null,null,null,null,null,null,null,null,null,null,0]
[null,null,null,null,null,null,null,null,null,null,null,0]
[null,null,null,null,null,null,null,null,null,null,null,0]
[null,null,null,null,null,null,null,null,null,null,null,0]
[null,null,null,null,null,null,null,null,null,null,null,0]
[null,null,null,null,null,null,null,null,null,null,null,0]
[null,null,null,null,null,null,null,null,null,null,null,0]
[null,null,null,null,null,null,null,null,null,null,null,0]
[null,null,null,null,null,null,null,null,null,null,null,0]
[null,null,null,null,null,null,null,null,null,null,null,0]
[null,null,null,null,null,null,null,null,null,null,null,0]
[null,null,null,null,null,null,null,null,null,null,null,0]
[null,null,null,null,null,null,null,null,null,null,null,0]
[null,null,null,null,null,null,null,null,null,null,null,0]
[null,null,null,null,null,null,null,null,null,null,null,0]
[null,null,null,null,null,null,null,null,null,null,null,0]
[null,null,null,null,null,null,null,null,null,null,null,0]
[null,null,null,null,null,null,null,null,null,null,null,0]
[null,null,null,null,null,null,null,null,null,null,null,0]
[null,null,null,null,null,null,null,null,null,null,null,0]
[null,null,null,null,null,null,null,null,null,null,null,0]
[null,null,null,null,null,null,null,null,null,null,null,0]
[null,null,null,null,null,null,null,null,null,null,null,0]
[null,null,null,null,null,null,null,null,null,null,null,0]
[null,null,null,null,null,null,null,null,null,null,null,0]
[null,null,null,null,null,null,null,null,null,null,null,0]
[null,null,null,null,null,null,null,null,null,null,null,0]
[null,null,null,null,null,null,null,null,null,null,null,0]
[null,null,null,null,null,null,null,null,null,null,null,0]
[null,null,null,null,null,null,null,null,null,null,null,0]
[null,null,null,null,null,null,null,null,null,null,null,0]
[null,null,null,null,null,null,null,null,null,null,null,0]
[null,null,null,null,null,null,null,null,null,null,null,0]
[null,null,null,null,null,null,null,null,null,null,null,0]
[null,null,null,null,null,null,null,null,null,null,null,0]
[null,null,null,null,null,null,null,null,null,null,null,0]
[null,null,null,null,null,null,null,null,null,null,null,0]
[null,null,null,null,null,null,null,null,null,null,null,0]
[null,null,null,null,null,null,null,null,null,null,null,0]
[null,null,null,null,null,null,null,null,null,null,null,0]
[null,null,null,null,null,null,null,null,null,null,null,0]
[null,null,null,null,null,null,null,null,null,null,null,0]
[null,null,null,null,null,null,null,null,null,null,null,0]
[null,null,null,null,null,null,null,null,null,null,null,0]
[null,null,null,null,null,null,null,null,null,null,null,0]
[null,null,null,null,null,null,null,null,null,null,null,0]
[null,null,null,null,null,null,null,null,null,null,null,0]
[null,null,null,null,null,null,null,null,null,null,null,0]
[null,null,null,null,null,null,null,null,null,null,null,0]
[null,null,null,null,null,null,null,null,null,null,null,0]
[null,null,null,null,null,null,null,null,null,null,null,0]
[null,null,null,null,null,null,null,null,null,null,null,0]
[null,null,null,null,null,null,null,null,null,null,null,0]
[null,null,null,null,null,null,null,null,null,null,null,0]
[null,null,null,null,null,null,null,null,null,null,null,0]
[null,null,null,null,null,null,null,null,null,null,null,0]
[null,null,null,null,null,null,null,null,null,null,null,0]
[null,null,null,null,null,null,null,null,null,null,null,0]
[null,null,null,null,null,null,null,null,null,null,null,0]
[null,null,null,null,null,null,null,null,null,null,null,0]
[null,null,null,null,null,null,null,null,null,null,null,{"$f":"E519-D519","v":0}]
[null,null,null,null,null,null,null,null,null,null,null,0]
[null,null,null,null,null,null,null,null,null,null,null,0]
[null,null,null,null,null,null,null,null,null,null,null,0]
[null,null,null,null,null,null,null,null,null,null,null,0]
[null,null,null,null,null,null,null,null,null,null,null,0]
[null,null,null,null,null,null,null,null,null,null,null,0]
[null,null,null,null,null,null,null,null,null,null,null,0]
[null,null,null,null,null,null,null,null,null,null,null,0]
[null,null,null,null,null,null,null,null,null,null,null,0]
[null,null,null,null,null,null,null,null,null,null,null,0]
[null,null,null,null,null,null,null,null,null,null,null,0]
[null,null,null,null,null,null,null,null,null,null,null,0]
[null,null,null,null,null,null,null,null,null,null,null,0]
[null,null,null,null,null,null,null,null,null,null,null,0]
[null,null,null,null,null,null,null,null,null,null,null,0]
[null,null,null,null,null,null,null,null,null,null,null,0]
[null,null,null,null,null,null,null,null,null,null,null,0]
[null,null,null,null,null,null,null,null,null,null,null,0]
[null,null,null,null,null,null,null,null,null,null,null,0]
[null,null,null,null,null,null,null,null,null,null,null,0]
[null,null,null,null,null,null,null,null,null,null,null,0]
[null,null,null,null,null,null,null,null,null,null,null,0]
[null,null,null,null,null,null,null,null,null,null,null,0]
[null,null,null,null,null,null,null,null,null,null,null,0]
[null,null,null,null,null,null,null,null,null,null,null,0]
[null,null,null,null,null,null,null,null,null,null,null,0]
[null,null,null,null,null,null,null,null,null,null,null,0]
[null,null,null,null,null,null,null,null,null,null,null,0]
[null,null,null,null,null,null,null,null,null,null,null,0]
[null,null,null,null,null,null,null,null,null,null,null,0]
[null,null,null,null,null,null,null,null,null,null,null,0]
[null,null,null,null,null,null,null,null,null,null,null,0]
[null,null,null,null,null,null,null,null,null,null,null,0]
[null,null,null,null,null,null,null,null,null,null,null,0]
[null,null,null,null,null,null,null,null,null,null,null,0]
[null,null,null,null,null,null,null,null,null,null,null,0]
[null,null,null,null,null,null,null,null,null,null,null,0]
[null,null,null,null,null,null,null,null,null,null,null,0]
[null,null,null,null,null,null,null,null,null,null,null,0]
[null,null,null,null,null,null,null,null,null,null,null,0]
[null,null,null,null,null,null,null,null,null,null,null,0]
[null,null,null,null,null,null,null,null,null,null,null,0]
[null,null,null,null,null,null,null,null,null,null,null,0]
[null,null,null,null,null,null,null,null,null,null,null,0]
[null,null,null,null,null,null,null,null,null,null,null,0]
[null,null,null,null,null,null,null,null,null,null,null,0]
[null,null,null,null,null,null,null,null,null,null,null,0]
[null,null,null,null,null,null,null,null,null,null,null,0]
[null,null,null,null,null,null,null,null,null,null,null,0]
[null,null,null,null,null,null,null,null,null,null,null,0]
[null,null,null,null,null,null,null,null,null,null,null,0]
[null,null,null,null,null,null,null,null,null,null,null,0]
[null,null,null,null,null,null,null,null,null,null,null,0]
[null,null,null,null,null,null,null,null,null,null,null,0]
[null,null,null,null,null,null,null,null,null,null,null,0]
[null,null,null,null,null,null,null,null,null,null,null,0]
[null,null,null,null,null,null,null,null,null,null,null,0]
[null,null,null,null,null,null,null,null,null,null,null,0]
[null,null,null,null,null,null,null,null,null,null,null,0]
[null,null,null,null,null,null,null,null,null,null,null,0]
[null,null,null,null,null,null,null,null,null,null,null,0]
[null,null,null,null,null,null,null,null,null,null,null,0]
[null,null,null,null,null,null,null,null,null,null,null,0]
[null,null,null,null,null,null,null,null,null,null,null,{"$f":"E583-D583","v":0}]
[null,null,null,null,null,null,null,null,null,null,null,0]
[null,null,null,null,null,null,null,null,null,null,null,0]
[null,null,null,null,null,null,null,null,null,null,null,0]
[null,null,null,null,null,null,null,null,null,null,null,0]
[null,null,null,null,null,null,null,null,null,null,null,0]
[null,null,null,null,null,null,null,null,null,null,null,0]
[null,null,null,null,null,null,null,null,null,null,null,0]
[null,null,null,null,null,null,null,null,null,null,null,0]
[null,null,null,null,null,null,null,null,null,null,null,0]
[null,null,null,null,null,null,null,null,null,null,null,0]
[null,null,null,null,null,null,null,null,null,null,null,0]
[null,null,null,null,null,null,null,null,null,null,null,0]
[null,null,null,null,null,null,null,null,null,null,null,0]
[null,null,null,null,null,null,null,null,null,null,null,0]
[null,null,null,null,null,null,null,null,null,null,null,0]
[null,null,null,null,null,null,null,null,null,null,null,0]
[null,null,null,null,null,null,null,null,null,null,null,0]
[null,null,null,null,null,null,null,null,null,null,null,0]
[null,null,null,null,null,null,null,null,null,null,null,0]
[null,null,null,null,null,null,null,null,null,null,null,0]
[null,null,null,null,null,null,null,null,null,null,null,0]
[null,null,null,null,null,null,null,null,null,null,null,0]
[null,null,null,null,null,null,null,null,null,null,null,0]
[null,null,null,null,null,null,null,null,null,null,null,0]
[null,null,null,null,null,null,null,null,null,null,null,0]
[null,null,null,null,null,null,null,null,null,null,null,0]
[null,null,null,null,null,null,null,null,null,null,null,0]
[null,null,null,null,null,null,null,null,null,null,null,0]
[null,null,null,null,null,null,null,null,null,null,null,0]
[null,null,null,null,null,null,null,null,null,null,null,0]
[null,null,null,null,null,null,null,null,null,null,null,0]
[null,null,null,null,null,null,null,null,null,null,null,0]
[null,null,null,null,null,null,null,null,null,null,null,0]
[null,null,null,null,null,null,null,null,null,null,null,0]
[null,null,null,null,null,null,null,null,null,null,null,0]
[null,null,null,null,null,null,null,null,null,null,null,0]
[null,null,null,null,null,null,null,null,null,null,null,0]
[null,null,null,null,null,null,null,null,null,null,null,0]
[null,null,null,null,null,null,null,null,null,null,null,0]
[null,null,null,null,null,null,null,null,null,null,null,0]
[null,null,null,null,null,null,null,null,null,null,null,0]
[null,null,null,null,null,null,null,null,null,null,null,0]
[null,null,null,null,null,null,null,null,null,null,null,0]
[null,null,null,null,null,null,null,null,null,null,null,0]
[null,null,null,null,null,null,null,null,null,null,null,0]
[null,null,null,null,null,null,null,null,null,null,null,0]
[null,null,null,null,null,null,null,null,null,null,null,0]
[null,null,null,null,null,null,null,null,null,null,null,0]
[null,null,null,null,null,null,null,null,null,null,null,0]
[null,null,null,null,null,null,null,null,null,null,null,0]
[null,null,null,null,null,null,null,null,null,null,null,0]
[null,null,null,null,null,null,null,null,null,null,null,0]
[null,null,null,null,null,null,null,null,null,null,null,0]
[null,null,null,null,null,null,null,null,null,null,null,0]
[null,null,null,null,null,null,null,null,null,null,null,0]
[null,null,null,null,null,null,null,null,null,null,null,0]
[null,null,null,null,null,null,null,null,null,null,null,0]
[null,null,null,null,null,null,null,null,null,null,null,0]
[null,null,null,null,null,null,null,null,null,null,null,0]
[null,null,null,null,null,null,null,null,null,null,null,0]
[null,null,null,null,null,null,null,null,null,null,null,0]
[null,null,null,null,null,null,null,null,null,null,null,0]
[null,null,null,null,null,null,null,null,null,null,null,0]
[null,null,null,null,null,null,null,null,null,null,null,{"$f":"E647-D647","v":0}]
[null,null,null,null,null,null,null,null,null,null,null,0]
[null,null,null,null,null,null,null,null,null,null,null,0]
[null,null,null,null,null,null,null,null,null,null,null,0]
[null,null,null,null,null,null,null,null,null,null,null,0]
[null,null,null,null,null,null,null,null,null,null,null,0]
[null,null,null,null,null,null,null,null,null,null,null,0]
[null,null,null,null,null,null,null,null,null,null,null,0]
[null,null,null,null,null,null,null,null,null,null,null,0]
[null,null,null,null,null,null,null,null,null,null,null,0]
[null,null,null,null,null,null,null,null,null,null,null,0]
[null,null,null,null,null,null,null,null,null,null,null,0]
[null,null,null,null,null,null,null,null,null,null,null,0]
[null,null,null,null,null,null,null,null,null,null,null,0]
[null,null,null,null,null,null,null,null,null,null,null,0]
[null,null,null,null,null,null,null,null,null,null,null,0]
[null,null,null,null,null,null,null,null,null,null,null,0]
[null,null,null,null,null,null,null,null,null,null,null,0]
[null,null,null,null,null,null,null,null,null,null,null,0]
[null,null,null,null,null,null,null,null,null,null,null,0]
[null,null,null,null,null,null,null,null,null,null,null,0]
[null,null,null,null,null,null,null,null,null,null,null,0]
[null,null,null,null,null,null,null,null,null,null,null,0]
[null,null,null,null,null,null,null,null,null,null,null,0]
[null,null,null,null,null,null,null,null,null,null,null,0]
[null,null,null,null,null,null,null,null,null,null,null,0]
[null,null,null,null,null,null,null,null,null,null,null,0]
[null,null,null,null,null,null,null,null,null,null,null,0]
[null,null,null,null,null,null,null,null,null,null,null,0]
[null,null,null,null,null,null,null,null,null,null,null,0]
[null,null,null,null,null,null,null,null,null,null,null,0]
[null,null,null,null,null,null,null,null,null,null,null,0]
[null,null,null,null,null,null,null,null,null,null,null,0]
[null,null,null,null,null,null,null,null,null,null,null,0]
[null,null,null,null,null,null,null,null,null,null,null,0]
[null,null,null,null,null,null,null,null,null,null,null,0]
[null,null,null,null,null,null,null,null,null,null,null,0]
[null,null,null,null,null,null,null,null,null,null,null,0]
[null,null,null,null,null,null,null,null,null,null,null,0]
[null,null,null,null,null,null,null,null,null,null,null,0]
[null,null,null,null,null,null,null,null,null,null,null,0]
[null,null,null,null,null,null,null,null,null,null,null,0]
[null,null,null,null,null,null,null,null,null,null,null,0]
[null,null,null,null,null,null,null,null,null,null,null,0]
[null,null,null,null,null,null,null,null,null,null,null,0]
[null,null,null,null,null,null,null,null,null,null,null,0]
[null,null,null,null,null,null,null,null,null,null,null,0]
[null,null,null,null,null,null,null,null,null,null,null,0]
[null,null,null,null,null,null,null,null,null,null,null,0]
[null,null,null,null,null,null,null,null,null,null,null,0]
[null,null,null,null,null,null,null,null,null,null,null,0]
[null,null,null,null,null,null,null,null,null,null,null,0]
[null,null,null,null,null,null,null,null,null,null,null,0]
[null,null,null,null,null,null,null,null,null,null,null,0]
[null,null,null,null,null,null,null,null,null,null,null,0]
[null,null,null,null,null,null,null,null,null,null,null,0]
[null,null,null,null,null,null,null,null,null,null,null,0]
[null,null,null,null,null,null,null,null,null,null,null,0]
[null,null,null,null,null,null,null,null,null,null,null,0]
[null,null,null,null,null,null,null,null,null,null,null,0]
[null,null,null,null,null,null,null,null,null,null,null,0]
[null,null,null,null,null,null,null,null,null,null,null,0]
[null,null,null,null,null,null,null,null,null,null,null,0]
[null,null,null,null,null,null,null,null,null,null,null,0]
[null,null,null,null,null,null,null,null,null,null,null,{"$f":"E711-D711","v":0}]
[null,null,null,null,null,null,null,null,null,null,null,0]
[null,null,null,null,null,null,null,null,null,null,null,0]
[null,null,null,null,null,null,null,null,null,null,null,0]
[null,null,null,null,null,null,null,null,null,null,null,0]
[null,null,null,null,null,null,null,null,null,null,null,0]
[null,null,null,null,null,null,null,null,null,null,null,0]
[null,null,null,null,null,null,null,null,null,null,null,0]
[null,null,null,null,null,null,null,null,null,null,null,0]
[null,null,null,null,null,null,null,null,null,null,null,0]
[null,null,null,null,null,null,null,null,null,null,null,0]
[null,null,null,null,null,null,null,null,null,null,null,0]
[null,null,null,null,null,null,null,null,null,null,null,0]
[null,null,null,null,null,null,null,null,null,null,null,0]
[null,null,null,null,null,null,null,null,null,null,null,0]
[null,null,null,null,null,null,null,null,null,null,null,0]
[null,null,null,null,null,null,null,null,null,null,null,0]
[null,null,null,null,null,null,null,null,null,null,null,0]
[null,null,null,null,null,null,null,null,null,null,null,0]
[null,null,null,null,null,null,null,null,null,null,null,0]
[null,null,null,null,null,null,null,null,null,null,null,0]
[null,null,null,null,null,null,null,null,null,null,null,0]
[null,null,null,null,null,null,null,null,null,null,null,0]
[null,null,null,null,null,null,null,null,null,null,null,0]
[null,null,null,null,null,null,null,null,null,null,null,0]
[null,null,null,null,null,null,null,null,null,null,null,0]
[null,null,null,null,null,null,null,null,null,null,null,0]
[null,null,null,null,null,null,null,null,null,null,null,0]
[null,null,null,null,null,null,null,null,null,null,null,0]
[null,null,null,null,null,null,null,null,null,null,null,0]
[null,null,null,null,null,null,null,null,null,null,null,0]
[null,null,null,null,null,null,null,null,null,null,null,0]
[null,null,null,null,null,null,null,null,null,null,null,0]
[null,null,null,null,null,null,null,null,null,null,null,0]
[null,null,null,null,null,null,null,null,null,null,null,0]
[null,null,null,null,null,null,null,null,null,null,null,0]
[null,null,null,null,null,null,null,null,null,null,null,0]
[null,null,null,null,null,null,null,null,null,null,null,0]
[null,null,null,null,null,null,null,null,null,null,null,0]
[null,null,null,null,null,null,null,null,null,null,null,0]
[null,null,null,null,null,null,null,null,null,null,null,0]
[null,null,null,null,null,null,null,null,null,null,null,0]
[null,null,null,null,null,null,null,null,null,null,null,0]
[null,null,null,null,null,null,null,null,null,null,null,0]
[null,null,null,null,null,null,null,null,null,null,null,0]
[null,null,null,null,null,null,null,null,null,null,null,0]
[null,null,null,null,null,null,null,null,null,null,null,0]
[null,null,null,null,null,null,null,null,null,null,null,0]
[null,null,null,null,null,null,null,null,null,null,null,0]
[null,null,null,null,null,null,null,null,null,null,null,0]
[null,null,null,null,null,null,null,null,null,null,null,0]
[null,null,null,null,null,null,null,null,null,null,null,0]
[null,null,null,null,null,null,null,null,null,null,null,0]
[null,null,null,null,null,null,null,null,null,null,null,0]
[null,null,null,null,null,null,null,null,null,null,null,0]
[null,null,null,null,null,null,null,null,null,null,null,0]
[null,null,null,null,null,null,null,null,null,null,null,0]
[null,null,null,null,null,null,null,null,null,null,null,0]
[null,null,null,null,null,null,null,null,null,null,null,0]
[null,null,null,null,null,null,null,null,null,null,null,0]
[null,null,null,null,null,null,null,null,null,null,null,0]
[null,null,null,null,null,null,null,null,null,null,null,0]
[null,null,null,null,null,null,null,null,null,null,null,0]
[null,null,null,null,null,null,null,null,null,null,null,0]
[null,null,null,null,null,null,null,null,null,null,null,{"$f":"E775-D775","v":0}]
[null,null,null,null,null,null,null,null,null,null,null,0]
[null,null,null,null,null,null,null,null,null,null,null,0]
[null,null,null,null,null,null,null,null,null,null,null,0]
[null,null,null,null,null,null,null,null,null,null,null,0]
[null,null,null,null,null,null,null,null,null,null,null,0]
[null,null,null,null,null,null,null,null,null,null,null,0]
[null,null,null,null,null,null,null,null,null,null,null,0]
[null,null,null,null,null,null,null,null,null,null,null,0]
[null,null,null,null,null,null,null,null,null,null,null,0]
[null,null,null,null,null,null,null,null,null,null,null,0]
[null,null,null,null,null,null,null,null,null,null,null,0]
[null,null,null,null,null,null,null,null,null,null,null,0]
[null,null,null,null,null,null,null,null,null,null,null,0]
[null,null,null,null,null,null,null,null,null,null,null,0]
[null,null,null,null,null,null,null,null,null,null,null,0]
[null,null,null,null,null,null,null,null,null,null,null,0]
[null,null,null,null,null,null,null,null,null,null,null,0]
[null,null,null,null,null,null,null,null,null,null,null,0]
[null,null,null,null,null,null,null,null,null,null,null,0]
[null,null,null,null,null,null,null,null,null,null,null,0]
[null,null,null,null,null,null,null,null,null,null,null,0]
[null,null,null,null,null,null,null,null,null,null,null,0]
[null,null,null,null,null,null,null,null,null,null,null,0]
[null,null,null,null,null,null,null,null,null,null,null,0]
[null,null,null,null,null,null,null,null,null,null,null,0]
[null,null,null,null,null,null,null,null,null,null,null,0]
[null,null,null,null,null,null,null,null,null,null,null,0]
[null,null,null,null,null,null,null,null,null,null,null,0]
[null,null,null,null,null,null,null,null,null,null,null,0]
[null,null,null,null,null,null,null,null,null,null,null,0]
[null,null,null,null,null,null,null,null,null,null,null,0]
[null,null,null,null,null,null,null,null,null,null,null,0]
[null,null,null,null,null,null,null,null,null,null,null,0]
[null,null,null,null,null,null,null,null,null,null,null,0]
[null,null,null,null,null,null,null,null,null,null,null,0]
[null,null,null,null,null,null,null,null,null,null,null,0]
[null,null,null,null,null,null,null,null,null,null,null,0]
[null,null,null,null,null,null,null,null,null,null,null,0]
[null,null,null,null,null,null,null,null,null,null,null,0]
[null,null,null,null,null,null,null,null,null,null,null,0]
[null,null,null,null,null,null,null,null,null,null,null,0]
[null,null,null,null,null,null,null,null,null,null,null,0]
[null,null,null,null,null,null,null,null,null,null,null,0]
[null,null,null,null,null,null,null,null,null,null,null,0]
[null,null,null,null,null,null,null,null,null,null,null,0]
[null,null,null,null,null,null,null,null,null,null,null,0]
[null,null,null,null,null,null,null,null,null,null,null,0]
[null,null,null,null,null,null,null,null,null,null,null,0]
[null,null,null,null,null,null,null,null,null,null,null,0]
[null,null,null,null,null,null,null,null,null,null,null,0]
[null,null,null,null,null,null,null,null,null,null,null,0]
[null,null,null,null,null,null,null,null,null,null,null,0]
[null,null,null,null,null,null,null,null,null,null,null,0]
[null,null,null,null,null,null,null,null,null,null,null,0]
[null,null,null,null,null,null,null,null,null,null,null,0]
[null,null,null,null,null,null,null,null,null,null,null,0]
[null,null,null,null,null,null,null,null,null,null,null,0]
[null,null,null,null,null,null,null,null,null,null,null,0]
[null,null,null,null,null,null,null,null,null,null,null,0]
[null,null,null,null,null,null,null,null,null,null,null,0]
[null,null,null,null,null,null,null,null,null,null,null,0]
[null,null,null,null,null,null,null,null,null,null,null,0]
[null,null,null,null,null,null,null,null,null,null,null,0]
[null,null,null,null,null,null,null,null,null,null,null,{"$f":"E839-D839","v":0}]
[null,null,null,null,null,null,null,null,null,null,null,0]
[null,null,null,null,null,null,null,null,null,null,null,0]
[null,null,null,null,null,null,null,null,null,null,null,0]
[null,null,null,null,null,null,null,null,null,null,null,0]
[null,null,null,null,null,null,null,null,null,null,null,0]
[null,null,null,null,null,null,null,null,null,null,null,0]
[null,null,null,null,null,null,null,null,null,null,null,0]
[null,null,null,null,null,null,null,null,null,null,null,0]
[null,null,null,null,null,null,null,null,null,null,null,0]
[null,null,null,null,null,null,null,null,null,null,null,0]
[null,null,null,null,null,null,null,null,null,null,null,0]
[null,null,null,null,null,null,null,null,null,null,null,0]
[null,null,null,null,null,null,null,null,null,null,null,0]
[null,null,null,null,null,null,null,null,null,null,null,0]
[null,null,null,null,null,null,null,null,null,null,null,0]
[null,null,null,null,null,null,null,null,null,null,null,0]
[null,null,null,null,null,null,null,null,null,null,null,0]
[null,null,null,null,null,null,null,null,null,null,null,0]
[null,null,null,null,null,null,null,null,null,null,null,0]
[null,null,null,null,null,null,null,null,null,null,null,0]
[null,null,null,null,null,null,null,null,null,null,null,0]
[null,null,null,null,null,null,null,null,null,null,null,0]
[null,null,null,null,null,null,null,null,null,null,null,0]
[null,null,null,null,null,null,null,null,null,null,null,0]
[null,null,null,null,null,null,null,null,null,null,null,0]
[null,null,null,null,null,null,null,null,null,null,null,0]
[null,null,null,null,null,null,null,null,null,null,null,0]
[null,null,null,null,null,null,null,null,null,null,null,0]
[null,null,null,null,null,null,null,null,null,null,null,0]
[null,null,null,null,null,null,null,null,null,null,null,0]
[null,null,null,null,null,null,null,null,null,null,null,0]
[null,null,null,null,null,null,null,null,null,null,null,0]
[null,null,null,null,null,null,null,null,null,null,null,0]
[null,null,null,null,null,null,null,null,null,null,null,0]
[null,null,null,null,null,null,null,null,null,null,null,0]
[null,null,null,null,null,null,null,null,null,null,null,0]
[null,null,null,null,null,null,null,null,null,null,null,0]
[null,null,null,null,null,null,null,null,null,null,null,0]
[null,null,null,null,null,null,null,null,null,null,null,0]
[null,null,null,null,null,null,null,null,null,null,null,0]
[null,null,null,null,null,null,null,null,null,null,null,0]
[null,null,null,null,null,null,null,null,null,null,null,0]
[null,null,null,null,null,null,null,null,null,null,null,0]
[null,null,null,null,null,null,null,null,null,null,null,0]
[null,null,null,null,null,null,null,null,null,null,null,0]
[null,null,null,null,null,null,null,null,null,null,null,0]
[null,null,null,null,null,null,null,null,null,null,null,0]
[null,null,null,null,null,null,null,null,null,null,null,0]
[null,null,null,null,null,null,null,null,null,null,null,0]
[null,null,null,null,null,null,null,null,null,null,null,0]
[null,null,null,null,null,null,null,null,null,null,null,0]
[null,null,null,null,null,null,null,null,null,null,null,0]
[null,null,null,null,null,null,null,null,null,null,null,0]
[null,null,null,null,null,null,null,null,null,null,null,0]
[null,null,null,null,null,null,null,null,null,null,null,0]
[null,null,null,null,null,null,null,null,null,null,null,0]
[null,null,null,null,null,null,null,null,null,null,null,0]
[null,null,null,null,null,null,null,null,null,null,null,0]
[null,null,null,null,null,null,null,null,null,null,null,0]
[null,null,null,null,null,null,null,null,null,null,null,0]
[null,null,null,null,null,null,null,null,null,null,null,0]
[null,null,null,null,null,null,null,null,null,null,null,0]
[null,null,null,null,null,null,null,null,null,null,null,0]
[null,null,null,null,null,null,null,null,null,null,null,{"$f":"E903-D903","v":0}]
[null,null,null,null,null,null,null,null,null,null,null,0]
[null,null,null,null,null,null,null,null,null,null,null,0]
[null,null,null,null,null,null,null,null,null,null,null,0]
[null,null,null,null,null,null,null,null,null,null,null,0]
[null,null,null,null,null,null,null,null,null,null,null,0]
[null,null,null,null,null,null,null,null,null,null,null,0]
[null,null,null,null,null,null,null,null,null,null,null,0]
[null,null,null,null,null,null,null,null,null,null,null,0]
[null,null,null,null,null,null,null,null,null,null,null,0]
[null,null,null,null,null,null,null,null,null,null,null,0]
[null,null,null,null,null,null,null,null,null,null,null,0]
[null,null,null,null,null,null,null,null,null,null,null,0]
[null,null,null,null,null,null,null,null,null,null,null,0]
[null,null,null,null,null,null,null,null,null,null,null,0]
[null,null,null,null,null,null,null,null,null,null,null,0]
[null,null,null,null,null,null,null,null,null,null,null,0]
[null,null,null,null,null,null,null,null,null,null,null,0]
[null,null,null,null,null,null,null,null,null,null,null,0]
[null,null,null,null,null,null,null,null,null,null,null,0]
[null,null,null,null,null,null,null,null,null,null,null,0]
[null,null,null,null,null,null,null,null,null,null,null,0]
[null,null,null,null,null,null,null,null,null,null,null,0]
[null,null,null,null,null,null,null,null,null,null,null,0]
[null,null,null,null,null,null,null,null,null,null,null,0]
[null,null,null,null,null,null,null,null,null,null,null,0]
[null,null,null,null,null,null,null,null,null,null,null,0]
[null,null,null,null,null,null,null,null,null,null,null,0]
[null,null,null,null,null,null,null,null,null,null,null,0]
[null,null,null,null,null,null,null,null,null,null,null,0]
[null,null,null,null,null,null,null,null,null,null,null,0]
[null,null,null,null,null,null,null,null,null,null,null,0]
[null,null,null,null,null,null,null,null,null,null,null,0]
[null,null,null,null,null,null,null,null,null,null,null,0]
[null,null,null,null,null,null,null,null,null,null,null,0]
[null,null,null,null,null,null,null,null,null,null,null,0]
[null,null,null,null,null,null,null,null,null,null,null,0]
[null,null,null,null,null,null,null,null,null,null,null,0]
[null,null,null,null,null,null,null,null,null,null,null,0]
[null,null,null,null,null,null,null,null,null,null,null,0]
[null,null,null,null,null,null,null,null,null,null,null,0]
[null,null,null,null,null,null,null,null,null,null,null,0]
[null,null,null,null,null,null,null,null,null,null,null,0]
[null,null,null,null,null,null,null,null,null,null,null,0]
[null,null,null,null,null,null,null,null,null,null,null,0]
[null,null,null,null,null,null,null,null,null,null,null,0]
[null,null,null,null,null,null,null,null,null,null,null,0]
[null,null,null,null,null,null,null,null,null,null,null,0]
[null,null,null,null,null,null,null,null,null,null,null,0]
[null,null,null,null,null,null,null,null,null,null,null,0]
[null,null,null,null,null,null,null,null,null,null,null,0]
[null,null,null,null,null,null,null,null,null,null,null,0]
[null,null,null,null,null,null,null,null,null,null,null,0]
[null,null,null,null,null,null,null,null,null,null,null,0]
[null,null,null,null,null,null,null,null,null,null,null,0]
[null,null,null,null,null,null,null,null,null,null,null,0]
[null,null,null,null,null,null,null,null,null,null,null,0]
[null,null,null,null,null,null,null,null,null,null,null,0]
[null,null,null,null,null,null,null,null,null,null,null,0]
[null,null,null,null,null,null,null,null,null,null,null,0]
[null,null,null,null,null,null,null,null,null,null,null,0]
[null,null,null,null,null,null,null,null,null,null,null,0]
[null,null,null,null,null,null,null,null,null,null,null,0]
[null,null,null,null,null,null,null,null,null,null,null,0]
[null,null,null,null,null,null,null,null,null,null,null,{"$f":"E967-D967","v":0}]
[null,null,null,null,null,null,null,null,null,null,null,0]
[null,null,null,null,null,null,null,null,null,null,null,0]
[null,null,null,null,null,null,null,null,null,null,null,0]
[null,null,null,null,null,null,null,null,null,null,null,0]
[null,null,null,null,null,null,null,null,null,null,null,0]
[null,null,null,null,null,null,null,null,null,null,null,0]
[null,null,null,null,null,null,null,null,null,null,null,0]
[null,null,null,null,null,null,null,null,null,null,null,0]
[null,null,null,null,null,null,null,null,null,null,null,0]
[null,null,null,null,null,null,null,null,null,null,null,0]
[null,null,null,null,null,null,null,null,null,null,null,0]
[null,null,null,null,null,null,null,null,null,null,null,0]
[null,null,null,null,null,null,null,null,null,null,null,0]
[null,null,null,null,null,null,null,null,null,null,null,0]
[null,null,null,null,null,null,null,null,null,null,null,0]
[null,null,null,null,null,null,null,null,null,null,null,0]
[null,null,null,null,null,null,null,null,null,null,null,0]
[null,null,null,null,null,null,null,null,null,null,null,0]
[null,null,null,null,null,null,null,null,null,null,null,0]
[null,null,null,null,null,null,null,null,null,null,null,0]
[null,null,null,null,null,null,null,null,null,null,null,0]
[null,null,null,null,null,null,null,null,null,null,null,0]
[null,null,null,null,null,null,null,null,null,null,null,0]
[null,null,null,null,null,null,null,null,null,null,null,0]
[null,null,null,null,null,null,null,null,null,null,null,0]
[null,null,null,null,null,null,null,null,null,null,null,0]
[null,null,null,null,null,null,null,null,null,null,null,0]
[null,null,null,null,null,null,null,null,null,null,null,0]
[null,null,null,null,null,null,null,null,null,null,null,0]
[null,null,null,null,null,null,null,null,null,null,null,0]
[null,null,null,null,null,null,null,null,null,null,null,0]
[null,null,null,null,null,null,null,null,null,null,null,0]
[null,null,null,null,null,null,null,null,null,null,null,0]
[]
[]
[]
[]
[]
[]
[]
[]
[]
[]
[]
[]
[]
[]
[]
[]
[]
[]
[]
[]
[]
[]
[]
[]
[]
[]
[]
[]
[]
[]
[]
[]
[]
[]
[]
[]
[]
[]
[]
[]
[]
[]
[]
[]
[]
[]
[]
[]
[]
[]
[]
[]
[]
[]
[]
[]
[]
[]
[]
[]
[]
[]
[]
[]
[]
[]
[]
[]
[]
[]
[]
[]
[]
[]
[]
[]
[]
[]
[]
[]
[]
[]
[]
[]
[]
[]
[]
[]
[]
[]
[]
[]
[]
[]
[]
[]
[]
[]
[]
[]
[]
[]
[]
[]
[]
[]
[]
[]
[]
[]
[]
[]
[]
[]
[]
[]
[]
[]
[]
[]
[]
[]
[]
[]
[]
[]
[]
[]
[]
[]
[]
[]
[]
[]
[]
[]
[]
[]
[]
[]
[]
[]
[]
[]
[]
[]
[]
[]
[]
[]
[]
[]
[]
[]
[]
[]
[]
[]
[]
[]
[]
[]
[]
[]
[]
[]
[]
[]
[]
[]
[]
[]
[]
[]
[]
[]
[]
[]
[]
[]
[]
[]
[]
[]
[]
[]
[]
[]
[]
[]
[]
[]
[]
[]
[]
[]
[]
[]
[]
[]
[]
[]
[]
[]
[]
[]
[]
[]
[]
[]
[]
[]
[]
[]
[]
[]
[]
[]
[]
[]
[]
[]
[]
[]
[]
[]
[]
[]
[]
[]
[]
[]
[]
[]
[]
[]
[]
[]
[]
[]
[]
[]
[]
[]
[]
[]
[]
[]
[]
[]
[]
[]
[]
[]
[]
[]
[]
[]
[]
[]
[]
[]
[]
[]
[]
[]
[]
[]
[]
[]
[]
[]
[]
[]
[]
[]
[]
[]
[]
[]
[]
[]
[]
[]
[]
[]
[]
[]
[]
[]
[]
[]
[]
[]
[]
[]
[]
[]
[]
[]
[]
[]
[]
[]
[]
[]
[]
[]
[]
[]
[]
[]
[]
[]
[]
[]
[]
[]
[]
[]
[]
[]
[]
[]
[]
[]
[]
[]
[]
[]
[]
[]
[]
[]
[]
[]
[]
[]
[]
[]
[]
[]
[]
[]
[]
[]
[]
[]
[]
[]
[]
[]
[]
[]
[]
[]
[]
[]
[]
[]
[]
[]
[]
[]
[]
[]
[]
[]
[]
[]
[]
[]
[]
[]
[]
[]
[]
[]
[]
[]
[]
[]
[]
[]
[]
[]
[]
[]
[]
[]
[]
[]
[]
[]
[]
[]
[]
[]
[]
[]
[]
[]
[]
[]
[]
[]
[]
[]
[]
[]
[]
[]
[]
[]
[]
[]
[]
[]
[]
[]
[]
[]
[]
[]
[]
[]
[]
[]
[]
[]
[]
[]
[]
[]
[]
[]
[]
[]
[]
[]
[]
[]
[]
[]
[]
[]
[]
[]
[]
[]
[]
[]
[]
[]
[]
[]
[]
[]
[]
[]
[]
[]
[]
[]
[]
[]
[]
[]
[]
[]
[]
[]
[]
[]
[]
[]
[]
[]
[]
[]
[]
[]
[]
[]
[]
[]
[]
[]
[]
[]
[]
[]
[]
[]
[]
[]
[]
[]
[]
[]
[]
[]
[]
[]
[]
[]
[]
[]
[]
[]
[]
[]
[]
[]
[]
[]
[]
[]
[]
[]
[]
[]
[]
[]
[]
[]
[]
[]
[]
[]
[]
[]
[]
[]
[]
[]
[]
[]
[]
[]
[]
[]
[]
[]
[]
[]
[]
[]
[]
[]
[]
[]
[]
[]
[]
[]
[]
[]
[]
[]
[]
[]
[]
[]
[]
[]
[]
[]
[]
[]
[]
[]
[]
[]
[]
[]
[]
[]
[]
[]
[]
[]
[]
[]
[]
[]
[]
[]
[]
[]
[]
[]
[]
[]
[]
[]
[]
[]
[]
[]
[]
[]
[]
[]
[]
[]
[]
[]
[]
[]
[]
[]
[]
[]
[]
[]
[]
[]
[]
[]
[]
[]
[]
[]
[]
[]
[]
[]
[]
[]
[]
[]
[]
[]
[]
[]
[]
[]
[]
[]
[]
[]
[]
[]
[]
[]
[]
[]
[]
[]
[]
[]
[]
[]
[]
[]
[]
[]
[]
[]
[]
[]
[]
[]
[]
[]
[]
[]
[]
[]
[]
[]
[]
[]
[]
[]
[]
[]
[]
[]
[]
[]
[]
[]
[]
[]
[]
[]
[]
[]
[]
[]
[]
[]
[]
[]
[]
[]
[]
[]
[]
[]
[]
[]
[]
[]
[]
[]
[]
[]
[]
[]
[]
[]
[]
[]
[]
[]
[]
[]
[]
[]
[]
[]
[]
[]
[]
[]
[]
[]
[]
[]
[]
[]
[]
[]
[]
[]
[]
[]
[]
[]
[]
[]
[]
[]
[]
[]
[]
[]
[]
[]
[]
[]
[]
[]
[]
[]
[]
[]
[]
[]
[]
[]
[]
[]
[]
[]
[]
[]
[]
[]
[]
[]
[]
[]
[]
[]
[]
[]
[]
[]
[]
[]
[]
[]
[]
[]
[]
[]
[]
[]
[]
[]
[]
[]
[]
[]
[]
[]
[]
[]
[]
[]
[]
[]
[]
[]
[]
[]
[]
[]
[]
[]
[]
[]
[]
[]
[]
[]
[]
[]
[]
[]
[]
[]
[]
[]
[]
[]
[]
[]
[]
[]
[]
[]
[]
[]
[]
[]
[]
[]
[]
[]
[]
[]
[]
[]
[]
[]
[]
[]
[]
[]
[]
[]
[]
[]
[]
[]
[]
[]
[]
[]
[]
[]
[]
[]
[]
[]
[]
[]
[]
[]
[]
[]
[]
[]
[]
[]
[]
[]
[]
[]
[]
[]
[]
[]
[]
[]
[]
[]
[]
[]
[]
[]
[]
[]
[]
[]
[]
[]
[]
[]
[]
[]
[]
[]
[]
[]
[]
[]
[]
[]
[]
[]
[]
[]
[]
[]
[]
[]
[]
[]
[]
[]
[]
[]
[]
[]
[]
[]
[]
[]
[]
[]
[]
[]
[]
[]
[]
[]
[]
[]
[]
[]
[]
[]
[]
[]
[]
[]
[]
[]
[]
[]
[]
[]
[]
[]
[]
[]
[]
[]
[]
[]
[]
[]
[]
[]
[]
[]
[]
[]
[]
[]
[]
[]
[]
[]
[]
[]
[]
[]
[]
[]
[]
[]
[]
[]
[]
[]
[]
[]
[]
[]
[]
[]
[]
[]
[]
[]
[]
[]
[]
[]
[]
[]
[]
[]
[]
[]
[]
[]
[]
[]
[]
[]
[]
[]
[]
[]
[]
[]
[]
[]
[]
[]
[]
[]
[]
[]
[]
[]
[]
[]
[]
[]
[]
[]
[]
[]
[]
[]
[]
[]
[]
[]
[]
[]
[]
[]
[]
[]
[]
[]
[]
[]
[]
[]
[]
[]
[]
[]
[]
[]
[]
[]
[]
[]
[]
[]
[]
[]
[]
[]
[]
[]
[]
[]
[]
[]
[]
[]
[]
[]
[]
[]
[]
[]
[]
[]
[]
[]
[]
[]
[]
[]
[]
[]
[]
[]
[]
[]
[]
[]
[]
[]
[]
[]
[]
[]
[]
[]
[]
[]
[]
[]
[]
[]
[]
[]
[]
[]
[]
[]
[]
[]
[]
[]
[]
[]
[]
[]
[]
[]
[]
[]
[]
[]
[]
[]
[]
[]
[]
[]
[]
[]
[]
[]
[]
[]
[]
[]
[]
[]
[]
[]
[]
[]
[]
[]
[]
[]
[]
[]
[]
[]
[]
[]
[]
[]
[]
[]
[]
[]
[]
[]
[]
[]
[]
[]
[]
[]
[]
[]
[]
[]
[]
[]
[]
[]
[]
[]
[]
[]
[]
[]
[]
[]
[]
[]
[]
[]
[]
[]
[]
[]
[]
[]
[]
[]
[]
[]
[]
[]
[]
[]
[]
[]
[]
[]
[]
[]
[]
[]
[]
[]
[]
[]
[]
[]
[]
[]
[]
[]
[]
[]
[]
[]
[]
[]
[]
[]
[]
[]
[]
[]
[]
[]
[]
[]
[]
[]
[]
[]
[]
[]
[]
[]
[]
[]
[]
[]
[]
[]
[]
[]
[]
[]
[]
[]
[]
[]
[]
[]
[]
[]
[]
[]
[]
[]
[]
[]
[]
[]
[]
[]
[]
[]
[]
[]
[]
[]
[]
[]
[]
[]
[]
[]
[]
[]
[]
[]
[]
[]
[]
[]
[]
[]
[]
[]
[]
[]
[]
[]
[]
[]
[]
[]
[]
[]
[]
[]
[]
[]
[]
[]
[]
[]
[]
[]
[]
[]
[]
[]
[]
[]
[]
[]
[]
[]
[]
[]
[]
[]
[]
[]
[]
[]
[]
[]
[]
[]
[]
[]
[]
[]
[]
[]
[]
[]
[]
[]
[]
[]
[]
[]
[]
[]
[]
[]
[]
[]
[]
[]
[]
[]
[]
[]
[]
[]
[]
[]
[]
[]
[]
[]
[]
[]
[]
[]
[]
[]
[]
[]
[]
[]
[]
[]
[]
[]
[]
[]
[]
[]
[]
[]
[]
[]
[]
[]
[]
[]
[]
[]
[]
[]
[]
[]
[]
[]
[]
[]
[]
[]
[]
[]
[]
[]
[]
[]
[]
[]
[]
[]
[]
[]
[]
[]
[]
[]
[]
[]
[]
[]
[]
[]
[]
[]
[]
[]
[]
[]
[]
[]
[]
[]
[]
[]
[]
[]
[]
[]
[]
[]
[]
[]
[]
[]
[]
[]
[]
[]
[]
[]
[]
[]
[]
[]
[]
[]
[]
[]
[]
[]
[]
[]
[]
[]
[]
[]
[]
[]
[]
[]
[]
[]
[]
[]
[]
[]
[]
[]
[]
[]
[]
[]
[]
[]
[]
[]
[]
[]
[]
[]
[]
[]
[]
[]
[]
[]
[]
[]
[]
[]
[]
[]
[]
[]
[]
[]
[]
[]
[]
[]
[]
[]
[]
[]
[]
[]
[]
[]
[]
[]
[]
[]
[]
[]
[]
[]
[]
[]
[]
[]
[]
[]
[]
[]
[]
[]
[]
[]
[]
[]
[]
[]
[]
[]
[]
[]
[]
[]
[]
[]
[]
[]
[]
[]
[]
[]
[]
[]
[]
[]
[]
[]
[]
[]
[]
[]
[]
[]
[]
[]
[]
[]
[]
[]
[]
[]
[]
[]
[]
[]
[]
[]
[]
[]
[]
[]
[]
[]
[]
[]
[]
[]
[]
[]
[]
[]
[]
[]
[]
[]
[]
[]
[]
[]
[]
[]
[]
[]
[]
[]
[]
[]
[]
[]
[]
[]
[]
[]
[]
[]
[]
[]
[]
[]
[]
[]
[]
[]
[]
[]
[]
[]
[]
[]
[]
[]
[]
[]
[]
[]
[]
[]
[]
[]
[]
[]
[]
[]
[]
[]
[]
[]
[]
[]
[]
[]
[]
[]
[]
[]
[]
[]
[]
[]
[]
[]
[]
[]
[]
[]
[]
[]
[]
[]
[]
[]
[]
[]
[]
[]
[]
[]
[]
[]
[]
[]
[]
[]
[]
[]
[]
[]
[]
[]
[]
[]
[]
[]
[]
[]
[]
[]
[]
[]
[]
[]
[]
[]
[]
[]
[]
[]
[]
[]
[]
[]
[]
[]
[]
[]
[]
[]
[]
[]
[]
[]
[]
[]
[]
[]
[]
[]
[]
[]
[]
[]
[]
[]
[]
[]
[]
[]
[]
[]
[]
[]
[]
[]
[]
[]
[]
[]
[]
[]
[]
[]
[]
[]
[]
[]
[]
[]
[]
[]
[]
[]
[]
[]
[]
[]
[]
[]
[]
[]
[]
[]
[]
[]
[]
[]
[]
[]
[]
[]
[]
[]
[]
[]
[]
[]
[]
[]
[]
[]
[]
[]
[]
[]
[]
[]
[]
[]
[]
[]
[]
[]
[]
[]
[]
[]
[]
[]
[]
[]
[]
[]
[]
[]
[]
[]
[]
[]
[]
[]
[]
[]
[]
[]
[]
[]
[]
[]
[]
[]
[]
[]
[]
[]
[]
[]
[]
[]
[]
[]
[]
[]
[]
[]
[]
[]
[]
[]
[]
[]
[]
[]
[]
[]
[]
[]
[]
[]
[]
[]
[]
[]
[]
[]
[]
[]
[]
[]
[]
[]
[]
[]
[]
[]
[]
[]
[]
[]
[]
[]
[]
[]
[]
[]
[]
[]
[]
[]
[]
[]
[]
[]
[]
[]
[]
[]
[]
[]
[]
[]
[]
[]
[]
[]
[]
[]
[]
[]
[]
[]
[]
[]
[]
[]
[]
[]
[]
[]
[]
[]
[]
[]
[]
[]
[]
[]
[]
[]
[]
[]
[]
[]
[]
[]
[]
[]
[]
[]
[]
[]
[]
[]
[]
[]
[]
[]
[]
[]
[]
[]
[]
[]
[]
[]
[]
[]
[]
[]
[]
[]
[]
[]
[]
[]
[]
[]
[]
[]
[]
[]
[]
[]
[]
[]
[]
[]
[]
[]
[]
[]
[]
[]
[]
[]
[]
[]
[]
[]
[]
[]
[]
[]
[]
[]
[]
[]
[]
[]
[]
[]
[]
[]
[]
[]
[]
[]
[]
[]
[]
[]
[]
[]
[]
[]
[]
[]
[]
[]
[]
[]
[]
[]
[]
[]
[]
[]
[]
[]
[]
[]
[]
[]
[]
[]
[]
[]
[]
[]
[]
[]
[]
[]
[]
[]
[]
[]
[]
[]
[]
[]
[]
[]
[]
[]
[]
[]
[]
[]
[]
[]
[]
[]
[]
[]
[]
[]
[]
[]
[]
[]
[]
[]
[]
[]
[]
[]
[]
[]
[]
[]
[]
[]
[]
[]
[]
[]
[]
[]
[]
[]
[]
[]
[]
[]
[]
[]
[]
[]
[]
[]
[]
[]
[]
[]
[]
[]
[]
[]
[]
[]
[]
[]
[]
[]
[]
[]
[]
[]
[]
[]
[]
[]
[]
[]
[]
[]
[]
[]
[]
[]
[]
[]
[]
[]
[]
[]
[]
[]
[]
[]
[]
[]
[]
[]
[]
[]
[]
[]
[]
[]
[]
[]
[]
[]
[]
[]
[]
[]
[]
[]
[]
[]
[]
[]
[]
[]
[]
[]
[]
[]
[]
[]
[]
[]
[]
[]
[]
[]
[]
[]
[]
[]
[]
[]
[]
[]
[]
[]
[]
[]
[]
[]
[]
[]
[]
[]
[]
[]
[]
[]
[]
[]
[]
[]
[]
[]
[]
[]
[]
[]
[]
[]
[]
[]
[]
[]
[]
[]
[]
[]
[]
[]
[]
[]
[]
[]
[]
[]
[]
[]
[]
[]
[]
[]
[]
[]
[]
[]
[]
[]
[]
[]
[]
[]
[]
[]
[]
[]
[]
[]
[]
[]
[]
[]
[]
[]
[]
[]
[]
[]
[]
[]
[]
[]
[]
[]
[]
[]
[]
[]
[]
[]
[]
[]
[]
[]
[]
[]
[]
[]
[]
[]
[]
[]
[]
[]
[]
[]
[]
[]
[]
[]
[]
[]
[]
[]
[]
[]
[]
[]
[]
[]
[]
[]
[]
[]
[]
[]
[]
[]
[]
[]
[]
[]
[]
[]
[]
[]
[]
[]
[]
[]
[]
[]
[]
[]
[]
[]
[]
[]
[]
[]
[]
[]
[]
[]
[]
[]
[]
[]
[]
[]
[]
[]
[]
[]
[]
[]
[]
[]
[]
[]
[]
[]
[]
[]
[]
[]
[]
[]
[]
[]
[]
[]
[]
[]
[]
[]
[]
[]
[]
[]
[]
[]
[]
[]
[]
[]
[]
[]
[]
[]
[]
[]
[]
[]
[]
[]
[]
[]
[]
[]
[]
[]
[]
[]
[]
[]
[]
[]
[]
[]
[]
[]
[]
[]
[]
[]
[]
[]
[]
[]
[]
[]
[]
[]
[]
[]
[]
[]
[]
[]
[]
[]
[]
[]
[]
[]
[]
[]
[]
[]
[]
[]
[]
[]
[]
[]
[]
[]
[]
[]
[]
[]
[]
[]
[]
[]
[]
[]
[]
[]
[]
[]
[]
[]
[]
[]
[]
[]
[]
[]
[]
[]
[]
[]
[]
[]
[]
[]
[]
[]
[]
[]
[]
[]
[]
[]
[]
[]
[]
[]
[]
[]
[]
[]
[]
[]
[]
[]
[]
[]
[]
[]
[]
[]
[]
[]
[]
[]
[]
[]
[]
[]
[]
[]
[]
[]
[]
[]
[]
[]
[]
[]
[]
[]
[]
[]
[]
[]
[]
[]
[]
[]
[]
[]
[]
[]
[]
[]
[]
[]
[]
[]
[]
[]
[]
[]
[]
[]
[]
[]
[]
[]
[]
[]
[]
[]
[]
[]
[]
[]
[]
[]
[]
[]
[]
[]
[]
[]
[]
[]
[]
[]
[]
[]
[]
[]
[]
[]
[]
[]
[]
[]
[]
[]
[]
[]
[]
[]
[]
[]
[]
[]
[]
[]
[]
[]
[]
[]
[]
[]
[]
[]
[]
[]
[]
[]
[]
[]
[]
[]
[]
[]
[]
[]
[]
[]
[]
[]
[]
[]
[]
[]
[]
[]
[]
[]
[]
[]
[]
[]
[]
[]
[]
[]
[]
[]
[]
[]
[]
[]
[]
[]
[]
[]
[]
[]
[]
[]
[]
[]
[]
[]
[]
[]
[]
[]
[]
[]
[]
[]
[]
[]
[]
[]
[]
[]
[]
[]
[]
[]
[]
[]
[]
[]
[]
[]
[]
[]
[]
[]
[]
[]
[]
[]
[]
[]
[]
[]
[]
[]
[]
[]
[]
[]
[]
[]
[]
[]
[]
[]
[]
[]
[]
[]
[]
[]
[]
[]
[]
[]
[]
[]
[]
[]
[]
[]
[]
[]
[]
[]
[]
[]
[]
[]
[]
[]
[]
[]
[]
[]
[]
[]
[]
[]
[]
[]
[]
[]
[]
[]
[]
[]
[]
[]
[]
[]
[]
[]
[]
[]
[]
[]
[]
[]
[]
[]
[]
[]
[]
[]
[]
[]
[]
[]
[]
[]
[]
[]
[]
[]
[]
[]
[]
[]
[]
[]
[]
[]
[]
[]
[]
[]
[]
[]
[]
[]
[]
[]
[]
[]
[]
[]
[]
[]
[]
[]
[]
[]
[]
[]
[]
[]
[]
[]
[]
[]
[]
[]
[]
[]
[]
[]
[]
[]
[]
[]
[]
[]
[]
[]
[]
[]
[]
[]
[]
[]
[]
[]
[]
[]
[]
[]
[]
[]
[]
[]
[]
[]
[]
[]
[]
[]
[]
[]
[]
[]
[]
[]
[]
[]
[]
[]
[]
[]
[]
[]
[]
[]
[]
[]
[]
[]
[]
[]
[]
[]
[]
[]
[]
[]
[]
[]
[]
[]
[]
[]
[]
[]
[]
[]
[]
[]
[]
[]
[]
[]
[]
[]
[]
[]
[]
[]
[]
[]
[]
[]
[]
[]
[]
[]
[]
[]
[]
[]
[]
[]
[]
[]
[]
[]
[]
[]
[]
[]
[]
[]
[]
[]
[]
[]
[]
[]
[]
[]
[]
[]
[]
[]
[]
[]
[]
[]
[]
[]
[]
[]
[]
[]
[]
[]
[]
[]
[]
[]
[]
[]
[]
[]
[]
[]
[]
[]
[]
[]
[]
[]
[]
[]
[]
[]
[]
[]
[]
[]
[]
[]
[]
[]
[]
[]
[]
[]
[]
[]
[]
[]
[]
[]
[]
[]
[]
[]
[]
[]
[]
[]
[]
[]
[]
[]
[]
[]
[]
[]
[]
[]
[]
[]
[]
[]
[]
[]
[]
[]
[]
[]
[]
[]
[]
[]
[]
[]
[]
[]
[]
[]
[]
[]
[]
[]
[]
[]
[]
[]
[]
[]
[]
[]
[]
[]
[]
[]
[]
[]
[]
[]
[]
[]
[]
[]
[]
[]
[]
[]
[]
[]
[]
[]
[]
[]
[]
[]
[]
[]
[]
[]
[]
[]
[]
[]
[]
[]
[]
[]
[]
[]
[]
[]
[]
[]
[]
[]
[]
[]
[]
[]
[]
[]
[]
[]
[]
[]
[]
[]
[]
[]
[]
[]
[]
[]
[]
[]
[]
[]
[]
[]
[]
[]
[]
[]
[]
[]
[]
[]
[]
[]
[]
[]
[]
[]
[]
[]
[]
[]
[]
[]
[]
[]
[]
[]
[]
[]
[]
[]
[]
[]
[]
[]
[]
[]
[]
[]
[]
[]
[]
[]
[]
[]
[]
[]
[]
[]
[]
[]
[]
[]
[]
[]
[]
[]
[]
[]
[]
[]
[]
[]
[]
[]
[]
[]
[]
[]
[]
[]
[]
[]
[]
[]
[]
[]
[]
[]
[]
[]
[]
[]
[]
[]
[]
[]
[]
[]
[]
[]
[]
[]
[]
[]
[]
[]
[]
[]
[]
[]
[]
[]
[]
[]
[]
[]
[]
[]
[]
[]
[]
[]
[]
[]
[]
[]
[]
[]
[]
[]
[]
[]
[]
[]
[]
[]
[]
[]
[]
[]
[]
[]
[]
[]
[]
[]
[]
[]
[]
[]
[]
[]
[]
[]
[]
[]
[]
[]
[]
[]
[]
[]
[]
[]
[]
[]
[]
[]
[]
[]
[]
[]
[]
[]
[]
[]
[]
[]
[]
[]
[]
[]
[]
[]
[]
[]
[]
[]
[]
[]
[]
[]
[]
[]
[]
[]
[]
[]
[]
[]
[]
[]
[]
[]
[]
[]
[]
[]
[]
[]
[]
[]
[]
[]
[]
[]
[]
[]
[]
[]
[]
[]
[]
[]
[]
[]
[]
[]
[]
[]
[]
[]
[]
[]
[]
[]
[]
[]
[]
[]
[]
[]
[]
[]
[]
[]
[]
[]
[]
[]
[]
[]
[]
[]
[]
[]
[]
[]
[]
[]
[]
[]
[]
[]
[]
[]
[]
[]
[]
[]
[]
[]
[]
[]
[]
[]
[]
[]
[]
[]
[]
[]
[]
[]
[]
[]
[]
[]
[]
[]
[]
[]
[]
[]
[]
[]
[]
[]
[]
[]
[]
[]
[]
[]
[]
[]
[]
[]
[]
[]
[]
[]
[]
[]
[]
[]
[]
[]
[]
[]
[]
[]
[]
[]
[]
[]
[]
[]
[]
[]
[]
[]
[]
[]
[]
[]
[]
[]
[]
[]
[]
[]
[]
[]
[]
[]
[]
[]
[]
[]
[]
[]
[]
[]
[]
[]
[]
[]
[]
[]
[]
[]
[]
[]
[]
[]
[]
[]
[]
[]
[]
[]
[]
[]
[]
[]
[]
[]
[]
[]
[]
[]
[]
[]
[]
[]
[]
[]
[]
[]
[]
[]
[]
[null,null,null,null,null,null,444444]

{"sheet":"الغرف","index":2,"n_rows":20,"n_cols":27,"rows_kept":20,"cut":false,"hidden":false,"merged":[[2,2,2,4],[3,5,3,6],[0,5,0,6],[0,1,1,4],[3,2,3,4],[3,8,3,9],[0,8,0,9],[1,8,1,9],[2,8,2,9],[1,5,1,6],[2,5,2,6]]}
[null,"البحث عن نزيل",null,null,null,"عدد كل الغرف",null,{"$f":"$C$9+$C$14+$C$19","v":30},"فارغة دور اول",null,{"$f":"COUNTIF($D$9:$M$9,\"0\")","v":9},"عدد الافراد",{"$f":"D9+E9+F9+G9+H9+I9+J9+K9+L9+M9","v":3}]
[null,null,null,null,null,"عدد غرف الدور الاول",null,{"$f":"$C$9","v":10},"فارغة دور ثانى",null,{"$f":"COUNTIF($D$14:$M$14,\"0\")","v":10},"عدد الافراد",{"$f":"SUM($D$14:$M$14)","v":0}]
[null,"الاسم","عوض",null,null,"عدد غرف الدور الثانى",null,{"$f":"$C$14","v":10},"فارغة دور ثالث",null,{"$f":"COUNTIF($D$14:$M$14,\"0\")","v":10},"عدد الافراد",{"$f":"SUM($D$14:$M$14)","v":0}]
[null,"رقم الغرفة",{"$f":"IFERROR(VLOOKUP($C$3,البيانات!$B$6:$C$49998,2,FALSE),\"\")","v":20},null,null,"عدد غرف الدور الثالث",null,{"$f":"$C$19","v":10},"فارغة دور ثالث",null,{"$f":"COUNTIF($D$19:$M$19,\"0\")","v":10},"عدد الافراد",{"$f":"SUM($D$19:$M$19)","v":0}]
[null,null,null,null,null,null,{"$f":"IF(E9>E10,\"الغرفة بها سرير واحد ومحجوز\",\"\")","v":"الغرفة بها سرير واحد ومحجوز"}]
[]
[null,null,"الحالة",{"$f":"IF(D$9>=D$10,\"محجوزة\",\"\")","v":""},{"$f":"IF(E$9>=E$10,\"محجوزة\",\"\")","v":"محجوزة"},"","محجوزة","محجوزة","محجوزة","محجوزة","محجوزة","محجوزة","محجوزة"]
[null,null,"رقم الغرفة",{"$f":"'ارقام الغرف واسعارها'!$C$6","v":10},{"$f":"'ارقام الغرف واسعارها'!$C$7","v":20},{"$f":"'ارقام الغرف واسعارها'!$C$8","v":30},{"$f":"'ارقام الغرف واسعارها'!$C$9","v":0},{"$f":"'ارقام الغرف واسعارها'!$C$10","v":0},{"$f":"'ارقام الغرف واسعارها'!$C$11","v":0},{"$f":"'ارقام الغرف واسعارها'!$C$12","v":0},{"$f":"'ارقام الغرف واسعارها'!$C$13","v":0},{"$f":"'ارقام الغرف واسعارها'!$C$14","v":0},{"$f":"'ارقام الغرف واسعارها'!$C$15","v":0},null,null,null,null,10,20,30,40,50,60,70,80,90,100]
[null,"الدور الاول",10,{"$f":"$R$9","v":0},{"$f":"$S$9","v":3},{"$f":"$T$9","v":0},{"$f":"$U$9","v":0},{"$f":"$V$9","v":0},{"$f":"$W$9","v":0},{"$f":"$X$9","v":0},{"$f":"$Y$9","v":0},{"$f":"$Z$9","v":0},{"$f":"$AA$9","v":0},null,null,null,null,{"$f":"COUNTIF(البيانات!$C:$C,10)","v":0},{"$f":"COUNTIF(البيانات!$C:$C,20)","v":3},{"$f":"COUNTIF(البيانات!$C:$C,30)","v":0},{"$f":"COUNTIF(البيانات!$C:$C,40)","v":0},{"$f":"COUNTIF(البيانات!$C:$C,50)","v":0},{"$f":"COUNTIF(البيانات!$C:$C,60)","v":0},{"$f":"COUNTIF(البيانات!$C:$C,70)","v":0},{"$f":"COUNTIF(البيانات!$C:$C,80)","v":0},{"$f":"COUNTIF(البيانات!$C:$C,90)","v":0},{"$f":"COUNTIF(البيانات!$C:$C,100)","v":0}]
[null,null,"عدد الاسرة",{"$f":"'ارقام الغرف واسعارها'!E6","v":1},{"$f":"'ارقام الغرف واسعارها'!E7","v":1},{"$f":"'ارقام الغرف واسعارها'!E8","v":1},{"$f":"'ارقام الغرف واسعارها'!E9","v":0},{"$f":"'ارقام الغرف واسعارها'!E10","v":0},{"$f":"'ارقام الغرف واسعارها'!E11","v":0},{"$f":"'ارقام الغرف واسعارها'!E12","v":0},{"$f":"'ارقام الغرف واسعارها'!E13","v":0},{"$f":"'ارقام الغرف واسعارها'!E14","v":0},{"$f":"'ارقام الغرف واسعارها'!E15","v":0}]
[]
[null,null,null,{"$f":"IF(D$14>=D$15,\"محجوزة\",\"\")","v":""},{"$f":"IF(E$14>=E$15,\"محجوزة\",\"\")","v":""},"","","","","","","",""]
[null,null,"رقم الغرفة",110,120,130,140,150,160,170,180,190,200]
[null,"الدور الثانى",10,{"$f":"R$14","v":0},{"$f":"S$14","v":0},0,0,0,0,0,0,0,0,null,null,null,null,{"$f":"COUNTIF(البيانات!$C:$C,110)","v":0},{"$f":"COUNTIF(البيانات!$C:$C,120)","v":0},{"$f":"COUNTIF(البيانات!$C:$C,130)","v":0},{"$f":"COUNTIF(البيانات!$C:$C,140)","v":0},{"$f":"COUNTIF(البيانات!$C:$C,150)","v":0},{"$f":"COUNTIF(البيانات!$C:$C,160)","v":0},{"$f":"COUNTIF(البيانات!$C:$C,170)","v":0},{"$f":"COUNTIF(البيانات!$C:$C,180)","v":0},{"$f":"COUNTIF(البيانات!$C:$C,190)","v":0},{"$f":"COUNTIF(البيانات!$C:$C,200)","v":0}]
[null,null,"عدد الاسرة",1,1,1,2,2,2,3,3,4,4]
[]
[null,null,null,{"$f":"IF(D$19>=D$20,\"محجوزة\",\"\")","v":""},{"$f":"IF(E$19>=E$20,\"محجوزة\",\"\")","v":""},"","","","","","","",""]
[null,null,"رقم الغرفة",210,220,230,240,250,260,270,280,290,300]
[null,"الدور الثالث",10,{"$f":"R$19","v":0},{"$f":"S$19","v":0},0,0,0,0,0,0,0,0,null,null,null,null,{"$f":"COUNTIF(البيانات!$C:$C,210)","v":0},{"$f":"COUNTIF(البيانات!$C:$C,220)","v":0},{"$f":"COUNTIF(البيانات!$C:$C,230)","v":0},{"$f":"COUNTIF(البيانات!$C:$C,240)","v":0},{"$f":"COUNTIF(البيانات!$C:$C,250)","v":0},{"$f":"COUNTIF(البيانات!$C:$C,260)","v":0},{"$f":"COUNTIF(البيانات!$C:$C,270)","v":0},{"$f":"COUNTIF(البيانات!$C:$C,280)","v":0},{"$f":"COUNTIF(البيانات!$C:$C,290)","v":0},{"$f":"COUNTIF(البيانات!$C:$C,300)","v":0}]
[null,null,"عدد الاسرة",1,1,1,2,2,2,3,3,4,4]

{"sheet":"البحث عن مفادر","index":3,"n_rows":8,"n_cols":11,"rows_kept":8,"cut":false,"hidden":false,"merged":[[0,4,0,5]]}
[null,null,null,null,"البحث عن مغادر"]
[null,null,null,null,"اسم العميل","رقم البطاقة او الجواز"]
[null,null,null,null,"عوض"]
[]
[]
[]
[]
[null,null,null,"اسم العميل","رقم الحجرة","تاريخ الدخول","تاريخ الخروج","رقم البطاقة او الجواز","المهنة","الجنسية","عدد الايام"]

{"sheet":"البحث عن عميل موجود","index":4,"n_rows":7,"n_cols":4,"rows_kept":7,"cut":false,"hidden":false,"merged":[[1,2,1,3]]}
[]
[null,null,"البحث عن نزيل موجود"]
[]
[null,null,"الاسم","غلى"]
[]
[null,null,"رقم الحجرة","تاريخ الدخول"]
[null,null,{"$f":"IFERROR(VLOOKUP($D$4,البيانات!$B$6:$D$1000,2,FALSE),\"\")","v":20},{"$f":"IFERROR(VLOOKUP($D$4,البيانات!$B$6:$D$1000,3,FALSE),\"\")","v":"2019-03-04"}]

{"sheet":"ارقام الغرف واسعارها","index":5,"n_rows":329,"n_cols":15,"rows_kept":329,"cut":false,"hidden":false,"merged":[[2,2,2,3]]}
[]
[]
[null,null,"قائمة الاسعار",null,null,null,null,"مكافآت وخصومات سلف","شهر","أغسطس"]
[]
[null,"م","رقم الغرفة","السعر للليلة الواحدة","عدد الاسرة","الموقع",null,"الاسم","البيان","المبلغ","شهر"]
[null,{"$f":"IF(C6=\"\",\"\",SUBTOTAL(3,$C$6:C6))","v":1},10,10,1,"تطل على البحر",null,null,null,null,{"$f":"IF(H6=\"\",\"\",$J$3)","v":""},null,null,null,"حاقز او مكافآت"]
[null,{"$f":"IF(C7=\"\",\"\",SUBTOTAL(3,$C$6:C7))","v":2},20,20,1,"تطل على البحر",null,null,null,null,{"$f":"IF(H7=\"\",\"\",$J$3)","v":""},null,null,null,"سلف"]
[null,{"$f":"IF(C8=\"\",\"\",SUBTOTAL(3,$C$6:C8))","v":3},30,30,1,"تطل على البحر",null,null,null,null,"",null,null,null,"خصومات اخرى"]
[null,{"$f":"IF(C9=\"\",\"\",SUBTOTAL(3,$C$6:C9))","v":""},null,null,null,null,null,null,null,null,""]
[null,{"$f":"IF(C10=\"\",\"\",SUBTOTAL(3,$C$6:C10))","v":""},null,null,null,null,null,null,null,null,""]
[null,{"$f":"IF(C11=\"\",\"\",SUBTOTAL(3,$C$6:C11))","v":""},null,null,null,null,null,null,null,null,""]
[null,{"$f":"IF(C12=\"\",\"\",SUBTOTAL(3,$C$6:C12))","v":""},null,null,null,null,null,null,null,null,""]
[null,{"$f":"IF(C13=\"\",\"\",SUBTOTAL(3,$C$6:C13))","v":""},null,null,null,null,null,null,null,null,""]
[null,{"$f":"IF(C14=\"\",\"\",SUBTOTAL(3,$C$6:C14))","v":""},null,null,null,null,null,null,null,null,""]
[null,{"$f":"IF(C15=\"\",\"\",SUBTOTAL(3,$C$6:C15))","v":""},null,null,null,null,null,null,null,null,""]
[null,{"$f":"IF(C16=\"\",\"\",SUBTOTAL(3,$C$6:C16))","v":""},null,null,null,null,null,null,null,null,""]
[null,{"$f":"IF(C17=\"\",\"\",SUBTOTAL(3,$C$6:C17))","v":""},null,null,null,null,null,null,null,null,""]
[null,{"$f":"IF(C18=\"\",\"\",SUBTOTAL(3,$C$6:C18))","v":""},null,null,null,null,null,null,null,null,""]
[null,{"$f":"IF(C19=\"\",\"\",SUBTOTAL(3,$C$6:C19))","v":""},null,null,null,null,null,null,null,null,""]
[null,{"$f":"IF(C20=\"\",\"\",SUBTOTAL(3,$C$6:C20))","v":""},null,null,null,null,null,null,null,null,""]
[null,{"$f":"IF(C21=\"\",\"\",SUBTOTAL(3,$C$6:C21))","v":""},null,null,null,null,null,null,null,null,""]
[null,{"$f":"IF(C22=\"\",\"\",SUBTOTAL(3,$C$6:C22))","v":""},null,null,null,null,null,null,null,null,""]
[null,{"$f":"IF(C23=\"\",\"\",SUBTOTAL(3,$C$6:C23))","v":""},null,null,null,null,null,null,null,null,""]
[null,{"$f":"IF(C24=\"\",\"\",SUBTOTAL(3,$C$6:C24))","v":""},null,null,null,null,null,null,null,null,""]
[null,{"$f":"IF(C25=\"\",\"\",SUBTOTAL(3,$C$6:C25))","v":""},null,null,null,null,null,null,null,null,""]
[null,{"$f":"IF(C26=\"\",\"\",SUBTOTAL(3,$C$6:C26))","v":""},null,null,null,null,null,null,null,null,""]
[null,{"$f":"IF(C27=\"\",\"\",SUBTOTAL(3,$C$6:C27))","v":""},null,null,null,null,null,null,null,null,""]
[null,{"$f":"IF(C28=\"\",\"\",SUBTOTAL(3,$C$6:C28))","v":""},null,null,null,null,null,null,null,null,""]
[null,{"$f":"IF(C29=\"\",\"\",SUBTOTAL(3,$C$6:C29))","v":""},null,null,null,null,null,null,null,null,""]
[null,{"$f":"IF(C30=\"\",\"\",SUBTOTAL(3,$C$6:C30))","v":""},null,null,null,null,null,null,null,null,""]
[null,{"$f":"IF(C31=\"\",\"\",SUBTOTAL(3,$C$6:C31))","v":""},null,null,null,null,null,null,null,null,""]
[null,{"$f":"IF(C32=\"\",\"\",SUBTOTAL(3,$C$6:C32))","v":""},null,null,null,null,null,null,null,null,""]
[null,{"$f":"IF(C33=\"\",\"\",SUBTOTAL(3,$C$6:C33))","v":""},null,null,null,null,null,null,null,null,""]
[null,{"$f":"IF(C34=\"\",\"\",SUBTOTAL(3,$C$6:C34))","v":""},null,null,null,null,null,null,null,null,""]
[null,{"$f":"IF(C35=\"\",\"\",SUBTOTAL(3,$C$6:C35))","v":""},null,null,null,null,null,null,null,null,""]
[null,null,null,null,null,null,null,null,null,null,""]
[null,null,null,null,null,null,null,null,null,null,""]
[null,null,null,null,null,null,null,null,null,null,""]
[null,null,null,null,null,null,null,null,null,null,""]
[null,null,null,null,null,null,null,null,null,null,""]
[null,null,null,null,null,null,null,null,null,null,""]
[null,null,null,null,null,null,null,null,null,null,""]
[null,null,null,null,null,null,null,null,null,null,""]
[null,null,null,null,null,null,null,null,null,null,""]
[null,null,null,null,null,null,null,null,null,null,""]
[null,null,null,null,null,null,null,null,null,null,""]
[null,null,null,null,null,null,null,null,null,null,""]
[null,null,null,null,null,null,null,null,null,null,""]
[null,null,null,null,null,null,null,null,null,null,""]
[null,null,null,null,null,null,null,null,null,null,""]
[null,null,null,null,null,null,null,null,null,null,""]
[null,null,null,null,null,null,null,null,null,null,""]
[null,null,null,null,null,null,null,null,null,null,""]
[null,null,null,null,null,null,null,null,null,null,""]
[null,null,null,null,null,null,null,null,null,null,""]
[null,null,null,null,null,null,null,null,null,null,""]
[null,null,null,null,null,null,null,null,null,null,""]
[null,null,null,null,null,null,null,null,null,null,""]
[null,null,null,null,null,null,null,null,null,null,""]
[null,null,null,null,null,null,null,null,null,null,""]
[null,null,null,null,null,null,null,null,null,null,""]
[null,null,null,null,null,null,null,null,null,null,""]
[null,null,null,null,null,null,null,null,null,null,""]
[null,null,null,null,null,null,null,null,null,null,""]
[null,null,null,null,null,null,null,null,null,null,""]
[null,null,null,null,null,null,null,null,null,null,""]
[null,null,null,null,null,null,null,null,null,null,""]
[null,null,null,null,null,null,null,null,null,null,""]
[null,null,null,null,null,null,null,null,null,null,""]
[null,null,null,null,null,null,null,null,null,null,""]
[null,null,null,null,null,null,null,null,null,null,{"$f":"IF(H71=\"\",\"\",$J$3)","v":""}]
[null,null,null,null,null,null,null,null,null,null,""]
[null,null,null,null,null,null,null,null,null,null,""]
[null,null,null,null,null,null,null,null,null,null,""]
[null,null,null,null,null,null,null,null,null,null,""]
[null,null,null,null,null,null,null,null,null,null,""]
[null,null,null,null,null,null,null,null,null,null,""]
[null,null,null,null,null,null,null,null,null,null,""]
[null,null,null,null,null,null,null,null,null,null,""]
[null,null,null,null,null,null,null,null,null,null,""]
[null,null,null,null,null,null,null,null,null,null,""]
[null,null,null,null,null,null,null,null,null,null,""]
[null,null,null,null,null,null,null,null,null,null,""]
[null,null,null,null,null,null,null,null,null,null,""]
[null,null,null,null,null,null,null,null,null,null,""]
[null,null,null,null,null,null,null,null,null,null,""]
[null,null,null,null,null,null,null,null,null,null,""]
[null,null,null,null,null,null,null,null,null,null,""]
[null,null,null,null,null,null,null,null,null,null,""]
[null,null,null,null,null,null,null,null,null,null,""]
[null,null,null,null,null,null,null,null,null,null,""]
[null,null,null,null,null,null,null,null,null,null,""]
[null,null,null,null,null,null,null,null,null,null,""]
[null,null,null,null,null,null,null,null,null,null,""]
[null,null,null,null,null,null,null,null,null,null,""]
[null,null,null,null,null,null,null,null,null,null,""]
[null,null,null,null,null,null,null,null,null,null,""]
[null,null,null,null,null,null,null,null,null,null,""]
[null,null,null,null,null,null,null,null,null,null,""]
[null,null,null,null,null,null,null,null,null,null,""]
[null,null,null,null,null,null,null,null,null,null,""]
[null,null,null,null,null,null,null,null,null,null,""]
[null,null,null,null,null,null,null,null,null,null,""]
[null,null,null,null,null,null,null,null,null,null,""]
[null,null,null,null,null,null,null,null,null,null,""]
[null,null,null,null,null,null,null,null,null,null,""]
[null,null,null,null,null,null,null,null,null,null,""]
[null,null,null,null,null,null,null,null,null,null,""]
[null,null,null,null,null,null,null,null,null,null,""]
[null,null,null,null,null,null,null,null,null,null,""]
[null,null,null,null,null,null,null,null,null,null,""]
[null,null,null,null,null,null,null,null,null,null,""]
[null,null,null,null,null,null,null,null,null,null,""]
[null,null,null,null,null,null,null,null,null,null,""]
[null,null,null,null,null,null,null,null,null,null,""]
[null,null,null,null,null,null,null,null,null,null,""]
[null,null,null,null,null,null,null,null,null,null,""]
[null,null,null,null,null,null,null,null,null,null,""]
[null,null,null,null,null,null,null,null,null,null,""]
[null,null,null,null,null,null,null,null,null,null,""]
[null,null,null,null,null,null,null,null,null,null,""]
[null,null,null,null,null,null,null,null,null,null,""]
[null,null,null,null,null,null,null,null,null,null,""]
[null,null,null,null,null,null,null,null,null,null,""]
[null,null,null,null,null,null,null,null,null,null,""]
[null,null,null,null,null,null,null,null,null,null,""]
[null,null,null,null,null,null,null,null,null,null,""]
[null,null,null,null,null,null,null,null,null,null,""]
[null,null,null,null,null,null,null,null,null,null,""]
[null,null,null,null,null,null,null,null,null,null,""]
[null,null,null,null,null,null,null,null,null,null,""]
[null,null,null,null,null,null,null,null,null,null,""]
[null,null,null,null,null,null,null,null,null,null,""]
[null,null,null,null,null,null,null,null,null,null,""]
[null,null,null,null,null,null,null,null,null,null,{"$f":"IF(H135=\"\",\"\",$J$3)","v":""}]
[null,null,null,null,null,null,null,null,null,null,""]
[null,null,null,null,null,null,null,null,null,null,""]
[null,null,null,null,null,null,null,null,null,null,""]
[null,null,null,null,null,null,null,null,null,null,""]
[null,null,null,null,null,null,null,null,null,null,""]
[null,null,null,null,null,null,null,null,null,null,""]
[null,null,null,null,null,null,null,null,null,null,""]
[null,null,null,null,null,null,null,null,null,null,""]
[null,null,null,null,null,null,null,null,null,null,""]
[null,null,null,null,null,null,null,null,null,null,""]
[null,null,null,null,null,null,null,null,null,null,""]
[null,null,null,null,null,null,null,null,null,null,""]
[null,null,null,null,null,null,null,null,null,null,""]
[null,null,null,null,null,null,null,null,null,null,""]
[null,null,null,null,null,null,null,null,null,null,""]
[null,null,null,null,null,null,null,null,null,null,""]
[null,null,null,null,null,null,null,null,null,null,""]
[null,null,null,null,null,null,null,null,null,null,""]
[null,null,null,null,null,null,null,null,null,null,""]
[null,null,null,null,null,null,null,null,null,null,""]
[null,null,null,null,null,null,null,null,null,null,""]
[null,null,null,null,null,null,null,null,null,null,""]
[null,null,null,null,null,null,null,null,null,null,""]
[null,null,null,null,null,null,null,null,null,null,""]
[null,null,null,null,null,null,null,null,null,null,""]
[null,null,null,null,null,null,null,null,null,null,""]
[null,null,null,null,null,null,null,null,null,null,""]
[null,null,null,null,null,null,null,null,null,null,""]
[null,null,null,null,null,null,null,null,null,null,""]
[null,null,null,null,null,null,null,null,null,null,""]
[null,null,null,null,null,null,null,null,null,null,""]
[null,null,null,null,null,null,null,null,null,null,""]
[null,null,null,null,null,null,null,null,null,null,""]
[null,null,null,null,null,null,null,null,null,null,""]
[null,null,null,null,null,null,null,null,null,null,""]
[null,null,null,null,null,null,null,null,null,null,""]
[null,null,null,null,null,null,null,null,null,null,""]
[null,null,null,null,null,null,null,null,null,null,""]
[null,null,null,null,null,null,null,null,null,null,""]
[null,null,null,null,null,null,null,null,null,null,""]
[null,null,null,null,null,null,null,null,null,null,""]
[null,null,null,null,null,null,null,null,null,null,""]
[null,null,null,null,null,null,null,null,null,null,""]
[null,null,null,null,null,null,null,null,null,null,""]
[null,null,null,null,null,null,null,null,null,null,""]
[null,null,null,null,null,null,null,null,null,null,""]
[null,null,null,null,null,null,null,null,null,null,""]
[null,null,null,null,null,null,null,null,null,null,""]
[null,null,null,null,null,null,null,null,null,null,""]
[null,null,null,null,null,null,null,null,null,null,""]
[null,null,null,null,null,null,null,null,null,null,""]
[null,null,null,null,null,null,null,null,null,null,""]
[null,null,null,null,null,null,null,null,null,null,""]
[null,null,null,null,null,null,null,null,null,null,""]
[null,null,null,null,null,null,null,null,null,null,""]
[null,null,null,null,null,null,null,null,null,null,""]
[null,null,null,null,null,null,null,null,null,null,""]
[null,null,null,null,null,null,null,null,null,null,""]
[null,null,null,null,null,null,null,null,null,null,""]
[null,null,null,null,null,null,null,null,null,null,""]
[null,null,null,null,null,null,null,null,null,null,""]
[null,null,null,null,null,null,null,null,null,null,""]
[null,null,null,null,null,null,null,null,null,null,""]
[null,null,null,null,null,null,null,null,null,null,{"$f":"IF(H199=\"\",\"\",$J$3)","v":""}]
[null,null,null,null,null,null,null,null,null,null,""]
[null,null,null,null,null,null,null,null,null,null,""]
[null,null,null,null,null,null,null,null,null,null,""]
[null,null,null,null,null,null,null,null,null,null,""]
[null,null,null,null,null,null,null,null,null,null,""]
[null,null,null,null,null,null,null,null,null,null,""]
[null,null,null,null,null,null,null,null,null,null,""]
[null,null,null,null,null,null,null,null,null,null,""]
[null,null,null,null,null,null,null,null,null,null,""]
[null,null,null,null,null,null,null,null,null,null,""]
[null,null,null,null,null,null,null,null,null,null,""]
[null,null,null,null,null,null,null,null,null,null,""]
[null,null,null,null,null,null,null,null,null,null,""]
[null,null,null,null,null,null,null,null,null,null,""]
[null,null,null,null,null,null,null,null,null,null,""]
[null,null,null,null,null,null,null,null,null,null,""]
[null,null,null,null,null,null,null,null,null,null,""]
[null,null,null,null,null,null,null,null,null,null,""]
[null,null,null,null,null,null,null,null,null,null,""]
[null,null,null,null,null,null,null,null,null,null,""]
[null,null,null,null,null,null,null,null,null,null,""]
[null,null,null,null,null,null,null,null,null,null,""]
[null,null,null,null,null,null,null,null,null,null,""]
[null,null,null,null,null,null,null,null,null,null,""]
[null,null,null,null,null,null,null,null,null,null,""]
[null,null,null,null,null,null,null,null,null,null,""]
[null,null,null,null,null,null,null,null,null,null,""]
[null,null,null,null,null,null,null,null,null,null,""]
[null,null,null,null,null,null,null,null,null,null,""]
[null,null,null,null,null,null,null,null,null,null,""]
[null,null,null,null,null,null,null,null,null,null,""]
[null,null,null,null,null,null,null,null,null,null,""]
[null,null,null,null,null,null,null,null,null,null,""]
[null,null,null,null,null,null,null,null,null,null,""]
[null,null,null,null,null,null,null,null,null,null,""]
[null,null,null,null,null,null,null,null,null,null,""]
[null,null,null,null,null,null,null,null,null,null,""]
[null,null,null,null,null,null,null,null,null,null,""]
[null,null,null,null,null,null,null,null,null,null,""]
[null,null,null,null,null,null,null,null,null,null,""]
[null,null,null,null,null,null,null,null,null,null,""]
[null,null,null,null,null,null,null,null,null,null,""]
[null,null,null,null,null,null,null,null,null,null,""]
[null,null,null,null,null,null,null,null,null,null,""]
[null,null,null,null,null,null,null,null,null,null,""]
[null,null,null,null,null,null,null,null,null,null,""]
[null,null,null,null,null,null,null,null,null,null,""]
[null,null,null,null,null,null,null,null,null,null,""]
[null,null,null,null,null,null,null,null,null,null,""]
[null,null,null,null,null,null,null,null,null,null,""]
[null,null,null,null,null,null,null,null,null,null,""]
[null,null,null,null,null,null,null,null,null,null,""]
[null,null,null,null,null,null,null,null,null,null,""]
[null,null,null,null,null,null,null,null,null,null,""]
[null,null,null,null,null,null,null,null,null,null,""]
[null,null,null,null,null,null,null,null,null,null,""]
[null,null,null,null,null,null,null,null,null,null,""]
[null,null,null,null,null,null,null,null,null,null,""]
[null,null,null,null,null,null,null,null,null,null,""]
[null,null,null,null,null,null,null,null,null,null,""]
[null,null,null,null,null,null,null,null,null,null,""]
[null,null,null,null,null,null,null,null,null,null,""]
[null,null,null,null,null,null,null,null,null,null,""]
[null,null,null,null,null,null,null,null,null,null,{"$f":"IF(H263=\"\",\"\",$J$3)","v":""}]
[null,null,null,null,null,null,null,null,null,null,""]
[null,null,null,null,null,null,null,null,null,null,""]
[null,null,null,null,null,null,null,null,null,null,""]
[null,null,null,null,null,null,null,null,null,null,""]
[null,null,null,null,null,null,null,null,null,null,""]
[null,null,null,null,null,null,null,null,null,null,""]
[null,null,null,null,null,null,null,null,null,null,""]
[null,null,null,null,null,null,null,null,null,null,""]
[null,null,null,null,null,null,null,null,null,null,""]
[null,null,null,null,null,null,null,null,null,null,""]
[null,null,null,null,null,null,null,null,null,null,""]
[null,null,null,null,null,null,null,null,null,null,""]
[null,null,null,null,null,null,null,null,null,null,""]
[null,null,null,null,null,null,null,null,null,null,""]
[null,null,null,null,null,null,null,null,null,null,""]
[null,null,null,null,null,null,null,null,null,null,""]
[null,null,null,null,null,null,null,null,null,null,""]
[null,null,null,null,null,null,null,null,null,null,""]
[null,null,null,null,null,null,null,null,null,null,""]
[null,null,null,null,null,null,null,null,null,null,""]
[null,null,null,null,null,null,null,null,null,null,""]
[null,null,null,null,null,null,null,null,null,null,""]
[null,null,null,null,null,null,null,null,null,null,""]
[null,null,null,null,null,null,null,null,null,null,""]
[null,null,null,null,null,null,null,null,null,null,""]
[null,null,null,null,null,null,null,null,null,null,""]
[null,null,null,null,null,null,null,null,null,null,""]
[null,null,null,null,null,null,null,null,null,null,""]
[null,null,null,null,null,null,null,null,null,null,""]
[null,null,null,null,null,null,null,null,null,null,""]
[null,null,null,null,null,null,null,null,null,null,""]
[null,null,null,null,null,null,null,null,null,null,""]
[null,null,null,null,null,null,null,null,null,null,""]
[null,null,null,null,null,null,null,null,null,null,""]
[null,null,null,null,null,null,null,null,null,null,""]
[null,null,null,null,null,null,null,null,null,null,""]
[null,null,null,null,null,null,null,null,null,null,""]
[null,null,null,null,null,null,null,null,null,null,""]
[null,null,null,null,null,null,null,null,null,null,""]
[null,null,null,null,null,null,null,null,null,null,""]
[null,null,null,null,null,null,null,null,null,null,""]
[null,null,null,null,null,null,null,null,null,null,""]
[null,null,null,null,null,null,null,null,null,null,""]
[null,null,null,null,null,null,null,null,null,null,""]
[null,null,null,null,null,null,null,null,null,null,""]
[null,null,null,null,null,null,null,null,null,null,""]
[null,null,null,null,null,null,null,null,null,null,""]
[null,null,null,null,null,null,null,null,null,null,""]
[null,null,null,null,null,null,null,null,null,null,""]
[null,null,null,null,null,null,null,null,null,null,""]
[null,null,null,null,null,null,null,null,null,null,""]
[null,null,null,null,null,null,null,null,null,null,""]
[null,null,null,null,null,null,null,null,null,null,""]
[null,null,null,null,null,null,null,null,null,null,""]
[null,null,null,null,null,null,null,null,null,null,""]
[null,null,null,null,null,null,null,null,null,null,""]
[null,null,null,null,null,null,null,null,null,null,""]
[null,null,null,null,null,null,null,null,null,null,""]
[null,null,null,null,null,null,null,null,null,null,""]
[null,null,null,null,null,null,null,null,null,null,""]
[null,null,null,null,null,null,null,null,null,null,""]
[null,null,null,null,null,null,null,null,null,null,""]
[null,null,null,null,null,null,null,null,null,null,""]
[null,null,null,null,null,null,null,null,null,null,{"$f":"IF(H327=\"\",\"\",$J$3)","v":""}]
[null,null,null,null,null,null,null,null,null,null,""]
[null,null,null,null,null,null,null,null,null,null,""]

{"sheet":"راتب","index":6,"n_rows":25,"n_cols":24,"rows_kept":25,"cut":false,"hidden":false,"merged":[[0,7,0,8],[1,7,1,8]]}
[null,null,null,null,null,null,null,"عدد ايام العمل هذا الشهر",null,30,"يوم"]
[null,null,"للرئيسية",null,null,null,null,"راتب شهر",null,"أكتوبر",2019]
[]
[null,null,null,{"$f":"SUM(D$6:D$25)","v":24000},0,0,0,0,0,0,0,{"$f":"SUM(L$6:L$25)","v":24000}]
[null,"كود العامل","الاسم","الاساسى","حاقز او مكافآت","اضافى","سلف","خصومات اخرى","تأخير ","خصم غياب","جملة خصم","الصافى","التوقيع بالاستلام",null,"غياب",null,null,null,null,null,null,null,"يناير",2019]
[null,10,"عوض1",5000,{"$f":"SUMIFS('ارقام الغرف واسعارها'!$J:$J,'ارقام الغرف واسعارها'!$H:$H,راتب!C6,'ارقام الغرف واسعارها'!$I:$I,راتب!$E$5,'ارقام الغرف واسعارها'!$K:$K,راتب!$J$2)","v":0},{"$f":"SUMIFS('مرحل حضور'!$L:$L,'مرحل حضور'!$E:$E,راتب!C6,'مرحل حضور'!$N:$N,راتب!$J$2)","v":0},{"$f":"SUMIFS('ارقام الغرف واسعارها'!$J:$J,'ارقام الغرف واسعارها'!$H:$H,راتب!C6,'ارقام الغرف واسعارها'!$I:$I,راتب!$G$5,'ارقام الغرف واسعارها'!$K:$K,راتب!$J$2)","v":0},{"$f":"SUMIFS('ارقام الغرف واسعارها'!$J:$J,'ارقام الغرف واسعارها'!$H:$H,راتب!C6,'ارقام الغرف واسعارها'!$I:$I,راتب!$H$5,'ارقام الغرف واسعارها'!$K:$K,راتب!$J$2)","v":0},{"$f":"SUMIFS('مرحل حضور'!$K:$K,'مرحل حضور'!$E:$E,راتب!C6,'مرحل حضور'!$N:$N,راتب!$J$2)","v":0},{"$f":"D6/$J$1*O6","v":0},{"$f":"I6+J6+G6+H6","v":0},{"$f":"D6+E6+F6-K6","v":5000},null,null,{"$f":"SUMIFS('مرحل حضور'!$O:$O,'مرحل حضور'!$E:$E,راتب!C6,'مرحل حضور'!$N:$N,راتب!$J$2)","v":0},null,null,null,null,null,null,20,"فبراير",2020]
[null,20,"عوض2",1000,{"$f":"SUMIFS('ارقام الغرف واسعارها'!$J:$J,'ارقام الغرف واسعارها'!$H:$H,راتب!C7,'ارقام الغرف واسعارها'!$I:$I,راتب!$E$5,'ارقام الغرف واسعارها'!$K:$K,راتب!$J$2)","v":0},{"$f":"SUMIFS('مرحل حضور'!$L:$L,'مرحل حضور'!$E:$E,راتب!C7,'مرحل حضور'!$N:$N,راتب!$J$2)","v":0},{"$f":"SUMIFS('ارقام الغرف واسعارها'!$J:$J,'ارقام الغرف واسعارها'!$H:$H,راتب!C7,'ارقام الغرف واسعارها'!$I:$I,راتب!$G$5,'ارقام الغرف واسعارها'!$K:$K,راتب!$J$2)","v":0},{"$f":"SUMIFS('ارقام الغرف واسعارها'!$J:$J,'ارقام الغرف واسعارها'!$H:$H,راتب!C7,'ارقام الغرف واسعارها'!$I:$I,راتب!$H$5,'ارقام الغرف واسعارها'!$K:$K,راتب!$J$2)","v":0},{"$f":"SUMIFS('مرحل حضور'!$K:$K,'مرحل حضور'!$E:$E,راتب!C7,'مرحل حضور'!$N:$N,راتب!$J$2)","v":0},0,{"$f":"I7+J7+G7+H7","v":0},1000,null,null,{"$f":"SUMIFS('مرحل حضور'!$O:$O,'مرحل حضور'!$E:$E,راتب!C7,'مرحل حضور'!$N:$N,راتب!$J$2)","v":0},null,null,null,null,null,null,21,"مارس",2021]
[null,30,"عوض3",1000,{"$f":"SUMIFS('ارقام الغرف واسعارها'!$J:$J,'ارقام الغرف واسعارها'!$H:$H,راتب!C8,'ارقام الغرف واسعارها'!$I:$I,راتب!$E$5,'ارقام الغرف واسعارها'!$K:$K,راتب!$J$2)","v":0},{"$f":"SUMIFS('مرحل حضور'!$L:$L,'مرحل حضور'!$E:$E,راتب!C8,'مرحل حضور'!$N:$N,راتب!$J$2)","v":0},{"$f":"SUMIFS('ارقام الغرف واسعارها'!$J:$J,'ارقام الغرف واسعارها'!$H:$H,راتب!C8,'ارقام الغرف واسعارها'!$I:$I,راتب!$G$5,'ارقام الغرف واسعارها'!$K:$K,راتب!$J$2)","v":0},{"$f":"SUMIFS('ارقام الغرف واسعارها'!$J:$J,'ارقام الغرف واسعارها'!$H:$H,راتب!C8,'ارقام الغرف واسعارها'!$I:$I,راتب!$H$5,'ارقام الغرف واسعارها'!$K:$K,راتب!$J$2)","v":0},{"$f":"SUMIFS('مرحل حضور'!$K:$K,'مرحل حضور'!$E:$E,راتب!C8,'مرحل حضور'!$N:$N,راتب!$J$2)","v":0},0,0,1000,null,null,{"$f":"SUMIFS('مرحل حضور'!$O:$O,'مرحل حضور'!$E:$E,راتب!C8,'مرحل حضور'!$N:$N,راتب!$J$2)","v":0},null,null,null,null,null,null,22,"أبريل",2022]
[null,40,"عوض4",1000,{"$f":"SUMIFS('ارقام الغرف واسعارها'!$J:$J,'ارقام الغرف واسعارها'!$H:$H,راتب!C9,'ارقام الغرف واسعارها'!$I:$I,راتب!$E$5,'ارقام الغرف واسعارها'!$K:$K,راتب!$J$2)","v":0},{"$f":"SUMIFS('مرحل حضور'!$L:$L,'مرحل حضور'!$E:$E,راتب!C9,'مرحل حضور'!$N:$N,راتب!$J$2)","v":0},{"$f":"SUMIFS('ارقام الغرف واسعارها'!$J:$J,'ارقام الغرف واسعارها'!$H:$H,راتب!C9,'ارقام الغرف واسعارها'!$I:$I,راتب!$G$5,'ارقام الغرف واسعارها'!$K:$K,راتب!$J$2)","v":0},{"$f":"SUMIFS('ارقام الغرف واسعارها'!$J:$J,'ارقام الغرف واسعارها'!$H:$H,راتب!C9,'ارقام الغرف واسعارها'!$I:$I,راتب!$H$5,'ارقام الغرف واسعارها'!$K:$K,راتب!$J$2)","v":0},{"$f":"SUMIFS('مرحل حضور'!$K:$K,'مرحل حضور'!$E:$E,راتب!C9,'مرحل حضور'!$N:$N,راتب!$J$2)","v":0},0,0,1000,null,null,{"$f":"SUMIFS('مرحل حضور'!$O:$O,'مرحل حضور'!$E:$E,راتب!C9,'مرحل حضور'!$N:$N,راتب!$J$2)","v":0},null,null,null,null,null,null,23,"مايو",2023]
[null,50,"عوض5",1000,{"$f":"SUMIFS('ارقام الغرف واسعارها'!$J:$J,'ارقام الغرف واسعارها'!$H:$H,راتب!C10,'ارقام الغرف واسعارها'!$I:$I,راتب!$E$5,'ارقام الغرف واسعارها'!$K:$K,راتب!$J$2)","v":0},{"$f":"SUMIFS('مرحل حضور'!$L:$L,'مرحل حضور'!$E:$E,راتب!C10,'مرحل حضور'!$N:$N,راتب!$J$2)","v":0},{"$f":"SUMIFS('ارقام الغرف واسعارها'!$J:$J,'ارقام الغرف واسعارها'!$H:$H,راتب!C10,'ارقام الغرف واسعارها'!$I:$I,راتب!$G$5,'ارقام الغرف واسعارها'!$K:$K,راتب!$J$2)","v":0},{"$f":"SUMIFS('ارقام الغرف واسعارها'!$J:$J,'ارقام الغرف واسعارها'!$H:$H,راتب!C10,'ارقام الغرف واسعارها'!$I:$I,راتب!$H$5,'ارقام الغرف واسعارها'!$K:$K,راتب!$J$2)","v":0},{"$f":"SUMIFS('مرحل حضور'!$K:$K,'مرحل حضور'!$E:$E,راتب!C10,'مرحل حضور'!$N:$N,راتب!$J$2)","v":0},0,0,1000,null,null,{"$f":"SUMIFS('مرحل حضور'!$O:$O,'مرحل حضور'!$E:$E,راتب!C10,'مرحل حضور'!$N:$N,راتب!$J$2)","v":0},null,null,null,null,null,null,24,"يونيو",2024]
[null,60,"عوض6",1000,{"$f":"SUMIFS('ارقام الغرف واسعارها'!$J:$J,'ارقام الغرف واسعارها'!$H:$H,راتب!C11,'ارقام الغرف واسعارها'!$I:$I,راتب!$E$5,'ارقام الغرف واسعارها'!$K:$K,راتب!$J$2)","v":0},{"$f":"SUMIFS('مرحل حضور'!$L:$L,'مرحل حضور'!$E:$E,راتب!C11,'مرحل حضور'!$N:$N,راتب!$J$2)","v":0},{"$f":"SUMIFS('ارقام الغرف واسعارها'!$J:$J,'ارقام الغرف واسعارها'!$H:$H,راتب!C11,'ارقام الغرف واسعارها'!$I:$I,راتب!$G$5,'ارقام الغرف واسعارها'!$K:$K,راتب!$J$2)","v":0},{"$f":"SUMIFS('ارقام الغرف واسعارها'!$J:$J,'ارقام الغرف واسعارها'!$H:$H,راتب!C11,'ارقام الغرف واسعارها'!$I:$I,راتب!$H$5,'ارقام الغرف واسعارها'!$K:$K,راتب!$J$2)","v":0},{"$f":"SUMIFS('مرحل حضور'!$K:$K,'مرحل حضور'!$E:$E,راتب!C11,'مرحل حضور'!$N:$N,راتب!$J$2)","v":0},0,0,1000,null,null,{"$f":"SUMIFS('مرحل حضور'!$O:$O,'مرحل حضور'!$E:$E,راتب!C11,'مرحل حضور'!$N:$N,راتب!$J$2)","v":0},null,null,null,null,null,null,25,"يوليو",2025]
[null,70,"عوض7",1000,{"$f":"SUMIFS('ارقام الغرف واسعارها'!$J:$J,'ارقام الغرف واسعارها'!$H:$H,راتب!C12,'ارقام الغرف واسعارها'!$I:$I,راتب!$E$5,'ارقام الغرف واسعارها'!$K:$K,راتب!$J$2)","v":0},{"$f":"SUMIFS('مرحل حضور'!$L:$L,'مرحل حضور'!$E:$E,راتب!C12,'مرحل حضور'!$N:$N,راتب!$J$2)","v":0},{"$f":"SUMIFS('ارقام الغرف واسعارها'!$J:$J,'ارقام الغرف واسعارها'!$H:$H,راتب!C12,'ارقام الغرف واسعارها'!$I:$I,راتب!$G$5,'ارقام الغرف واسعارها'!$K:$K,راتب!$J$2)","v":0},{"$f":"SUMIFS('ارقام الغرف واسعارها'!$J:$J,'ارقام الغرف واسعارها'!$H:$H,راتب!C12,'ارقام الغرف واسعارها'!$I:$I,راتب!$H$5,'ارقام الغرف واسعارها'!$K:$K,راتب!$J$2)","v":0},{"$f":"SUMIFS('مرحل حضور'!$K:$K,'مرحل حضور'!$E:$E,راتب!C12,'مرحل حضور'!$N:$N,راتب!$J$2)","v":0},0,0,1000,null,null,{"$f":"SUMIFS('مرحل حضور'!$O:$O,'مرحل حضور'!$E:$E,راتب!C12,'مرحل حضور'!$N:$N,راتب!$J$2)","v":0},null,null,null,null,null,null,26,"أغسطس",2026]
[null,80,"عوض8",1000,{"$f":"SUMIFS('ارقام الغرف واسعارها'!$J:$J,'ارقام الغرف واسعارها'!$H:$H,راتب!C13,'ارقام الغرف واسعارها'!$I:$I,راتب!$E$5,'ارقام الغرف واسعارها'!$K:$K,راتب!$J$2)","v":0},{"$f":"SUMIFS('مرحل حضور'!$L:$L,'مرحل حضور'!$E:$E,راتب!C13,'مرحل حضور'!$N:$N,راتب!$J$2)","v":0},{"$f":"SUMIFS('ارقام الغرف واسعارها'!$J:$J,'ارقام الغرف واسعارها'!$H:$H,راتب!C13,'ارقام الغرف واسعارها'!$I:$I,راتب!$G$5,'ارقام الغرف واسعارها'!$K:$K,راتب!$J$2)","v":0},{"$f":"SUMIFS('ارقام الغرف واسعارها'!$J:$J,'ارقام الغرف واسعارها'!$H:$H,راتب!C13,'ارقام الغرف واسعارها'!$I:$I,راتب!$H$5,'ارقام الغرف واسعارها'!$K:$K,راتب!$J$2)","v":0},{"$f":"SUMIFS('مرحل حضور'!$K:$K,'مرحل حضور'!$E:$E,راتب!C13,'مرحل حضور'!$N:$N,راتب!$J$2)","v":0},0,0,1000,null,null,{"$f":"SUMIFS('مرحل حضور'!$O:$O,'مرحل حضور'!$E:$E,راتب!C13,'مرحل حضور'!$N:$N,راتب!$J$2)","v":0},null,null,null,null,null,null,27,"سبتمبر",2027]
[null,90,"عوض9",1000,{"$f":"SUMIFS('ارقام الغرف واسعارها'!$J:$J,'ارقام الغرف واسعارها'!$H:$H,راتب!C14,'ارقام الغرف واسعارها'!$I:$I,راتب!$E$5,'ارقام الغرف واسعارها'!$K:$K,راتب!$J$2)","v":0},{"$f":"SUMIFS('مرحل حضور'!$L:$L,'مرحل حضور'!$E:$E,راتب!C14,'مرحل حضور'!$N:$N,راتب!$J$2)","v":0},{"$f":"SUMIFS('ارقام الغرف واسعارها'!$J:$J,'ارقام الغرف واسعارها'!$H:$H,راتب!C14,'ارقام الغرف واسعارها'!$I:$I,راتب!$G$5,'ارقام الغرف واسعارها'!$K:$K,راتب!$J$2)","v":0},{"$f":"SUMIFS('ارقام الغرف واسعارها'!$J:$J,'ارقام الغرف واسعارها'!$H:$H,راتب!C14,'ارقام الغرف واسعارها'!$I:$I,راتب!$H$5,'ارقام الغرف واسعارها'!$K:$K,راتب!$J$2)","v":0},{"$f":"SUMIFS('مرحل حضور'!$K:$K,'مرحل حضور'!$E:$E,راتب!C14,'مرحل حضور'!$N:$N,راتب!$J$2)","v":0},0,0,1000,null,null,{"$f":"SUMIFS('مرحل حضور'!$O:$O,'مرحل حضور'!$E:$E,راتب!C14,'مرحل حضور'!$N:$N,راتب!$J$2)","v":0},null,null,null,null,null,null,28,"أكتوبر",2028]
[null,100,"عوض10",1000,{"$f":"SUMIFS('ارقام الغرف واسعارها'!$J:$J,'ارقام الغرف واسعارها'!$H:$H,راتب!C15,'ارقام الغرف واسعارها'!$I:$I,راتب!$E$5,'ارقام الغرف واسعارها'!$K:$K,راتب!$J$2)","v":0},{"$f":"SUMIFS('مرحل حضور'!$L:$L,'مرحل حضور'!$E:$E,راتب!C15,'مرحل حضور'!$N:$N,راتب!$J$2)","v":0},{"$f":"SUMIFS('ارقام الغرف واسعارها'!$J:$J,'ارقام الغرف واسعارها'!$H:$H,راتب!C15,'ارقام الغرف واسعارها'!$I:$I,راتب!$G$5,'ارقام الغرف واسعارها'!$K:$K,راتب!$J$2)","v":0},{"$f":"SUMIFS('ارقام الغرف واسعارها'!$J:$J,'ارقام الغرف واسعارها'!$H:$H,راتب!C15,'ارقام الغرف واسعارها'!$I:$I,راتب!$H$5,'ارقام الغرف واسعارها'!$K:$K,راتب!$J$2)","v":0},{"$f":"SUMIFS('مرحل حضور'!$K:$K,'مرحل حضور'!$E:$E,راتب!C15,'مرحل حضور'!$N:$N,راتب!$J$2)","v":0},0,0,1000,null,null,{"$f":"SUMIFS('مرحل حضور'!$O:$O,'مرحل حضور'!$E:$E,راتب!C15,'مرحل حضور'!$N:$N,راتب!$J$2)","v":0},null,null,null,null,null,null,29,"نوفمبر",2029]
[null,110,"عوض11",1000,{"$f":"SUMIFS('ارقام الغرف واسعارها'!$J:$J,'ارقام الغرف واسعارها'!$H:$H,راتب!C16,'ارقام الغرف واسعارها'!$I:$I,راتب!$E$5,'ارقام الغرف واسعارها'!$K:$K,راتب!$J$2)","v":0},{"$f":"SUMIFS('مرحل حضور'!$L:$L,'مرحل حضور'!$E:$E,راتب!C16,'مرحل حضور'!$N:$N,راتب!$J$2)","v":0},{"$f":"SUMIFS('ارقام الغرف واسعارها'!$J:$J,'ارقام الغرف واسعارها'!$H:$H,راتب!C16,'ارقام الغرف واسعارها'!$I:$I,راتب!$G$5,'ارقام الغرف واسعارها'!$K:$K,راتب!$J$2)","v":0},{"$f":"SUMIFS('ارقام الغرف واسعارها'!$J:$J,'ارقام الغرف واسعارها'!$H:$H,راتب!C16,'ارقام الغرف واسعارها'!$I:$I,راتب!$H$5,'ارقام الغرف واسعارها'!$K:$K,راتب!$J$2)","v":0},{"$f":"SUMIFS('مرحل حضور'!$K:$K,'مرحل حضور'!$E:$E,راتب!C16,'مرحل حضور'!$N:$N,راتب!$J$2)","v":0},0,0,1000,null,null,{"$f":"SUMIFS('مرحل حضور'!$O:$O,'مرحل حضور'!$E:$E,راتب!C16,'مرحل حضور'!$N:$N,راتب!$J$2)","v":0},null,null,null,null,null,null,30,"ديسمبر",2030]
[null,120,"عوض12",1000,{"$f":"SUMIFS('ارقام الغرف واسعارها'!$J:$J,'ارقام الغرف واسعارها'!$H:$H,راتب!C17,'ارقام الغرف واسعارها'!$I:$I,راتب!$E$5,'ارقام الغرف واسعارها'!$K:$K,راتب!$J$2)","v":0},{"$f":"SUMIFS('مرحل حضور'!$L:$L,'مرحل حضور'!$E:$E,راتب!C17,'مرحل حضور'!$N:$N,راتب!$J$2)","v":0},{"$f":"SUMIFS('ارقام الغرف واسعارها'!$J:$J,'ارقام الغرف واسعارها'!$H:$H,راتب!C17,'ارقام الغرف واسعارها'!$I:$I,راتب!$G$5,'ارقام الغرف واسعارها'!$K:$K,راتب!$J$2)","v":0},{"$f":"SUMIFS('ارقام الغرف واسعارها'!$J:$J,'ارقام الغرف واسعارها'!$H:$H,راتب!C17,'ارقام الغرف واسعارها'!$I:$I,راتب!$H$5,'ارقام الغرف واسعارها'!$K:$K,راتب!$J$2)","v":0},{"$f":"SUMIFS('مرحل حضور'!$K:$K,'مرحل حضور'!$E:$E,راتب!C17,'مرحل حضور'!$N:$N,راتب!$J$2)","v":0},0,0,1000,null,null,{"$f":"SUMIFS('مرحل حضور'!$O:$O,'مرحل حضور'!$E:$E,راتب!C17,'مرحل حضور'!$N:$N,راتب!$J$2)","v":0},null,null,null,null,null,null,31]
[null,130,"عوض13",1000,{"$f":"SUMIFS('ارقام الغرف واسعارها'!$J:$J,'ارقام الغرف واسعارها'!$H:$H,راتب!C18,'ارقام الغرف واسعارها'!$I:$I,راتب!$E$5,'ارقام الغرف واسعارها'!$K:$K,راتب!$J$2)","v":0},{"$f":"SUMIFS('مرحل حضور'!$L:$L,'مرحل حضور'!$E:$E,راتب!C18,'مرحل حضور'!$N:$N,راتب!$J$2)","v":0},{"$f":"SUMIFS('ارقام الغرف واسعارها'!$J:$J,'ارقام الغرف واسعارها'!$H:$H,راتب!C18,'ارقام الغرف واسعارها'!$I:$I,راتب!$G$5,'ارقام الغرف واسعارها'!$K:$K,راتب!$J$2)","v":0},{"$f":"SUMIFS('ارقام الغرف واسعارها'!$J:$J,'ارقام الغرف واسعارها'!$H:$H,راتب!C18,'ارقام الغرف واسعارها'!$I:$I,راتب!$H$5,'ارقام الغرف واسعارها'!$K:$K,راتب!$J$2)","v":0},{"$f":"SUMIFS('مرحل حضور'!$K:$K,'مرحل حضور'!$E:$E,راتب!C18,'مرحل حضور'!$N:$N,راتب!$J$2)","v":0},0,0,1000,null,null,{"$f":"SUMIFS('مرحل حضور'!$O:$O,'مرحل حضور'!$E:$E,راتب!C18,'مرحل حضور'!$N:$N,راتب!$J$2)","v":0}]
[null,140,"عوض14",1000,{"$f":"SUMIFS('ارقام الغرف واسعارها'!$J:$J,'ارقام الغرف واسعارها'!$H:$H,راتب!C19,'ارقام الغرف واسعارها'!$I:$I,راتب!$E$5,'ارقام الغرف واسعارها'!$K:$K,راتب!$J$2)","v":0},{"$f":"SUMIFS('مرحل حضور'!$L:$L,'مرحل حضور'!$E:$E,راتب!C19,'مرحل حضور'!$N:$N,راتب!$J$2)","v":0},{"$f":"SUMIFS('ارقام الغرف واسعارها'!$J:$J,'ارقام الغرف واسعارها'!$H:$H,راتب!C19,'ارقام الغرف واسعارها'!$I:$I,راتب!$G$5,'ارقام الغرف واسعارها'!$K:$K,راتب!$J$2)","v":0},{"$f":"SUMIFS('ارقام الغرف واسعارها'!$J:$J,'ارقام الغرف واسعارها'!$H:$H,راتب!C19,'ارقام الغرف واسعارها'!$I:$I,راتب!$H$5,'ارقام الغرف واسعارها'!$K:$K,راتب!$J$2)","v":0},{"$f":"SUMIFS('مرحل حضور'!$K:$K,'مرحل حضور'!$E:$E,راتب!C19,'مرحل حضور'!$N:$N,راتب!$J$2)","v":0},0,0,1000,null,null,{"$f":"SUMIFS('مرحل حضور'!$O:$O,'مرحل حضور'!$E:$E,راتب!C19,'مرحل حضور'!$N:$N,راتب!$J$2)","v":0}]
[null,150,"عوض15",1000,{"$f":"SUMIFS('ارقام الغرف واسعارها'!$J:$J,'ارقام الغرف واسعارها'!$H:$H,راتب!C20,'ارقام الغرف واسعارها'!$I:$I,راتب!$E$5,'ارقام الغرف واسعارها'!$K:$K,راتب!$J$2)","v":0},{"$f":"SUMIFS('مرحل حضور'!$L:$L,'مرحل حضور'!$E:$E,راتب!C20,'مرحل حضور'!$N:$N,راتب!$J$2)","v":0},{"$f":"SUMIFS('ارقام الغرف واسعارها'!$J:$J,'ارقام الغرف واسعارها'!$H:$H,راتب!C20,'ارقام الغرف واسعارها'!$I:$I,راتب!$G$5,'ارقام الغرف واسعارها'!$K:$K,راتب!$J$2)","v":0},{"$f":"SUMIFS('ارقام الغرف واسعارها'!$J:$J,'ارقام الغرف واسعارها'!$H:$H,راتب!C20,'ارقام الغرف واسعارها'!$I:$I,راتب!$H$5,'ارقام الغرف واسعارها'!$K:$K,راتب!$J$2)","v":0},{"$f":"SUMIFS('مرحل حضور'!$K:$K,'مرحل حضور'!$E:$E,راتب!C20,'مرحل حضور'!$N:$N,راتب!$J$2)","v":0},0,{"$f":"I20+J20+G20+H20","v":0},{"$f":"D20+E20+F20-K20","v":1000},null,null,{"$f":"SUMIFS('مرحل حضور'!$O:$O,'مرحل حضور'!$E:$E,راتب!C20,'مرحل حضور'!$N:$N,راتب!$J$2)","v":0}]
[null,160,"عوض16",1000,{"$f":"SUMIFS('ارقام الغرف واسعارها'!$J:$J,'ارقام الغرف واسعارها'!$H:$H,راتب!C21,'ارقام الغرف واسعارها'!$I:$I,راتب!$E$5,'ارقام الغرف واسعارها'!$K:$K,راتب!$J$2)","v":0},{"$f":"SUMIFS('مرحل حضور'!$L:$L,'مرحل حضور'!$E:$E,راتب!C21,'مرحل حضور'!$N:$N,راتب!$J$2)","v":0},{"$f":"SUMIFS('ارقام الغرف واسعارها'!$J:$J,'ارقام الغرف واسعارها'!$H:$H,راتب!C21,'ارقام الغرف واسعارها'!$I:$I,راتب!$G$5,'ارقام الغرف واسعارها'!$K:$K,راتب!$J$2)","v":0},{"$f":"SUMIFS('ارقام الغرف واسعارها'!$J:$J,'ارقام الغرف واسعارها'!$H:$H,راتب!C21,'ارقام الغرف واسعارها'!$I:$I,راتب!$H$5,'ارقام الغرف واسعارها'!$K:$K,راتب!$J$2)","v":0},{"$f":"SUMIFS('مرحل حضور'!$K:$K,'مرحل حضور'!$E:$E,راتب!C21,'مرحل حضور'!$N:$N,راتب!$J$2)","v":0},0,0,1000,null,null,{"$f":"SUMIFS('مرحل حضور'!$O:$O,'مرحل حضور'!$E:$E,راتب!C21,'مرحل حضور'!$N:$N,راتب!$J$2)","v":0}]
[null,170,"عوض17",1000,{"$f":"SUMIFS('ارقام الغرف واسعارها'!$J:$J,'ارقام الغرف واسعارها'!$H:$H,راتب!C22,'ارقام الغرف واسعارها'!$I:$I,راتب!$E$5,'ارقام الغرف واسعارها'!$K:$K,راتب!$J$2)","v":0},{"$f":"SUMIFS('مرحل حضور'!$L:$L,'مرحل حضور'!$E:$E,راتب!C22,'مرحل حضور'!$N:$N,راتب!$J$2)","v":0},{"$f":"SUMIFS('ارقام الغرف واسعارها'!$J:$J,'ارقام الغرف واسعارها'!$H:$H,راتب!C22,'ارقام الغرف واسعارها'!$I:$I,راتب!$G$5,'ارقام الغرف واسعارها'!$K:$K,راتب!$J$2)","v":0},{"$f":"SUMIFS('ارقام الغرف واسعارها'!$J:$J,'ارقام الغرف واسعارها'!$H:$H,راتب!C22,'ارقام الغرف واسعارها'!$I:$I,راتب!$H$5,'ارقام الغرف واسعارها'!$K:$K,راتب!$J$2)","v":0},{"$f":"SUMIFS('مرحل حضور'!$K:$K,'مرحل حضور'!$E:$E,راتب!C22,'مرحل حضور'!$N:$N,راتب!$J$2)","v":0},0,0,1000,null,null,{"$f":"SUMIFS('مرحل حضور'!$O:$O,'مرحل حضور'!$E:$E,راتب!C22,'مرحل حضور'!$N:$N,راتب!$J$2)","v":0}]
[null,180,"عوض18",1000,{"$f":"SUMIFS('ارقام الغرف واسعارها'!$J:$J,'ارقام الغرف واسعارها'!$H:$H,راتب!C23,'ارقام الغرف واسعارها'!$I:$I,راتب!$E$5,'ارقام الغرف واسعارها'!$K:$K,راتب!$J$2)","v":0},{"$f":"SUMIFS('مرحل حضور'!$L:$L,'مرحل حضور'!$E:$E,راتب!C23,'مرحل حضور'!$N:$N,راتب!$J$2)","v":0},{"$f":"SUMIFS('ارقام الغرف واسعارها'!$J:$J,'ارقام الغرف واسعارها'!$H:$H,راتب!C23,'ارقام الغرف واسعارها'!$I:$I,راتب!$G$5,'ارقام الغرف واسعارها'!$K:$K,راتب!$J$2)","v":0},{"$f":"SUMIFS('ارقام الغرف واسعارها'!$J:$J,'ارقام الغرف واسعارها'!$H:$H,راتب!C23,'ارقام الغرف واسعارها'!$I:$I,راتب!$H$5,'ارقام الغرف واسعارها'!$K:$K,راتب!$J$2)","v":0},{"$f":"SUMIFS('مرحل حضور'!$K:$K,'مرحل حضور'!$E:$E,راتب!C23,'مرحل حضور'!$N:$N,راتب!$J$2)","v":0},0,0,1000,null,null,{"$f":"SUMIFS('مرحل حضور'!$O:$O,'مرحل حضور'!$E:$E,راتب!C23,'مرحل حضور'!$N:$N,راتب!$J$2)","v":0}]
[null,190,"عوض19",1000,{"$f":"SUMIFS('ارقام الغرف واسعارها'!$J:$J,'ارقام الغرف واسعارها'!$H:$H,راتب!C24,'ارقام الغرف واسعارها'!$I:$I,راتب!$E$5,'ارقام الغرف واسعارها'!$K:$K,راتب!$J$2)","v":0},{"$f":"SUMIFS('مرحل حضور'!$L:$L,'مرحل حضور'!$E:$E,راتب!C24,'مرحل حضور'!$N:$N,راتب!$J$2)","v":0},{"$f":"SUMIFS('ارقام الغرف واسعارها'!$J:$J,'ارقام الغرف واسعارها'!$H:$H,راتب!C24,'ارقام الغرف واسعارها'!$I:$I,راتب!$G$5,'ارقام الغرف واسعارها'!$K:$K,راتب!$J$2)","v":0},{"$f":"SUMIFS('ارقام الغرف واسعارها'!$J:$J,'ارقام الغرف واسعارها'!$H:$H,راتب!C24,'ارقام الغرف واسعارها'!$I:$I,راتب!$H$5,'ارقام الغرف واسعارها'!$K:$K,راتب!$J$2)","v":0},{"$f":"SUMIFS('مرحل حضور'!$K:$K,'مرحل حضور'!$E:$E,راتب!C24,'مرحل حضور'!$N:$N,راتب!$J$2)","v":0},0,0,1000,null,null,{"$f":"SUMIFS('مرحل حضور'!$O:$O,'مرحل حضور'!$E:$E,راتب!C24,'مرحل حضور'!$N:$N,راتب!$J$2)","v":0}]
[null,200,"عوض20",1000,{"$f":"SUMIFS('ارقام الغرف واسعارها'!$J:$J,'ارقام الغرف واسعارها'!$H:$H,راتب!C25,'ارقام الغرف واسعارها'!$I:$I,راتب!$E$5,'ارقام الغرف واسعارها'!$K:$K,راتب!$J$2)","v":0},{"$f":"SUMIFS('مرحل حضور'!$L:$L,'مرحل حضور'!$E:$E,راتب!C25,'مرحل حضور'!$N:$N,راتب!$J$2)","v":0},{"$f":"SUMIFS('ارقام الغرف واسعارها'!$J:$J,'ارقام الغرف واسعارها'!$H:$H,راتب!C25,'ارقام الغرف واسعارها'!$I:$I,راتب!$G$5,'ارقام الغرف واسعارها'!$K:$K,راتب!$J$2)","v":0},{"$f":"SUMIFS('ارقام الغرف واسعارها'!$J:$J,'ارقام الغرف واسعارها'!$H:$H,راتب!C25,'ارقام الغرف واسعارها'!$I:$I,راتب!$H$5,'ارقام الغرف واسعارها'!$K:$K,راتب!$J$2)","v":0},{"$f":"SUMIFS('مرحل حضور'!$K:$K,'مرحل حضور'!$E:$E,راتب!C25,'مرحل حضور'!$N:$N,راتب!$J$2)","v":0},0,0,1000,null,null,{"$f":"SUMIFS('مرحل حضور'!$O:$O,'مرحل حضور'!$E:$E,راتب!C25,'مرحل حضور'!$N:$N,راتب!$J$2)","v":0}]

{"sheet":"الحساب","index":7,"n_rows":19,"n_cols":11,"rows_kept":19,"cut":false,"hidden":false,"merged":[[13,3,15,3],[1,1,1,2],[6,3,12,3]]}
[]
[null,"فاتورة"]
[null,"لوكاندة","الرشيدى","ب . ض",null,null,null,"ضريبة سياحة",0.05,null,"تم السداد ....مع خالص الامنيات"]
[null,"مطلوب من السيد","غلى",null,null,null,null,"ضريبة خدمة",0.04,null,"لم يتم السداد"]
[null,"التاريخ",{"$f":"TODAY()","v":"2019-10-11"}]
[null,"المدة من",{"$f":"VLOOKUP($C$4,البيانات!$B$6:$R$18,3,0)","v":"2019-03-04"},"ملاحظات"]
[null,"الى",{"$f":"VLOOKUP($C$4,البيانات!$B$6:$R$18,4,0)","v":"2019-06-04"},"تم السداد ....مع خالص الامنيات"]
[null,"رقم الحجرة",{"$f":"VLOOKUP($C$4,البيانات!$B$6:$R$18,2,0)","v":20}]
[null,"عدد الليالى",{"$f":"VLOOKUP($C$4,البيانات!$B$6:$R$18,12,0)","v":92}]
[null,"سعر الحجرة فى الليلة",{"$f":"VLOOKUP($C$4,البيانات!$B$6:$R$18,13,0)","v":20}]
[null,"اجر الليالى",{"$f":"VLOOKUP($C$4,البيانات!$B$6:$R$18,14,0)","v":1840}]
[null,"تكاليف وجبات",{"$f":"VLOOKUP($C$4,البيانات!$B$6:$R$18,16,0)","v":36796320}]
[null,"جملة",{"$f":"C11+C12","v":36798160}]
[null,"ضريبة سياحة",{"$f":"C13*I3","v":1839908},{"$f":"CH_N_TO_TEXT(C16)","v":"  فقط أربعون مليون و مائة وتسعة ألف وتسعمائة وأربعة وتسعين جنيه مصرى لاغير "}]
[null,"ضريبة خدمة",{"$f":"C13*I4","v":1471926.4000000001}]
[null,"اجمالى المطلوب",{"$f":"C13+(C14+C15)","v":40109994.399999999}]
[]
[null,null,"المسئول /"]
[null,null,"يعتمد /"]

{"sheet":"الرئيسية","index":8,"n_rows":23,"n_cols":5,"rows_kept":23,"cut":false,"hidden":false,"merged":[[7,4,8,7],[22,4,22,8]]}
[null,null,null,11]
[]
[]
[]
[]
[]
[]
[null,null,"تعليمات",null,{"$f":"TODAY()","v":"2019-10-11"}]
[]
[]
[]
[]
[]
[]
[]
[]
[]
[]
[]
[]
[]
[]
[null,null,null,null,"برمجة / عوض كارو  ت: 011117771092"]

{"sheet":"ورقة1","index":9,"n_rows":13,"n_cols":4,"rows_kept":13,"cut":false,"hidden":false,"merged":[[1,1,1,3]]}
[]
[null,"اسم العميل فى الحجرة"]
[]
[]
[null,null,null,"رقم الحجرة"]
[null,null,null,60]
[]
[]
[null,null,"اسم العميل","رقم الحجرة"]
[null,null,"عوض",60]
[null,null,"عوض محمد محمود محمود",60]
[null,null,"عوض91",60]
[null,null,"عوض60",60]

{"sheet":"حضور وانصراف","index":10,"n_rows":223,"n_cols":21,"rows_kept":223,"cut":false,"hidden":false,"merged":[]}
["مهم جدا",null,"غير",null,null,"بداية العمل الرسمى",{"$f":"IF(C2=\"صباحى\",P7,IF(C2=\"مسائى\",P115))","v":"17:00:00"},null,{"$f":"IF(C2=\"صباحى\",P103,IF(C2=\"مسائى\",P199))","v":0.99999999999988798},"نهاية العمل الرسمى"]
[null,null,"مسائى",null,null,"اجر الساعة",30,null,"00:10:00","سماح التأخير",null,null,null,null,null,null,null,null,"صباحى"]
[null,null,null,null,null,"الاضافى",1.5,null,null,null,null,null,null,null,null,null,null,null,"مسائى"]
[null,null,{"$f":"TODAY()","v":"2019-10-11"}]
["مسلسل","كود","التاريخ","الاسم","ساعة الحضور","ساعة الانصراف","تأخير","اذن خروج","اضافى","خصم تأخير","بدل اضافى","الفترة","الشهر","غياب",null,null,null,null,null,null,1]
[null,null,{"$f":"IF(B6=\"\",\"\",$C$4)","v":""},{"$f":"IFERROR(VLOOKUP(B6,راتب!$B$6:$L$25,2,0),\"\")","v":""},null,null,{"$f":"IF(F6=\"\",\"\",IF((E6-$G$1)<=$I$2,0,E6-$G$1))","v":""},{"$f":"IF(F6=\"\",\"\",IF(($I$1-F6)<0,0,$I$1-F6))","v":""},{"$f":"IF(F6=\"\",\"\",IF((F6-$I$1)<0,0,F6-$I$1))","v":""},{"$f":"IF(F6<>\"\",(G6+H6)*24*$G$2,\"\")","v":""},{"$f":"IF(I6=\"\",\"\",I6*24*$G$3*$G$2)","v":""},{"$f":"IF(B6=\"\",\"\",$C$2)","v":""},{"$f":"IF(B6=\"\",\"\",TEXT(C6,\"mmm\"))","v":""},{"$f":"IF(E6=\"غياب\",1,\"\")","v":""},null,"غياب",null,null,null,null,2]
[null,null,{"$f":"IF(B7=\"\",\"\",$C$4)","v":""},{"$f":"IFERROR(VLOOKUP(B7,راتب!$B$6:$L$25,2,0),\"\")","v":""},null,null,{"$f":"IF(F7=\"\",\"\",IF((E7-$G$1)<=$I$2,0,E7-$G$1))","v":""},{"$f":"IF(F7=\"\",\"\",IF(($I$1-F7)<0,0,$I$1-F7))","v":""},{"$f":"IF(F7=\"\",\"\",IF((F7-$I$1)<0,0,F7-$I$1))","v":""},{"$f":"IF(F7<>\"\",(G7+H7)*24*$G$2,\"\")","v":""},{"$f":"IF(I7=\"\",\"\",I7*24*$G$3*$G$2)","v":""},{"$f":"IF(B7=\"\",\"\",$C$2)","v":""},{"$f":"IF(B7=\"\",\"\",TEXT(C7,\"mmm\"))","v":""},{"$f":"IF(E7=\"غياب\",1,\"\")","v":""},null,"08:00:00","17:00:00",null,null,null,3]
[null,null,{"$f":"IF(B8=\"\",\"\",$C$4)","v":""},{"$f":"IFERROR(VLOOKUP(B8,راتب!$B$6:$L$25,2,0),\"\")","v":""},null,null,{"$f":"IF(F8=\"\",\"\",IF((E8-$G$1)<=$I$2,0,E8-$G$1))","v":""},"","","","","","","",null,"08:05:00","17:05:00",null,null,null,4]
[null,null,{"$f":"IF(B9=\"\",\"\",$C$4)","v":""},{"$f":"IFERROR(VLOOKUP(B9,راتب!$B$6:$L$25,2,0),\"\")","v":""},null,null,{"$f":"IF(F9=\"\",\"\",IF((E9-$G$1)<=$I$2,0,E9-$G$1))","v":""},"","","","","","","",null,"08:10:00","17:10:00",null,null,null,5]
[null,null,"",{"$f":"IFERROR(VLOOKUP(B10,راتب!$B$6:$L$25,2,0),\"\")","v":""},null,null,"","","","","","","","",null,"08:15:00","17:15:00",null,null,null,6]
[null,null,"",{"$f":"IFERROR(VLOOKUP(B11,راتب!$B$6:$L$25,2,0),\"\")","v":""},null,null,{"$f":"IF(F11=\"\",\"\",IF((E11-$G$1)<=$I$2,0,E11-$G$1))","v":""},"","","","",{"$f":"IF(B11=\"\",\"\",$C$2)","v":""},"","",null,"08:20:00","17:20:00",null,null,null,7]
[null,null,"",{"$f":"IFERROR(VLOOKUP(B12,راتب!$B$6:$L$25,2,0),\"\")","v":""},null,null,"","","","","","","","",null,"08:25:00","17:25:00",null,null,null,8]
[null,null,"",{"$f":"IFERROR(VLOOKUP(B13,راتب!$B$6:$L$25,2,0),\"\")","v":""},null,null,"","","","","","","","",null,"08:30:00","17:30:00",null,null,null,9]
[null,null,"",{"$f":"IFERROR(VLOOKUP(B14,راتب!$B$6:$L$25,2,0),\"\")","v":""},null,null,"","","","","","","","",null,"08:35:00","17:35:00",null,null,null,10]
[null,null,{"$f":"IF(B15=\"\",\"\",$C$4)","v":""},{"$f":"IFERROR(VLOOKUP(B15,راتب!$B$6:$L$25,2,0),\"\")","v":""},null,null,"","","","","","","","",null,"08:40:00","17:40:00",null,null,null,11]
[null,null,{"$f":"IF(B16=\"\",\"\",$C$4)","v":""},{"$f":"IFERROR(VLOOKUP(B16,راتب!$B$6:$L$25,2,0),\"\")","v":""},null,null,null,"","","","","",null,"",null,"08:45:00","17:45:00",null,null,null,12]
[null,null,null,{"$f":"IFERROR(VLOOKUP(B17,راتب!$B$6:$L$25,2,0),\"\")","v":""},null,null,null,"","","","","",null,"",null,"08:50:00","17:50:00",null,null,null,13]
[null,null,null,{"$f":"IFERROR(VLOOKUP(B18,راتب!$B$6:$L$25,2,0),\"\")","v":""},null,null,null,"","","","","",null,"",null,"08:55:00","17:55:00",null,null,null,14]
[null,null,null,{"$f":"IFERROR(VLOOKUP(B19,راتب!$B$6:$L$25,2,0),\"\")","v":""},null,null,null,"","","","","",null,"",null,"09:00:00","18:00:00",null,null,null,15]
[null,null,null,{"$f":"IFERROR(VLOOKUP(B20,راتب!$B$6:$L$25,2,0),\"\")","v":""},null,null,null,"","","","","",null,"",null,"09:05:00","18:05:00",null,null,null,16]
[null,null,null,{"$f":"IFERROR(VLOOKUP(B21,راتب!$B$6:$L$25,2,0),\"\")","v":""},null,null,null,"","","","","",null,"",null,"09:10:00","18:10:00",null,null,null,17]
[null,null,null,{"$f":"IFERROR(VLOOKUP(B22,راتب!$B$6:$L$25,2,0),\"\")","v":""},null,null,null,"","","","","",null,"",null,"09:15:00","18:15:00",null,null,null,18]
[null,null,null,{"$f":"IFERROR(VLOOKUP(B23,راتب!$B$6:$L$25,2,0),\"\")","v":""},null,null,null,"","","","","",null,"",null,"09:20:00","18:20:00",null,null,null,19]
[null,null,null,{"$f":"IFERROR(VLOOKUP(B24,راتب!$B$6:$L$25,2,0),\"\")","v":""},null,null,null,"","","","","",null,"",null,"09:25:00","18:25:00",null,null,null,20]
[null,null,null,{"$f":"IFERROR(VLOOKUP(B25,راتب!$B$6:$L$25,2,0),\"\")","v":""},null,null,null,"","","","","",null,"",null,"09:30:00","18:30:00",null,null,null,21]
[null,null,null,null,null,null,"","","","","",null,null,null,null,"09:35:00","18:35:00",null,null,null,22]
[null,null,"",null,null,null,"","","","","",null,null,null,null,"09:40:00","18:40:00",null,null,null,23]
[null,null,"",null,null,null,"","","","","",null,null,null,null,"09:45:00","18:45:00",null,null,null,24]
[null,null,"",null,null,null,"","","","","",null,null,null,null,"09:50:00","18:50:00",null,null,null,25]
[null,null,"",null,null,null,"","","","","",null,null,null,null,"09:55:00","18:55:00",null,null,null,26]
[null,null,"",null,null,null,"","","","","",null,null,null,null,"10:00:00","19:00:00",null,null,null,27]
[null,null,"",null,null,null,"","","","","",null,null,null,null,"10:05:00","19:05:00",null,null,null,28]
[null,null,"",null,null,null,"","","","","",null,null,null,null,"10:10:00","19:10:00",null,null,null,29]
[null,null,"",null,null,null,"","","","","",null,null,null,null,"10:15:00",null,null,null,null,30]
[null,null,"",null,null,null,"","","","","",null,null,null,null,"10:20:00",null,null,null,null,31]
[null,null,"",null,null,null,"","","","","",null,null,null,null,"10:25:00",null,null,null,null,32]
[null,null,"",null,null,null,"","","","","",null,null,null,null,"10:30:00",null,null,null,null,33]
[null,null,"",null,null,null,"","","","","",null,null,null,null,"10:35:00",null,null,null,null,34]
[null,null,"",null,null,null,"","","","","",null,null,null,null,"10:40:00",null,null,null,null,35]
[null,null,"",null,null,null,"","","","","",null,null,null,null,"10:45:00",null,null,null,null,36]
[null,null,"",null,null,null,"","","","","",null,null,null,null,"10:50:00",null,null,null,null,37]
[null,null,"",null,null,null,"","","","","",null,null,null,null,"10:55:00",null,null,null,null,38]
[null,null,"",null,null,null,"","","","","",null,null,null,null,"11:00:00",null,null,null,null,39]
[null,null,"",null,null,null,"","","","","",null,null,null,null,"11:05:00",null,null,null,null,40]
[null,null,"",null,null,null,"","","","","",null,null,null,null,"11:10:00",null,null,null,null,41]
[null,null,"",null,null,null,"","","","","",null,null,null,null,"11:15:00",null,null,null,null,42]
[null,null,"",null,null,null,"","","","","",null,null,null,null,"11:20:00",null,null,null,null,43]
[null,null,"",null,null,null,"","","","","",null,null,null,null,"11:25:00",null,null,null,null,44]
[null,null,"",null,null,null,"","","","","",null,null,null,null,"11:30:00",null,null,null,null,45]
[null,null,"",null,null,null,"","","","","",null,null,null,null,"11:35:00",null,null,null,null,46]
[null,null,"",null,null,null,"","","","","",null,null,null,null,"11:40:00",null,null,null,null,47]
[null,null,"",null,null,null,"","","","","",null,null,null,null,"11:45:00",null,null,null,null,48]
[null,null,"",null,null,null,"","","","","",null,null,null,null,"11:50:00",null,null,null,null,49]
[null,null,"",null,null,null,"","","","","",null,null,null,null,"11:55:00",null,null,null,null,50]
[null,null,"",null,null,null,"","","","","",null,null,null,null,"12:00:00",null,null,null,null,51]
[null,null,"",null,null,null,"","","","","",null,null,null,null,"12:05:00",null,null,null,null,52]
[null,null,"",null,null,null,"","","","","",null,null,null,null,"12:10:00",null,null,null,null,53]
[null,null,"",null,null,null,"","","","","",null,null,null,null,"12:15:00",null,null,null,null,54]
[null,null,"",null,null,null,"","","","","",null,null,null,null,"12:20:00",null,null,null,null,55]
[null,null,"",null,null,null,"","","","","",null,null,null,null,"12:25:00",null,null,null,null,56]
[null,null,"",null,null,null,"","","","","",null,null,null,null,"12:30:00",null,null,null,null,57]
[null,null,"",null,null,null,"","","","","",null,null,null,null,"12:35:00",null,null,null,null,58]
[null,null,"",null,null,null,"","","","","",null,null,null,null,"12:40:00",null,null,null,null,59]
[null,null,"",null,null,null,"","","","","",null,null,null,null,"12:45:00",null,null,null,null,60]
[null,null,"",null,null,null,"","","","","",null,null,null,null,"12:50:00",null,null,null,null,61]
[null,null,"",null,null,null,"","","","","",null,null,null,null,"12:55:00",null,null,null,null,62]
[null,null,"",null,null,null,"","","","","",null,null,null,null,"13:00:00",null,null,null,null,63]
[null,null,"",null,null,null,"","","","","",null,null,null,null,"13:05:00",null,null,null,null,64]
[null,null,"",null,null,null,"","","","","",null,null,null,null,"13:10:00",null,null,null,null,65]
[null,null,"",null,null,null,"","","","","",null,null,null,null,"13:15:00",null,null,null,null,66]
[null,null,{"$f":"IF(B71=\"\",\"\",$C$4)","v":""},null,null,null,"","","","","",null,null,null,null,"13:20:00",null,null,null,null,67]
[null,null,"",null,null,null,"","","","","",null,null,null,null,"13:25:00",null,null,null,null,68]
[null,null,"",null,null,null,"","","","","",null,null,null,null,"13:30:00",null,null,null,null,69]
[null,null,"",null,null,null,"","","","","",null,null,null,null,"13:35:00",null,null,null,null,70]
[null,null,"",null,null,null,"","","","","",null,null,null,null,"13:40:00",null,null,null,null,71]
[null,null,"",null,null,null,"","","","","",null,null,null,null,"13:45:00",null,null,null,null,72]
[null,null,"",null,null,null,"","","","","",null,null,null,null,"13:50:00",null,null,null,null,73]
[null,null,"",null,null,null,"","","","","",null,null,null,null,"13:55:00",null,null,null,null,74]
[null,null,"",null,null,null,"","","","","",null,null,null,null,"14:00:00",null,null,null,null,75]
[null,null,"",null,null,null,"","","","","",null,null,null,null,"14:05:00",null,null,null,null,76]
[null,null,"",null,null,null,"","","","","",null,null,null,null,"14:10:00",null,null,null,null,77]
[null,null,"",null,null,null,"","","","","",null,null,null,null,"14:15:00",null,null,null,null,78]
[null,null,"",null,null,null,"","","","","",null,null,null,null,"14:20:00",null,null,null,null,79]
[null,null,"",null,null,null,"","","","","",null,null,null,null,"14:25:00",null,null,null,null,80]
[null,null,"",null,null,null,"","","","","",null,null,null,null,"14:30:00",null,null,null,null,81]
[null,null,"",null,null,null,"","","","","",null,null,null,null,"14:35:00",null,null,null,null,82]
[null,null,"",null,null,null,"","","","","",null,null,null,null,"14:40:00",null,null,null,null,83]
[null,null,"",null,null,null,"","","","","",null,null,null,null,"14:45:00",null,null,null,null,84]
[null,null,"",null,null,null,"","","","","",null,null,null,null,"14:50:00",null,null,null,null,85]
[null,null,"",null,null,null,"","","","","",null,null,null,null,"14:55:00",null,null,null,null,86]
[null,null,"",null,null,null,"","","","","",null,null,null,null,"15:00:00",null,null,null,null,87]
[null,null,"",null,null,null,"","","","","",null,null,null,null,"15:05:00",null,null,null,null,88]
[null,null,"",null,null,null,"","","","","",null,null,null,null,"15:10:00",null,null,null,null,89]
[null,null,"",null,null,null,"","","","","",null,null,null,null,"15:15:00",null,null,null,null,90]
[null,null,"",null,null,null,"","","","","",null,null,null,null,"15:20:00",null,null,null,null,91]
[null,null,"",null,null,null,"","","","","",null,null,null,null,"15:25:00",null,null,null,null,92]
[null,null,"",null,null,null,"","","","","",null,null,null,null,"15:30:00",null,null,null,null,93]
[null,null,"",null,null,null,"","","","","",null,null,null,null,"15:35:00",null,null,null,null,94]
[null,null,"",null,null,null,"","","","","",null,null,null,null,"15:40:00",null,null,null,null,95]
[null,null,"",null,null,null,"","","","","",null,null,null,null,"15:45:00",null,null,null,null,96]
[null,null,"",null,null,null,"","","","","",null,null,null,null,"15:50:00",null,null,null,null,97]
[null,null,"",null,null,null,"","","","","",null,null,null,null,"15:55:00",null,null,null,null,98]
[null,null,"",null,null,null,"","","","","",null,null,null,null,"16:00:00",null,null,null,null,99]
[null,null,"",null,null,null,"","","","","",null,null,null,null,"16:05:00",null,null,null,null,100]
[null,null,"",null,null,null,"","","","","",null,null,null,null,"16:10:00"]
[null,null,null,null,null,null,"","","","","",null,null,null,null,"16:15:00"]
[null,null,null,null,null,null,null,null,null,null,null,null,null,null,null,"16:20:00"]
[null,null,null,null,null,null,null,null,null,null,null,null,null,null,null,"16:25:00"]
[null,null,null,null,null,null,null,null,null,null,null,null,null,null,null,"16:30:00"]
[null,null,null,null,null,null,null,null,null,null,null,null,null,null,null,"16:35:00"]
[null,null,null,null,null,null,null,null,null,null,null,null,null,null,null,"16:40:00"]
[null,null,null,null,null,null,null,null,null,null,null,null,null,null,null,"16:45:00"]
[null,null,null,null,null,null,null,null,null,null,null,null,null,null,null,"16:50:00"]
[null,null,null,null,null,null,null,null,null,null,null,null,null,null,null,"16:55:00"]
[null,null,null,null,null,null,null,null,null,null,null,null,null,null,null,"17:00:00"]
[null,null,null,null,null,null,null,null,null,null,null,null,null,null,null,"17:05:00"]
[null,null,null,null,null,null,null,null,null,null,null,null,null,null,null,"17:10:00"]
[null,null,null,null,null,null,null,null,null,null,null,null,null,null,null,"17:15:00"]
[null,null,null,null,null,null,null,null,null,null,null,null,null,null,null,"17:20:00"]
[null,null,null,null,null,null,null,null,null,null,null,null,null,null,null,"17:25:00"]
[null,null,null,null,null,null,null,null,null,null,null,null,null,null,null,"17:30:00"]
[null,null,null,null,null,null,null,null,null,null,null,null,null,null,null,"17:35:00"]
[null,null,null,null,null,null,null,null,null,null,null,null,null,null,null,"17:40:00"]
[null,null,null,null,null,null,null,null,null,null,null,null,null,null,null,"17:45:00"]
[null,null,null,null,null,null,null,null,null,null,null,null,null,null,null,"17:50:00"]
[null,null,null,null,null,null,null,null,null,null,null,null,null,null,null,"17:55:00"]
[null,null,null,null,null,null,null,null,null,null,null,null,null,null,null,"18:00:00"]
[null,null,null,null,null,null,null,null,null,null,null,null,null,null,null,"18:05:00"]
[null,null,null,null,null,null,null,null,null,null,null,null,null,null,null,"18:10:00"]
[null,null,null,null,null,null,null,null,null,null,null,null,null,null,null,"18:15:00"]
[null,null,null,null,null,null,null,null,null,null,null,null,null,null,null,"18:20:00"]
[null,null,null,null,null,null,null,null,null,null,null,null,null,null,null,"18:25:00"]
[null,null,null,null,null,null,null,null,null,null,null,null,null,null,null,"18:30:00"]
[null,null,null,null,null,null,null,null,null,null,null,null,null,null,null,"18:35:00"]
[null,null,null,null,null,null,null,null,null,null,null,null,null,null,null,"18:40:00"]
[null,null,null,null,null,null,null,null,null,null,null,null,null,null,null,"18:45:00"]
[null,null,null,null,null,null,null,null,null,null,null,null,null,null,null,"18:50:00"]
[null,null,null,null,null,null,null,null,null,null,null,null,null,null,null,"18:55:00"]
[null,null,null,null,null,null,null,null,null,null,null,null,null,null,null,"19:00:00"]
[null,null,null,null,null,null,null,null,null,null,null,null,null,null,null,"19:05:00"]
[null,null,null,null,null,null,null,null,null,null,null,null,null,null,null,"19:10:00"]
[null,null,null,null,null,null,null,null,null,null,null,null,null,null,null,"19:15:00"]
[null,null,null,null,null,null,null,null,null,null,null,null,null,null,null,"19:20:00"]
[null,null,null,null,null,null,null,null,null,null,null,null,null,null,null,"19:25:00"]
[null,null,null,null,null,null,null,null,null,null,null,null,null,null,null,"19:30:00"]
[null,null,null,null,null,null,null,null,null,null,null,null,null,null,null,"19:35:00"]
[null,null,null,null,null,null,null,null,null,null,null,null,null,null,null,"19:40:00"]
[null,null,null,null,null,null,null,null,null,null,null,null,null,null,null,"19:45:00"]
[null,null,null,null,null,null,null,null,null,null,null,null,null,null,null,"19:50:00"]
[null,null,null,null,null,null,null,null,null,null,null,null,null,null,null,"19:55:00"]
[null,null,null,null,null,null,null,null,null,null,null,null,null,null,null,"20:00:00"]
[null,null,null,null,null,null,null,null,null,null,null,null,null,null,null,"20:05:00"]
[null,null,null,null,null,null,null,null,null,null,null,null,null,null,null,"20:10:00"]
[null,null,null,null,null,null,null,null,null,null,null,null,null,null,null,"20:15:00"]
[null,null,null,null,null,null,null,null,null,null,null,null,null,null,null,"20:20:00"]
[null,null,null,null,null,null,null,null,null,null,null,null,null,null,null,"20:25:00"]
[null,null,null,null,null,null,null,null,null,null,null,null,null,null,null,"20:30:00"]
[null,null,null,null,null,null,null,null,null,null,null,null,null,null,null,"20:35:00"]
[null,null,null,null,null,null,null,null,null,null,null,null,null,null,null,"20:40:00"]
[null,null,null,null,null,null,null,null,null,null,null,null,null,null,null,"20:45:00"]
[null,null,null,null,null,null,null,null,null,null,null,null,null,null,null,"20:50:00"]
[null,null,null,null,null,null,null,null,null,null,null,null,null,null,null,"20:55:00"]
[null,null,null,null,null,null,null,null,null,null,null,null,null,null,null,"21:00:00"]
[null,null,null,null,null,null,null,null,null,null,null,null,null,null,null,"21:05:00"]
[null,null,null,null,null,null,null,null,null,null,null,null,null,null,null,"21:10:00"]
[null,null,null,null,null,null,null,null,null,null,null,null,null,null,null,"21:15:00"]
[null,null,null,null,null,null,null,null,null,null,null,null,null,null,null,"21:20:00"]
[null,null,null,null,null,null,null,null,null,null,null,null,null,null,null,"21:25:00"]
[null,null,null,null,null,null,null,null,null,null,null,null,null,null,null,"21:30:00"]
[null,null,null,null,null,null,null,null,null,null,null,null,null,null,null,"21:35:00"]
[null,null,null,null,null,null,null,null,null,null,null,null,null,null,null,"21:40:00"]
[null,null,null,null,null,null,null,null,null,null,null,null,null,null,null,"21:45:00"]
[null,null,null,null,null,null,null,null,null,null,null,null,null,null,null,"21:50:00"]
[null,null,null,null,null,null,null,null,null,null,null,null,null,null,null,"21:55:00"]
[null,null,null,null,null,null,null,null,null,null,null,null,null,null,null,"22:00:00"]
[null,null,null,null,null,null,null,null,null,null,null,null,null,null,null,"22:05:00"]
[null,null,null,null,null,null,null,null,null,null,null,null,null,null,null,"22:10:00"]
[null,null,null,null,null,null,null,null,null,null,null,null,null,null,null,"22:15:00"]
[null,null,null,null,null,null,null,null,null,null,null,null,null,null,null,"22:20:00"]
[null,null,null,null,null,null,null,null,null,null,null,null,null,null,null,"22:25:00"]
[null,null,null,null,null,null,null,null,null,null,null,null,null,null,null,"22:30:00"]
[null,null,null,null,null,null,null,null,null,null,null,null,null,null,null,"22:35:00"]
[null,null,null,null,null,null,null,null,null,null,null,null,null,null,null,"22:40:00"]
[null,null,null,null,null,null,null,null,null,null,null,null,null,null,null,"22:45:00"]
[null,null,null,null,null,null,null,null,null,null,null,null,null,null,null,"22:50:00"]
[null,null,null,null,null,null,null,null,null,null,null,null,null,null,null,"22:55:00"]
[null,null,null,null,null,null,null,null,null,null,null,null,null,null,null,"23:00:00"]
[null,null,null,null,null,null,null,null,null,null,null,null,null,null,null,"23:05:00"]
[null,null,null,null,null,null,null,null,null,null,null,null,null,null,null,"23:10:00"]
[null,null,null,null,null,null,null,null,null,null,null,null,null,null,null,"23:15:00"]
[null,null,null,null,null,null,null,null,null,null,null,null,null,null,null,"23:20:00"]
[null,null,null,null,null,null,null,null,null,null,null,null,null,null,null,"23:25:00"]
[null,null,null,null,null,null,null,null,null,null,null,null,null,null,null,"23:30:00"]
[null,null,null,null,null,null,null,null,null,null,null,null,null,null,null,"23:35:00"]
[null,null,null,null,null,null,null,null,null,null,null,null,null,null,null,"23:40:00"]
[null,null,null,null,null,null,null,null,null,null,null,null,null,null,null,"23:45:00"]
[null,null,null,null,null,null,null,null,null,null,null,null,null,null,null,"23:50:00"]
[null,null,null,null,null,null,null,null,null,null,null,null,null,null,null,"23:55:00"]
[null,null,null,null,null,null,null,null,null,null,null,null,null,null,null,0.99999999999988798]
[null,null,null,null,null,null,null,null,null,null,null,null,null,null,null,1.00347222222207]
[null,null,null,null,null,null,null,null,null,null,null,null,null,null,null,1.0069444444442599]
[null,null,null,null,null,null,null,null,null,null,null,null,null,null,null,1.01041666666644]
[null,null,null,null,null,null,null,null,null,null,null,null,null,null,null,1.0138888888886299]
[null,null,null,null,null,null,null,null,null,null,null,null,null,null,null,1.0173611111108101]
[null,null,null,null,null,null,null,null,null,null,null,null,null,null,null,1.020833333333]
[null,null,null,null,null,null,null,null,null,null,null,null,null,null,null,1.0243055555551801]
[null,null,null,null,null,null,null,null,null,null,null,null,null,null,null,1.02777777777737]
[null,null,null,null,null,null,null,null,null,null,null,null,null,null,null,1.0312499999995499]
[null,null,null,null,null,null,null,null,null,null,null,null,null,null,null,1.03472222222174]
[null,null,null,null,null,null,null,null,null,null,null,null,null,null,null,1.03819444444392]
[null,null,null,null,null,null,null,null,null,null,null,null,null,null,null,1.0416666666661101]
[null,null,null,null,null,null,null,null,null,null,null,null,null,null,null,1.04513888888829]
[null,null,null,null,null,null,null,null,null,null,null,null,null,null,null,1.0486111111104801]
[null,null,null,null,null,null,null,null,null,null,null,null,null,null,null,1.05208333333266]
[null,null,null,null,null,null,null,null,null,null,null,null,null,null,null,1.0555555555548499]
[null,null,null,null,null,null,null,null,null,null,null,null,null,null,null,1.0590277777770301]
[null,null,null,null,null,null,null,null,null,null,null,null,null,null,null,1.06249999999922]
[null,null,null,null,null,null,null,null,null,null,null,null,null,null,null,1.0659722222214001]
[null,null,null,null,null,null,null,null,null,null,null,null,null,null,null,1.06944444444359]
[null,null,null,null,null,null,null,null,null,null,null,null,null,null,null,1.0729166666657699]
[null,null,null,null,null,null,null,null,null,null,null,null,null,null,null,1.07638888888796]
[null,null,null,null,null,null,null,null,null,null,null,null,null,null,null,1.0798611111101399]
[null,null,null,null,null,null,null,null,null,null,null,null,null,null,null,1.0833333333323301]

{"sheet":"مرحل حضور","index":11,"n_rows":20,"n_cols":15,"rows_kept":20,"cut":false,"hidden":false,"merged":[]}
[]
[]
[]
[]
[]
[]
[]
[null,"مسلسل","الكود","التاريخ","الاسم","ساعة الحضور","ساعة الانصراف","تأخير","اذن خروج","اضافى","خصم تاخير","بدل اضافى","الفترة","الشهر","غياب"]
[null,"1"]
[null,"2"]
[null,"1"]
[null,"2"]
[null,"3"]
[null,"1"]
[null,"2"]
[null,"3"]
[null,1]
[null,1]
[null,1]
[null,1]

{"sheet":"ورقة2","index":12,"n_rows":9,"n_cols":12,"rows_kept":9,"cut":false,"hidden":false,"merged":[[2,4,2,5]]}
[]
[]
[null,null,null,null,"مرتب عامل"]
[]
[null,null,"الاسم"]
[null,null,"عوض17"]
[]
[null,"كود العامل","الاسم","الاساسى","حاقز او مكافآت","اضافى","سلف","خصومات اخرى","تأخير ","خصم غياب","جملة خصم","الصافى"]
[null,170,"عوض17",1000,0,0,0,0,0,0,0,1000]